Workbook

Sheet ACCUEILPRO
A1: Accueil
F7: =ACCUEIL!F7 -> 2022-05-01

Sheet ACCUEILPREM
A1: Accueil
F7: =ACCUEIL!F7 -> 2022-05-01

Sheet ACCUEILGP
A1: Accueil
F7: =ACCUEIL!F7 -> 2022-05-01

Sheet ACCUEIL
F7: 2022-05-01

Sheet Accueilagence
A1: Accueil
E7: =ACCUEIL!F7 -> 2022-05-01

Sheet Accueilsecteur
A1: Accueil
E7: =ACCUEIL!F7 -> 2022-05-01

Sheet AccueilDircom
A1: Accueil
E7: =ACCUEIL!F7 -> 2022-05-01

Sheet DC_FICHE
A1: Accueil
A2: BAROMETRE BDD
A4: UNITE: | B4: DIRECTION REGIONALE | E4: ETP perf : | F4: =VLOOKUP(A5,'RECAP DIRCOM'!$G$6:$I$12,3,FALSE) -> 217.71
A5: =VLOOKUP(B5,LISTES!$M$6:$N$12,2,FALSE) -> 262 | B5: BAS-RHIN
C6: Coefficient du critére | E6: Résultats | I6: Ecart au 1ier | M6: Evolution | O6: Rang
E7: du 1ier | G7: DIRECTION | I7: Du mois | K7: Au 31/12/2019
A9: RANG au CLASSEMENT GENERAL | K9: =VLOOKUP($A$5,#REF!,168,FALSE) ->  | M9: =+K9-O9 ->  | O9: =VLOOKUP($A$5,'RECAP DIRCOM'!$G$6:$CY$312,168,FALSE) -> 
A11: CRITERE CLIENTS | C11: 15% | O11: =VLOOKUP($A$5,'RECAP DIRCOM'!$G$6:$CY$312,23,FALSE) -> 19.8153507
B12: PNB Evolution nette Clients BP | C12: 4% | E12: ='RECAP DIRCOM'!#REF! ->  | G12: =VLOOKUP($A$5,'RECAP DIRCOM'!$G$6:$CY$312,6,FALSE) -> 0.8 | I12: =VLOOKUP($A$5,'RECAP DIRCOM'!$G$6:$CY$312,7,FALSE) -> 500% | K12: =VLOOKUP($A$5,#REF!,7,FALSE) ->  | M12: =+K12-I12 ->  | O12: =VLOOKUP($A$5,'RECAP DIRCOM'!$G$6:$CY$312,8,FALSE) -> 0.5850166008
B13: PNB Evolution nette Clients PREMIUM | C13: 5% | E13: ='RECAP DIRCOM'!#REF! ->  | G13: =VLOOKUP($A$5,'RECAP DIRCOM'!$G$6:$CY$312,10,FALSE) -> 4.0 | I13: =VLOOKUP($A$5,'RECAP DIRCOM'!$G$6:$CY$312,11,FALSE) -> 47% | K13: =VLOOKUP($A$5,#REF!,11,FALSE) ->  | M13: =+K13-I13 ->  | O13: =VLOOKUP($A$5,'RECAP DIRCOM'!$G$6:$CY$312,12,FALSE) -> 0.4733671981
B14: PNB Evolution nette Clients Jeunes Equipés | C14: 3% | E14: ='RECAP DIRCOM'!#REF! ->  | G14: =VLOOKUP($A$5,'RECAP DIRCOM'!$G$6:$CY$312,14,FALSE) -> 0.0 | I14: =VLOOKUP($A$5,'RECAP DIRCOM'!$G$6:$CY$312,15,FALSE) -> 0% | K14: =VLOOKUP($A$5,#REF!,15,FALSE) ->  | M14: =+K14-I14 ->  | O14: =VLOOKUP($A$5,'RECAP DIRCOM'!$G$6:$CY$312,16,FALSE) -> 0
B15: PNB Evolution nette Clients Pro Actifs Equipés | C15: 3% | E15: ='RECAP DIRCOM'!W4 -> 0.0 | G15: =VLOOKUP($A$5,'RECAP DIRCOM'!$G$6:$CY$312,18,FALSE) -> 1765.0 | I15: =VLOOKUP($A$5,'RECAP DIRCOM'!$G$6:$CY$312,19,FALSE) -> 811% | K15: =VLOOKUP($A$5,#REF!,19,FALSE) ->  | M15: =+K15-I15 ->  | O15: =VLOOKUP($A$5,'RECAP DIRCOM'!$G$6:$CY$312,20,FALSE) -> 0.2603004401
A17: CRITERE BANCARISATION | C17: 15% | O17: =VLOOKUP($A$5,'RECAP DIRCOM'!$G$6:$CY$312,48,FALSE) -> 5068.613072
B18: PNB Ventes nettes forfaits | C18: 4% | E18: ='RECAP DIRCOM'!X4 -> 11.0 | G18: =VLOOKUP($A$5,'RECAP DIRCOM'!$G$6:$CY$312,31,FALSE) -> 0.0 | I18: =VLOOKUP($A$5,'RECAP DIRCOM'!$G$6:$CY$312,32,FALSE) -> 0% | K18: =VLOOKUP($A$5,#REF!,32,FALSE) ->  | M18: =+K18-I18 ->  | O18: =VLOOKUP($A$5,'RECAP DIRCOM'!$G$6:$CY$312,33,FALSE) -> 38561.03481
B19: PNB Ventes nettes IZICARTES Débit Différé | C19: 4% | E19: ='RECAP DIRCOM'!AB4 -> 25.4 | G19: =VLOOKUP($A$5,'RECAP DIRCOM'!$G$6:$CY$312,35,FALSE) -> 0.1 | I19: =VLOOKUP($A$5,'RECAP DIRCOM'!$G$6:$CY$312,36,FALSE) -> 300% | K19: =VLOOKUP($A$5,#REF!,36,FALSE) ->  | M19: =+K19-I19 ->  | O19: =VLOOKUP($A$5,'RECAP DIRCOM'!$G$6:$CY$312,37,FALSE) -> 4590
B20: PNB Ventes nettes cartes HDG Débit Différé | C20: 4% | E20: ='RECAP DIRCOM'!#REF! ->  | G20: =VLOOKUP($A$5,'RECAP DIRCOM'!$G$6:$CY$312,39,FALSE) -> 0.2 | I20: =VLOOKUP($A$5,'RECAP DIRCOM'!$G$6:$CY$312,40,FALSE) -> 400% | K20: =VLOOKUP($A$5,#REF!,40,FALSE) ->  | M20: =+K20-I20 ->  | O20: =VLOOKUP($A$5,'RECAP DIRCOM'!$G$6:$CY$312,41,FALSE) -> 0.1762870277
B21: PNB Ventes nettes Forfaits Pro, Carte pro | C21: 3% | E21: ='RECAP DIRCOM'!#REF! ->  | G21: =VLOOKUP($A$5,'RECAP DIRCOM'!$G$6:$CY$312,43,FALSE) -> 3.0 | I21: =VLOOKUP($A$5,'RECAP DIRCOM'!$G$6:$CY$312,44,FALSE) -> 0% | K21: =VLOOKUP($A$5,#REF!,44,FALSE) ->  | M21: =+K21-I21 ->  | O21: =VLOOKUP($A$5,'RECAP DIRCOM'!$G$6:$CY$312,45,FALSE) -> 0
A23: CRITERE EPARGNE | C23: 10% | O23: =VLOOKUP($A$5,'RECAP DIRCOM'!$G$6:$CY$312,69,FALSE) -> 0.2963683773
B24: PNB Epargne Liquide | C24: 3% | E24: ='RECAP DIRCOM'!AM4 -> 206.6 | G24: =VLOOKUP($A$5,'RECAP DIRCOM'!$G$6:$CY$312,56,FALSE) -> 1519.0 | I24: =VLOOKUP($A$5,'RECAP DIRCOM'!$G$6:$CY$312,57,FALSE) -> 698% | K24: =VLOOKUP($A$5,#REF!,57,FALSE) ->  | M24: =+K24-I24 ->  | O24: =VLOOKUP($A$5,'RECAP DIRCOM'!$G$6:$CY$312,58,FALSE) -> 0.4101477961
B25: PNB CA UC + arbitrage | C25: 4% | E25: ='RECAP DIRCOM'!AQ4 -> 27.3 | G25: =VLOOKUP($A$5,'RECAP DIRCOM'!$G$6:$CY$312,60,FALSE) -> 0.4 | I25: =VLOOKUP($A$5,'RECAP DIRCOM'!$G$6:$CY$312,61,FALSE) -> 35% | K25: =VLOOKUP($A$5,#REF!,61,FALSE) ->  | M25: =+K25-I25 ->  | O25: =VLOOKUP($A$5,'RECAP DIRCOM'!$G$6:$CY$312,62,FALSE) -> 6
B26: PNB Excédent assurance vie | C26: 3% | E26: ='RECAP DIRCOM'!#REF! ->  | G26: =VLOOKUP($A$5,'RECAP DIRCOM'!$G$6:$CY$312,64,FALSE) -> 0.0 | I26: =VLOOKUP($A$5,'RECAP DIRCOM'!$G$6:$CY$312,65,FALSE) -> 0% | K26: =VLOOKUP($A$5,#REF!,65,FALSE) ->  | M26: =+K26-I26 ->  | O26: =VLOOKUP($A$5,'RECAP DIRCOM'!$G$6:$CY$312,66,FALSE) -> 0
A28: CRITERE CREDITS | C28: 15% | O28: =VLOOKUP($A$5,'RECAP DIRCOM'!$G$6:$CY$312,102,FALSE) -> 
B29: PNB crédit conso | C29: 4% | E29: ='RECAP DIRCOM'!BB4 -> 50.9 | G29: =VLOOKUP($A$5,'RECAP DIRCOM'!$G$6:$CY$312,77,FALSE) -> 3.0 | I29: =VLOOKUP($A$5,'RECAP DIRCOM'!$G$6:$CY$312,78,FALSE) -> 0% | K29: =VLOOKUP($A$5,#REF!,78,FALSE) ->  | M29: =+K29-I29 ->  | O29: =VLOOKUP($A$5,'RECAP DIRCOM'!$G$6:$CY$312,79,FALSE) -> 0
B30: PNB ADE crédit conso | C30: 1% | E30: ='RECAP DIRCOM'!#REF! ->  | G30: =VLOOKUP($A$5,'RECAP DIRCOM'!$G$6:$CY$312,81,FALSE) -> 0.0 | I30: =VLOOKUP($A$5,'RECAP DIRCOM'!$G$6:$CY$312,82,FALSE) -> 0% | K30: =VLOOKUP($A$5,#REF!,82,FALSE) ->  | O30: =VLOOKUP($A$5,'RECAP DIRCOM'!$G$6:$CY$312,83,FALSE) -> 0
B31: PNB crédit immo | C31: 4% | E31: ='RECAP DIRCOM'!BF4 -> 27.4 | G31: =VLOOKUP($A$5,'RECAP DIRCOM'!$G$6:$CY$312,85,FALSE) -> 0.0 | I31: =VLOOKUP($A$5,'RECAP DIRCOM'!$G$6:$CY$312,86,FALSE) -> 0% | K31: =VLOOKUP($A$5,#REF!,86,FALSE) ->  | O31: =VLOOKUP($A$5,'RECAP DIRCOM'!$G$6:$CY$312,87,FALSE) -> 0
B32: PNB ADE crédit immo | C32: 2% | E32: ='RECAP DIRCOM'!#REF! ->  | G32: =VLOOKUP($A$5,'RECAP DIRCOM'!$G$6:$CY$312,89,FALSE) -> 0.0 | I32: =VLOOKUP($A$5,'RECAP DIRCOM'!$G$6:$CY$312,90,FALSE) -> 0% | K32: =VLOOKUP($A$5,#REF!,90,FALSE) ->  | O32: =VLOOKUP($A$5,'RECAP DIRCOM'!$G$6:$CY$312,91,FALSE) -> 0
B33: PNB SACCEF | C33: 2% | E33: ='RECAP DIRCOM'!#REF! ->  | G33: =VLOOKUP($A$5,'RECAP DIRCOM'!$G$6:$CY$312,93,FALSE) -> 0.0 | I33: =VLOOKUP($A$5,'RECAP DIRCOM'!$G$6:$CY$312,94,FALSE) -> 29% | K33: =VLOOKUP($A$5,#REF!,94,FALSE) ->  | O33: =VLOOKUP($A$5,'RECAP DIRCOM'!$G$6:$CY$312,95,FALSE) -> 0.2357350615
B34: PNB Crédit MLT + Crédit Bail | C34: 2% | E34: ='RECAP DIRCOM'!BJ4 -> 11.8 | G34: =VLOOKUP($A$5,'RECAP DIRCOM'!$G$6:$CY$312,97,FALSE) -> 0.0 | I34: =VLOOKUP($A$5,'RECAP DIRCOM'!$G$6:$CY$312,98,FALSE) ->  | K34: =VLOOKUP($A$5,#REF!,98,FALSE) ->  | O34: =VLOOKUP($A$5,'RECAP DIRCOM'!$G$6:$CY$312,99,FALSE) -> 
A36: CRITERE IARD PREVOYANCE | C36: 15% | O36: =VLOOKUP($A$5,'RECAP DIRCOM'!$G$6:$CY$312,119,FALSE) -> 
B37: PNB Ventes nettes IARD | C37: 9% | E37: ='RECAP DIRCOM'!BU4 -> 68.2 | G37: =VLOOKUP($A$5,'RECAP DIRCOM'!$G$6:$CY$312,110,FALSE) ->  | I37: =VLOOKUP($A$5,'RECAP DIRCOM'!$G$6:$CY$312,111,FALSE) ->  | K37: =VLOOKUP($A$5,#REF!,111,FALSE) ->  | M37: =+K37-I37 ->  | O37: =VLOOKUP($A$5,'RECAP DIRCOM'!$G$6:$CY$312,112,FALSE) -> 
B38: PNB Ventes nettes Prévoyance | C38: 6% | E38: ='RECAP DIRCOM'!BY4 -> 18.9 | G38: =VLOOKUP($A$5,'RECAP DIRCOM'!$G$6:$CY$312,114,FALSE) ->  | I38: =VLOOKUP($A$5,'RECAP DIRCOM'!$G$6:$CY$312,115,FALSE) ->  | K38: =VLOOKUP($A$5,#REF!,115,FALSE) ->  | M38: =+K38-I38 ->  | O38: =VLOOKUP($A$5,'RECAP DIRCOM'!$G$6:$CY$312,116,FALSE) -> 
A40: CRITERE ACCELERATEURS PNB | C40: 15% | O40: =VLOOKUP($A$5,'RECAP DIRCOM'!$G$6:$CY$312,144,FALSE) -> 
B41: PNB Ventes brutes SED Finalisées | C41: 6% | E41: ='RECAP DIRCOM'!#REF! ->  | G41: =VLOOKUP($A$5,'RECAP DIRCOM'!$G$6:$CY$312,127,FALSE) ->  | I41: =VLOOKUP($A$5,'RECAP DIRCOM'!$G$6:$CY$312,128,FALSE) ->  | K41: =VLOOKUP($A$5,#REF!,128,FALSE) ->  | M41: =+K41-I41 ->  | O41: =VLOOKUP($A$5,'RECAP DIRCOM'!$G$6:$CY$312,129,FALSE) -> 
B42: PNB clients équipés E documents | C42: 3% | E42: ='RECAP DIRCOM'!#REF! ->  | G42: =VLOOKUP($A$5,'RECAP DIRCOM'!$G$6:$CY$312,131,FALSE) ->  | I42: =VLOOKUP($A$5,'RECAP DIRCOM'!$G$6:$CY$312,132,FALSE) ->  | K42: =VLOOKUP($A$5,#REF!,132,FALSE) ->  | M42: =+K42-I42 ->  | O42: =VLOOKUP($A$5,'RECAP DIRCOM'!$G$6:$CY$312,133,FALSE) -> 
B43: Economie opt'in | C43: 3% | E43: ='RECAP DIRCOM'!#REF! ->  | G43: =VLOOKUP($A$5,'RECAP DIRCOM'!$G$6:$CY$312,135,FALSE) ->  | I43: =VLOOKUP($A$5,'RECAP DIRCOM'!$G$6:$CY$312,136,FALSE) ->  | K43: =VLOOKUP($A$5,#REF!,136,FALSE) ->  | M43: =+K43-I43 ->  | O43: =VLOOKUP($A$5,'RECAP DIRCOM'!$G$6:$CY$312,137,FALSE) -> 
B44: Remises commerciales | C44: 3% | E44: ='RECAP DIRCOM'!#REF! ->  | G44: =VLOOKUP($A$5,'RECAP DIRCOM'!$G$6:$CY$312,139,FALSE) ->  | I44: =VLOOKUP($A$5,'RECAP DIRCOM'!$G$6:$CY$312,140,FALSE) ->  | K44: =VLOOKUP($A$5,#REF!,140,FALSE) ->  | M44: =+K44-I44 ->  | O44: =VLOOKUP($A$5,'RECAP DIRCOM'!$G$6:$CY$312,141,FALSE) -> 
A46: CRITERE Qualité-Satisfaction Clients | C46: 15% | O46: =VLOOKUP($A$5,'RECAP DIRCOM'!$G$6:$CY$312,159,FALSE) -> 
B47: Objectifs NPS* | C47: 8% | E47: ='RECAP DIRCOM'!K4 -> 23 | G47: =VLOOKUP($A$5,'RECAP DIRCOM'!$G$6:$CY$312,151,FALSE) ->  | I47: =VLOOKUP($A$5,'RECAP DIRCOM'!$G$6:$CY$312,152,FALSE) ->  | K47: =VLOOKUP($A$5,#REF!,152,FALSE) ->  | M47: =+K47-I47 ->  | O47: =VLOOKUP($A$5,'RECAP DIRCOM'!$G$6:$CY$312,153,FALSE) -> 
B48: Enquête Qualité Haute Définition | C48: 7% | E48: ='RECAP DIRCOM'!N4 -> 68% | G48: =VLOOKUP($A$5,'RECAP DIRCOM'!$G$6:$CY$312,154,FALSE) ->  | I48: =VLOOKUP($A$5,'RECAP DIRCOM'!$G$6:$CY$312,155,FALSE) ->  | K48: =VLOOKUP($A$5,#REF!,155,FALSE) ->  | M48: =+K48-I48 ->  | O48: =VLOOKUP($A$5,'RECAP DIRCOM'!$G$6:$CY$312,156,FALSE) -> 

Sheet DC_TOTAL
B1: Accueil | D1: BAROMETRE BDD - DIRECTIONS REGIONALES
D2: TOTAL GENERAL
D3: =ACCUEIL!F7 -> 2022-05-01
D7: TOTAL GENERAL | G7: Total Satisfaction Clients | J7: Total Bancarisation | M7: Total Epargne | P7: Total IARD Prévoyance | S7: Total Crédits
E8: coef | F8: =+I8+L8+O8+R8+U8 -> 100% | H8: coef | I8: =DC_SATISFACTION!L8 -> 20% | K8: coef | L8: =DC_BANCA!N8 -> 20% | N8: coef | O8: =DC_EPARGNE!N8 -> 20% | Q8: coef | R8: =DC_IARD!N8 -> 20% | T8: coef | U8: =DC_CREDIT!R8 -> 20%
A9: eds | B9: Direction | C9: ="ETP perf "&DATEMAJ!$C$28 -> ETP perf 01-mai | D9: Moyenne ecart au 1er | E9: % Ecart au 1er | F9: Rang CEGEE | G9: Moyenne ecart au 1er | H9: % Ecart au 1er | I9: Rang CEGEE | J9: Moyenne ecart au 1er | K9: % Ecart au 1er | L9: Rang CEGEE | M9: Moyenne ecart au 1er | N9: % Ecart au 1er | O9: Rang CEGEE | P9: Moyenne ecart au 1er | Q9: % Ecart au 1er | R9: Rang CEGEE | S9: Moyenne ecart au 1er | T9: % Ecart au 1er | U9: Rang CEGEE
A10: 50 | B10: Moselle | C10: 228 | D10: 6% | E10: 0% | F10: 1 | G10: 23% | H10: 23% | I10: 3 | J10: 0% | K10: 0% | L10: 1 | M10: 0% | N10: 0% | O10: 1 | P10: 0% | Q10: 0% | R10: 1 | S10: 10% | T10: 6% | U10: 2
A11: 262 | B11: Marne-Ardennes | C11: 194 | D11: 12% | E11: 6% | F11: 2 | G11: 13% | H11: 13% | I11: 2 | J11: 8% | K11: 8% | L11: 2 | M11: 31% | N11: 31% | O11: 4 | P11: 6% | Q11: 6% | R11: 2 | S11: 4% | T11: 0% | U11: 1
A12: 264 | B12: Meurthe et Moselle Meuse | C12: 202 | D12: 25% | E12: 19% | F12: 3 | G12: 42% | H12: 42% | I12: 4 | J12: 18% | K12: 18% | L12: 3 | M12: 33% | N12: 33% | O12: 5 | P12: 22% | Q12: 22% | R12: 4 | S12: 11% | T12: 7% | U12: 3
A13: 30 | B13: Vosges | C13: 117 | D13: 26% | E13: 20% | F13: 4 | G13: 0% | H13: 0% | I13: 1 | J13: 39% | K13: 39% | L13: 5 | M13: 17% | N13: 17% | O13: 2 | P13: 40% | Q13: 40% | R13: 6 | S13: 37% | T13: 33% | U13: 5
A14: 110 | B14: Bas-Rhin | C14: 218 | D14: 29% | E14: 24% | F14: 5 | G14: 47% | H14: 47% | I14: 5 | J14: 24% | K14: 24% | L14: 4 | M14: 18% | N14: 18% | O14: 3 | P14: 22% | Q14: 22% | R14: 3 | S14: 39% | T14: 35% | U14: 6
A15: 160 | B15: Aube Haute Marne | C15: 113 | D15: 41% | E15: 35% | F15: 6 | G15: 52% | H15: 52% | I15: 6 | J15: 44% | K15: 44% | L15: 6 | M15: 52% | N15: 52% | O15: 7 | P15: 27% | Q15: 27% | R15: 5 | S15: 34% | T15: 30% | U15: 4
A16: 80 | B16: Haut-Rhin | C16: 126 | D16: 52% | E16: 47% | F16: 7 | G16: 57% | H16: 57% | I16: 7 | J16: 63% | K16: 63% | L16: 7 | M16: 51% | N16: 51% | O16: 6 | P16: 47% | Q16: 47% | R16: 7 | S16: 48% | T16: 44% | U16: 7
B17: Total CEGEE Directions Régionales | C17: =SUM(C10:C16) -> 1197

Sheet DC_BANCA
B1: Accueil | D1: BAROMETRE BDD - DIRECTIONS REGIONALES
D2: BANCARISATION
D3: =ACCUEIL!F7 -> 2022-05-01
D7: Ventes Nettes produits pondérés | H7: Ventes sur client non détenteur de l’univers | L7: Total Bancarisation
D8: =DATEMAJ!C8 -> au 01/05 | F8: coef | G8: ='RECAP DIRCOM'!AA4 -> 12% | H8: =DATEMAJ!C9 -> au 01/05 | J8: coef | K8: ='RECAP DIRCOM'!AE4 -> 8% | M8: coef | N8: ='RECAP DIRCOM'!AH4 -> 20%
B9: Direction | C9: ="ETP perf "&DATEMAJ!$C$28 -> ETP perf 01-mai | D9: VN | E9: VN / ETP | F9: % Ecart au 1er | G9: Rang | H9: VB | I9: VB / ETP | J9: % Ecart au 1er | K9: Rang | L9: Moyenne ecart au 1er | M9: % Ecart au 1er | N9: Rang CEGEE
A10: 50 | B10: Aube Haute Marne | C10: =VLOOKUP($A10,'RECAP DIRCOM'!$G$6:$CU$12,3,FALSE) -> 113 | D10: =VLOOKUP($A10,'RECAP DIRCOM'!$G$6:$CU$12,18,FALSE) -> 507 | E10: =VLOOKUP($A10,'RECAP DIRCOM'!$G$6:$CU$12,19,FALSE) -> 4.47 | F10: =VLOOKUP($A10,'RECAP DIRCOM'!$G$6:$CU$12,20,FALSE) -> 59% | G10: =VLOOKUP($A10,'RECAP DIRCOM'!$G$6:$CU$12,21,FALSE) -> 6 | H10: =VLOOKUP($A10,'RECAP DIRCOM'!$G$6:$CU$12,22,FALSE) -> 2,265 | I10: =VLOOKUP($A10,'RECAP DIRCOM'!$G$6:$CU$12,23,FALSE) -> 19.97 | J10: =VLOOKUP($A10,'RECAP DIRCOM'!$G$6:$CU$12,24,FALSE) -> 21% | K10: =VLOOKUP($A10,'RECAP DIRCOM'!$G$6:$CU$12,25,FALSE) -> 4 | L10: =VLOOKUP($A10,'RECAP DIRCOM'!$G$6:$CU$12,26,FALSE) -> 44% | M10: =VLOOKUP($A10,'RECAP DIRCOM'!$G$6:$CU$12,27,FALSE) -> 44% | N10: =VLOOKUP($A10,'RECAP DIRCOM'!$G$6:$CU$12,28,FALSE) -> 6
A11: 262 | B11: Bas-Rhin | C11: =VLOOKUP($A11,'RECAP DIRCOM'!$G$6:$CU$12,3,FALSE) -> 218 | D11: =VLOOKUP($A11,'RECAP DIRCOM'!$G$6:$CU$12,18,FALSE) -> 1,765 | E11: =VLOOKUP($A11,'RECAP DIRCOM'!$G$6:$CU$12,19,FALSE) -> 8.11 | F11: =VLOOKUP($A11,'RECAP DIRCOM'!$G$6:$CU$12,20,FALSE) -> 26% | G11: =VLOOKUP($A11,'RECAP DIRCOM'!$G$6:$CU$12,21,FALSE) -> 3 | H11: =VLOOKUP($A11,'RECAP DIRCOM'!$G$6:$CU$12,22,FALSE) -> 4,314 | I11: =VLOOKUP($A11,'RECAP DIRCOM'!$G$6:$CU$12,23,FALSE) -> 19.82 | J11: =VLOOKUP($A11,'RECAP DIRCOM'!$G$6:$CU$12,24,FALSE) -> 22% | K11: =VLOOKUP($A11,'RECAP DIRCOM'!$G$6:$CU$12,25,FALSE) -> 5 | L11: =VLOOKUP($A11,'RECAP DIRCOM'!$G$6:$CU$12,26,FALSE) -> 24% | M11: =VLOOKUP($A11,'RECAP DIRCOM'!$G$6:$CU$12,27,FALSE) -> 24% | N11: =VLOOKUP($A11,'RECAP DIRCOM'!$G$6:$CU$12,28,FALSE) -> 4
A12: 264 | B12: Haut-Rhin | C12: =VLOOKUP($A12,'RECAP DIRCOM'!$G$6:$CU$12,3,FALSE) -> 126 | D12: =VLOOKUP($A12,'RECAP DIRCOM'!$G$6:$CU$12,18,FALSE) -> 272 | E12: =VLOOKUP($A12,'RECAP DIRCOM'!$G$6:$CU$12,19,FALSE) -> 2.17 | F12: =VLOOKUP($A12,'RECAP DIRCOM'!$G$6:$CU$12,20,FALSE) -> 80% | G12: =VLOOKUP($A12,'RECAP DIRCOM'!$G$6:$CU$12,21,FALSE) -> 7 | H12: =VLOOKUP($A12,'RECAP DIRCOM'!$G$6:$CU$12,22,FALSE) -> 2,024 | I12: =VLOOKUP($A12,'RECAP DIRCOM'!$G$6:$CU$12,23,FALSE) -> 16.11 | J12: =VLOOKUP($A12,'RECAP DIRCOM'!$G$6:$CU$12,24,FALSE) -> 37% | K12: =VLOOKUP($A12,'RECAP DIRCOM'!$G$6:$CU$12,25,FALSE) -> 7 | L12: =VLOOKUP($A12,'RECAP DIRCOM'!$G$6:$CU$12,26,FALSE) -> 63% | M12: =VLOOKUP($A12,'RECAP DIRCOM'!$G$6:$CU$12,27,FALSE) -> 63% | N12: =VLOOKUP($A12,'RECAP DIRCOM'!$G$6:$CU$12,28,FALSE) -> 7
A13: 30 | B13: Marne-Ardennes | C13: =VLOOKUP($A13,'RECAP DIRCOM'!$G$6:$CU$12,3,FALSE) -> 194 | D13: =VLOOKUP($A13,'RECAP DIRCOM'!$G$6:$CU$12,18,FALSE) -> 1,856 | E13: =VLOOKUP($A13,'RECAP DIRCOM'!$G$6:$CU$12,19,FALSE) -> 9.57 | F13: =VLOOKUP($A13,'RECAP DIRCOM'!$G$6:$CU$12,20,FALSE) -> 13% | G13: =VLOOKUP($A13,'RECAP DIRCOM'!$G$6:$CU$12,21,FALSE) -> 2 | H13: =VLOOKUP($A13,'RECAP DIRCOM'!$G$6:$CU$12,22,FALSE) -> 4,903 | I13: =VLOOKUP($A13,'RECAP DIRCOM'!$G$6:$CU$12,23,FALSE) -> 25.27 | J13: =VLOOKUP($A13,'RECAP DIRCOM'!$G$6:$CU$12,24,FALSE) -> 1% | K13: =VLOOKUP($A13,'RECAP DIRCOM'!$G$6:$CU$12,25,FALSE) -> 2 | L13: =VLOOKUP($A13,'RECAP DIRCOM'!$G$6:$CU$12,26,FALSE) -> 8% | M13: =VLOOKUP($A13,'RECAP DIRCOM'!$G$6:$CU$12,27,FALSE) -> 8% | N13: =VLOOKUP($A13,'RECAP DIRCOM'!$G$6:$CU$12,28,FALSE) -> 2
A14: 110 | B14: Meurthe et Moselle Meuse | C14: =VLOOKUP($A14,'RECAP DIRCOM'!$G$6:$CU$12,3,FALSE) -> 202 | D14: =VLOOKUP($A14,'RECAP DIRCOM'!$G$6:$CU$12,18,FALSE) -> 1,577 | E14: =VLOOKUP($A14,'RECAP DIRCOM'!$G$6:$CU$12,19,FALSE) -> 7.80 | F14: =VLOOKUP($A14,'RECAP DIRCOM'!$G$6:$CU$12,20,FALSE) -> 29% | G14: =VLOOKUP($A14,'RECAP DIRCOM'!$G$6:$CU$12,21,FALSE) -> 4 | H14: =VLOOKUP($A14,'RECAP DIRCOM'!$G$6:$CU$12,22,FALSE) -> 4,986 | I14: =VLOOKUP($A14,'RECAP DIRCOM'!$G$6:$CU$12,23,FALSE) -> 24.68 | J14: =VLOOKUP($A14,'RECAP DIRCOM'!$G$6:$CU$12,24,FALSE) -> 3% | K14: =VLOOKUP($A14,'RECAP DIRCOM'!$G$6:$CU$12,25,FALSE) -> 3 | L14: =VLOOKUP($A14,'RECAP DIRCOM'!$G$6:$CU$12,26,FALSE) -> 18% | M14: =VLOOKUP($A14,'RECAP DIRCOM'!$G$6:$CU$12,27,FALSE) -> 18% | N14: =VLOOKUP($A14,'RECAP DIRCOM'!$G$6:$CU$12,28,FALSE) -> 3
A15: 160 | B15: Moselle | C15: =VLOOKUP($A15,'RECAP DIRCOM'!$G$6:$CU$12,3,FALSE) -> 228 | D15: =VLOOKUP($A15,'RECAP DIRCOM'!$G$6:$CU$12,18,FALSE) -> 2,497 | E15: =VLOOKUP($A15,'RECAP DIRCOM'!$G$6:$CU$12,19,FALSE) -> 10.96 | F15: =VLOOKUP($A15,'RECAP DIRCOM'!$G$6:$CU$12,20,FALSE) -> 0% | G15: =VLOOKUP($A15,'RECAP DIRCOM'!$G$6:$CU$12,21,FALSE) -> 1 | H15: =VLOOKUP($A15,'RECAP DIRCOM'!$G$6:$CU$12,22,FALSE) -> 5,792 | I15: =VLOOKUP($A15,'RECAP DIRCOM'!$G$6:$CU$12,23,FALSE) -> 25.42 | J15: =VLOOKUP($A15,'RECAP DIRCOM'!$G$6:$CU$12,24,FALSE) -> 0% | K15: =VLOOKUP($A15,'RECAP DIRCOM'!$G$6:$CU$12,25,FALSE) -> 1 | L15: =VLOOKUP($A15,'RECAP DIRCOM'!$G$6:$CU$12,26,FALSE) -> 0% | M15: =VLOOKUP($A15,'RECAP DIRCOM'!$G$6:$CU$12,27,FALSE) -> 0% | N15: =VLOOKUP($A15,'RECAP DIRCOM'!$G$6:$CU$12,28,FALSE) -> 1
A16: 80 | B16: Vosges | C16: =VLOOKUP($A16,'RECAP DIRCOM'!$G$6:$CU$12,3,FALSE) -> 117 | D16: =VLOOKUP($A16,'RECAP DIRCOM'!$G$6:$CU$12,18,FALSE) -> 700 | E16: =VLOOKUP($A16,'RECAP DIRCOM'!$G$6:$CU$12,19,FALSE) -> 6.00 | F16: =VLOOKUP($A16,'RECAP DIRCOM'!$G$6:$CU$12,20,FALSE) -> 45% | G16: =VLOOKUP($A16,'RECAP DIRCOM'!$G$6:$CU$12,21,FALSE) -> 5 | H16: =VLOOKUP($A16,'RECAP DIRCOM'!$G$6:$CU$12,22,FALSE) -> 2,098 | I16: =VLOOKUP($A16,'RECAP DIRCOM'!$G$6:$CU$12,23,FALSE) -> 17.98 | J16: =VLOOKUP($A16,'RECAP DIRCOM'!$G$6:$CU$12,24,FALSE) -> 29% | K16: =VLOOKUP($A16,'RECAP DIRCOM'!$G$6:$CU$12,25,FALSE) -> 6 | L16: =VLOOKUP($A16,'RECAP DIRCOM'!$G$6:$CU$12,26,FALSE) -> 39% | M16: =VLOOKUP($A16,'RECAP DIRCOM'!$G$6:$CU$12,27,FALSE) -> 39% | N16: =VLOOKUP($A16,'RECAP DIRCOM'!$G$6:$CU$12,28,FALSE) -> 5
B17: Total CEGEE Directions Régionales | C17: =SUM(C10:C16) -> 1197

Sheet DC_EPARGNE
B1: Accueil | D1: BAROMETRE BDD - DIRECTIONS REGIONALES
D2: EPARGNE
D3: =ACCUEIL!F7 -> 2022-05-01
D7: Excédent Epargne hors DAV pondéré | H7: Ventes sur client non détenteur de l’univers | L7: Total Epargne
D8: =DATEMAJ!C14 -> au 01/05 | F8: coef | G8: ='RECAP DIRCOM'!AP4 -> 12% | H8: =DATEMAJ!C15 -> au 01/05 | J8: coef | K8: ='RECAP DIRCOM'!AT4 -> 8% | M8: coef | N8: ='RECAP DIRCOM'!AW4 -> 20%
B9: Direction | C9: ="ETP perf "&DATEMAJ!$C$28 -> ETP perf 01-mai | D9: Excédent | E9: Excédent / ETP | F9: % Ecart au 1er | G9: Rang | H9: VB | I9: VB / ETP | J9: % Ecart au 1er | K9: Rang | L9: Moyenne ecart au 1er | M9: % Ecart au 1er | N9: Rang CEGEE
A10: 50 | B10: Aube Haute Marne | C10: =VLOOKUP($A10,'RECAP DIRCOM'!$G$6:$CU$12,3,FALSE) -> 113 | D10: =VLOOKUP($A10,'RECAP DIRCOM'!$G$6:$CU$12,33,FALSE) -> 7,717 | E10: =VLOOKUP($A10,'RECAP DIRCOM'!$G$6:$CU$12,34,FALSE) -> 68.03 | F10: =VLOOKUP($A10,'RECAP DIRCOM'!$G$6:$CU$12,35,FALSE) -> 67% | G10: =VLOOKUP($A10,'RECAP DIRCOM'!$G$6:$CU$12,36,FALSE) -> 7 | H10: =VLOOKUP($A10,'RECAP DIRCOM'!$G$6:$CU$12,37,FALSE) -> 2,166 | I10: =VLOOKUP($A10,'RECAP DIRCOM'!$G$6:$CU$12,38,FALSE) -> 19.09 | J10: =VLOOKUP($A10,'RECAP DIRCOM'!$G$6:$CU$12,39,FALSE) -> 30% | K10: =VLOOKUP($A10,'RECAP DIRCOM'!$G$6:$CU$12,40,FALSE) -> 5 | L10: =VLOOKUP($A10,'RECAP DIRCOM'!$G$6:$CU$12,41,FALSE) -> 52% | M10: =VLOOKUP($A10,'RECAP DIRCOM'!$G$6:$CU$12,42,FALSE) -> 52% | N10: =VLOOKUP($A10,'RECAP DIRCOM'!$G$6:$CU$12,43,FALSE) -> 7
A11: 262 | B11: Bas-Rhin | C11: =VLOOKUP($A11,'RECAP DIRCOM'!$G$6:$CU$12,3,FALSE) -> 218 | D11: =VLOOKUP($A11,'RECAP DIRCOM'!$G$6:$CU$12,33,FALSE) -> 38,561 | E11: =VLOOKUP($A11,'RECAP DIRCOM'!$G$6:$CU$12,34,FALSE) -> 177.12 | F11: =VLOOKUP($A11,'RECAP DIRCOM'!$G$6:$CU$12,35,FALSE) -> 14% | G11: =VLOOKUP($A11,'RECAP DIRCOM'!$G$6:$CU$12,36,FALSE) -> 3 | H11: =VLOOKUP($A11,'RECAP DIRCOM'!$G$6:$CU$12,37,FALSE) -> 4,590 | I11: =VLOOKUP($A11,'RECAP DIRCOM'!$G$6:$CU$12,38,FALSE) -> 21.08 | J11: =VLOOKUP($A11,'RECAP DIRCOM'!$G$6:$CU$12,39,FALSE) -> 23% | K11: =VLOOKUP($A11,'RECAP DIRCOM'!$G$6:$CU$12,40,FALSE) -> 4 | L11: =VLOOKUP($A11,'RECAP DIRCOM'!$G$6:$CU$12,41,FALSE) -> 18% | M11: =VLOOKUP($A11,'RECAP DIRCOM'!$G$6:$CU$12,42,FALSE) -> 18% | N11: =VLOOKUP($A11,'RECAP DIRCOM'!$G$6:$CU$12,43,FALSE) -> 3
A12: 264 | B12: Haut-Rhin | C12: =VLOOKUP($A12,'RECAP DIRCOM'!$G$6:$CU$12,3,FALSE) -> 126 | D12: =VLOOKUP($A12,'RECAP DIRCOM'!$G$6:$CU$12,33,FALSE) -> 12,255 | E12: =VLOOKUP($A12,'RECAP DIRCOM'!$G$6:$CU$12,34,FALSE) -> 97.53 | F12: =VLOOKUP($A12,'RECAP DIRCOM'!$G$6:$CU$12,35,FALSE) -> 53% | G12: =VLOOKUP($A12,'RECAP DIRCOM'!$G$6:$CU$12,36,FALSE) -> 6 | H12: =VLOOKUP($A12,'RECAP DIRCOM'!$G$6:$CU$12,37,FALSE) -> 1,783 | I12: =VLOOKUP($A12,'RECAP DIRCOM'!$G$6:$CU$12,38,FALSE) -> 14.19 | J12: =VLOOKUP($A12,'RECAP DIRCOM'!$G$6:$CU$12,39,FALSE) -> 48% | K12: =VLOOKUP($A12,'RECAP DIRCOM'!$G$6:$CU$12,40,FALSE) -> 7 | L12: =VLOOKUP($A12,'RECAP DIRCOM'!$G$6:$CU$12,41,FALSE) -> 51% | M12: =VLOOKUP($A12,'RECAP DIRCOM'!$G$6:$CU$12,42,FALSE) -> 51% | N12: =VLOOKUP($A12,'RECAP DIRCOM'!$G$6:$CU$12,43,FALSE) -> 6
A13: 30 | B13: Marne-Ardennes | C13: =VLOOKUP($A13,'RECAP DIRCOM'!$G$6:$CU$12,3,FALSE) -> 194 | D13: =VLOOKUP($A13,'RECAP DIRCOM'!$G$6:$CU$12,33,FALSE) -> 20,604 | E13: =VLOOKUP($A13,'RECAP DIRCOM'!$G$6:$CU$12,34,FALSE) -> 106.20 | F13: =VLOOKUP($A13,'RECAP DIRCOM'!$G$6:$CU$12,35,FALSE) -> 49% | G13: =VLOOKUP($A13,'RECAP DIRCOM'!$G$6:$CU$12,36,FALSE) -> 5 | H13: =VLOOKUP($A13,'RECAP DIRCOM'!$G$6:$CU$12,37,FALSE) -> 4,981 | I13: =VLOOKUP($A13,'RECAP DIRCOM'!$G$6:$CU$12,38,FALSE) -> 25.67 | J13: =VLOOKUP($A13,'RECAP DIRCOM'!$G$6:$CU$12,39,FALSE) -> 6% | K13: =VLOOKUP($A13,'RECAP DIRCOM'!$G$6:$CU$12,40,FALSE) -> 2 | L13: =VLOOKUP($A13,'RECAP DIRCOM'!$G$6:$CU$12,41,FALSE) -> 31% | M13: =VLOOKUP($A13,'RECAP DIRCOM'!$G$6:$CU$12,42,FALSE) -> 31% | N13: =VLOOKUP($A13,'RECAP DIRCOM'!$G$6:$CU$12,43,FALSE) -> 4
A14: 110 | B14: Meurthe et Moselle Meuse | C14: =VLOOKUP($A14,'RECAP DIRCOM'!$G$6:$CU$12,3,FALSE) -> 202 | D14: =VLOOKUP($A14,'RECAP DIRCOM'!$G$6:$CU$12,33,FALSE) -> 24,666 | E14: =VLOOKUP($A14,'RECAP DIRCOM'!$G$6:$CU$12,34,FALSE) -> 122.10 | F14: =VLOOKUP($A14,'RECAP DIRCOM'!$G$6:$CU$12,35,FALSE) -> 41% | G14: =VLOOKUP($A14,'RECAP DIRCOM'!$G$6:$CU$12,36,FALSE) -> 4 | H14: =VLOOKUP($A14,'RECAP DIRCOM'!$G$6:$CU$12,37,FALSE) -> 4,279 | I14: =VLOOKUP($A14,'RECAP DIRCOM'!$G$6:$CU$12,38,FALSE) -> 21.18 | J14: =VLOOKUP($A14,'RECAP DIRCOM'!$G$6:$CU$12,39,FALSE) -> 22% | K14: =VLOOKUP($A14,'RECAP DIRCOM'!$G$6:$CU$12,40,FALSE) -> 3 | L14: =VLOOKUP($A14,'RECAP DIRCOM'!$G$6:$CU$12,41,FALSE) -> 33% | M14: =VLOOKUP($A14,'RECAP DIRCOM'!$G$6:$CU$12,42,FALSE) -> 33% | N14: =VLOOKUP($A14,'RECAP DIRCOM'!$G$6:$CU$12,43,FALSE) -> 5
A15: 160 | B15: Moselle | C15: =VLOOKUP($A15,'RECAP DIRCOM'!$G$6:$CU$12,3,FALSE) -> 228 | D15: =VLOOKUP($A15,'RECAP DIRCOM'!$G$6:$CU$12,33,FALSE) -> 47,060 | E15: =VLOOKUP($A15,'RECAP DIRCOM'!$G$6:$CU$12,34,FALSE) -> 206.58 | F15: =VLOOKUP($A15,'RECAP DIRCOM'!$G$6:$CU$12,35,FALSE) -> 0% | G15: =VLOOKUP($A15,'RECAP DIRCOM'!$G$6:$CU$12,36,FALSE) -> 1 | H15: =VLOOKUP($A15,'RECAP DIRCOM'!$G$6:$CU$12,37,FALSE) -> 6,212 | I15: =VLOOKUP($A15,'RECAP DIRCOM'!$G$6:$CU$12,38,FALSE) -> 27.27 | J15: =VLOOKUP($A15,'RECAP DIRCOM'!$G$6:$CU$12,39,FALSE) -> 0% | K15: =VLOOKUP($A15,'RECAP DIRCOM'!$G$6:$CU$12,40,FALSE) -> 1 | L15: =VLOOKUP($A15,'RECAP DIRCOM'!$G$6:$CU$12,41,FALSE) -> 0% | M15: =VLOOKUP($A15,'RECAP DIRCOM'!$G$6:$CU$12,42,FALSE) -> 0% | N15: =VLOOKUP($A15,'RECAP DIRCOM'!$G$6:$CU$12,43,FALSE) -> 1
A16: 80 | B16: Vosges | C16: =VLOOKUP($A16,'RECAP DIRCOM'!$G$6:$CU$12,3,FALSE) -> 117 | D16: =VLOOKUP($A16,'RECAP DIRCOM'!$G$6:$CU$12,33,FALSE) -> 22,134 | E16: =VLOOKUP($A16,'RECAP DIRCOM'!$G$6:$CU$12,34,FALSE) -> 189.73 | F16: =VLOOKUP($A16,'RECAP DIRCOM'!$G$6:$CU$12,35,FALSE) -> 8% | G16: =VLOOKUP($A16,'RECAP DIRCOM'!$G$6:$CU$12,36,FALSE) -> 2 | H16: =VLOOKUP($A16,'RECAP DIRCOM'!$G$6:$CU$12,37,FALSE) -> 2,187 | I16: =VLOOKUP($A16,'RECAP DIRCOM'!$G$6:$CU$12,38,FALSE) -> 18.75 | J16: =VLOOKUP($A16,'RECAP DIRCOM'!$G$6:$CU$12,39,FALSE) -> 31% | K16: =VLOOKUP($A16,'RECAP DIRCOM'!$G$6:$CU$12,40,FALSE) -> 6 | L16: =VLOOKUP($A16,'RECAP DIRCOM'!$G$6:$CU$12,41,FALSE) -> 17% | M16: =VLOOKUP($A16,'RECAP DIRCOM'!$G$6:$CU$12,42,FALSE) -> 17% | N16: =VLOOKUP($A16,'RECAP DIRCOM'!$G$6:$CU$12,43,FALSE) -> 2
B17: Total CEGEE Directions Régionales | C17: =SUM(C10:C16) -> 1197

Sheet DC_CREDIT
B1: Accueil | D1: BAROMETRE BDD - DIRECTIONS REGIONALES
D2: CREDITS
D3: =ACCUEIL!F7 -> 2022-05-01
D7: Engagements et ventes accessoires pondérés Immo | H7: Engagements et ventes accessoires pondérés Conso | L7: Ventes sur client non détenteur de l’univers | P7: Total Crédits
D8: =DATEMAJ!C18 -> au 01/05 | F8: coef | G8: ='RECAP DIRCOM'!BE4 -> 6% | H8: =DATEMAJ!C19 -> au 01/05 | J8: coef | K8: ='RECAP DIRCOM'!BI4 -> 6% | L8: =DATEMAJ!C20 -> au 01/05 | N8: coef | O8: ='RECAP DIRCOM'!BM4 -> 8% | Q8: coef | R8: ='RECAP DIRCOM'!BP4 -> 20%
B9: Direction | C9: ="ETP perf "&DATEMAJ!$C$28 -> ETP perf 01-mai | D9: PNB | E9: PNB / ETP | F9: % Ecart au 1er | G9: Rang | H9: PNB | I9: PNB / ETP | J9: % Ecart au 1er | K9: Rang | L9: VB | M9: VB / ETP | N9: % Ecart au 1er | O9: Rang | P9: Moyenne ecart au 1er | Q9: % Ecart au 1er | R9: Rang CEGEE
A10: 50 | B10: Aube Haute Marne | C10: =VLOOKUP($A10,'RECAP DIRCOM'!$G$6:$CU$12,3,FALSE) -> 113 | D10: =VLOOKUP($A10,'RECAP DIRCOM'!$G$6:$CU$12,48,FALSE) -> 2,415 | E10: =VLOOKUP($A10,'RECAP DIRCOM'!$G$6:$CU$12,49,FALSE) -> 21.29 | F10: =VLOOKUP($A10,'RECAP DIRCOM'!$G$6:$CU$12,50,FALSE) -> 58% | G10: =VLOOKUP($A10,'RECAP DIRCOM'!$G$6:$CU$12,51,FALSE) -> 5 | H10: =VLOOKUP($A10,'RECAP DIRCOM'!$G$6:$CU$12,52,FALSE) -> 2,808 | I10: =VLOOKUP($A10,'RECAP DIRCOM'!$G$6:$CU$12,53,FALSE) -> 24.75 | J10: =VLOOKUP($A10,'RECAP DIRCOM'!$G$6:$CU$12,54,FALSE) -> 10% | K10: =VLOOKUP($A10,'RECAP DIRCOM'!$G$6:$CU$12,55,FALSE) -> 3 | L10: =VLOOKUP($A10,'RECAP DIRCOM'!$G$6:$CU$12,56,FALSE) -> 889 | M10: =VLOOKUP($A10,'RECAP DIRCOM'!$G$6:$CU$12,57,FALSE) -> 7.84 | N10: =VLOOKUP($A10,'RECAP DIRCOM'!$G$6:$CU$12,58,FALSE) -> 34% | O10: =VLOOKUP($A10,'RECAP DIRCOM'!$G$6:$CU$12,59,FALSE) -> 5 | P10: =VLOOKUP($A10,'RECAP DIRCOM'!$G$6:$CU$12,60,FALSE) -> 34% | Q10: =VLOOKUP($A10,'RECAP DIRCOM'!$G$6:$CU$12,61,FALSE) -> 30% | R10: =VLOOKUP($A10,'RECAP DIRCOM'!$G$6:$CU$12,62,FALSE) -> 4
A11: 262 | B11: Bas-Rhin | C11: =VLOOKUP($A11,'RECAP DIRCOM'!$G$6:$CU$12,3,FALSE) -> 218 | D11: =VLOOKUP($A11,'RECAP DIRCOM'!$G$6:$CU$12,48,FALSE) -> 5,069 | E11: =VLOOKUP($A11,'RECAP DIRCOM'!$G$6:$CU$12,49,FALSE) -> 23.28 | F11: =VLOOKUP($A11,'RECAP DIRCOM'!$G$6:$CU$12,50,FALSE) -> 54% | G11: =VLOOKUP($A11,'RECAP DIRCOM'!$G$6:$CU$12,51,FALSE) -> 4 | H11: =VLOOKUP($A11,'RECAP DIRCOM'!$G$6:$CU$12,52,FALSE) -> 4,630 | I11: =VLOOKUP($A11,'RECAP DIRCOM'!$G$6:$CU$12,53,FALSE) -> 21.27 | J11: =VLOOKUP($A11,'RECAP DIRCOM'!$G$6:$CU$12,54,FALSE) -> 22% | K11: =VLOOKUP($A11,'RECAP DIRCOM'!$G$6:$CU$12,55,FALSE) -> 5 | L11: =VLOOKUP($A11,'RECAP DIRCOM'!$G$6:$CU$12,56,FALSE) -> 1,519 | M11: =VLOOKUP($A11,'RECAP DIRCOM'!$G$6:$CU$12,57,FALSE) -> 6.98 | N11: =VLOOKUP($A11,'RECAP DIRCOM'!$G$6:$CU$12,58,FALSE) -> 41% | O11: =VLOOKUP($A11,'RECAP DIRCOM'!$G$6:$CU$12,59,FALSE) -> 6 | P11: =VLOOKUP($A11,'RECAP DIRCOM'!$G$6:$CU$12,60,FALSE) -> 39% | Q11: =VLOOKUP($A11,'RECAP DIRCOM'!$G$6:$CU$12,61,FALSE) -> 35% | R11: =VLOOKUP($A11,'RECAP DIRCOM'!$G$6:$CU$12,62,FALSE) -> 6
A12: 264 | B12: Haut-Rhin | C12: =VLOOKUP($A12,'RECAP DIRCOM'!$G$6:$CU$12,3,FALSE) -> 126 | D12: =VLOOKUP($A12,'RECAP DIRCOM'!$G$6:$CU$12,48,FALSE) -> 2,522 | E12: =VLOOKUP($A12,'RECAP DIRCOM'!$G$6:$CU$12,49,FALSE) -> 20.07 | F12: =VLOOKUP($A12,'RECAP DIRCOM'!$G$6:$CU$12,50,FALSE) -> 61% | G12: =VLOOKUP($A12,'RECAP DIRCOM'!$G$6:$CU$12,51,FALSE) -> 7 | H12: =VLOOKUP($A12,'RECAP DIRCOM'!$G$6:$CU$12,52,FALSE) -> 2,307 | I12: =VLOOKUP($A12,'RECAP DIRCOM'!$G$6:$CU$12,53,FALSE) -> 18.36 | J12: =VLOOKUP($A12,'RECAP DIRCOM'!$G$6:$CU$12,54,FALSE) -> 33% | K12: =VLOOKUP($A12,'RECAP DIRCOM'!$G$6:$CU$12,55,FALSE) -> 7 | L12: =VLOOKUP($A12,'RECAP DIRCOM'!$G$6:$CU$12,56,FALSE) -> 731 | M12: =VLOOKUP($A12,'RECAP DIRCOM'!$G$6:$CU$12,57,FALSE) -> 5.82 | N12: =VLOOKUP($A12,'RECAP DIRCOM'!$G$6:$CU$12,58,FALSE) -> 51% | O12: =VLOOKUP($A12,'RECAP DIRCOM'!$G$6:$CU$12,59,FALSE) -> 7 | P12: =VLOOKUP($A12,'RECAP DIRCOM'!$G$6:$CU$12,60,FALSE) -> 48% | Q12: =VLOOKUP($A12,'RECAP DIRCOM'!$G$6:$CU$12,61,FALSE) -> 44% | R12: =VLOOKUP($A12,'RECAP DIRCOM'!$G$6:$CU$12,62,FALSE) -> 7
A13: 30 | B13: Marne-Ardennes | C13: =VLOOKUP($A13,'RECAP DIRCOM'!$G$6:$CU$12,3,FALSE) -> 194 | D13: =VLOOKUP($A13,'RECAP DIRCOM'!$G$6:$CU$12,48,FALSE) -> 9,879 | E13: =VLOOKUP($A13,'RECAP DIRCOM'!$G$6:$CU$12,49,FALSE) -> 50.92 | F13: =VLOOKUP($A13,'RECAP DIRCOM'!$G$6:$CU$12,50,FALSE) -> 0% | G13: =VLOOKUP($A13,'RECAP DIRCOM'!$G$6:$CU$12,51,FALSE) -> 1 | H13: =VLOOKUP($A13,'RECAP DIRCOM'!$G$6:$CU$12,52,FALSE) -> 4,588 | I13: =VLOOKUP($A13,'RECAP DIRCOM'!$G$6:$CU$12,53,FALSE) -> 23.65 | J13: =VLOOKUP($A13,'RECAP DIRCOM'!$G$6:$CU$12,54,FALSE) -> 14% | K13: =VLOOKUP($A13,'RECAP DIRCOM'!$G$6:$CU$12,55,FALSE) -> 4 | L13: =VLOOKUP($A13,'RECAP DIRCOM'!$G$6:$CU$12,56,FALSE) -> 2,295 | M13: =VLOOKUP($A13,'RECAP DIRCOM'!$G$6:$CU$12,57,FALSE) -> 11.83 | N13: =VLOOKUP($A13,'RECAP DIRCOM'!$G$6:$CU$12,58,FALSE) -> 0% | O13: =VLOOKUP($A13,'RECAP DIRCOM'!$G$6:$CU$12,59,FALSE) -> 1 | P13: =VLOOKUP($A13,'RECAP DIRCOM'!$G$6:$CU$12,60,FALSE) -> 4% | Q13: =VLOOKUP($A13,'RECAP DIRCOM'!$G$6:$CU$12,61,FALSE) -> 0% | R13: =VLOOKUP($A13,'RECAP DIRCOM'!$G$6:$CU$12,62,FALSE) -> 1
A14: 110 | B14: Meurthe et Moselle Meuse | C14: =VLOOKUP($A14,'RECAP DIRCOM'!$G$6:$CU$12,3,FALSE) -> 202 | D14: =VLOOKUP($A14,'RECAP DIRCOM'!$G$6:$CU$12,48,FALSE) -> 8,720 | E14: =VLOOKUP($A14,'RECAP DIRCOM'!$G$6:$CU$12,49,FALSE) -> 43.17 | F14: =VLOOKUP($A14,'RECAP DIRCOM'!$G$6:$CU$12,50,FALSE) -> 15% | G14: =VLOOKUP($A14,'RECAP DIRCOM'!$G$6:$CU$12,51,FALSE) -> 2 | H14: =VLOOKUP($A14,'RECAP DIRCOM'!$G$6:$CU$12,52,FALSE) -> 5,189 | I14: =VLOOKUP($A14,'RECAP DIRCOM'!$G$6:$CU$12,53,FALSE) -> 25.69 | J14: =VLOOKUP($A14,'RECAP DIRCOM'!$G$6:$CU$12,54,FALSE) -> 6% | K14: =VLOOKUP($A14,'RECAP DIRCOM'!$G$6:$CU$12,55,FALSE) -> 2 | L14: =VLOOKUP($A14,'RECAP DIRCOM'!$G$6:$CU$12,56,FALSE) -> 2,109 | M14: =VLOOKUP($A14,'RECAP DIRCOM'!$G$6:$CU$12,57,FALSE) -> 10.44 | N14: =VLOOKUP($A14,'RECAP DIRCOM'!$G$6:$CU$12,58,FALSE) -> 12% | O14: =VLOOKUP($A14,'RECAP DIRCOM'!$G$6:$CU$12,59,FALSE) -> 3 | P14: =VLOOKUP($A14,'RECAP DIRCOM'!$G$6:$CU$12,60,FALSE) -> 11% | Q14: =VLOOKUP($A14,'RECAP DIRCOM'!$G$6:$CU$12,61,FALSE) -> 7% | R14: =VLOOKUP($A14,'RECAP DIRCOM'!$G$6:$CU$12,62,FALSE) -> 3
A15: 160 | B15: Moselle | C15: =VLOOKUP($A15,'RECAP DIRCOM'!$G$6:$CU$12,3,FALSE) -> 228 | D15: =VLOOKUP($A15,'RECAP DIRCOM'!$G$6:$CU$12,48,FALSE) -> 9,358 | E15: =VLOOKUP($A15,'RECAP DIRCOM'!$G$6:$CU$12,49,FALSE) -> 41.08 | F15: =VLOOKUP($A15,'RECAP DIRCOM'!$G$6:$CU$12,50,FALSE) -> 19% | G15: =VLOOKUP($A15,'RECAP DIRCOM'!$G$6:$CU$12,51,FALSE) -> 3 | H15: =VLOOKUP($A15,'RECAP DIRCOM'!$G$6:$CU$12,52,FALSE) -> 6,245 | I15: =VLOOKUP($A15,'RECAP DIRCOM'!$G$6:$CU$12,53,FALSE) -> 27.41 | J15: =VLOOKUP($A15,'RECAP DIRCOM'!$G$6:$CU$12,54,FALSE) -> 0% | K15: =VLOOKUP($A15,'RECAP DIRCOM'!$G$6:$CU$12,55,FALSE) -> 1 | L15: =VLOOKUP($A15,'RECAP DIRCOM'!$G$6:$CU$12,56,FALSE) -> 2,431 | M15: =VLOOKUP($A15,'RECAP DIRCOM'!$G$6:$CU$12,57,FALSE) -> 10.67 | N15: =VLOOKUP($A15,'RECAP DIRCOM'!$G$6:$CU$12,58,FALSE) -> 10% | O15: =VLOOKUP($A15,'RECAP DIRCOM'!$G$6:$CU$12,59,FALSE) -> 2 | P15: =VLOOKUP($A15,'RECAP DIRCOM'!$G$6:$CU$12,60,FALSE) -> 10% | Q15: =VLOOKUP($A15,'RECAP DIRCOM'!$G$6:$CU$12,61,FALSE) -> 6% | R15: =VLOOKUP($A15,'RECAP DIRCOM'!$G$6:$CU$12,62,FALSE) -> 2
A16: 80 | B16: Vosges | C16: =VLOOKUP($A16,'RECAP DIRCOM'!$G$6:$CU$12,3,FALSE) -> 117 | D16: =VLOOKUP($A16,'RECAP DIRCOM'!$G$6:$CU$12,48,FALSE) -> 2,387 | E16: =VLOOKUP($A16,'RECAP DIRCOM'!$G$6:$CU$12,49,FALSE) -> 20.46 | F16: =VLOOKUP($A16,'RECAP DIRCOM'!$G$6:$CU$12,50,FALSE) -> 60% | G16: =VLOOKUP($A16,'RECAP DIRCOM'!$G$6:$CU$12,51,FALSE) -> 6 | H16: =VLOOKUP($A16,'RECAP DIRCOM'!$G$6:$CU$12,52,FALSE) -> 2,474 | I16: =VLOOKUP($A16,'RECAP DIRCOM'!$G$6:$CU$12,53,FALSE) -> 21.21 | J16: =VLOOKUP($A16,'RECAP DIRCOM'!$G$6:$CU$12,54,FALSE) -> 23% | K16: =VLOOKUP($A16,'RECAP DIRCOM'!$G$6:$CU$12,55,FALSE) -> 6 | L16: =VLOOKUP($A16,'RECAP DIRCOM'!$G$6:$CU$12,56,FALSE) -> 949 | M16: =VLOOKUP($A16,'RECAP DIRCOM'!$G$6:$CU$12,57,FALSE) -> 8.13 | N16: =VLOOKUP($A16,'RECAP DIRCOM'!$G$6:$CU$12,58,FALSE) -> 31% | O16: =VLOOKUP($A16,'RECAP DIRCOM'!$G$6:$CU$12,59,FALSE) -> 4 | P16: =VLOOKUP($A16,'RECAP DIRCOM'!$G$6:$CU$12,60,FALSE) -> 37% | Q16: =VLOOKUP($A16,'RECAP DIRCOM'!$G$6:$CU$12,61,FALSE) -> 33% | R16: =VLOOKUP($A16,'RECAP DIRCOM'!$G$6:$CU$12,62,FALSE) -> 5
B17: Total CEGEE Directions Régionales | C17: =SUM(C10:C16) -> 1197

Sheet DC_IARD
B1: Accueil | D1: BAROMETRE BDD - DIRECTIONS REGIONALES
D2: IARD ET PREVOYANCE
D3: =ACCUEIL!F7 -> 2022-05-01
D7: Ventes Nettes produits pondérés | H7: Ventes sur client non détenteur de l’univers | L7: Total IARD Prévoyance
D8: =DATEMAJ!C23 -> au 01/05 | F8: coef | G8: ='RECAP DIRCOM'!BX4 -> 12% | H8: =DATEMAJ!C24 -> au 01/05 | J8: coef | K8: ='RECAP DIRCOM'!CB4 -> 8% | M8: coef | N8: ='RECAP DIRCOM'!CE4 -> 20%
B9: Direction | C9: ="ETP perf "&DATEMAJ!$C$28 -> ETP perf 01-mai | D9: VN | E9: VN / ETP | F9: % Ecart au 1er | G9: Rang | H9: VB | I9: VB / ETP | J9: % Ecart au 1er | K9: Rang | L9: Moyenne ecart au 1er | M9: % Ecart au 1er | N9: Rang CEGEE
A10: 50 | B10: Aube Haute Marne | C10: =VLOOKUP($A10,'RECAP DIRCOM'!$G$6:$CU$12,3,FALSE) -> 113 | D10: =VLOOKUP($A10,'RECAP DIRCOM'!$G$6:$CU$12,67,FALSE) -> 5,303 | E10: =VLOOKUP($A10,'RECAP DIRCOM'!$G$6:$CU$12,68,FALSE) -> 46.75 | F10: =VLOOKUP($A10,'RECAP DIRCOM'!$G$6:$CU$12,69,FALSE) -> 31% | G10: =VLOOKUP($A10,'RECAP DIRCOM'!$G$6:$CU$12,70,FALSE) -> 4 | H10: =VLOOKUP($A10,'RECAP DIRCOM'!$G$6:$CU$12,71,FALSE) -> 1,702 | I10: =VLOOKUP($A10,'RECAP DIRCOM'!$G$6:$CU$12,72,FALSE) -> 15.00 | J10: =VLOOKUP($A10,'RECAP DIRCOM'!$G$6:$CU$12,73,FALSE) -> 20% | K10: =VLOOKUP($A10,'RECAP DIRCOM'!$G$6:$CU$12,74,FALSE) -> 5 | L10: =VLOOKUP($A10,'RECAP DIRCOM'!$G$6:$CU$12,75,FALSE) -> 27% | M10: =VLOOKUP($A10,'RECAP DIRCOM'!$G$6:$CU$12,76,FALSE) -> 27% | N10: =VLOOKUP($A10,'RECAP DIRCOM'!$G$6:$CU$12,77,FALSE) -> 5
A11: 262 | B11: Bas-Rhin | C11: =VLOOKUP($A11,'RECAP DIRCOM'!$G$6:$CU$12,3,FALSE) -> 218 | D11: =VLOOKUP($A11,'RECAP DIRCOM'!$G$6:$CU$12,67,FALSE) -> 10,451 | E11: =VLOOKUP($A11,'RECAP DIRCOM'!$G$6:$CU$12,68,FALSE) -> 48.00 | F11: =VLOOKUP($A11,'RECAP DIRCOM'!$G$6:$CU$12,69,FALSE) -> 30% | G11: =VLOOKUP($A11,'RECAP DIRCOM'!$G$6:$CU$12,70,FALSE) -> 3 | H11: =VLOOKUP($A11,'RECAP DIRCOM'!$G$6:$CU$12,71,FALSE) -> 3,654 | I11: =VLOOKUP($A11,'RECAP DIRCOM'!$G$6:$CU$12,72,FALSE) -> 16.78 | J11: =VLOOKUP($A11,'RECAP DIRCOM'!$G$6:$CU$12,73,FALSE) -> 11% | K11: =VLOOKUP($A11,'RECAP DIRCOM'!$G$6:$CU$12,74,FALSE) -> 4 | L11: =VLOOKUP($A11,'RECAP DIRCOM'!$G$6:$CU$12,75,FALSE) -> 22% | M11: =VLOOKUP($A11,'RECAP DIRCOM'!$G$6:$CU$12,76,FALSE) -> 22% | N11: =VLOOKUP($A11,'RECAP DIRCOM'!$G$6:$CU$12,77,FALSE) -> 3
A12: 264 | B12: Haut-Rhin | C12: =VLOOKUP($A12,'RECAP DIRCOM'!$G$6:$CU$12,3,FALSE) -> 126 | D12: =VLOOKUP($A12,'RECAP DIRCOM'!$G$6:$CU$12,67,FALSE) -> 3,620 | E12: =VLOOKUP($A12,'RECAP DIRCOM'!$G$6:$CU$12,68,FALSE) -> 28.81 | F12: =VLOOKUP($A12,'RECAP DIRCOM'!$G$6:$CU$12,69,FALSE) -> 58% | G12: =VLOOKUP($A12,'RECAP DIRCOM'!$G$6:$CU$12,70,FALSE) -> 7 | H12: =VLOOKUP($A12,'RECAP DIRCOM'!$G$6:$CU$12,71,FALSE) -> 1,648 | I12: =VLOOKUP($A12,'RECAP DIRCOM'!$G$6:$CU$12,72,FALSE) -> 13.12 | J12: =VLOOKUP($A12,'RECAP DIRCOM'!$G$6:$CU$12,73,FALSE) -> 30% | K12: =VLOOKUP($A12,'RECAP DIRCOM'!$G$6:$CU$12,74,FALSE) -> 7 | L12: =VLOOKUP($A12,'RECAP DIRCOM'!$G$6:$CU$12,75,FALSE) -> 47% | M12: =VLOOKUP($A12,'RECAP DIRCOM'!$G$6:$CU$12,76,FALSE) -> 47% | N12: =VLOOKUP($A12,'RECAP DIRCOM'!$G$6:$CU$12,77,FALSE) -> 7
A13: 30 | B13: Marne-Ardennes | C13: =VLOOKUP($A13,'RECAP DIRCOM'!$G$6:$CU$12,3,FALSE) -> 194 | D13: =VLOOKUP($A13,'RECAP DIRCOM'!$G$6:$CU$12,67,FALSE) -> 12,126 | E13: =VLOOKUP($A13,'RECAP DIRCOM'!$G$6:$CU$12,68,FALSE) -> 62.50 | F13: =VLOOKUP($A13,'RECAP DIRCOM'!$G$6:$CU$12,69,FALSE) -> 8% | G13: =VLOOKUP($A13,'RECAP DIRCOM'!$G$6:$CU$12,70,FALSE) -> 2 | H13: =VLOOKUP($A13,'RECAP DIRCOM'!$G$6:$CU$12,71,FALSE) -> 3,604 | I13: =VLOOKUP($A13,'RECAP DIRCOM'!$G$6:$CU$12,72,FALSE) -> 18.58 | J13: =VLOOKUP($A13,'RECAP DIRCOM'!$G$6:$CU$12,73,FALSE) -> 1% | K13: =VLOOKUP($A13,'RECAP DIRCOM'!$G$6:$CU$12,74,FALSE) -> 2 | L13: =VLOOKUP($A13,'RECAP DIRCOM'!$G$6:$CU$12,75,FALSE) -> 6% | M13: =VLOOKUP($A13,'RECAP DIRCOM'!$G$6:$CU$12,76,FALSE) -> 6% | N13: =VLOOKUP($A13,'RECAP DIRCOM'!$G$6:$CU$12,77,FALSE) -> 2
A14: 110 | B14: Meurthe et Moselle Meuse | C14: =VLOOKUP($A14,'RECAP DIRCOM'!$G$6:$CU$12,3,FALSE) -> 202 | D14: =VLOOKUP($A14,'RECAP DIRCOM'!$G$6:$CU$12,67,FALSE) -> 9,385 | E14: =VLOOKUP($A14,'RECAP DIRCOM'!$G$6:$CU$12,68,FALSE) -> 46.46 | F14: =VLOOKUP($A14,'RECAP DIRCOM'!$G$6:$CU$12,69,FALSE) -> 32% | G14: =VLOOKUP($A14,'RECAP DIRCOM'!$G$6:$CU$12,70,FALSE) -> 5 | H14: =VLOOKUP($A14,'RECAP DIRCOM'!$G$6:$CU$12,71,FALSE) -> 3,509 | I14: =VLOOKUP($A14,'RECAP DIRCOM'!$G$6:$CU$12,72,FALSE) -> 17.37 | J14: =VLOOKUP($A14,'RECAP DIRCOM'!$G$6:$CU$12,73,FALSE) -> 8% | K14: =VLOOKUP($A14,'RECAP DIRCOM'!$G$6:$CU$12,74,FALSE) -> 3 | L14: =VLOOKUP($A14,'RECAP DIRCOM'!$G$6:$CU$12,75,FALSE) -> 22% | M14: =VLOOKUP($A14,'RECAP DIRCOM'!$G$6:$CU$12,76,FALSE) -> 22% | N14: =VLOOKUP($A14,'RECAP DIRCOM'!$G$6:$CU$12,77,FALSE) -> 4
A15: 160 | B15: Moselle | C15: =VLOOKUP($A15,'RECAP DIRCOM'!$G$6:$CU$12,3,FALSE) -> 228 | D15: =VLOOKUP($A15,'RECAP DIRCOM'!$G$6:$CU$12,67,FALSE) -> 15,542 | E15: =VLOOKUP($A15,'RECAP DIRCOM'!$G$6:$CU$12,68,FALSE) -> 68.22 | F15: =VLOOKUP($A15,'RECAP DIRCOM'!$G$6:$CU$12,69,FALSE) -> 0% | G15: =VLOOKUP($A15,'RECAP DIRCOM'!$G$6:$CU$12,70,FALSE) -> 1 | H15: =VLOOKUP($A15,'RECAP DIRCOM'!$G$6:$CU$12,71,FALSE) -> 4,295 | I15: =VLOOKUP($A15,'RECAP DIRCOM'!$G$6:$CU$12,72,FALSE) -> 18.85 | J15: =VLOOKUP($A15,'RECAP DIRCOM'!$G$6:$CU$12,73,FALSE) -> 0% | K15: =VLOOKUP($A15,'RECAP DIRCOM'!$G$6:$CU$12,74,FALSE) -> 1 | L15: =VLOOKUP($A15,'RECAP DIRCOM'!$G$6:$CU$12,75,FALSE) -> 0% | M15: =VLOOKUP($A15,'RECAP DIRCOM'!$G$6:$CU$12,76,FALSE) -> 0% | N15: =VLOOKUP($A15,'RECAP DIRCOM'!$G$6:$CU$12,77,FALSE) -> 1
A16: 80 | B16: Vosges | C16: =VLOOKUP($A16,'RECAP DIRCOM'!$G$6:$CU$12,3,FALSE) -> 117 | D16: =VLOOKUP($A16,'RECAP DIRCOM'!$G$6:$CU$12,67,FALSE) -> 4,115 | E16: =VLOOKUP($A16,'RECAP DIRCOM'!$G$6:$CU$12,68,FALSE) -> 35.27 | F16: =VLOOKUP($A16,'RECAP DIRCOM'!$G$6:$CU$12,69,FALSE) -> 48% | G16: =VLOOKUP($A16,'RECAP DIRCOM'!$G$6:$CU$12,70,FALSE) -> 6 | H16: =VLOOKUP($A16,'RECAP DIRCOM'!$G$6:$CU$12,71,FALSE) -> 1,586 | I16: =VLOOKUP($A16,'RECAP DIRCOM'!$G$6:$CU$12,72,FALSE) -> 13.60 | J16: =VLOOKUP($A16,'RECAP DIRCOM'!$G$6:$CU$12,73,FALSE) -> 28% | K16: =VLOOKUP($A16,'RECAP DIRCOM'!$G$6:$CU$12,74,FALSE) -> 6 | L16: =VLOOKUP($A16,'RECAP DIRCOM'!$G$6:$CU$12,75,FALSE) -> 40% | M16: =VLOOKUP($A16,'RECAP DIRCOM'!$G$6:$CU$12,76,FALSE) -> 40% | N16: =VLOOKUP($A16,'RECAP DIRCOM'!$G$6:$CU$12,77,FALSE) -> 6
B17: Total CEGEE Directions Régionales | C17: =SUM(C10:C16) -> 1197

Sheet DC_SATISFACTION
B1: Accueil | D1: BAROMETRE BDD - DIRECTIONS REGIONALES
D2: SATISFACTION
D3: =ACCUEIL!F7 -> 2022-05-01
D7: NPS à froid (SAE) | G7: NPS à chaud (QHD) | J7: Total Satisfaction Clients
D8: =DATEMAJ!E4 -> au 31/03 | E8: coef | F8: ='RECAP DIRCOM'!M4 -> 10% | G8: =DATEMAJ!C5 -> au 28/02 | H8: coef | I8: ='RECAP DIRCOM'!P4 -> 10% | K8: coef | L8: ='RECAP DIRCOM'!S4 -> 20%
B9: Direction | C9: ="ETP perf "&DATEMAJ!$C$28 -> ETP perf 01-mai | E9: % Ecart au 1er | F9: Rang | H9: % Ecart au 1er | I9: Rang | J9: Moyenne ecart au 1er | K9: % Ecart au 1er | L9: Rang CEGEE
A10: 50 | B10: Aube Haute Marne | C10: =VLOOKUP($A10,'RECAP DIRCOM'!$G$6:$CU$12,3,FALSE) -> 113 | D10: =VLOOKUP($A10,'RECAP DIRCOM'!$G$6:$CU$12,5,FALSE) -> 4.25 | E10: =VLOOKUP($A10,'RECAP DIRCOM'!$G$6:$CU$12,6,FALSE) -> 82% | F10: =VLOOKUP($A10,'RECAP DIRCOM'!$G$6:$CU$12,7,FALSE) -> 6 | G10: =VLOOKUP($A10,'RECAP DIRCOM'!$G$6:$CU$12,8,FALSE) -> 53% | H10: =VLOOKUP($A10,'RECAP DIRCOM'!$G$6:$CU$12,9,FALSE) -> 22% | I10: =VLOOKUP($A10,'RECAP DIRCOM'!$G$6:$CU$12,10,FALSE) -> 6 | J10: =VLOOKUP($A10,'RECAP DIRCOM'!$G$6:$CU$12,11,FALSE) -> 52% | K10: =VLOOKUP($A10,'RECAP DIRCOM'!$G$6:$CU$12,12,FALSE) -> 52% | L10: =VLOOKUP($A10,'RECAP DIRCOM'!$G$6:$CU$12,13,FALSE) -> 6
A11: 262 | B11: Bas-Rhin | C11: =VLOOKUP($A11,'RECAP DIRCOM'!$G$6:$CU$12,3,FALSE) -> 218 | D11: =VLOOKUP($A11,'RECAP DIRCOM'!$G$6:$CU$12,5,FALSE) -> 4.5 | E11: =VLOOKUP($A11,'RECAP DIRCOM'!$G$6:$CU$12,6,FALSE) -> 81% | F11: =VLOOKUP($A11,'RECAP DIRCOM'!$G$6:$CU$12,7,FALSE) -> 5 | G11: =VLOOKUP($A11,'RECAP DIRCOM'!$G$6:$CU$12,8,FALSE) -> 59% | H11: =VLOOKUP($A11,'RECAP DIRCOM'!$G$6:$CU$12,9,FALSE) -> 14% | I11: =VLOOKUP($A11,'RECAP DIRCOM'!$G$6:$CU$12,10,FALSE) -> 4 | J11: =VLOOKUP($A11,'RECAP DIRCOM'!$G$6:$CU$12,11,FALSE) -> 47% | K11: =VLOOKUP($A11,'RECAP DIRCOM'!$G$6:$CU$12,12,FALSE) -> 47% | L11: =VLOOKUP($A11,'RECAP DIRCOM'!$G$6:$CU$12,13,FALSE) -> 5
A12: 264 | B12: Haut-Rhin | C12: =VLOOKUP($A12,'RECAP DIRCOM'!$G$6:$CU$12,3,FALSE) -> 126 | D12: =VLOOKUP($A12,'RECAP DIRCOM'!$G$6:$CU$12,5,FALSE) -> 3.25 | E12: =VLOOKUP($A12,'RECAP DIRCOM'!$G$6:$CU$12,6,FALSE) -> 86% | F12: =VLOOKUP($A12,'RECAP DIRCOM'!$G$6:$CU$12,7,FALSE) -> 7 | G12: =VLOOKUP($A12,'RECAP DIRCOM'!$G$6:$CU$12,8,FALSE) -> 49% | H12: =VLOOKUP($A12,'RECAP DIRCOM'!$G$6:$CU$12,9,FALSE) -> 28% | I12: =VLOOKUP($A12,'RECAP DIRCOM'!$G$6:$CU$12,10,FALSE) -> 7 | J12: =VLOOKUP($A12,'RECAP DIRCOM'!$G$6:$CU$12,11,FALSE) -> 57% | K12: =VLOOKUP($A12,'RECAP DIRCOM'!$G$6:$CU$12,12,FALSE) -> 57% | L12: =VLOOKUP($A12,'RECAP DIRCOM'!$G$6:$CU$12,13,FALSE) -> 7
A13: 30 | B13: Marne-Ardennes | C13: =VLOOKUP($A13,'RECAP DIRCOM'!$G$6:$CU$12,3,FALSE) -> 194 | D13: =VLOOKUP($A13,'RECAP DIRCOM'!$G$6:$CU$12,5,FALSE) -> 17.25 | E13: =VLOOKUP($A13,'RECAP DIRCOM'!$G$6:$CU$12,6,FALSE) -> 26% | F13: =VLOOKUP($A13,'RECAP DIRCOM'!$G$6:$CU$12,7,FALSE) -> 2 | G13: =VLOOKUP($A13,'RECAP DIRCOM'!$G$6:$CU$12,8,FALSE) -> 68% | H13: =VLOOKUP($A13,'RECAP DIRCOM'!$G$6:$CU$12,9,FALSE) -> 1% | I13: =VLOOKUP($A13,'RECAP DIRCOM'!$G$6:$CU$12,10,FALSE) -> 2 | J13: =VLOOKUP($A13,'RECAP DIRCOM'!$G$6:$CU$12,11,FALSE) -> 13% | K13: =VLOOKUP($A13,'RECAP DIRCOM'!$G$6:$CU$12,12,FALSE) -> 13% | L13: =VLOOKUP($A13,'RECAP DIRCOM'!$G$6:$CU$12,13,FALSE) -> 2
A14: 110 | B14: Meurthe et Moselle Meuse | C14: =VLOOKUP($A14,'RECAP DIRCOM'!$G$6:$CU$12,3,FALSE) -> 202 | D14: =VLOOKUP($A14,'RECAP DIRCOM'!$G$6:$CU$12,5,FALSE) -> 8.25 | E14: =VLOOKUP($A14,'RECAP DIRCOM'!$G$6:$CU$12,6,FALSE) -> 65% | F14: =VLOOKUP($A14,'RECAP DIRCOM'!$G$6:$CU$12,7,FALSE) -> 4 | G14: =VLOOKUP($A14,'RECAP DIRCOM'!$G$6:$CU$12,8,FALSE) -> 55% | H14: =VLOOKUP($A14,'RECAP DIRCOM'!$G$6:$CU$12,9,FALSE) -> 19% | I14: =VLOOKUP($A14,'RECAP DIRCOM'!$G$6:$CU$12,10,FALSE) -> 5 | J14: =VLOOKUP($A14,'RECAP DIRCOM'!$G$6:$CU$12,11,FALSE) -> 42% | K14: =VLOOKUP($A14,'RECAP DIRCOM'!$G$6:$CU$12,12,FALSE) -> 42% | L14: =VLOOKUP($A14,'RECAP DIRCOM'!$G$6:$CU$12,13,FALSE) -> 4
A15: 160 | B15: Moselle | C15: =VLOOKUP($A15,'RECAP DIRCOM'!$G$6:$CU$12,3,FALSE) -> 228 | D15: =VLOOKUP($A15,'RECAP DIRCOM'!$G$6:$CU$12,5,FALSE) -> 14 | E15: =VLOOKUP($A15,'RECAP DIRCOM'!$G$6:$CU$12,6,FALSE) -> 40% | F15: =VLOOKUP($A15,'RECAP DIRCOM'!$G$6:$CU$12,7,FALSE) -> 3 | G15: =VLOOKUP($A15,'RECAP DIRCOM'!$G$6:$CU$12,8,FALSE) -> 63% | H15: =VLOOKUP($A15,'RECAP DIRCOM'!$G$6:$CU$12,9,FALSE) -> 7% | I15: =VLOOKUP($A15,'RECAP DIRCOM'!$G$6:$CU$12,10,FALSE) -> 3 | J15: =VLOOKUP($A15,'RECAP DIRCOM'!$G$6:$CU$12,11,FALSE) -> 23% | K15: =VLOOKUP($A15,'RECAP DIRCOM'!$G$6:$CU$12,12,FALSE) -> 23% | L15: =VLOOKUP($A15,'RECAP DIRCOM'!$G$6:$CU$12,13,FALSE) -> 3
A16: 80 | B16: Vosges | C16: =VLOOKUP($A16,'RECAP DIRCOM'!$G$6:$CU$12,3,FALSE) -> 117 | D16: =VLOOKUP($A16,'RECAP DIRCOM'!$G$6:$CU$12,5,FALSE) -> 23.25 | E16: =VLOOKUP($A16,'RECAP DIRCOM'!$G$6:$CU$12,6,FALSE) -> 0% | F16: =VLOOKUP($A16,'RECAP DIRCOM'!$G$6:$CU$12,7,FALSE) -> 1 | G16: =VLOOKUP($A16,'RECAP DIRCOM'!$G$6:$CU$12,8,FALSE) -> 68% | H16: =VLOOKUP($A16,'RECAP DIRCOM'!$G$6:$CU$12,9,FALSE) -> 0% | I16: =VLOOKUP($A16,'RECAP DIRCOM'!$G$6:$CU$12,10,FALSE) -> 1 | J16: =VLOOKUP($A16,'RECAP DIRCOM'!$G$6:$CU$12,11,FALSE) -> 0% | K16: =VLOOKUP($A16,'RECAP DIRCOM'!$G$6:$CU$12,12,FALSE) -> 0% | L16: =VLOOKUP($A16,'RECAP DIRCOM'!$G$6:$CU$12,13,FALSE) -> 1
B17: Total CEGEE Directions Régionales | C17: =SUM(C10:C16) -> 1197

Sheet SE_FICHE
A1: Accueil
A2: BAROMETRE BDD
A4: UNITE: | B4: TERRITOIRE | E4: ETP perf : | F4: =VLOOKUP(A5,'RECAP SECT'!$G$6:$I$23,3,FALSE) -> 50.31
A5: =VLOOKUP(B5,LISTES!$H$6:$I$23,2,FALSE) -> 5130 | B5: COLMAR
C6: Coefficient du critére | E6: Résultats | I6: Ecart au 1ier | M6: Evolution | O6: Rang
E7: du 1ier | G7: du territoire | I7: Du mois | K7: Au 31/12/2019
A9: RANG au CLASSEMENT GENERAL | K9: =VLOOKUP($A$5,#REF!,168,FALSE) ->  | M9: =+K9-O9 ->  | O9: =VLOOKUP($A$5,'RECAP SECT'!$G$6:$CY$312,168,FALSE) ->  | S9: =VLOOKUP($A$5,#REF!,154,FALSE) ->  | U9: =+S9-O9 -> 
A11: CRITERE CONQUETE | C11: 15% | O11: =VLOOKUP($A$5,'RECAP SECT'!$G$6:$CY$312,23,FALSE) -> 19.91651759
B12: PNB Evolution nette Clients BP | C12: 4% | E12: ='RECAP SECT'!#REF! ->  | G12: =VLOOKUP($A$5,'RECAP SECT'!$G$6:$CY$312,6,FALSE) -> 0.9 | I12: =VLOOKUP($A$5,'RECAP SECT'!$G$6:$CY$312,7,FALSE) -> 1400% | K12: =VLOOKUP($A$5,#REF!,7,FALSE) ->  | M12: =+K12-I12 ->  | O12: =VLOOKUP($A$5,'RECAP SECT'!$G$6:$CY$312,8,FALSE) -> 0.5154433095 | S12: =VLOOKUP($A$5,#REF!,6,FALSE) ->  | U12: =+S12-I12 -> 
B13: PNB Evolution nette Clients PREMIUM | C13: 5% | E13: ='RECAP SECT'!#REF! ->  | G13: =VLOOKUP($A$5,'RECAP SECT'!$G$6:$CY$312,10,FALSE) -> 15.0 | I13: =VLOOKUP($A$5,'RECAP SECT'!$G$6:$CY$312,11,FALSE) -> 59% | K13: =VLOOKUP($A$5,#REF!,11,FALSE) ->  | M13: =+K13-I13 ->  | O13: =VLOOKUP($A$5,'RECAP SECT'!$G$6:$CY$312,12,FALSE) -> 0.5496027079 | S13: =VLOOKUP($A$5,#REF!,9,FALSE) ->  | U13: =+S13-I13 -> 
B14: PNB Evolution nette Clients Jeunes Equipés | C14: 3% | E14: ='RECAP SECT'!#REF! ->  | G14: =VLOOKUP($A$5,'RECAP SECT'!$G$6:$CY$312,14,FALSE) -> 0.0 | I14: =VLOOKUP($A$5,'RECAP SECT'!$G$6:$CY$312,15,FALSE) -> 0% | K14: =VLOOKUP($A$5,#REF!,15,FALSE) ->  | M14: =+K14-I14 ->  | O14: =VLOOKUP($A$5,'RECAP SECT'!$G$6:$CY$312,16,FALSE) -> 0 | S14: =VLOOKUP($A$5,#REF!,12,FALSE) ->  | U14: =+S14-I14 -> 
B15: PNB Evolution nette Clients Pro Actifs Equipés | C15: 3% | E15: ='RECAP SECT'!W4 -> 0.0 | G15: =VLOOKUP($A$5,'RECAP SECT'!$G$6:$CY$312,18,FALSE) -> 273.0 | I15: =VLOOKUP($A$5,'RECAP SECT'!$G$6:$CY$312,19,FALSE) -> 543% | K15: =VLOOKUP($A$5,#REF!,19,FALSE) ->  | M15: =+K15-I15 ->  | O15: =VLOOKUP($A$5,'RECAP SECT'!$G$6:$CY$312,20,FALSE) -> 0.6971372599 | S15: =VLOOKUP($A$5,#REF!,15,FALSE) ->  | U15: =+S15-I15 -> 
A17: CRITERE BANCARISATION | C17: 15% | O17: =VLOOKUP($A$5,'RECAP SECT'!$G$6:$CY$312,48,FALSE) -> 1013.635841
B18: PNB Ventes nettes forfaits | C18: 4% | E18: ='RECAP SECT'!X4 -> 17.9 | G18: =VLOOKUP($A$5,'RECAP SECT'!$G$6:$CY$312,31,FALSE) -> 0.0 | I18: =VLOOKUP($A$5,'RECAP SECT'!$G$6:$CY$312,32,FALSE) -> 0% | K18: =VLOOKUP($A$5,#REF!,32,FALSE) ->  | M18: =+K18-I18 ->  | O18: =VLOOKUP($A$5,'RECAP SECT'!$G$6:$CY$312,33,FALSE) -> 9832.439046 | S18: =VLOOKUP($A$5,#REF!,27,FALSE) ->  | U18: =+S18-I18 -> 
B19: PNB Ventes nettes IZICARTES Débit Différé | C19: 4% | E19: ='RECAP SECT'!AB4 -> 35.1 | G19: =VLOOKUP($A$5,'RECAP SECT'!$G$6:$CY$312,35,FALSE) -> 0.4 | I19: =VLOOKUP($A$5,'RECAP SECT'!$G$6:$CY$312,36,FALSE) -> 1000% | K19: =VLOOKUP($A$5,#REF!,36,FALSE) ->  | M19: =+K19-I19 ->  | O19: =VLOOKUP($A$5,'RECAP SECT'!$G$6:$CY$312,37,FALSE) -> 890 | S19: =VLOOKUP($A$5,#REF!,30,FALSE) ->  | U19: =+S19-I19 -> 
B20: PNB Ventes nettes cartes HDG Débit Différé | C20: 4% | E20: ='RECAP SECT'!#REF! ->  | G20: =VLOOKUP($A$5,'RECAP SECT'!$G$6:$CY$312,39,FALSE) -> 0.5 | I20: =VLOOKUP($A$5,'RECAP SECT'!$G$6:$CY$312,40,FALSE) -> 1800% | K20: =VLOOKUP($A$5,#REF!,40,FALSE) ->  | M20: =+K20-I20 ->  | O20: =VLOOKUP($A$5,'RECAP SECT'!$G$6:$CY$312,41,FALSE) -> 0.4515571806 | S20: =VLOOKUP($A$5,#REF!,33,FALSE) ->  | U20: =+S20-I20 -> 
B21: PNB Ventes nettes Forfaits Pro, Carte pro | C21: 3% | E21: ='RECAP SECT'!#REF! ->  | G21: =VLOOKUP($A$5,'RECAP SECT'!$G$6:$CY$312,43,FALSE) -> 14.0 | I21: =VLOOKUP($A$5,'RECAP SECT'!$G$6:$CY$312,44,FALSE) -> 0% | K21: =VLOOKUP($A$5,#REF!,44,FALSE) ->  | M21: =+K21-I21 ->  | O21: =VLOOKUP($A$5,'RECAP SECT'!$G$6:$CY$312,45,FALSE) -> 0 | S21: =VLOOKUP($A$5,#REF!,39,FALSE) ->  | U21: =+S21-I21 -> 
A23: CRITERE EPARGNE | C23: 10% | O23: =VLOOKUP($A$5,'RECAP SECT'!$G$6:$CY$312,69,FALSE) -> 0.4588369029
B24: PNB Epargne Liquide | C24: 3% | E24: ='RECAP SECT'!AM4 -> 332.8 | G24: =VLOOKUP($A$5,'RECAP SECT'!$G$6:$CY$312,56,FALSE) -> 379.0 | I24: =VLOOKUP($A$5,'RECAP SECT'!$G$6:$CY$312,57,FALSE) -> 753% | K24: =VLOOKUP($A$5,#REF!,57,FALSE) ->  | M24: =+K24-I24 ->  | O24: =VLOOKUP($A$5,'RECAP SECT'!$G$6:$CY$312,58,FALSE) -> 0.5445811514 | S24: =VLOOKUP($A$5,#REF!,51,FALSE) ->  | U24: =+S24-I24 -> 
B25: PNB CA UC + arbitrage | C25: 4% | E25: ='RECAP SECT'!AQ4 -> 36.1 | G25: =VLOOKUP($A$5,'RECAP SECT'!$G$6:$CY$312,60,FALSE) -> 0.5 | I25: =VLOOKUP($A$5,'RECAP SECT'!$G$6:$CY$312,61,FALSE) -> 49% | K25: =VLOOKUP($A$5,#REF!,61,FALSE) ->  | M25: =+K25-I25 ->  | O25: =VLOOKUP($A$5,'RECAP SECT'!$G$6:$CY$312,62,FALSE) -> 18 | S25: =VLOOKUP($A$5,#REF!,57,FALSE) ->  | U25: =+S25-I25 -> 
B26: PNB Excédent assurance vie | C26: 3% | E26: ='RECAP SECT'!#REF! ->  | G26: =VLOOKUP($A$5,'RECAP SECT'!$G$6:$CY$312,64,FALSE) -> 0.0 | I26: =VLOOKUP($A$5,'RECAP SECT'!$G$6:$CY$312,65,FALSE) -> 0% | K26: =VLOOKUP($A$5,#REF!,65,FALSE) ->  | M26: =+K26-I26 ->  | O26: =VLOOKUP($A$5,'RECAP SECT'!$G$6:$CY$312,66,FALSE) -> 0 | S26: =VLOOKUP($A$5,#REF!,60,FALSE) ->  | U26: =+S26-I26 -> 
A28: CRITERE CREDITS | C28: 15% | O28: =VLOOKUP($A$5,'RECAP SECT'!$G$6:$CY$312,102,FALSE) -> 
B29: PNB crédit conso | C29: 4% | E29: ='RECAP SECT'!BB4 -> 73.8 | G29: =VLOOKUP($A$5,'RECAP SECT'!$G$6:$CY$312,77,FALSE) -> 16.0 | I29: =VLOOKUP($A$5,'RECAP SECT'!$G$6:$CY$312,78,FALSE) -> 0% | K29: =VLOOKUP($A$5,#REF!,78,FALSE) ->  | M29: =+K29-I29 ->  | O29: =VLOOKUP($A$5,'RECAP SECT'!$G$6:$CY$312,79,FALSE) -> 0 | S29: =VLOOKUP($A$5,#REF!,75,FALSE) ->  | U29: =+S29-I29 -> 
B30: PNB ADE crédit conso | C30: 1% | E30: ='RECAP SECT'!#REF! ->  | G30: =VLOOKUP($A$5,'RECAP SECT'!$G$6:$CY$312,81,FALSE) -> 0.0 | I30: =VLOOKUP($A$5,'RECAP SECT'!$G$6:$CY$312,82,FALSE) -> 0% | K30: =VLOOKUP($A$5,#REF!,82,FALSE) ->  | O30: =VLOOKUP($A$5,'RECAP SECT'!$G$6:$CY$312,83,FALSE) -> 0 | S30: =VLOOKUP($A$5,#REF!,78,FALSE) -> 
B31: PNB crédit immo | C31: 4% | E31: ='RECAP SECT'!BF4 -> 35.3 | G31: =VLOOKUP($A$5,'RECAP SECT'!$G$6:$CY$312,85,FALSE) -> 0.0 | I31: =VLOOKUP($A$5,'RECAP SECT'!$G$6:$CY$312,86,FALSE) -> 0% | K31: =VLOOKUP($A$5,#REF!,86,FALSE) ->  | O31: =VLOOKUP($A$5,'RECAP SECT'!$G$6:$CY$312,87,FALSE) -> 0 | S31: =VLOOKUP($A$5,#REF!,81,FALSE) -> 
B32: PNB ADE crédit immo | C32: 2% | E32: ='RECAP SECT'!#REF! ->  | G32: =VLOOKUP($A$5,'RECAP SECT'!$G$6:$CY$312,89,FALSE) -> 0.0 | I32: =VLOOKUP($A$5,'RECAP SECT'!$G$6:$CY$312,90,FALSE) -> 0% | K32: =VLOOKUP($A$5,#REF!,90,FALSE) ->  | O32: =VLOOKUP($A$5,'RECAP SECT'!$G$6:$CY$312,91,FALSE) -> 0 | S32: =VLOOKUP($A$5,#REF!,84,FALSE) -> 
B33: PNB SACCEF | C33: 2% | E33: ='RECAP SECT'!#REF! ->  | G33: =VLOOKUP($A$5,'RECAP SECT'!$G$6:$CY$312,93,FALSE) -> 0.0 | I33: =VLOOKUP($A$5,'RECAP SECT'!$G$6:$CY$312,94,FALSE) -> 48% | K33: =VLOOKUP($A$5,#REF!,94,FALSE) ->  | O33: =VLOOKUP($A$5,'RECAP SECT'!$G$6:$CY$312,95,FALSE) -> 0.3564988395 | S33: =VLOOKUP($A$5,#REF!,87,FALSE) -> 
B34: PNB Crédit MLT + Crédit Bail | C34: 2% | E34: ='RECAP SECT'!BJ4 -> 16.5 | G34: =VLOOKUP($A$5,'RECAP SECT'!$G$6:$CY$312,97,FALSE) -> 0.0 | I34: =VLOOKUP($A$5,'RECAP SECT'!$G$6:$CY$312,98,FALSE) ->  | K34: =VLOOKUP($A$5,#REF!,98,FALSE) ->  | O34: =VLOOKUP($A$5,'RECAP SECT'!$G$6:$CY$312,99,FALSE) ->  | S34: =VLOOKUP($A$5,#REF!,90,FALSE) -> 
A36: CRITERE IARD PREVOYANCE | C36: 15% | O36: =VLOOKUP($A$5,'RECAP SECT'!$G$6:$CY$312,119,FALSE) -> 
B37: PNB Ventes nettes IARD | C37: 9% | E37: ='RECAP SECT'!BU4 -> 97.4 | G37: =VLOOKUP($A$5,'RECAP SECT'!$G$6:$CY$312,110,FALSE) ->  | I37: =VLOOKUP($A$5,'RECAP SECT'!$G$6:$CY$312,111,FALSE) ->  | K37: =VLOOKUP($A$5,#REF!,111,FALSE) ->  | M37: =+K37-I37 ->  | O37: =VLOOKUP($A$5,'RECAP SECT'!$G$6:$CY$312,112,FALSE) ->  | S37: =VLOOKUP($A$5,#REF!,102,FALSE) ->  | U37: =+S37-I37 -> 
B38: PNB Ventes nettes Prévoyance | C38: 6% | E38: ='RECAP SECT'!BY4 -> 26.6 | G38: =VLOOKUP($A$5,'RECAP SECT'!$G$6:$CY$312,114,FALSE) ->  | I38: =VLOOKUP($A$5,'RECAP SECT'!$G$6:$CY$312,115,FALSE) ->  | K38: =VLOOKUP($A$5,#REF!,115,FALSE) ->  | M38: =+K38-I38 ->  | O38: =VLOOKUP($A$5,'RECAP SECT'!$G$6:$CY$312,116,FALSE) ->  | S38: =VLOOKUP($A$5,#REF!,105,FALSE) ->  | U38: =+S38-I38 -> 
A40: CRITERE ACCELERATEURS PNB | C40: 15% | O40: =VLOOKUP($A$5,'RECAP SECT'!$G$6:$CY$312,144,FALSE) -> 
B41: PNB Ventes brutes SED Finalisées | C41: 6% | E41: ='RECAP SECT'!#REF! ->  | G41: =VLOOKUP($A$5,'RECAP SECT'!$G$6:$CY$312,127,FALSE) ->  | I41: =VLOOKUP($A$5,'RECAP SECT'!$G$6:$CY$312,128,FALSE) ->  | K41: =VLOOKUP($A$5,#REF!,128,FALSE) ->  | M41: =+K41-I41 ->  | O41: =VLOOKUP($A$5,'RECAP SECT'!$G$6:$CY$312,129,FALSE) ->  | S41: =VLOOKUP($A$5,#REF!,120,FALSE) ->  | U41: =+S41-I41 -> 
B42: PNB clients équipés E documents | C42: 3% | E42: ='RECAP SECT'!#REF! ->  | G42: =VLOOKUP($A$5,'RECAP SECT'!$G$6:$CY$312,131,FALSE) ->  | I42: =VLOOKUP($A$5,'RECAP SECT'!$G$6:$CY$312,132,FALSE) ->  | K42: =VLOOKUP($A$5,#REF!,132,FALSE) ->  | M42: =+K42-I42 ->  | O42: =VLOOKUP($A$5,'RECAP SECT'!$G$6:$CY$312,133,FALSE) ->  | S42: =VLOOKUP($A$5,#REF!,123,FALSE) ->  | U42: =+S42-I42 -> 
B43: Economie opt'in | C43: 3% | E43: ='RECAP SECT'!#REF! ->  | G43: =VLOOKUP($A$5,'RECAP SECT'!$G$6:$CY$312,135,FALSE) ->  | I43: =VLOOKUP($A$5,'RECAP SECT'!$G$6:$CY$312,136,FALSE) ->  | K43: =VLOOKUP($A$5,#REF!,136,FALSE) ->  | M43: =+K43-I43 ->  | O43: =VLOOKUP($A$5,'RECAP SECT'!$G$6:$CY$312,137,FALSE) -> 
B44: Remises commerciales | C44: 3% | E44: ='RECAP SECT'!#REF! ->  | G44: =VLOOKUP($A$5,'RECAP SECT'!$G$6:$CY$312,139,FALSE) ->  | I44: =VLOOKUP($A$5,'RECAP SECT'!$G$6:$CY$312,140,FALSE) ->  | K44: =VLOOKUP($A$5,#REF!,140,FALSE) ->  | M44: =+K44-I44 ->  | O44: =VLOOKUP($A$5,'RECAP SECT'!$G$6:$CY$312,141,FALSE) ->  | S44: =VLOOKUP($A$5,#REF!,126,FALSE) ->  | U44: =+S44-I44 -> 
A46: CRITERE Satisfaction Clients | C46: 15% | O46: =VLOOKUP($A$5,'RECAP SECT'!$G$6:$CY$312,159,FALSE) -> 
B47: Objectifs NPS* | C47: 8% | E47: ='RECAP SECT'!K4 -> 28 | G47: =VLOOKUP($A$5,'RECAP SECT'!$G$6:$CY$312,151,FALSE) ->  | I47: =VLOOKUP($A$5,'RECAP SECT'!$G$6:$CY$312,152,FALSE) ->  | K47: =VLOOKUP($A$5,#REF!,152,FALSE) ->  | M47: =+K47-I47 ->  | O47: =VLOOKUP($A$5,'RECAP SECT'!$G$6:$CY$312,153,FALSE) ->  | S47: =VLOOKUP($A$5,#REF!,138,FALSE) ->  | U47: =+S47-I47 -> 
B48: Enquête Qualité Haute Définition | C48: 7% | E48: ='RECAP SECT'!N4 -> 74% | G48: =VLOOKUP($A$5,'RECAP SECT'!$G$6:$CY$312,154,FALSE) ->  | I48: =VLOOKUP($A$5,'RECAP SECT'!$G$6:$CY$312,155,FALSE) ->  | K48: =VLOOKUP($A$5,#REF!,155,FALSE) ->  | M48: =+K48-I48 ->  | O48: =VLOOKUP($A$5,'RECAP SECT'!$G$6:$CY$312,156,FALSE) ->  | S48: =VLOOKUP($A$5,#REF!,141,FALSE) ->  | U48: =+S48-I48 -> 

Sheet SE_TOTAL
B1: Accueil | F1: BAROMETRE BDD - TERRITOIRES
F2: TOTAL GENERAL
F3: =ACCUEIL!F7 -> 2022-05-01
F7: TOTAL GENERAL | I7: Total Satisfaction Clients | L7: Total Bancarisation | O7: Total Epargne | R7: Total IARD Prévoyance | U7: Total Crédits
G8: coef | H8: =K8+N8+Q8+T8+W8 -> 100% | J8: coef | K8: =SE_SATISFACTION!N8 -> 20% | M8: coef | N8: =SE_BANCA!P8 -> 20% | P8: coef | Q8: =SE_EPARGNE!P8 -> 20% | S8: coef | T8: =SE_IARD!P8 -> 20% | V8: coef | W8: =SE_CREDIT!T8 -> 20%
B9: Direction | C9: eds | D9: Territoire | E9: ="ETP perf "&DATEMAJ!$C$28 -> ETP perf 01-mai | F9: Moyenne ecart au 1er | G9: % Ecart au 1er | H9: Rang CEGEE | I9: Moyenne ecart au 1er | J9: % Ecart au 1er | K9: Rang CEGEE | L9: Moyenne ecart au 1er | M9: % Ecart au 1er | N9: Rang CEGEE | O9: Moyenne ecart au 1er | P9: % Ecart au 1er | Q9: Rang CEGEE | R9: Moyenne ecart au 1er | S9: % Ecart au 1er | T9: Rang CEGEE | U9: Moyenne ecart au 1er | V9: % Ecart au 1er | W9: Rang CEGEE
A10: 50 | B10: MOSELLE | C10: 44 | D10: MOSELLE NORD | E10: 57.5 | F10: 12% | G10: 0% | H10: 1 | I10: 40% | J10: 36% | K10: 12 | L10: 2% | M10: 0% | N10: 1 | O10: 29% | P10: 22% | Q10: 6 | R10: 1% | S10: 0% | T10: 1 | U10: 8% | V10: 3% | W10: 2
A11: 50 | B11: MOSELLE | C11: 42 | D11: MOSELLE EST | E11: 60.4 | F11: 17% | G11: 5% | H11: 2 | I11: 25% | J11: 21% | K11: 4 | L11: 18% | M11: 16% | N11: 3 | O11: 24% | P11: 17% | Q11: 3 | R11: 13% | S11: 12% | T11: 3 | U11: 24% | V11: 20% | W11: 7
A12: 262 | B12: MARNE-ARDENNES | C12: 11 | D12: REIMS | E12: 69.2 | F12: 17% | G12: 5% | H12: 3 | I12: 29% | J12: 25% | K12: 7 | L12: 12% | M12: 10% | N12: 2 | O12: 43% | P12: 36% | Q12: 13 | R12: 18% | S12: 17% | T12: 5 | U12: 4% | V12: 0% | W12: 1
A13: 262 | B13: MARNE-ARDENNES | C13: 2 | D13: CHARLEVILLE MEZIERES | E13: 48.8 | F13: 20% | G13: 7% | H13: 4 | I13: 29% | J13: 25% | K13: 6 | L13: 35% | M13: 33% | N13: 10 | O13: 25% | P13: 17% | Q13: 4 | R13: 12% | S13: 11% | T13: 2 | U13: 17% | V13: 12% | W13: 4
A14: 262 | B14: MOSELLE | C14: 45 | D14: METZ | E14: 72.4 | F14: 23% | G14: 11% | H14: 5 | I14: 30% | J14: 26% | K14: 9 | L14: 40% | M14: 38% | N14: 11 | O14: 7% | P14: 0% | Q14: 1 | R14: 29% | S14: 28% | T14: 8 | U14: 30% | V14: 26% | W14: 9
A15: 264 | B15: BAS-RHIN | C15: 5006 | D15: STRASBOURG | E15: 65.0 | F15: 25% | G15: 13% | H15: 6 | I15: 36% | J15: 32% | K15: 11 | L15: 31% | M15: 29% | N15: 4 | O15: 22% | P15: 14% | Q15: 2 | R15: 15% | S15: 14% | T15: 4 | U15: 40% | V15: 36% | W15: 13
A16: 264 | B16: MARNE-ARDENNES | C16: 6 | D16: CHALONS EN CHAMPAGNE | E16: 38.8 | F16: 27% | G16: 15% | H16: 7 | I16: 7% | J16: 3% | K16: 2 | L16: 34% | M16: 32% | N16: 8 | O16: 59% | P16: 52% | Q16: 16 | R16: 25% | S16: 23% | T16: 7 | U16: 29% | V16: 25% | W16: 8
A17: 30 | B17: MEURTHE ET MOSELLE MEUSE | C17: 26 | D17: NANCY | E17: 55.3 | F17: 30% | G17: 17% | H17: 8 | I17: 47% | J17: 43% | K17: 13 | L17: 33% | M17: 31% | N17: 6 | O17: 37% | P17: 30% | Q17: 10 | R17: 36% | S17: 34% | T17: 10 | U17: 15% | V17: 10% | W17: 3
A18: 30 | B18: AUBE HAUTE MARNE | C18: 21 | D18: CHAUMONT | E18: 33.7 | F18: 30% | G18: 18% | H18: 9 | I18: 29% | J18: 25% | K18: 8 | L18: 40% | M18: 38% | N18: 12 | O18: 37% | P18: 30% | Q18: 9 | R18: 31% | S18: 29% | T18: 9 | U18: 34% | V18: 30% | W18: 10
A19: 30 | B19: VOSGES | C19: 57 | D19: EPINAL | E19: 53.5 | F19: 31% | G19: 19% | H19: 10 | I19: 16% | J19: 12% | K19: 3 | L19: 48% | M19: 46% | N19: 14 | O19: 26% | P19: 19% | Q19: 5 | R19: 39% | S19: 37% | T19: 14 | U19: 45% | V19: 41% | W19: 15
A20: 110 | B20: MEURTHE ET MOSELLE MEUSE | C20: 31 | D20: VERDUN | E20: 47.9 | F20: 31% | G20: 19% | H20: 11 | I20: 28% | J20: 23% | K20: 5 | L20: 32% | M20: 30% | N20: 5 | O20: 53% | P20: 46% | Q20: 15 | R20: 38% | S20: 37% | T20: 13 | U20: 23% | V20: 19% | W20: 6
A21: 110 | B21: MEURTHE ET MOSELLE MEUSE | C21: 27 | D21: PONT A MOUSSON | E21: 59.3 | F21: 33% | G21: 20% | H21: 12 | I21: 63% | J21: 59% | K21: 16 | L21: 33% | M21: 31% | N21: 7 | O21: 41% | P21: 34% | Q21: 12 | R21: 23% | S21: 22% | T21: 6 | U21: 21% | V21: 17% | W21: 5
A22: 110 | B22: VOSGES | C22: 55 | D22: SAINT DIE | E22: 39.6 | F22: 34% | G22: 22% | H22: 13 | I22: 4% | J22: 0% | K22: 1 | L22: 51% | M22: 49% | N22: 15 | O22: 38% | P22: 31% | Q22: 11 | R22: 59% | S22: 57% | T22: 17 | U22: 38% | V22: 34% | W22: 11
A23: 160 | B23: BAS-RHIN | C23: 5060 | D23: HAGUENAU | E23: 56.1 | F23: 36% | G23: 23% | H23: 14 | I23: 34% | J23: 30% | K23: 10 | L23: 43% | M23: 41% | N23: 13 | O23: 33% | P23: 26% | Q23: 7 | R23: 40% | S23: 39% | T23: 15 | U23: 47% | V23: 43% | W23: 16
A24: 160 | B24: BAS-RHIN | C24: 5101 | D24: SELESTAT | E24: 49.0 | F24: 39% | G24: 27% | H24: 15 | I24: 63% | J24: 59% | K24: 17 | L24: 35% | M24: 33% | N24: 9 | O24: 35% | P24: 28% | Q24: 8 | R24: 38% | S24: 36% | T24: 12 | U24: 42% | V24: 38% | W24: 14
A25: 160 | B25: HAUT-RHIN | C25: 5130 | D25: COLMAR | E25: 50.3 | F25: 48% | G25: 36% | H25: 16 | I25: 59% | J25: 55% | K25: 14 | L25: 59% | M25: 57% | N25: 17 | O25: 45% | P25: 38% | Q25: 14 | R25: 42% | S25: 41% | T25: 16 | U25: 53% | V25: 49% | W25: 18
A26: 80 | B26: AUBE HAUTE MARNE | C26: 14 | D26: TROYES | E26: 54.3 | F26: 50% | G26: 38% | H26: 17 | I26: 68% | J26: 64% | K26: 18 | L26: 58% | M26: 56% | N26: 16 | O26: 69% | P26: 62% | Q26: 18 | R26: 36% | S26: 34% | T26: 11 | U26: 40% | V26: 35% | W26: 12
A27: 80 | B27: HAUT-RHIN | C27: 5169 | D27: MULHOUSE | E27: 45.9 | F27: 59% | G27: 47% | H27: 18 | I27: 63% | J27: 58% | K27: 15 | L27: 75% | M27: 73% | N27: 18 | O27: 69% | P27: 62% | Q27: 17 | R27: 61% | S27: 59% | T27: 18 | U27: 48% | V27: 44% | W27: 17
A28: Total CEGEE Directions Régionales | E28: =SUM(E10:E27) -> 957

Sheet SE_BANCA
B1: Accueil | F1: BAROMETRE BDD - TERRITOIRES
F2: BANCARISATION
F3: =ACCUEIL!F7 -> 2022-05-01
F7: Ventes Nettes produits pondérés | J7: Ventes sur client non détenteur de l’univers | N7: Total Bancarisation
F8: =DATEMAJ!C8 -> au 01/05 | H8: coef | I8: ='RECAP DIRCOM'!AA4 -> 12% | J8: =DATEMAJ!C9 -> au 01/05 | L8: coef | M8: ='RECAP DIRCOM'!AE4 -> 8% | O8: coef | P8: ='RECAP DIRCOM'!AH4 -> 20%
B9: Direction | C9: eds | D9: Territoire | E9: ="ETP perf "&DATEMAJ!$C$28 -> ETP perf 01-mai | F9: VN | G9: VN / ETP | H9: % Ecart au 1er | I9: Rang | J9: VB | K9: VB / ETP | L9: % Ecart au 1er | M9: Rang | N9: Moyenne ecart au 1er | O9: % Ecart au 1er | P9: Rang CEGEE
A10: 50 | B10: AUBE HAUTE MARNE | C10: 21 | D10: CHAUMONT | E10: =VLOOKUP($C10,'RECAP SECT'!$G$6:$CU$253,3,FALSE) -> 33.7 | F10: =VLOOKUP($C10,'RECAP SECT'!$G$6:$CU$253,18,FALSE) -> 303 | G10: =VLOOKUP($C10,'RECAP SECT'!$G$6:$CU$253,19,FALSE) -> 9.01 | H10: =VLOOKUP($C10,'RECAP SECT'!$G$6:$CU$253,20,FALSE) -> 50% | I10: =VLOOKUP($C10,'RECAP SECT'!$G$6:$CU$253,21,FALSE) -> 11 | J10: =VLOOKUP($C10,'RECAP SECT'!$G$6:$CU$253,22,FALSE) -> 880 | K10: =VLOOKUP($C10,'RECAP SECT'!$G$6:$CU$253,23,FALSE) -> 26.15 | L10: =VLOOKUP($C10,'RECAP SECT'!$G$6:$CU$253,24,FALSE) -> 25% | M10: =VLOOKUP($C10,'RECAP SECT'!$G$6:$CU$253,25,FALSE) -> 10 | N10: =VLOOKUP($C10,'RECAP SECT'!$G$6:$CU$253,26,FALSE) -> 40% | O10: =VLOOKUP($C10,'RECAP SECT'!$G$6:$CU$253,27,FALSE) -> 38% | P10: =VLOOKUP($C10,'RECAP SECT'!$G$6:$CU$253,28,FALSE) -> 12
A11: 50 | B11: AUBE HAUTE MARNE | C11: 14 | D11: TROYES | E11: =VLOOKUP($C11,'RECAP SECT'!$G$6:$CU$253,3,FALSE) -> 54.3 | F11: =VLOOKUP($C11,'RECAP SECT'!$G$6:$CU$253,18,FALSE) -> 204 | G11: =VLOOKUP($C11,'RECAP SECT'!$G$6:$CU$253,19,FALSE) -> 3.75 | H11: =VLOOKUP($C11,'RECAP SECT'!$G$6:$CU$253,20,FALSE) -> 79% | I11: =VLOOKUP($C11,'RECAP SECT'!$G$6:$CU$253,21,FALSE) -> 17 | J11: =VLOOKUP($C11,'RECAP SECT'!$G$6:$CU$253,22,FALSE) -> 1,385 | K11: =VLOOKUP($C11,'RECAP SECT'!$G$6:$CU$253,23,FALSE) -> 25.49 | L11: =VLOOKUP($C11,'RECAP SECT'!$G$6:$CU$253,24,FALSE) -> 27% | M11: =VLOOKUP($C11,'RECAP SECT'!$G$6:$CU$253,25,FALSE) -> 11 | N11: =VLOOKUP($C11,'RECAP SECT'!$G$6:$CU$253,26,FALSE) -> 58% | O11: =VLOOKUP($C11,'RECAP SECT'!$G$6:$CU$253,27,FALSE) -> 56% | P11: =VLOOKUP($C11,'RECAP SECT'!$G$6:$CU$253,28,FALSE) -> 16
A12: 262 | B12: BAS-RHIN | C12: 5060 | D12: HAGUENAU | E12: =VLOOKUP($C12,'RECAP SECT'!$G$6:$CU$253,3,FALSE) -> 56.1 | F12: =VLOOKUP($C12,'RECAP SECT'!$G$6:$CU$253,18,FALSE) -> 547 | G12: =VLOOKUP($C12,'RECAP SECT'!$G$6:$CU$253,19,FALSE) -> 9.75 | H12: =VLOOKUP($C12,'RECAP SECT'!$G$6:$CU$253,20,FALSE) -> 46% | I12: =VLOOKUP($C12,'RECAP SECT'!$G$6:$CU$253,21,FALSE) -> 8 | J12: =VLOOKUP($C12,'RECAP SECT'!$G$6:$CU$253,22,FALSE) -> 1,175 | K12: =VLOOKUP($C12,'RECAP SECT'!$G$6:$CU$253,23,FALSE) -> 20.96 | L12: =VLOOKUP($C12,'RECAP SECT'!$G$6:$CU$253,24,FALSE) -> 40% | M12: =VLOOKUP($C12,'RECAP SECT'!$G$6:$CU$253,25,FALSE) -> 16 | N12: =VLOOKUP($C12,'RECAP SECT'!$G$6:$CU$253,26,FALSE) -> 43% | O12: =VLOOKUP($C12,'RECAP SECT'!$G$6:$CU$253,27,FALSE) -> 41% | P12: =VLOOKUP($C12,'RECAP SECT'!$G$6:$CU$253,28,FALSE) -> 13
A13: 262 | B13: BAS-RHIN | C13: 5101 | D13: SELESTAT | E13: =VLOOKUP($C13,'RECAP SECT'!$G$6:$CU$253,3,FALSE) -> 49.0 | F13: =VLOOKUP($C13,'RECAP SECT'!$G$6:$CU$253,18,FALSE) -> 566 | G13: =VLOOKUP($C13,'RECAP SECT'!$G$6:$CU$253,19,FALSE) -> 11.56 | H13: =VLOOKUP($C13,'RECAP SECT'!$G$6:$CU$253,20,FALSE) -> 35% | I13: =VLOOKUP($C13,'RECAP SECT'!$G$6:$CU$253,21,FALSE) -> 4 | J13: =VLOOKUP($C13,'RECAP SECT'!$G$6:$CU$253,22,FALSE) -> 1,123 | K13: =VLOOKUP($C13,'RECAP SECT'!$G$6:$CU$253,23,FALSE) -> 22.93 | L13: =VLOOKUP($C13,'RECAP SECT'!$G$6:$CU$253,24,FALSE) -> 35% | M13: =VLOOKUP($C13,'RECAP SECT'!$G$6:$CU$253,25,FALSE) -> 14 | N13: =VLOOKUP($C13,'RECAP SECT'!$G$6:$CU$253,26,FALSE) -> 35% | O13: =VLOOKUP($C13,'RECAP SECT'!$G$6:$CU$253,27,FALSE) -> 33% | P13: =VLOOKUP($C13,'RECAP SECT'!$G$6:$CU$253,28,FALSE) -> 9
A14: 262 | B14: BAS-RHIN | C14: 5006 | D14: STRASBOURG | E14: =VLOOKUP($C14,'RECAP SECT'!$G$6:$CU$253,3,FALSE) -> 65.0 | F14: =VLOOKUP($C14,'RECAP SECT'!$G$6:$CU$253,18,FALSE) -> 652 | G14: =VLOOKUP($C14,'RECAP SECT'!$G$6:$CU$253,19,FALSE) -> 10.03 | H14: =VLOOKUP($C14,'RECAP SECT'!$G$6:$CU$253,20,FALSE) -> 44% | I14: =VLOOKUP($C14,'RECAP SECT'!$G$6:$CU$253,21,FALSE) -> 7 | J14: =VLOOKUP($C14,'RECAP SECT'!$G$6:$CU$253,22,FALSE) -> 2,016 | K14: =VLOOKUP($C14,'RECAP SECT'!$G$6:$CU$253,23,FALSE) -> 31.02 | L14: =VLOOKUP($C14,'RECAP SECT'!$G$6:$CU$253,24,FALSE) -> 12% | M14: =VLOOKUP($C14,'RECAP SECT'!$G$6:$CU$253,25,FALSE) -> 5 | N14: =VLOOKUP($C14,'RECAP SECT'!$G$6:$CU$253,26,FALSE) -> 31% | O14: =VLOOKUP($C14,'RECAP SECT'!$G$6:$CU$253,27,FALSE) -> 29% | P14: =VLOOKUP($C14,'RECAP SECT'!$G$6:$CU$253,28,FALSE) -> 4
A15: 264 | B15: HAUT-RHIN | C15: 5130 | D15: COLMAR | E15: =VLOOKUP($C15,'RECAP SECT'!$G$6:$CU$253,3,FALSE) -> 50.3 | F15: =VLOOKUP($C15,'RECAP SECT'!$G$6:$CU$253,18,FALSE) -> 273 | G15: =VLOOKUP($C15,'RECAP SECT'!$G$6:$CU$253,19,FALSE) -> 5.43 | H15: =VLOOKUP($C15,'RECAP SECT'!$G$6:$CU$253,20,FALSE) -> 70% | I15: =VLOOKUP($C15,'RECAP SECT'!$G$6:$CU$253,21,FALSE) -> 16 | J15: =VLOOKUP($C15,'RECAP SECT'!$G$6:$CU$253,22,FALSE) -> 1,002 | K15: =VLOOKUP($C15,'RECAP SECT'!$G$6:$CU$253,23,FALSE) -> 19.92 | L15: =VLOOKUP($C15,'RECAP SECT'!$G$6:$CU$253,24,FALSE) -> 43% | M15: =VLOOKUP($C15,'RECAP SECT'!$G$6:$CU$253,25,FALSE) -> 18 | N15: =VLOOKUP($C15,'RECAP SECT'!$G$6:$CU$253,26,FALSE) -> 59% | O15: =VLOOKUP($C15,'RECAP SECT'!$G$6:$CU$253,27,FALSE) -> 57% | P15: =VLOOKUP($C15,'RECAP SECT'!$G$6:$CU$253,28,FALSE) -> 17
A16: 264 | B16: HAUT-RHIN | C16: 5169 | D16: MULHOUSE | E16: =VLOOKUP($C16,'RECAP SECT'!$G$6:$CU$253,3,FALSE) -> 45.9 | F16: =VLOOKUP($C16,'RECAP SECT'!$G$6:$CU$253,18,FALSE) -> -1 | G16: =VLOOKUP($C16,'RECAP SECT'!$G$6:$CU$253,19,FALSE) -> -0.02 | H16: =VLOOKUP($C16,'RECAP SECT'!$G$6:$CU$253,20,FALSE) -> 100% | I16: =VLOOKUP($C16,'RECAP SECT'!$G$6:$CU$253,21,FALSE) -> 18 | J16: =VLOOKUP($C16,'RECAP SECT'!$G$6:$CU$253,22,FALSE) -> 1,022 | K16: =VLOOKUP($C16,'RECAP SECT'!$G$6:$CU$253,23,FALSE) -> 22.29 | L16: =VLOOKUP($C16,'RECAP SECT'!$G$6:$CU$253,24,FALSE) -> 36% | M16: =VLOOKUP($C16,'RECAP SECT'!$G$6:$CU$253,25,FALSE) -> 15 | N16: =VLOOKUP($C16,'RECAP SECT'!$G$6:$CU$253,26,FALSE) -> 75% | O16: =VLOOKUP($C16,'RECAP SECT'!$G$6:$CU$253,27,FALSE) -> 73% | P16: =VLOOKUP($C16,'RECAP SECT'!$G$6:$CU$253,28,FALSE) -> 18
A17: 30 | B17: MARNE-ARDENNES | C17: 6 | D17: CHALONS EN CHAMPAGNE | E17: =VLOOKUP($C17,'RECAP SECT'!$G$6:$CU$253,3,FALSE) -> 38.8 | F17: =VLOOKUP($C17,'RECAP SECT'!$G$6:$CU$253,18,FALSE) -> 429 | G17: =VLOOKUP($C17,'RECAP SECT'!$G$6:$CU$253,19,FALSE) -> 11.06 | H17: =VLOOKUP($C17,'RECAP SECT'!$G$6:$CU$253,20,FALSE) -> 38% | I17: =VLOOKUP($C17,'RECAP SECT'!$G$6:$CU$253,21,FALSE) -> 5 | J17: =VLOOKUP($C17,'RECAP SECT'!$G$6:$CU$253,22,FALSE) -> 971 | K17: =VLOOKUP($C17,'RECAP SECT'!$G$6:$CU$253,23,FALSE) -> 25.02 | L17: =VLOOKUP($C17,'RECAP SECT'!$G$6:$CU$253,24,FALSE) -> 29% | M17: =VLOOKUP($C17,'RECAP SECT'!$G$6:$CU$253,25,FALSE) -> 12 | N17: =VLOOKUP($C17,'RECAP SECT'!$G$6:$CU$253,26,FALSE) -> 34% | O17: =VLOOKUP($C17,'RECAP SECT'!$G$6:$CU$253,27,FALSE) -> 32% | P17: =VLOOKUP($C17,'RECAP SECT'!$G$6:$CU$253,28,FALSE) -> 8
A18: 30 | B18: MARNE-ARDENNES | C18: 2 | D18: CHARLEVILLE MEZIERES | E18: =VLOOKUP($C18,'RECAP SECT'!$G$6:$CU$253,3,FALSE) -> 48.8 | F18: =VLOOKUP($C18,'RECAP SECT'!$G$6:$CU$253,18,FALSE) -> 431 | G18: =VLOOKUP($C18,'RECAP SECT'!$G$6:$CU$253,19,FALSE) -> 8.83 | H18: =VLOOKUP($C18,'RECAP SECT'!$G$6:$CU$253,20,FALSE) -> 51% | I18: =VLOOKUP($C18,'RECAP SECT'!$G$6:$CU$253,21,FALSE) -> 12 | J18: =VLOOKUP($C18,'RECAP SECT'!$G$6:$CU$253,22,FALSE) -> 1,503 | K18: =VLOOKUP($C18,'RECAP SECT'!$G$6:$CU$253,23,FALSE) -> 30.80 | L18: =VLOOKUP($C18,'RECAP SECT'!$G$6:$CU$253,24,FALSE) -> 12% | M18: =VLOOKUP($C18,'RECAP SECT'!$G$6:$CU$253,25,FALSE) -> 6 | N18: =VLOOKUP($C18,'RECAP SECT'!$G$6:$CU$253,26,FALSE) -> 35% | O18: =VLOOKUP($C18,'RECAP SECT'!$G$6:$CU$253,27,FALSE) -> 33% | P18: =VLOOKUP($C18,'RECAP SECT'!$G$6:$CU$253,28,FALSE) -> 10
A19: 30 | B19: MARNE-ARDENNES | C19: 11 | D19: REIMS | E19: =VLOOKUP($C19,'RECAP SECT'!$G$6:$CU$253,3,FALSE) -> 69.2 | F19: =VLOOKUP($C19,'RECAP SECT'!$G$6:$CU$253,18,FALSE) -> 997 | G19: =VLOOKUP($C19,'RECAP SECT'!$G$6:$CU$253,19,FALSE) -> 14.40 | H19: =VLOOKUP($C19,'RECAP SECT'!$G$6:$CU$253,20,FALSE) -> 20% | I19: =VLOOKUP($C19,'RECAP SECT'!$G$6:$CU$253,21,FALSE) -> 2 | J19: =VLOOKUP($C19,'RECAP SECT'!$G$6:$CU$253,22,FALSE) -> 2,429 | K19: =VLOOKUP($C19,'RECAP SECT'!$G$6:$CU$253,23,FALSE) -> 35.09 | L19: =VLOOKUP($C19,'RECAP SECT'!$G$6:$CU$253,24,FALSE) -> 0% | M19: =VLOOKUP($C19,'RECAP SECT'!$G$6:$CU$253,25,FALSE) -> 1 | N19: =VLOOKUP($C19,'RECAP SECT'!$G$6:$CU$253,26,FALSE) -> 12% | O19: =VLOOKUP($C19,'RECAP SECT'!$G$6:$CU$253,27,FALSE) -> 10% | P19: =VLOOKUP($C19,'RECAP SECT'!$G$6:$CU$253,28,FALSE) -> 2
A20: 110 | B20: MEURTHE ET MOSELLE MEUSE | C20: 26 | D20: NANCY | E20: =VLOOKUP($C20,'RECAP SECT'!$G$6:$CU$253,3,FALSE) -> 55.3 | F20: =VLOOKUP($C20,'RECAP SECT'!$G$6:$CU$253,18,FALSE) -> 517 | G20: =VLOOKUP($C20,'RECAP SECT'!$G$6:$CU$253,19,FALSE) -> 9.35 | H20: =VLOOKUP($C20,'RECAP SECT'!$G$6:$CU$253,20,FALSE) -> 48% | I20: =VLOOKUP($C20,'RECAP SECT'!$G$6:$CU$253,21,FALSE) -> 9 | J20: =VLOOKUP($C20,'RECAP SECT'!$G$6:$CU$253,22,FALSE) -> 1,751 | K20: =VLOOKUP($C20,'RECAP SECT'!$G$6:$CU$253,23,FALSE) -> 31.68 | L20: =VLOOKUP($C20,'RECAP SECT'!$G$6:$CU$253,24,FALSE) -> 10% | M20: =VLOOKUP($C20,'RECAP SECT'!$G$6:$CU$253,25,FALSE) -> 4 | N20: =VLOOKUP($C20,'RECAP SECT'!$G$6:$CU$253,26,FALSE) -> 33% | O20: =VLOOKUP($C20,'RECAP SECT'!$G$6:$CU$253,27,FALSE) -> 31% | P20: =VLOOKUP($C20,'RECAP SECT'!$G$6:$CU$253,28,FALSE) -> 6
A21: 110 | B21: MEURTHE ET MOSELLE MEUSE | C21: 27 | D21: PONT A MOUSSON | E21: =VLOOKUP($C21,'RECAP SECT'!$G$6:$CU$253,3,FALSE) -> 59.3 | F21: =VLOOKUP($C21,'RECAP SECT'!$G$6:$CU$253,18,FALSE) -> 550 | G21: =VLOOKUP($C21,'RECAP SECT'!$G$6:$CU$253,19,FALSE) -> 9.27 | H21: =VLOOKUP($C21,'RECAP SECT'!$G$6:$CU$253,20,FALSE) -> 48% | I21: =VLOOKUP($C21,'RECAP SECT'!$G$6:$CU$253,21,FALSE) -> 10 | J21: =VLOOKUP($C21,'RECAP SECT'!$G$6:$CU$253,22,FALSE) -> 1,884 | K21: =VLOOKUP($C21,'RECAP SECT'!$G$6:$CU$253,23,FALSE) -> 31.79 | L21: =VLOOKUP($C21,'RECAP SECT'!$G$6:$CU$253,24,FALSE) -> 9% | M21: =VLOOKUP($C21,'RECAP SECT'!$G$6:$CU$253,25,FALSE) -> 3 | N21: =VLOOKUP($C21,'RECAP SECT'!$G$6:$CU$253,26,FALSE) -> 33% | O21: =VLOOKUP($C21,'RECAP SECT'!$G$6:$CU$253,27,FALSE) -> 31% | P21: =VLOOKUP($C21,'RECAP SECT'!$G$6:$CU$253,28,FALSE) -> 7
A22: 110 | B22: MEURTHE ET MOSELLE MEUSE | C22: 31 | D22: VERDUN | E22: =VLOOKUP($C22,'RECAP SECT'!$G$6:$CU$253,3,FALSE) -> 47.9 | F22: =VLOOKUP($C22,'RECAP SECT'!$G$6:$CU$253,18,FALSE) -> 510 | G22: =VLOOKUP($C22,'RECAP SECT'!$G$6:$CU$253,19,FALSE) -> 10.65 | H22: =VLOOKUP($C22,'RECAP SECT'!$G$6:$CU$253,20,FALSE) -> 41% | I22: =VLOOKUP($C22,'RECAP SECT'!$G$6:$CU$253,21,FALSE) -> 6 | J22: =VLOOKUP($C22,'RECAP SECT'!$G$6:$CU$253,22,FALSE) -> 1,351 | K22: =VLOOKUP($C22,'RECAP SECT'!$G$6:$CU$253,23,FALSE) -> 28.20 | L22: =VLOOKUP($C22,'RECAP SECT'!$G$6:$CU$253,24,FALSE) -> 20% | M22: =VLOOKUP($C22,'RECAP SECT'!$G$6:$CU$253,25,FALSE) -> 8 | N22: =VLOOKUP($C22,'RECAP SECT'!$G$6:$CU$253,26,FALSE) -> 32% | O22: =VLOOKUP($C22,'RECAP SECT'!$G$6:$CU$253,27,FALSE) -> 30% | P22: =VLOOKUP($C22,'RECAP SECT'!$G$6:$CU$253,28,FALSE) -> 5
A23: 160 | B23: MOSELLE | C23: 45 | D23: METZ | E23: =VLOOKUP($C23,'RECAP SECT'!$G$6:$CU$253,3,FALSE) -> 72.4 | F23: =VLOOKUP($C23,'RECAP SECT'!$G$6:$CU$253,18,FALSE) -> 611 | G23: =VLOOKUP($C23,'RECAP SECT'!$G$6:$CU$253,19,FALSE) -> 8.44 | H23: =VLOOKUP($C23,'RECAP SECT'!$G$6:$CU$253,20,FALSE) -> 53% | I23: =VLOOKUP($C23,'RECAP SECT'!$G$6:$CU$253,21,FALSE) -> 13 | J23: =VLOOKUP($C23,'RECAP SECT'!$G$6:$CU$253,22,FALSE) -> 2,023 | K23: =VLOOKUP($C23,'RECAP SECT'!$G$6:$CU$253,23,FALSE) -> 27.96 | L23: =VLOOKUP($C23,'RECAP SECT'!$G$6:$CU$253,24,FALSE) -> 20% | M23: =VLOOKUP($C23,'RECAP SECT'!$G$6:$CU$253,25,FALSE) -> 9 | N23: =VLOOKUP($C23,'RECAP SECT'!$G$6:$CU$253,26,FALSE) -> 40% | O23: =VLOOKUP($C23,'RECAP SECT'!$G$6:$CU$253,27,FALSE) -> 38% | P23: =VLOOKUP($C23,'RECAP SECT'!$G$6:$CU$253,28,FALSE) -> 11
A24: 160 | B24: MOSELLE | C24: 42 | D24: MOSELLE EST | E24: =VLOOKUP($C24,'RECAP SECT'!$G$6:$CU$253,3,FALSE) -> 60.4 | F24: =VLOOKUP($C24,'RECAP SECT'!$G$6:$CU$253,18,FALSE) -> 856 | G24: =VLOOKUP($C24,'RECAP SECT'!$G$6:$CU$253,19,FALSE) -> 14.16 | H24: =VLOOKUP($C24,'RECAP SECT'!$G$6:$CU$253,20,FALSE) -> 21% | I24: =VLOOKUP($C24,'RECAP SECT'!$G$6:$CU$253,21,FALSE) -> 3 | J24: =VLOOKUP($C24,'RECAP SECT'!$G$6:$CU$253,22,FALSE) -> 1,851 | K24: =VLOOKUP($C24,'RECAP SECT'!$G$6:$CU$253,23,FALSE) -> 30.64 | L24: =VLOOKUP($C24,'RECAP SECT'!$G$6:$CU$253,24,FALSE) -> 13% | M24: =VLOOKUP($C24,'RECAP SECT'!$G$6:$CU$253,25,FALSE) -> 7 | N24: =VLOOKUP($C24,'RECAP SECT'!$G$6:$CU$253,26,FALSE) -> 18% | O24: =VLOOKUP($C24,'RECAP SECT'!$G$6:$CU$253,27,FALSE) -> 16% | P24: =VLOOKUP($C24,'RECAP SECT'!$G$6:$CU$253,28,FALSE) -> 3
A25: 160 | B25: MOSELLE | C25: 44 | D25: MOSELLE NORD | E25: =VLOOKUP($C25,'RECAP SECT'!$G$6:$CU$253,3,FALSE) -> 57.5 | F25: =VLOOKUP($C25,'RECAP SECT'!$G$6:$CU$253,18,FALSE) -> 1,030 | G25: =VLOOKUP($C25,'RECAP SECT'!$G$6:$CU$253,19,FALSE) -> 17.92 | H25: =VLOOKUP($C25,'RECAP SECT'!$G$6:$CU$253,20,FALSE) -> 0% | I25: =VLOOKUP($C25,'RECAP SECT'!$G$6:$CU$253,21,FALSE) -> 1 | J25: =VLOOKUP($C25,'RECAP SECT'!$G$6:$CU$253,22,FALSE) -> 1,918 | K25: =VLOOKUP($C25,'RECAP SECT'!$G$6:$CU$253,23,FALSE) -> 33.35 | L25: =VLOOKUP($C25,'RECAP SECT'!$G$6:$CU$253,24,FALSE) -> 5% | M25: =VLOOKUP($C25,'RECAP SECT'!$G$6:$CU$253,25,FALSE) -> 2 | N25: =VLOOKUP($C25,'RECAP SECT'!$G$6:$CU$253,26,FALSE) -> 2% | O25: =VLOOKUP($C25,'RECAP SECT'!$G$6:$CU$253,27,FALSE) -> 0% | P25: =VLOOKUP($C25,'RECAP SECT'!$G$6:$CU$253,28,FALSE) -> 1
A26: 80 | B26: VOSGES | C26: 57 | D26: EPINAL | E26: =VLOOKUP($C26,'RECAP SECT'!$G$6:$CU$253,3,FALSE) -> 53.5 | F26: =VLOOKUP($C26,'RECAP SECT'!$G$6:$CU$253,18,FALSE) -> 403 | G26: =VLOOKUP($C26,'RECAP SECT'!$G$6:$CU$253,19,FALSE) -> 7.53 | H26: =VLOOKUP($C26,'RECAP SECT'!$G$6:$CU$253,20,FALSE) -> 58% | I26: =VLOOKUP($C26,'RECAP SECT'!$G$6:$CU$253,21,FALSE) -> 14 | J26: =VLOOKUP($C26,'RECAP SECT'!$G$6:$CU$253,22,FALSE) -> 1,273 | K26: =VLOOKUP($C26,'RECAP SECT'!$G$6:$CU$253,23,FALSE) -> 23.81 | L26: =VLOOKUP($C26,'RECAP SECT'!$G$6:$CU$253,24,FALSE) -> 32% | M26: =VLOOKUP($C26,'RECAP SECT'!$G$6:$CU$253,25,FALSE) -> 13 | N26: =VLOOKUP($C26,'RECAP SECT'!$G$6:$CU$253,26,FALSE) -> 48% | O26: =VLOOKUP($C26,'RECAP SECT'!$G$6:$CU$253,27,FALSE) -> 46% | P26: =VLOOKUP($C26,'RECAP SECT'!$G$6:$CU$253,28,FALSE) -> 14
A27: 80 | B27: VOSGES | C27: 55 | D27: SAINT DIE | E27: =VLOOKUP($C27,'RECAP SECT'!$G$6:$CU$253,3,FALSE) -> 39.6 | F27: =VLOOKUP($C27,'RECAP SECT'!$G$6:$CU$253,18,FALSE) -> 298 | G27: =VLOOKUP($C27,'RECAP SECT'!$G$6:$CU$253,19,FALSE) -> 7.51 | H27: =VLOOKUP($C27,'RECAP SECT'!$G$6:$CU$253,20,FALSE) -> 58% | I27: =VLOOKUP($C27,'RECAP SECT'!$G$6:$CU$253,21,FALSE) -> 15 | J27: =VLOOKUP($C27,'RECAP SECT'!$G$6:$CU$253,22,FALSE) -> 825 | K27: =VLOOKUP($C27,'RECAP SECT'!$G$6:$CU$253,23,FALSE) -> 20.82 | L27: =VLOOKUP($C27,'RECAP SECT'!$G$6:$CU$253,24,FALSE) -> 41% | M27: =VLOOKUP($C27,'RECAP SECT'!$G$6:$CU$253,25,FALSE) -> 17 | N27: =VLOOKUP($C27,'RECAP SECT'!$G$6:$CU$253,26,FALSE) -> 51% | O27: =VLOOKUP($C27,'RECAP SECT'!$G$6:$CU$253,27,FALSE) -> 49% | P27: =VLOOKUP($C27,'RECAP SECT'!$G$6:$CU$253,28,FALSE) -> 15
A28: Total CEGEE Directions Régionales | E28: =SUM(E10:E27) -> 957

Sheet SE_EPARGNE
B1: Accueil | F1: BAROMETRE BDD - TERRITOIRES
F2: EPARGNE
F3: =ACCUEIL!F7 -> 2022-05-01
F7: Excédent Epargne hors DAV pondéré | J7: Ventes sur client non détenteur de l’univers | N7: Total Epargne
F8: =DATEMAJ!C14 -> au 01/05 | H8: coef | I8: ='RECAP DIRCOM'!AP4 -> 12% | J8: =DATEMAJ!C15 -> au 01/05 | L8: coef | M8: ='RECAP DIRCOM'!AT4 -> 8% | O8: coef | P8: ='RECAP DIRCOM'!AW4 -> 20%
A9: eds | B9: Direction | C9: eds | D9: Territoire | E9: ="ETP perf "&DATEMAJ!$C$28 -> ETP perf 01-mai | F9: Excédent | G9: Excédent / ETP | H9: % Ecart au 1er | I9: Rang | J9: VB | K9: VB / ETP | L9: % Ecart au 1er | M9: Rang | N9: Moyenne ecart au 1er | O9: % Ecart au 1er | P9: Rang CEGEE
A10: 50 | B10: AUBE HAUTE MARNE | C10: 21 | D10: CHAUMONT | E10: =VLOOKUP($C10,'RECAP SECT'!$G$6:$CU$253,3,FALSE) -> 33.7 | F10: =VLOOKUP($C10,'RECAP SECT'!$G$6:$CU$253,33,FALSE) -> 6,731 | G10: =VLOOKUP($C10,'RECAP SECT'!$G$6:$CU$253,34,FALSE) -> 200.02 | H10: =VLOOKUP($C10,'RECAP SECT'!$G$6:$CU$253,35,FALSE) -> 40% | I10: =VLOOKUP($C10,'RECAP SECT'!$G$6:$CU$253,36,FALSE) -> 9 | J10: =VLOOKUP($C10,'RECAP SECT'!$G$6:$CU$253,37,FALSE) -> 808 | K10: =VLOOKUP($C10,'RECAP SECT'!$G$6:$CU$253,38,FALSE) -> 24.01 | L10: =VLOOKUP($C10,'RECAP SECT'!$G$6:$CU$253,39,FALSE) -> 33% | M10: =VLOOKUP($C10,'RECAP SECT'!$G$6:$CU$253,40,FALSE) -> 14 | N10: =VLOOKUP($C10,'RECAP SECT'!$G$6:$CU$253,41,FALSE) -> 37% | O10: =VLOOKUP($C10,'RECAP SECT'!$G$6:$CU$253,42,FALSE) -> 30% | P10: =VLOOKUP($C10,'RECAP SECT'!$G$6:$CU$253,43,FALSE) -> 9
A11: 50 | B11: AUBE HAUTE MARNE | C11: 14 | D11: TROYES | E11: =VLOOKUP($C11,'RECAP SECT'!$G$6:$CU$253,3,FALSE) -> 54.3 | F11: =VLOOKUP($C11,'RECAP SECT'!$G$6:$CU$253,33,FALSE) -> 987 | G11: =VLOOKUP($C11,'RECAP SECT'!$G$6:$CU$253,34,FALSE) -> 18.16 | H11: =VLOOKUP($C11,'RECAP SECT'!$G$6:$CU$253,35,FALSE) -> 95% | I11: =VLOOKUP($C11,'RECAP SECT'!$G$6:$CU$253,36,FALSE) -> 18 | J11: =VLOOKUP($C11,'RECAP SECT'!$G$6:$CU$253,37,FALSE) -> 1,358 | K11: =VLOOKUP($C11,'RECAP SECT'!$G$6:$CU$253,38,FALSE) -> 25.00 | L11: =VLOOKUP($C11,'RECAP SECT'!$G$6:$CU$253,39,FALSE) -> 31% | M11: =VLOOKUP($C11,'RECAP SECT'!$G$6:$CU$253,40,FALSE) -> 11 | N11: =VLOOKUP($C11,'RECAP SECT'!$G$6:$CU$253,41,FALSE) -> 69% | O11: =VLOOKUP($C11,'RECAP SECT'!$G$6:$CU$253,42,FALSE) -> 62% | P11: =VLOOKUP($C11,'RECAP SECT'!$G$6:$CU$253,43,FALSE) -> 18
A12: 262 | B12: BAS-RHIN | C12: 5060 | D12: HAGUENAU | E12: =VLOOKUP($C12,'RECAP SECT'!$G$6:$CU$253,3,FALSE) -> 56.1 | F12: =VLOOKUP($C12,'RECAP SECT'!$G$6:$CU$253,33,FALSE) -> 13,408 | G12: =VLOOKUP($C12,'RECAP SECT'!$G$6:$CU$253,34,FALSE) -> 239.14 | H12: =VLOOKUP($C12,'RECAP SECT'!$G$6:$CU$253,35,FALSE) -> 28% | I12: =VLOOKUP($C12,'RECAP SECT'!$G$6:$CU$253,36,FALSE) -> 3 | J12: =VLOOKUP($C12,'RECAP SECT'!$G$6:$CU$253,37,FALSE) -> 1,224 | K12: =VLOOKUP($C12,'RECAP SECT'!$G$6:$CU$253,38,FALSE) -> 21.83 | L12: =VLOOKUP($C12,'RECAP SECT'!$G$6:$CU$253,39,FALSE) -> 39% | M12: =VLOOKUP($C12,'RECAP SECT'!$G$6:$CU$253,40,FALSE) -> 15 | N12: =VLOOKUP($C12,'RECAP SECT'!$G$6:$CU$253,41,FALSE) -> 33% | O12: =VLOOKUP($C12,'RECAP SECT'!$G$6:$CU$253,42,FALSE) -> 26% | P12: =VLOOKUP($C12,'RECAP SECT'!$G$6:$CU$253,43,FALSE) -> 7
A13: 262 | B13: BAS-RHIN | C13: 5101 | D13: SELESTAT | E13: =VLOOKUP($C13,'RECAP SECT'!$G$6:$CU$253,3,FALSE) -> 49.0 | F13: =VLOOKUP($C13,'RECAP SECT'!$G$6:$CU$253,33,FALSE) -> 9,929 | G13: =VLOOKUP($C13,'RECAP SECT'!$G$6:$CU$253,34,FALSE) -> 202.76 | H13: =VLOOKUP($C13,'RECAP SECT'!$G$6:$CU$253,35,FALSE) -> 39% | I13: =VLOOKUP($C13,'RECAP SECT'!$G$6:$CU$253,36,FALSE) -> 8 | J13: =VLOOKUP($C13,'RECAP SECT'!$G$6:$CU$253,37,FALSE) -> 1,247 | K13: =VLOOKUP($C13,'RECAP SECT'!$G$6:$CU$253,38,FALSE) -> 25.46 | L13: =VLOOKUP($C13,'RECAP SECT'!$G$6:$CU$253,39,FALSE) -> 29% | M13: =VLOOKUP($C13,'RECAP SECT'!$G$6:$CU$253,40,FALSE) -> 9 | N13: =VLOOKUP($C13,'RECAP SECT'!$G$6:$CU$253,41,FALSE) -> 35% | O13: =VLOOKUP($C13,'RECAP SECT'!$G$6:$CU$253,42,FALSE) -> 28% | P13: =VLOOKUP($C13,'RECAP SECT'!$G$6:$CU$253,43,FALSE) -> 8
A14: 262 | B14: BAS-RHIN | C14: 5006 | D14: STRASBOURG | E14: =VLOOKUP($C14,'RECAP SECT'!$G$6:$CU$253,3,FALSE) -> 65.0 | F14: =VLOOKUP($C14,'RECAP SECT'!$G$6:$CU$253,33,FALSE) -> 15,224 | G14: =VLOOKUP($C14,'RECAP SECT'!$G$6:$CU$253,34,FALSE) -> 234.21 | H14: =VLOOKUP($C14,'RECAP SECT'!$G$6:$CU$253,35,FALSE) -> 30% | I14: =VLOOKUP($C14,'RECAP SECT'!$G$6:$CU$253,36,FALSE) -> 4 | J14: =VLOOKUP($C14,'RECAP SECT'!$G$6:$CU$253,37,FALSE) -> 2,119 | K14: =VLOOKUP($C14,'RECAP SECT'!$G$6:$CU$253,38,FALSE) -> 32.60 | L14: =VLOOKUP($C14,'RECAP SECT'!$G$6:$CU$253,39,FALSE) -> 10% | M14: =VLOOKUP($C14,'RECAP SECT'!$G$6:$CU$253,40,FALSE) -> 5 | N14: =VLOOKUP($C14,'RECAP SECT'!$G$6:$CU$253,41,FALSE) -> 22% | O14: =VLOOKUP($C14,'RECAP SECT'!$G$6:$CU$253,42,FALSE) -> 14% | P14: =VLOOKUP($C14,'RECAP SECT'!$G$6:$CU$253,43,FALSE) -> 2
A15: 264 | B15: HAUT-RHIN | C15: 5130 | D15: COLMAR | E15: =VLOOKUP($C15,'RECAP SECT'!$G$6:$CU$253,3,FALSE) -> 50.3 | F15: =VLOOKUP($C15,'RECAP SECT'!$G$6:$CU$253,33,FALSE) -> 9,832 | G15: =VLOOKUP($C15,'RECAP SECT'!$G$6:$CU$253,34,FALSE) -> 195.44 | H15: =VLOOKUP($C15,'RECAP SECT'!$G$6:$CU$253,35,FALSE) -> 41% | I15: =VLOOKUP($C15,'RECAP SECT'!$G$6:$CU$253,36,FALSE) -> 10 | J15: =VLOOKUP($C15,'RECAP SECT'!$G$6:$CU$253,37,FALSE) -> 890 | K15: =VLOOKUP($C15,'RECAP SECT'!$G$6:$CU$253,38,FALSE) -> 17.69 | L15: =VLOOKUP($C15,'RECAP SECT'!$G$6:$CU$253,39,FALSE) -> 51% | M15: =VLOOKUP($C15,'RECAP SECT'!$G$6:$CU$253,40,FALSE) -> 18 | N15: =VLOOKUP($C15,'RECAP SECT'!$G$6:$CU$253,41,FALSE) -> 45% | O15: =VLOOKUP($C15,'RECAP SECT'!$G$6:$CU$253,42,FALSE) -> 38% | P15: =VLOOKUP($C15,'RECAP SECT'!$G$6:$CU$253,43,FALSE) -> 14
A16: 264 | B16: HAUT-RHIN | C16: 5169 | D16: MULHOUSE | E16: =VLOOKUP($C16,'RECAP SECT'!$G$6:$CU$253,3,FALSE) -> 45.9 | F16: =VLOOKUP($C16,'RECAP SECT'!$G$6:$CU$253,33,FALSE) -> 2,423 | G16: =VLOOKUP($C16,'RECAP SECT'!$G$6:$CU$253,34,FALSE) -> 52.82 | H16: =VLOOKUP($C16,'RECAP SECT'!$G$6:$CU$253,35,FALSE) -> 84% | I16: =VLOOKUP($C16,'RECAP SECT'!$G$6:$CU$253,36,FALSE) -> 17 | J16: =VLOOKUP($C16,'RECAP SECT'!$G$6:$CU$253,37,FALSE) -> 893 | K16: =VLOOKUP($C16,'RECAP SECT'!$G$6:$CU$253,38,FALSE) -> 19.47 | L16: =VLOOKUP($C16,'RECAP SECT'!$G$6:$CU$253,39,FALSE) -> 46% | M16: =VLOOKUP($C16,'RECAP SECT'!$G$6:$CU$253,40,FALSE) -> 17 | N16: =VLOOKUP($C16,'RECAP SECT'!$G$6:$CU$253,41,FALSE) -> 69% | O16: =VLOOKUP($C16,'RECAP SECT'!$G$6:$CU$253,42,FALSE) -> 62% | P16: =VLOOKUP($C16,'RECAP SECT'!$G$6:$CU$253,43,FALSE) -> 17
A17: 30 | B17: MARNE-ARDENNES | C17: 6 | D17: CHALONS EN CHAMPAGNE | E17: =VLOOKUP($C17,'RECAP SECT'!$G$6:$CU$253,3,FALSE) -> 38.8 | F17: =VLOOKUP($C17,'RECAP SECT'!$G$6:$CU$253,33,FALSE) -> 2,052 | G17: =VLOOKUP($C17,'RECAP SECT'!$G$6:$CU$253,34,FALSE) -> 52.89 | H17: =VLOOKUP($C17,'RECAP SECT'!$G$6:$CU$253,35,FALSE) -> 84% | I17: =VLOOKUP($C17,'RECAP SECT'!$G$6:$CU$253,36,FALSE) -> 16 | J17: =VLOOKUP($C17,'RECAP SECT'!$G$6:$CU$253,37,FALSE) -> 1,108 | K17: =VLOOKUP($C17,'RECAP SECT'!$G$6:$CU$253,38,FALSE) -> 28.55 | L17: =VLOOKUP($C17,'RECAP SECT'!$G$6:$CU$253,39,FALSE) -> 21% | M17: =VLOOKUP($C17,'RECAP SECT'!$G$6:$CU$253,40,FALSE) -> 8 | N17: =VLOOKUP($C17,'RECAP SECT'!$G$6:$CU$253,41,FALSE) -> 59% | O17: =VLOOKUP($C17,'RECAP SECT'!$G$6:$CU$253,42,FALSE) -> 52% | P17: =VLOOKUP($C17,'RECAP SECT'!$G$6:$CU$253,43,FALSE) -> 16
A18: 30 | B18: MARNE-ARDENNES | C18: 2 | D18: CHARLEVILLE MEZIERES | E18: =VLOOKUP($C18,'RECAP SECT'!$G$6:$CU$253,3,FALSE) -> 48.8 | F18: =VLOOKUP($C18,'RECAP SECT'!$G$6:$CU$253,33,FALSE) -> 10,621 | G18: =VLOOKUP($C18,'RECAP SECT'!$G$6:$CU$253,34,FALSE) -> 217.65 | H18: =VLOOKUP($C18,'RECAP SECT'!$G$6:$CU$253,35,FALSE) -> 35% | I18: =VLOOKUP($C18,'RECAP SECT'!$G$6:$CU$253,36,FALSE) -> 6 | J18: =VLOOKUP($C18,'RECAP SECT'!$G$6:$CU$253,37,FALSE) -> 1,594 | K18: =VLOOKUP($C18,'RECAP SECT'!$G$6:$CU$253,38,FALSE) -> 32.66 | L18: =VLOOKUP($C18,'RECAP SECT'!$G$6:$CU$253,39,FALSE) -> 9% | M18: =VLOOKUP($C18,'RECAP SECT'!$G$6:$CU$253,40,FALSE) -> 4 | N18: =VLOOKUP($C18,'RECAP SECT'!$G$6:$CU$253,41,FALSE) -> 25% | O18: =VLOOKUP($C18,'RECAP SECT'!$G$6:$CU$253,42,FALSE) -> 17% | P18: =VLOOKUP($C18,'RECAP SECT'!$G$6:$CU$253,43,FALSE) -> 4
A19: 30 | B19: MARNE-ARDENNES | C19: 11 | D19: REIMS | E19: =VLOOKUP($C19,'RECAP SECT'!$G$6:$CU$253,3,FALSE) -> 69.2 | F19: =VLOOKUP($C19,'RECAP SECT'!$G$6:$CU$253,33,FALSE) -> 7,931 | G19: =VLOOKUP($C19,'RECAP SECT'!$G$6:$CU$253,34,FALSE) -> 114.57 | H19: =VLOOKUP($C19,'RECAP SECT'!$G$6:$CU$253,35,FALSE) -> 66% | I19: =VLOOKUP($C19,'RECAP SECT'!$G$6:$CU$253,36,FALSE) -> 14 | J19: =VLOOKUP($C19,'RECAP SECT'!$G$6:$CU$253,37,FALSE) -> 2,279 | K19: =VLOOKUP($C19,'RECAP SECT'!$G$6:$CU$253,38,FALSE) -> 32.92 | L19: =VLOOKUP($C19,'RECAP SECT'!$G$6:$CU$253,39,FALSE) -> 9% | M19: =VLOOKUP($C19,'RECAP SECT'!$G$6:$CU$253,40,FALSE) -> 3 | N19: =VLOOKUP($C19,'RECAP SECT'!$G$6:$CU$253,41,FALSE) -> 43% | O19: =VLOOKUP($C19,'RECAP SECT'!$G$6:$CU$253,42,FALSE) -> 36% | P19: =VLOOKUP($C19,'RECAP SECT'!$G$6:$CU$253,43,FALSE) -> 13
A20: 110 | B20: MEURTHE ET MOSELLE MEUSE | C20: 26 | D20: NANCY | E20: =VLOOKUP($C20,'RECAP SECT'!$G$6:$CU$253,3,FALSE) -> 55.3 | F20: =VLOOKUP($C20,'RECAP SECT'!$G$6:$CU$253,33,FALSE) -> 9,252 | G20: =VLOOKUP($C20,'RECAP SECT'!$G$6:$CU$253,34,FALSE) -> 167.37 | H20: =VLOOKUP($C20,'RECAP SECT'!$G$6:$CU$253,35,FALSE) -> 50% | I20: =VLOOKUP($C20,'RECAP SECT'!$G$6:$CU$253,36,FALSE) -> 13 | J20: =VLOOKUP($C20,'RECAP SECT'!$G$6:$CU$253,37,FALSE) -> 1,620 | K20: =VLOOKUP($C20,'RECAP SECT'!$G$6:$CU$253,38,FALSE) -> 29.31 | L20: =VLOOKUP($C20,'RECAP SECT'!$G$6:$CU$253,39,FALSE) -> 19% | M20: =VLOOKUP($C20,'RECAP SECT'!$G$6:$CU$253,40,FALSE) -> 7 | N20: =VLOOKUP($C20,'RECAP SECT'!$G$6:$CU$253,41,FALSE) -> 37% | O20: =VLOOKUP($C20,'RECAP SECT'!$G$6:$CU$253,42,FALSE) -> 30% | P20: =VLOOKUP($C20,'RECAP SECT'!$G$6:$CU$253,43,FALSE) -> 10
A21: 110 | B21: MEURTHE ET MOSELLE MEUSE | C21: 27 | D21: PONT A MOUSSON | E21: =VLOOKUP($C21,'RECAP SECT'!$G$6:$CU$253,3,FALSE) -> 59.3 | F21: =VLOOKUP($C21,'RECAP SECT'!$G$6:$CU$253,33,FALSE) -> 10,209 | G21: =VLOOKUP($C21,'RECAP SECT'!$G$6:$CU$253,34,FALSE) -> 172.28 | H21: =VLOOKUP($C21,'RECAP SECT'!$G$6:$CU$253,35,FALSE) -> 48% | I21: =VLOOKUP($C21,'RECAP SECT'!$G$6:$CU$253,36,FALSE) -> 11 | J21: =VLOOKUP($C21,'RECAP SECT'!$G$6:$CU$253,37,FALSE) -> 1,477 | K21: =VLOOKUP($C21,'RECAP SECT'!$G$6:$CU$253,38,FALSE) -> 24.92 | L21: =VLOOKUP($C21,'RECAP SECT'!$G$6:$CU$253,39,FALSE) -> 31% | M21: =VLOOKUP($C21,'RECAP SECT'!$G$6:$CU$253,40,FALSE) -> 12 | N21: =VLOOKUP($C21,'RECAP SECT'!$G$6:$CU$253,41,FALSE) -> 41% | O21: =VLOOKUP($C21,'RECAP SECT'!$G$6:$CU$253,42,FALSE) -> 34% | P21: =VLOOKUP($C21,'RECAP SECT'!$G$6:$CU$253,43,FALSE) -> 12
A22: 110 | B22: MEURTHE ET MOSELLE MEUSE | C22: 31 | D22: VERDUN | E22: =VLOOKUP($C22,'RECAP SECT'!$G$6:$CU$253,3,FALSE) -> 47.9 | F22: =VLOOKUP($C22,'RECAP SECT'!$G$6:$CU$253,33,FALSE) -> 5,204 | G22: =VLOOKUP($C22,'RECAP SECT'!$G$6:$CU$253,34,FALSE) -> 108.63 | H22: =VLOOKUP($C22,'RECAP SECT'!$G$6:$CU$253,35,FALSE) -> 67% | I22: =VLOOKUP($C22,'RECAP SECT'!$G$6:$CU$253,36,FALSE) -> 15 | J22: =VLOOKUP($C22,'RECAP SECT'!$G$6:$CU$253,37,FALSE) -> 1,182 | K22: =VLOOKUP($C22,'RECAP SECT'!$G$6:$CU$253,38,FALSE) -> 24.67 | L22: =VLOOKUP($C22,'RECAP SECT'!$G$6:$CU$253,39,FALSE) -> 32% | M22: =VLOOKUP($C22,'RECAP SECT'!$G$6:$CU$253,40,FALSE) -> 13 | N22: =VLOOKUP($C22,'RECAP SECT'!$G$6:$CU$253,41,FALSE) -> 53% | O22: =VLOOKUP($C22,'RECAP SECT'!$G$6:$CU$253,42,FALSE) -> 46% | P22: =VLOOKUP($C22,'RECAP SECT'!$G$6:$CU$253,43,FALSE) -> 15
A23: 160 | B23: MOSELLE | C23: 45 | D23: METZ | E23: =VLOOKUP($C23,'RECAP SECT'!$G$6:$CU$253,3,FALSE) -> 72.4 | F23: =VLOOKUP($C23,'RECAP SECT'!$G$6:$CU$253,33,FALSE) -> 24,080 | G23: =VLOOKUP($C23,'RECAP SECT'!$G$6:$CU$253,34,FALSE) -> 332.83 | H23: =VLOOKUP($C23,'RECAP SECT'!$G$6:$CU$253,35,FALSE) -> 0% | I23: =VLOOKUP($C23,'RECAP SECT'!$G$6:$CU$253,36,FALSE) -> 1 | J23: =VLOOKUP($C23,'RECAP SECT'!$G$6:$CU$253,37,FALSE) -> 2,144 | K23: =VLOOKUP($C23,'RECAP SECT'!$G$6:$CU$253,38,FALSE) -> 29.63 | L23: =VLOOKUP($C23,'RECAP SECT'!$G$6:$CU$253,39,FALSE) -> 18% | M23: =VLOOKUP($C23,'RECAP SECT'!$G$6:$CU$253,40,FALSE) -> 6 | N23: =VLOOKUP($C23,'RECAP SECT'!$G$6:$CU$253,41,FALSE) -> 7% | O23: =VLOOKUP($C23,'RECAP SECT'!$G$6:$CU$253,42,FALSE) -> 0% | P23: =VLOOKUP($C23,'RECAP SECT'!$G$6:$CU$253,43,FALSE) -> 1
A24: 160 | B24: MOSELLE | C24: 42 | D24: MOSELLE EST | E24: =VLOOKUP($C24,'RECAP SECT'!$G$6:$CU$253,3,FALSE) -> 60.4 | F24: =VLOOKUP($C24,'RECAP SECT'!$G$6:$CU$253,33,FALSE) -> 13,169 | G24: =VLOOKUP($C24,'RECAP SECT'!$G$6:$CU$253,34,FALSE) -> 217.95 | H24: =VLOOKUP($C24,'RECAP SECT'!$G$6:$CU$253,35,FALSE) -> 35% | I24: =VLOOKUP($C24,'RECAP SECT'!$G$6:$CU$253,36,FALSE) -> 5 | J24: =VLOOKUP($C24,'RECAP SECT'!$G$6:$CU$253,37,FALSE) -> 1,993 | K24: =VLOOKUP($C24,'RECAP SECT'!$G$6:$CU$253,38,FALSE) -> 32.99 | L24: =VLOOKUP($C24,'RECAP SECT'!$G$6:$CU$253,39,FALSE) -> 9% | M24: =VLOOKUP($C24,'RECAP SECT'!$G$6:$CU$253,40,FALSE) -> 2 | N24: =VLOOKUP($C24,'RECAP SECT'!$G$6:$CU$253,41,FALSE) -> 24% | O24: =VLOOKUP($C24,'RECAP SECT'!$G$6:$CU$253,42,FALSE) -> 17% | P24: =VLOOKUP($C24,'RECAP SECT'!$G$6:$CU$253,43,FALSE) -> 3
A25: 160 | B25: MOSELLE | C25: 44 | D25: MOSELLE NORD | E25: =VLOOKUP($C25,'RECAP SECT'!$G$6:$CU$253,3,FALSE) -> 57.5 | F25: =VLOOKUP($C25,'RECAP SECT'!$G$6:$CU$253,33,FALSE) -> 9,812 | G25: =VLOOKUP($C25,'RECAP SECT'!$G$6:$CU$253,34,FALSE) -> 170.61 | H25: =VLOOKUP($C25,'RECAP SECT'!$G$6:$CU$253,35,FALSE) -> 49% | I25: =VLOOKUP($C25,'RECAP SECT'!$G$6:$CU$253,36,FALSE) -> 12 | J25: =VLOOKUP($C25,'RECAP SECT'!$G$6:$CU$253,37,FALSE) -> 2,075 | K25: =VLOOKUP($C25,'RECAP SECT'!$G$6:$CU$253,38,FALSE) -> 36.08 | L25: =VLOOKUP($C25,'RECAP SECT'!$G$6:$CU$253,39,FALSE) -> 0% | M25: =VLOOKUP($C25,'RECAP SECT'!$G$6:$CU$253,40,FALSE) -> 1 | N25: =VLOOKUP($C25,'RECAP SECT'!$G$6:$CU$253,41,FALSE) -> 29% | O25: =VLOOKUP($C25,'RECAP SECT'!$G$6:$CU$253,42,FALSE) -> 22% | P25: =VLOOKUP($C25,'RECAP SECT'!$G$6:$CU$253,43,FALSE) -> 6
A26: 80 | B26: VOSGES | C26: 57 | D26: EPINAL | E26: =VLOOKUP($C26,'RECAP SECT'!$G$6:$CU$253,3,FALSE) -> 53.5 | F26: =VLOOKUP($C26,'RECAP SECT'!$G$6:$CU$253,33,FALSE) -> 13,634 | G26: =VLOOKUP($C26,'RECAP SECT'!$G$6:$CU$253,34,FALSE) -> 254.98 | H26: =VLOOKUP($C26,'RECAP SECT'!$G$6:$CU$253,35,FALSE) -> 23% | I26: =VLOOKUP($C26,'RECAP SECT'!$G$6:$CU$253,36,FALSE) -> 2 | J26: =VLOOKUP($C26,'RECAP SECT'!$G$6:$CU$253,37,FALSE) -> 1,356 | K26: =VLOOKUP($C26,'RECAP SECT'!$G$6:$CU$253,38,FALSE) -> 25.36 | L26: =VLOOKUP($C26,'RECAP SECT'!$G$6:$CU$253,39,FALSE) -> 30% | M26: =VLOOKUP($C26,'RECAP SECT'!$G$6:$CU$253,40,FALSE) -> 10 | N26: =VLOOKUP($C26,'RECAP SECT'!$G$6:$CU$253,41,FALSE) -> 26% | O26: =VLOOKUP($C26,'RECAP SECT'!$G$6:$CU$253,42,FALSE) -> 19% | P26: =VLOOKUP($C26,'RECAP SECT'!$G$6:$CU$253,43,FALSE) -> 5
A27: 80 | B27: VOSGES | C27: 55 | D27: SAINT DIE | E27: =VLOOKUP($C27,'RECAP SECT'!$G$6:$CU$253,3,FALSE) -> 39.6 | F27: =VLOOKUP($C27,'RECAP SECT'!$G$6:$CU$253,33,FALSE) -> 8,500 | G27: =VLOOKUP($C27,'RECAP SECT'!$G$6:$CU$253,34,FALSE) -> 214.48 | H27: =VLOOKUP($C27,'RECAP SECT'!$G$6:$CU$253,35,FALSE) -> 36% | I27: =VLOOKUP($C27,'RECAP SECT'!$G$6:$CU$253,36,FALSE) -> 7 | J27: =VLOOKUP($C27,'RECAP SECT'!$G$6:$CU$253,37,FALSE) -> 831 | K27: =VLOOKUP($C27,'RECAP SECT'!$G$6:$CU$253,38,FALSE) -> 20.97 | L27: =VLOOKUP($C27,'RECAP SECT'!$G$6:$CU$253,39,FALSE) -> 42% | M27: =VLOOKUP($C27,'RECAP SECT'!$G$6:$CU$253,40,FALSE) -> 16 | N27: =VLOOKUP($C27,'RECAP SECT'!$G$6:$CU$253,41,FALSE) -> 38% | O27: =VLOOKUP($C27,'RECAP SECT'!$G$6:$CU$253,42,FALSE) -> 31% | P27: =VLOOKUP($C27,'RECAP SECT'!$G$6:$CU$253,43,FALSE) -> 11
A28: Total CEGEE Directions Régionales | E28: =SUM(E10:E27) -> 957

Sheet SE_CREDIT
B1: Accueil | F1: BAROMETRE BDD - TERRITOIRES
F2: CREDITS
F3: =ACCUEIL!F7 -> 2022-05-01
F7: Engagements et ventes accessoires pondérés Immo | J7: Engagements et ventes accessoires pondérés Conso | N7: Ventes sur client non détenteur de l’univers | R7: Total Crédits
F8: =DATEMAJ!C18 -> au 01/05 | H8: coef | I8: ='RECAP DIRCOM'!BE4 -> 6% | J8: =DATEMAJ!C19 -> au 01/05 | L8: coef | M8: ='RECAP DIRCOM'!BI4 -> 6% | N8: =DATEMAJ!C20 -> au 01/05 | P8: coef | Q8: ='RECAP DIRCOM'!BM4 -> 8% | S8: coef | T8: ='RECAP DIRCOM'!BP4 -> 20%
B9: Direction | C9: eds | D9: Territoire | E9: ="ETP perf "&DATEMAJ!$C$28 -> ETP perf 01-mai | F9: PNB | G9: PNB / ETP | H9: % Ecart au 1er | I9: Rang | J9: PNB | K9: PNB / ETP | L9: % Ecart au 1er | M9: Rang | N9: VB | O9: VB / ETP | P9: % Ecart au 1er | Q9: Rang | R9: Moyenne ecart au 1er | S9: % Ecart au 1er | T9: Rang CEGEE
A10: 50 | B10: AUBE HAUTE MARNE | C10: 21 | D10: CHAUMONT | E10: =VLOOKUP($C10,'RECAP SECT'!$G$6:$CU$253,3,FALSE) -> 33.7 | F10: =VLOOKUP($C10,'RECAP SECT'!$G$6:$CU$253,48,FALSE) -> 683 | G10: =VLOOKUP($C10,'RECAP SECT'!$G$6:$CU$253,49,FALSE) -> 20.31 | H10: =VLOOKUP($C10,'RECAP SECT'!$G$6:$CU$253,50,FALSE) -> 72% | I10: =VLOOKUP($C10,'RECAP SECT'!$G$6:$CU$253,51,FALSE) -> 17 | J10: =VLOOKUP($C10,'RECAP SECT'!$G$6:$CU$253,52,FALSE) -> 1,187 | K10: =VLOOKUP($C10,'RECAP SECT'!$G$6:$CU$253,53,FALSE) -> 35.28 | L10: =VLOOKUP($C10,'RECAP SECT'!$G$6:$CU$253,54,FALSE) -> 0% | M10: =VLOOKUP($C10,'RECAP SECT'!$G$6:$CU$253,55,FALSE) -> 1 | N10: =VLOOKUP($C10,'RECAP SECT'!$G$6:$CU$253,56,FALSE) -> 391 | O10: =VLOOKUP($C10,'RECAP SECT'!$G$6:$CU$253,57,FALSE) -> 11.62 | P10: =VLOOKUP($C10,'RECAP SECT'!$G$6:$CU$253,58,FALSE) -> 30% | Q10: =VLOOKUP($C10,'RECAP SECT'!$G$6:$CU$253,59,FALSE) -> 7 | R10: =VLOOKUP($C10,'RECAP SECT'!$G$6:$CU$253,60,FALSE) -> 34% | S10: =VLOOKUP($C10,'RECAP SECT'!$G$6:$CU$253,61,FALSE) -> 30% | T10: =VLOOKUP($C10,'RECAP SECT'!$G$6:$CU$253,62,FALSE) -> 10
A11: 50 | B11: AUBE HAUTE MARNE | C11: 14 | D11: TROYES | E11: =VLOOKUP($C11,'RECAP SECT'!$G$6:$CU$253,3,FALSE) -> 54.3 | F11: =VLOOKUP($C11,'RECAP SECT'!$G$6:$CU$253,48,FALSE) -> 1,732 | G11: =VLOOKUP($C11,'RECAP SECT'!$G$6:$CU$253,49,FALSE) -> 31.88 | H11: =VLOOKUP($C11,'RECAP SECT'!$G$6:$CU$253,50,FALSE) -> 57% | I11: =VLOOKUP($C11,'RECAP SECT'!$G$6:$CU$253,51,FALSE) -> 12 | J11: =VLOOKUP($C11,'RECAP SECT'!$G$6:$CU$253,52,FALSE) -> 1,620 | K11: =VLOOKUP($C11,'RECAP SECT'!$G$6:$CU$253,53,FALSE) -> 29.82 | L11: =VLOOKUP($C11,'RECAP SECT'!$G$6:$CU$253,54,FALSE) -> 15% | M11: =VLOOKUP($C11,'RECAP SECT'!$G$6:$CU$253,55,FALSE) -> 9 | N11: =VLOOKUP($C11,'RECAP SECT'!$G$6:$CU$253,56,FALSE) -> 498 | O11: =VLOOKUP($C11,'RECAP SECT'!$G$6:$CU$253,57,FALSE) -> 9.17 | P11: =VLOOKUP($C11,'RECAP SECT'!$G$6:$CU$253,58,FALSE) -> 45% | Q11: =VLOOKUP($C11,'RECAP SECT'!$G$6:$CU$253,59,FALSE) -> 14 | R11: =VLOOKUP($C11,'RECAP SECT'!$G$6:$CU$253,60,FALSE) -> 40% | S11: =VLOOKUP($C11,'RECAP SECT'!$G$6:$CU$253,61,FALSE) -> 35% | T11: =VLOOKUP($C11,'RECAP SECT'!$G$6:$CU$253,62,FALSE) -> 12
A12: 262 | B12: BAS-RHIN | C12: 5060 | D12: HAGUENAU | E12: =VLOOKUP($C12,'RECAP SECT'!$G$6:$CU$253,3,FALSE) -> 56.1 | F12: =VLOOKUP($C12,'RECAP SECT'!$G$6:$CU$253,48,FALSE) -> 1,451 | G12: =VLOOKUP($C12,'RECAP SECT'!$G$6:$CU$253,49,FALSE) -> 25.89 | H12: =VLOOKUP($C12,'RECAP SECT'!$G$6:$CU$253,50,FALSE) -> 65% | I12: =VLOOKUP($C12,'RECAP SECT'!$G$6:$CU$253,51,FALSE) -> 15 | J12: =VLOOKUP($C12,'RECAP SECT'!$G$6:$CU$253,52,FALSE) -> 1,580 | K12: =VLOOKUP($C12,'RECAP SECT'!$G$6:$CU$253,53,FALSE) -> 28.18 | L12: =VLOOKUP($C12,'RECAP SECT'!$G$6:$CU$253,54,FALSE) -> 20% | M12: =VLOOKUP($C12,'RECAP SECT'!$G$6:$CU$253,55,FALSE) -> 12 | N12: =VLOOKUP($C12,'RECAP SECT'!$G$6:$CU$253,56,FALSE) -> 420 | O12: =VLOOKUP($C12,'RECAP SECT'!$G$6:$CU$253,57,FALSE) -> 7.49 | P12: =VLOOKUP($C12,'RECAP SECT'!$G$6:$CU$253,58,FALSE) -> 55% | Q12: =VLOOKUP($C12,'RECAP SECT'!$G$6:$CU$253,59,FALSE) -> 18 | R12: =VLOOKUP($C12,'RECAP SECT'!$G$6:$CU$253,60,FALSE) -> 47% | S12: =VLOOKUP($C12,'RECAP SECT'!$G$6:$CU$253,61,FALSE) -> 43% | T12: =VLOOKUP($C12,'RECAP SECT'!$G$6:$CU$253,62,FALSE) -> 16
A13: 262 | B13: BAS-RHIN | C13: 5101 | D13: SELESTAT | E13: =VLOOKUP($C13,'RECAP SECT'!$G$6:$CU$253,3,FALSE) -> 49.0 | F13: =VLOOKUP($C13,'RECAP SECT'!$G$6:$CU$253,48,FALSE) -> 1,521 | G13: =VLOOKUP($C13,'RECAP SECT'!$G$6:$CU$253,49,FALSE) -> 31.06 | H13: =VLOOKUP($C13,'RECAP SECT'!$G$6:$CU$253,50,FALSE) -> 58% | I13: =VLOOKUP($C13,'RECAP SECT'!$G$6:$CU$253,51,FALSE) -> 13 | J13: =VLOOKUP($C13,'RECAP SECT'!$G$6:$CU$253,52,FALSE) -> 1,372 | K13: =VLOOKUP($C13,'RECAP SECT'!$G$6:$CU$253,53,FALSE) -> 28.02 | L13: =VLOOKUP($C13,'RECAP SECT'!$G$6:$CU$253,54,FALSE) -> 21% | M13: =VLOOKUP($C13,'RECAP SECT'!$G$6:$CU$253,55,FALSE) -> 13 | N13: =VLOOKUP($C13,'RECAP SECT'!$G$6:$CU$253,56,FALSE) -> 429 | O13: =VLOOKUP($C13,'RECAP SECT'!$G$6:$CU$253,57,FALSE) -> 8.76 | P13: =VLOOKUP($C13,'RECAP SECT'!$G$6:$CU$253,58,FALSE) -> 47% | Q13: =VLOOKUP($C13,'RECAP SECT'!$G$6:$CU$253,59,FALSE) -> 15 | R13: =VLOOKUP($C13,'RECAP SECT'!$G$6:$CU$253,60,FALSE) -> 42% | S13: =VLOOKUP($C13,'RECAP SECT'!$G$6:$CU$253,61,FALSE) -> 38% | T13: =VLOOKUP($C13,'RECAP SECT'!$G$6:$CU$253,62,FALSE) -> 14
A14: 262 | B14: BAS-RHIN | C14: 5006 | D14: STRASBOURG | E14: =VLOOKUP($C14,'RECAP SECT'!$G$6:$CU$253,3,FALSE) -> 65.0 | F14: =VLOOKUP($C14,'RECAP SECT'!$G$6:$CU$253,48,FALSE) -> 2,096 | G14: =VLOOKUP($C14,'RECAP SECT'!$G$6:$CU$253,49,FALSE) -> 32.25 | H14: =VLOOKUP($C14,'RECAP SECT'!$G$6:$CU$253,50,FALSE) -> 56% | I14: =VLOOKUP($C14,'RECAP SECT'!$G$6:$CU$253,51,FALSE) -> 11 | J14: =VLOOKUP($C14,'RECAP SECT'!$G$6:$CU$253,52,FALSE) -> 1,678 | K14: =VLOOKUP($C14,'RECAP SECT'!$G$6:$CU$253,53,FALSE) -> 25.82 | L14: =VLOOKUP($C14,'RECAP SECT'!$G$6:$CU$253,54,FALSE) -> 27% | M14: =VLOOKUP($C14,'RECAP SECT'!$G$6:$CU$253,55,FALSE) -> 15 | N14: =VLOOKUP($C14,'RECAP SECT'!$G$6:$CU$253,56,FALSE) -> 670 | O14: =VLOOKUP($C14,'RECAP SECT'!$G$6:$CU$253,57,FALSE) -> 10.31 | P14: =VLOOKUP($C14,'RECAP SECT'!$G$6:$CU$253,58,FALSE) -> 38% | Q14: =VLOOKUP($C14,'RECAP SECT'!$G$6:$CU$253,59,FALSE) -> 12 | R14: =VLOOKUP($C14,'RECAP SECT'!$G$6:$CU$253,60,FALSE) -> 40% | S14: =VLOOKUP($C14,'RECAP SECT'!$G$6:$CU$253,61,FALSE) -> 36% | T14: =VLOOKUP($C14,'RECAP SECT'!$G$6:$CU$253,62,FALSE) -> 13
A15: 264 | B15: HAUT-RHIN | C15: 5130 | D15: COLMAR | E15: =VLOOKUP($C15,'RECAP SECT'!$G$6:$CU$253,3,FALSE) -> 50.3 | F15: =VLOOKUP($C15,'RECAP SECT'!$G$6:$CU$253,48,FALSE) -> 1,014 | G15: =VLOOKUP($C15,'RECAP SECT'!$G$6:$CU$253,49,FALSE) -> 20.15 | H15: =VLOOKUP($C15,'RECAP SECT'!$G$6:$CU$253,50,FALSE) -> 73% | I15: =VLOOKUP($C15,'RECAP SECT'!$G$6:$CU$253,51,FALSE) -> 18 | J15: =VLOOKUP($C15,'RECAP SECT'!$G$6:$CU$253,52,FALSE) -> 1,237 | K15: =VLOOKUP($C15,'RECAP SECT'!$G$6:$CU$253,53,FALSE) -> 24.60 | L15: =VLOOKUP($C15,'RECAP SECT'!$G$6:$CU$253,54,FALSE) -> 30% | M15: =VLOOKUP($C15,'RECAP SECT'!$G$6:$CU$253,55,FALSE) -> 16 | N15: =VLOOKUP($C15,'RECAP SECT'!$G$6:$CU$253,56,FALSE) -> 379 | O15: =VLOOKUP($C15,'RECAP SECT'!$G$6:$CU$253,57,FALSE) -> 7.53 | P15: =VLOOKUP($C15,'RECAP SECT'!$G$6:$CU$253,58,FALSE) -> 54% | Q15: =VLOOKUP($C15,'RECAP SECT'!$G$6:$CU$253,59,FALSE) -> 17 | R15: =VLOOKUP($C15,'RECAP SECT'!$G$6:$CU$253,60,FALSE) -> 53% | S15: =VLOOKUP($C15,'RECAP SECT'!$G$6:$CU$253,61,FALSE) -> 49% | T15: =VLOOKUP($C15,'RECAP SECT'!$G$6:$CU$253,62,FALSE) -> 18
A16: 264 | B16: HAUT-RHIN | C16: 5169 | D16: MULHOUSE | E16: =VLOOKUP($C16,'RECAP SECT'!$G$6:$CU$253,3,FALSE) -> 45.9 | F16: =VLOOKUP($C16,'RECAP SECT'!$G$6:$CU$253,48,FALSE) -> 1,508 | G16: =VLOOKUP($C16,'RECAP SECT'!$G$6:$CU$253,49,FALSE) -> 32.89 | H16: =VLOOKUP($C16,'RECAP SECT'!$G$6:$CU$253,50,FALSE) -> 55% | I16: =VLOOKUP($C16,'RECAP SECT'!$G$6:$CU$253,51,FALSE) -> 10 | J16: =VLOOKUP($C16,'RECAP SECT'!$G$6:$CU$253,52,FALSE) -> 1,070 | K16: =VLOOKUP($C16,'RECAP SECT'!$G$6:$CU$253,53,FALSE) -> 23.33 | L16: =VLOOKUP($C16,'RECAP SECT'!$G$6:$CU$253,54,FALSE) -> 34% | M16: =VLOOKUP($C16,'RECAP SECT'!$G$6:$CU$253,55,FALSE) -> 18 | N16: =VLOOKUP($C16,'RECAP SECT'!$G$6:$CU$253,56,FALSE) -> 352 | O16: =VLOOKUP($C16,'RECAP SECT'!$G$6:$CU$253,57,FALSE) -> 7.68 | P16: =VLOOKUP($C16,'RECAP SECT'!$G$6:$CU$253,58,FALSE) -> 54% | Q16: =VLOOKUP($C16,'RECAP SECT'!$G$6:$CU$253,59,FALSE) -> 16 | R16: =VLOOKUP($C16,'RECAP SECT'!$G$6:$CU$253,60,FALSE) -> 48% | S16: =VLOOKUP($C16,'RECAP SECT'!$G$6:$CU$253,61,FALSE) -> 44% | T16: =VLOOKUP($C16,'RECAP SECT'!$G$6:$CU$253,62,FALSE) -> 17
A17: 30 | B17: MARNE-ARDENNES | C17: 6 | D17: CHALONS EN CHAMPAGNE | E17: =VLOOKUP($C17,'RECAP SECT'!$G$6:$CU$253,3,FALSE) -> 38.8 | F17: =VLOOKUP($C17,'RECAP SECT'!$G$6:$CU$253,48,FALSE) -> 1,744 | G17: =VLOOKUP($C17,'RECAP SECT'!$G$6:$CU$253,49,FALSE) -> 44.93 | H17: =VLOOKUP($C17,'RECAP SECT'!$G$6:$CU$253,50,FALSE) -> 39% | I17: =VLOOKUP($C17,'RECAP SECT'!$G$6:$CU$253,51,FALSE) -> 7 | J17: =VLOOKUP($C17,'RECAP SECT'!$G$6:$CU$253,52,FALSE) -> 1,163 | K17: =VLOOKUP($C17,'RECAP SECT'!$G$6:$CU$253,53,FALSE) -> 29.97 | L17: =VLOOKUP($C17,'RECAP SECT'!$G$6:$CU$253,54,FALSE) -> 15% | M17: =VLOOKUP($C17,'RECAP SECT'!$G$6:$CU$253,55,FALSE) -> 8 | N17: =VLOOKUP($C17,'RECAP SECT'!$G$6:$CU$253,56,FALSE) -> 438 | O17: =VLOOKUP($C17,'RECAP SECT'!$G$6:$CU$253,57,FALSE) -> 11.29 | P17: =VLOOKUP($C17,'RECAP SECT'!$G$6:$CU$253,58,FALSE) -> 32% | Q17: =VLOOKUP($C17,'RECAP SECT'!$G$6:$CU$253,59,FALSE) -> 9 | R17: =VLOOKUP($C17,'RECAP SECT'!$G$6:$CU$253,60,FALSE) -> 29% | S17: =VLOOKUP($C17,'RECAP SECT'!$G$6:$CU$253,61,FALSE) -> 25% | T17: =VLOOKUP($C17,'RECAP SECT'!$G$6:$CU$253,62,FALSE) -> 8
A18: 30 | B18: MARNE-ARDENNES | C18: 2 | D18: CHARLEVILLE MEZIERES | E18: =VLOOKUP($C18,'RECAP SECT'!$G$6:$CU$253,3,FALSE) -> 48.8 | F18: =VLOOKUP($C18,'RECAP SECT'!$G$6:$CU$253,48,FALSE) -> 3,027 | G18: =VLOOKUP($C18,'RECAP SECT'!$G$6:$CU$253,49,FALSE) -> 62.03 | H18: =VLOOKUP($C18,'RECAP SECT'!$G$6:$CU$253,50,FALSE) -> 16% | I18: =VLOOKUP($C18,'RECAP SECT'!$G$6:$CU$253,51,FALSE) -> 3 | J18: =VLOOKUP($C18,'RECAP SECT'!$G$6:$CU$253,52,FALSE) -> 1,316 | K18: =VLOOKUP($C18,'RECAP SECT'!$G$6:$CU$253,53,FALSE) -> 26.96 | L18: =VLOOKUP($C18,'RECAP SECT'!$G$6:$CU$253,54,FALSE) -> 24% | M18: =VLOOKUP($C18,'RECAP SECT'!$G$6:$CU$253,55,FALSE) -> 14 | N18: =VLOOKUP($C18,'RECAP SECT'!$G$6:$CU$253,56,FALSE) -> 712 | O18: =VLOOKUP($C18,'RECAP SECT'!$G$6:$CU$253,57,FALSE) -> 14.59 | P18: =VLOOKUP($C18,'RECAP SECT'!$G$6:$CU$253,58,FALSE) -> 12% | Q18: =VLOOKUP($C18,'RECAP SECT'!$G$6:$CU$253,59,FALSE) -> 3 | R18: =VLOOKUP($C18,'RECAP SECT'!$G$6:$CU$253,60,FALSE) -> 17% | S18: =VLOOKUP($C18,'RECAP SECT'!$G$6:$CU$253,61,FALSE) -> 12% | T18: =VLOOKUP($C18,'RECAP SECT'!$G$6:$CU$253,62,FALSE) -> 4
A19: 30 | B19: MARNE-ARDENNES | C19: 11 | D19: REIMS | E19: =VLOOKUP($C19,'RECAP SECT'!$G$6:$CU$253,3,FALSE) -> 69.2 | F19: =VLOOKUP($C19,'RECAP SECT'!$G$6:$CU$253,48,FALSE) -> 5,108 | G19: =VLOOKUP($C19,'RECAP SECT'!$G$6:$CU$253,49,FALSE) -> 73.79 | H19: =VLOOKUP($C19,'RECAP SECT'!$G$6:$CU$253,50,FALSE) -> 0% | I19: =VLOOKUP($C19,'RECAP SECT'!$G$6:$CU$253,51,FALSE) -> 1 | J19: =VLOOKUP($C19,'RECAP SECT'!$G$6:$CU$253,52,FALSE) -> 2,110 | K19: =VLOOKUP($C19,'RECAP SECT'!$G$6:$CU$253,53,FALSE) -> 30.48 | L19: =VLOOKUP($C19,'RECAP SECT'!$G$6:$CU$253,54,FALSE) -> 14% | M19: =VLOOKUP($C19,'RECAP SECT'!$G$6:$CU$253,55,FALSE) -> 7 | N19: =VLOOKUP($C19,'RECAP SECT'!$G$6:$CU$253,56,FALSE) -> 1,145 | O19: =VLOOKUP($C19,'RECAP SECT'!$G$6:$CU$253,57,FALSE) -> 16.54 | P19: =VLOOKUP($C19,'RECAP SECT'!$G$6:$CU$253,58,FALSE) -> 0% | Q19: =VLOOKUP($C19,'RECAP SECT'!$G$6:$CU$253,59,FALSE) -> 1 | R19: =VLOOKUP($C19,'RECAP SECT'!$G$6:$CU$253,60,FALSE) -> 4% | S19: =VLOOKUP($C19,'RECAP SECT'!$G$6:$CU$253,61,FALSE) -> 0% | T19: =VLOOKUP($C19,'RECAP SECT'!$G$6:$CU$253,62,FALSE) -> 1
A20: 110 | B20: MEURTHE ET MOSELLE MEUSE | C20: 26 | D20: NANCY | E20: =VLOOKUP($C20,'RECAP SECT'!$G$6:$CU$253,3,FALSE) -> 55.3 | F20: =VLOOKUP($C20,'RECAP SECT'!$G$6:$CU$253,48,FALSE) -> 3,204 | G20: =VLOOKUP($C20,'RECAP SECT'!$G$6:$CU$253,49,FALSE) -> 57.96 | H20: =VLOOKUP($C20,'RECAP SECT'!$G$6:$CU$253,50,FALSE) -> 21% | I20: =VLOOKUP($C20,'RECAP SECT'!$G$6:$CU$253,51,FALSE) -> 4 | J20: =VLOOKUP($C20,'RECAP SECT'!$G$6:$CU$253,52,FALSE) -> 1,747 | K20: =VLOOKUP($C20,'RECAP SECT'!$G$6:$CU$253,53,FALSE) -> 31.60 | L20: =VLOOKUP($C20,'RECAP SECT'!$G$6:$CU$253,54,FALSE) -> 10% | M20: =VLOOKUP($C20,'RECAP SECT'!$G$6:$CU$253,55,FALSE) -> 5 | N20: =VLOOKUP($C20,'RECAP SECT'!$G$6:$CU$253,56,FALSE) -> 800 | O20: =VLOOKUP($C20,'RECAP SECT'!$G$6:$CU$253,57,FALSE) -> 14.47 | P20: =VLOOKUP($C20,'RECAP SECT'!$G$6:$CU$253,58,FALSE) -> 13% | Q20: =VLOOKUP($C20,'RECAP SECT'!$G$6:$CU$253,59,FALSE) -> 4 | R20: =VLOOKUP($C20,'RECAP SECT'!$G$6:$CU$253,60,FALSE) -> 15% | S20: =VLOOKUP($C20,'RECAP SECT'!$G$6:$CU$253,61,FALSE) -> 10% | T20: =VLOOKUP($C20,'RECAP SECT'!$G$6:$CU$253,62,FALSE) -> 3
A21: 110 | B21: MEURTHE ET MOSELLE MEUSE | C21: 27 | D21: PONT A MOUSSON | E21: =VLOOKUP($C21,'RECAP SECT'!$G$6:$CU$253,3,FALSE) -> 59.3 | F21: =VLOOKUP($C21,'RECAP SECT'!$G$6:$CU$253,48,FALSE) -> 3,217 | G21: =VLOOKUP($C21,'RECAP SECT'!$G$6:$CU$253,49,FALSE) -> 54.28 | H21: =VLOOKUP($C21,'RECAP SECT'!$G$6:$CU$253,50,FALSE) -> 26% | I21: =VLOOKUP($C21,'RECAP SECT'!$G$6:$CU$253,51,FALSE) -> 5 | J21: =VLOOKUP($C21,'RECAP SECT'!$G$6:$CU$253,52,FALSE) -> 1,760 | K21: =VLOOKUP($C21,'RECAP SECT'!$G$6:$CU$253,53,FALSE) -> 29.69 | L21: =VLOOKUP($C21,'RECAP SECT'!$G$6:$CU$253,54,FALSE) -> 16% | M21: =VLOOKUP($C21,'RECAP SECT'!$G$6:$CU$253,55,FALSE) -> 10 | N21: =VLOOKUP($C21,'RECAP SECT'!$G$6:$CU$253,56,FALSE) -> 769 | O21: =VLOOKUP($C21,'RECAP SECT'!$G$6:$CU$253,57,FALSE) -> 12.98 | P21: =VLOOKUP($C21,'RECAP SECT'!$G$6:$CU$253,58,FALSE) -> 22% | Q21: =VLOOKUP($C21,'RECAP SECT'!$G$6:$CU$253,59,FALSE) -> 5 | R21: =VLOOKUP($C21,'RECAP SECT'!$G$6:$CU$253,60,FALSE) -> 21% | S21: =VLOOKUP($C21,'RECAP SECT'!$G$6:$CU$253,61,FALSE) -> 17% | T21: =VLOOKUP($C21,'RECAP SECT'!$G$6:$CU$253,62,FALSE) -> 5
A22: 110 | B22: MEURTHE ET MOSELLE MEUSE | C22: 31 | D22: VERDUN | E22: =VLOOKUP($C22,'RECAP SECT'!$G$6:$CU$253,3,FALSE) -> 47.9 | F22: =VLOOKUP($C22,'RECAP SECT'!$G$6:$CU$253,48,FALSE) -> 2,299 | G22: =VLOOKUP($C22,'RECAP SECT'!$G$6:$CU$253,49,FALSE) -> 47.99 | H22: =VLOOKUP($C22,'RECAP SECT'!$G$6:$CU$253,50,FALSE) -> 35% | I22: =VLOOKUP($C22,'RECAP SECT'!$G$6:$CU$253,51,FALSE) -> 6 | J22: =VLOOKUP($C22,'RECAP SECT'!$G$6:$CU$253,52,FALSE) -> 1,683 | K22: =VLOOKUP($C22,'RECAP SECT'!$G$6:$CU$253,53,FALSE) -> 35.13 | L22: =VLOOKUP($C22,'RECAP SECT'!$G$6:$CU$253,54,FALSE) -> 0% | M22: =VLOOKUP($C22,'RECAP SECT'!$G$6:$CU$253,55,FALSE) -> 2 | N22: =VLOOKUP($C22,'RECAP SECT'!$G$6:$CU$253,56,FALSE) -> 540 | O22: =VLOOKUP($C22,'RECAP SECT'!$G$6:$CU$253,57,FALSE) -> 11.27 | P22: =VLOOKUP($C22,'RECAP SECT'!$G$6:$CU$253,58,FALSE) -> 32% | Q22: =VLOOKUP($C22,'RECAP SECT'!$G$6:$CU$253,59,FALSE) -> 10 | R22: =VLOOKUP($C22,'RECAP SECT'!$G$6:$CU$253,60,FALSE) -> 23% | S22: =VLOOKUP($C22,'RECAP SECT'!$G$6:$CU$253,61,FALSE) -> 19% | T22: =VLOOKUP($C22,'RECAP SECT'!$G$6:$CU$253,62,FALSE) -> 6
A23: 160 | B23: MOSELLE | C23: 45 | D23: METZ | E23: =VLOOKUP($C23,'RECAP SECT'!$G$6:$CU$253,3,FALSE) -> 72.4 | F23: =VLOOKUP($C23,'RECAP SECT'!$G$6:$CU$253,48,FALSE) -> 2,977 | G23: =VLOOKUP($C23,'RECAP SECT'!$G$6:$CU$253,49,FALSE) -> 41.15 | H23: =VLOOKUP($C23,'RECAP SECT'!$G$6:$CU$253,50,FALSE) -> 44% | I23: =VLOOKUP($C23,'RECAP SECT'!$G$6:$CU$253,51,FALSE) -> 9 | J23: =VLOOKUP($C23,'RECAP SECT'!$G$6:$CU$253,52,FALSE) -> 2,226 | K23: =VLOOKUP($C23,'RECAP SECT'!$G$6:$CU$253,53,FALSE) -> 30.77 | L23: =VLOOKUP($C23,'RECAP SECT'!$G$6:$CU$253,54,FALSE) -> 13% | M23: =VLOOKUP($C23,'RECAP SECT'!$G$6:$CU$253,55,FALSE) -> 6 | N23: =VLOOKUP($C23,'RECAP SECT'!$G$6:$CU$253,56,FALSE) -> 823 | O23: =VLOOKUP($C23,'RECAP SECT'!$G$6:$CU$253,57,FALSE) -> 11.38 | P23: =VLOOKUP($C23,'RECAP SECT'!$G$6:$CU$253,58,FALSE) -> 31% | Q23: =VLOOKUP($C23,'RECAP SECT'!$G$6:$CU$253,59,FALSE) -> 8 | R23: =VLOOKUP($C23,'RECAP SECT'!$G$6:$CU$253,60,FALSE) -> 30% | S23: =VLOOKUP($C23,'RECAP SECT'!$G$6:$CU$253,61,FALSE) -> 26% | T23: =VLOOKUP($C23,'RECAP SECT'!$G$6:$CU$253,62,FALSE) -> 9
A24: 160 | B24: MOSELLE | C24: 42 | D24: MOSELLE EST | E24: =VLOOKUP($C24,'RECAP SECT'!$G$6:$CU$253,3,FALSE) -> 60.4 | F24: =VLOOKUP($C24,'RECAP SECT'!$G$6:$CU$253,48,FALSE) -> 2,634 | G24: =VLOOKUP($C24,'RECAP SECT'!$G$6:$CU$253,49,FALSE) -> 43.60 | H24: =VLOOKUP($C24,'RECAP SECT'!$G$6:$CU$253,50,FALSE) -> 41% | I24: =VLOOKUP($C24,'RECAP SECT'!$G$6:$CU$253,51,FALSE) -> 8 | J24: =VLOOKUP($C24,'RECAP SECT'!$G$6:$CU$253,52,FALSE) -> 2,107 | K24: =VLOOKUP($C24,'RECAP SECT'!$G$6:$CU$253,53,FALSE) -> 34.88 | L24: =VLOOKUP($C24,'RECAP SECT'!$G$6:$CU$253,54,FALSE) -> 1% | M24: =VLOOKUP($C24,'RECAP SECT'!$G$6:$CU$253,55,FALSE) -> 3 | N24: =VLOOKUP($C24,'RECAP SECT'!$G$6:$CU$253,56,FALSE) -> 711 | O24: =VLOOKUP($C24,'RECAP SECT'!$G$6:$CU$253,57,FALSE) -> 11.77 | P24: =VLOOKUP($C24,'RECAP SECT'!$G$6:$CU$253,58,FALSE) -> 29% | Q24: =VLOOKUP($C24,'RECAP SECT'!$G$6:$CU$253,59,FALSE) -> 6 | R24: =VLOOKUP($C24,'RECAP SECT'!$G$6:$CU$253,60,FALSE) -> 24% | S24: =VLOOKUP($C24,'RECAP SECT'!$G$6:$CU$253,61,FALSE) -> 20% | T24: =VLOOKUP($C24,'RECAP SECT'!$G$6:$CU$253,62,FALSE) -> 7
A25: 160 | B25: MOSELLE | C25: 44 | D25: MOSELLE NORD | E25: =VLOOKUP($C25,'RECAP SECT'!$G$6:$CU$253,3,FALSE) -> 57.5 | F25: =VLOOKUP($C25,'RECAP SECT'!$G$6:$CU$253,48,FALSE) -> 3,747 | G25: =VLOOKUP($C25,'RECAP SECT'!$G$6:$CU$253,49,FALSE) -> 65.15 | H25: =VLOOKUP($C25,'RECAP SECT'!$G$6:$CU$253,50,FALSE) -> 12% | I25: =VLOOKUP($C25,'RECAP SECT'!$G$6:$CU$253,51,FALSE) -> 2 | J25: =VLOOKUP($C25,'RECAP SECT'!$G$6:$CU$253,52,FALSE) -> 1,911 | K25: =VLOOKUP($C25,'RECAP SECT'!$G$6:$CU$253,53,FALSE) -> 33.24 | L25: =VLOOKUP($C25,'RECAP SECT'!$G$6:$CU$253,54,FALSE) -> 6% | M25: =VLOOKUP($C25,'RECAP SECT'!$G$6:$CU$253,55,FALSE) -> 4 | N25: =VLOOKUP($C25,'RECAP SECT'!$G$6:$CU$253,56,FALSE) -> 897 | O25: =VLOOKUP($C25,'RECAP SECT'!$G$6:$CU$253,57,FALSE) -> 15.60 | P25: =VLOOKUP($C25,'RECAP SECT'!$G$6:$CU$253,58,FALSE) -> 6% | Q25: =VLOOKUP($C25,'RECAP SECT'!$G$6:$CU$253,59,FALSE) -> 2 | R25: =VLOOKUP($C25,'RECAP SECT'!$G$6:$CU$253,60,FALSE) -> 8% | S25: =VLOOKUP($C25,'RECAP SECT'!$G$6:$CU$253,61,FALSE) -> 3% | T25: =VLOOKUP($C25,'RECAP SECT'!$G$6:$CU$253,62,FALSE) -> 2
A26: 80 | B26: VOSGES | C26: 57 | D26: EPINAL | E26: =VLOOKUP($C26,'RECAP SECT'!$G$6:$CU$253,3,FALSE) -> 53.5 | F26: =VLOOKUP($C26,'RECAP SECT'!$G$6:$CU$253,48,FALSE) -> 1,337 | G26: =VLOOKUP($C26,'RECAP SECT'!$G$6:$CU$253,49,FALSE) -> 25.01 | H26: =VLOOKUP($C26,'RECAP SECT'!$G$6:$CU$253,50,FALSE) -> 66% | I26: =VLOOKUP($C26,'RECAP SECT'!$G$6:$CU$253,51,FALSE) -> 16 | J26: =VLOOKUP($C26,'RECAP SECT'!$G$6:$CU$253,52,FALSE) -> 1,298 | K26: =VLOOKUP($C26,'RECAP SECT'!$G$6:$CU$253,53,FALSE) -> 24.27 | L26: =VLOOKUP($C26,'RECAP SECT'!$G$6:$CU$253,54,FALSE) -> 31% | M26: =VLOOKUP($C26,'RECAP SECT'!$G$6:$CU$253,55,FALSE) -> 17 | N26: =VLOOKUP($C26,'RECAP SECT'!$G$6:$CU$253,56,FALSE) -> 530 | O26: =VLOOKUP($C26,'RECAP SECT'!$G$6:$CU$253,57,FALSE) -> 9.91 | P26: =VLOOKUP($C26,'RECAP SECT'!$G$6:$CU$253,58,FALSE) -> 40% | Q26: =VLOOKUP($C26,'RECAP SECT'!$G$6:$CU$253,59,FALSE) -> 13 | R26: =VLOOKUP($C26,'RECAP SECT'!$G$6:$CU$253,60,FALSE) -> 45% | S26: =VLOOKUP($C26,'RECAP SECT'!$G$6:$CU$253,61,FALSE) -> 41% | T26: =VLOOKUP($C26,'RECAP SECT'!$G$6:$CU$253,62,FALSE) -> 15
A27: 80 | B27: VOSGES | C27: 55 | D27: SAINT DIE | E27: =VLOOKUP($C27,'RECAP SECT'!$G$6:$CU$253,3,FALSE) -> 39.6 | F27: =VLOOKUP($C27,'RECAP SECT'!$G$6:$CU$253,48,FALSE) -> 1,050 | G27: =VLOOKUP($C27,'RECAP SECT'!$G$6:$CU$253,49,FALSE) -> 26.48 | H27: =VLOOKUP($C27,'RECAP SECT'!$G$6:$CU$253,50,FALSE) -> 64% | I27: =VLOOKUP($C27,'RECAP SECT'!$G$6:$CU$253,51,FALSE) -> 14 | J27: =VLOOKUP($C27,'RECAP SECT'!$G$6:$CU$253,52,FALSE) -> 1,176 | K27: =VLOOKUP($C27,'RECAP SECT'!$G$6:$CU$253,53,FALSE) -> 29.68 | L27: =VLOOKUP($C27,'RECAP SECT'!$G$6:$CU$253,54,FALSE) -> 16% | M27: =VLOOKUP($C27,'RECAP SECT'!$G$6:$CU$253,55,FALSE) -> 11 | N27: =VLOOKUP($C27,'RECAP SECT'!$G$6:$CU$253,56,FALSE) -> 419 | O27: =VLOOKUP($C27,'RECAP SECT'!$G$6:$CU$253,57,FALSE) -> 10.57 | P27: =VLOOKUP($C27,'RECAP SECT'!$G$6:$CU$253,58,FALSE) -> 36% | Q27: =VLOOKUP($C27,'RECAP SECT'!$G$6:$CU$253,59,FALSE) -> 11 | R27: =VLOOKUP($C27,'RECAP SECT'!$G$6:$CU$253,60,FALSE) -> 38% | S27: =VLOOKUP($C27,'RECAP SECT'!$G$6:$CU$253,61,FALSE) -> 34% | T27: =VLOOKUP($C27,'RECAP SECT'!$G$6:$CU$253,62,FALSE) -> 11
A28: Total CEGEE Directions Régionales | E28: =SUM(E10:E27) -> 957

Sheet SE_IARD
B1: Accueil | F1: BAROMETRE BDD - TERRITOIRES
F2: IARD ET PREVOYANCE
F3: =ACCUEIL!F7 -> 2022-05-01
F7: Ventes Nettes produits pondérés | J7: Ventes sur client non détenteur de l’univers | N7: Total IARD Prévoyance
F8: =DATEMAJ!C23 -> au 01/05 | H8: coef | I8: ='RECAP DIRCOM'!BX4 -> 12% | J8: =DATEMAJ!C24 -> au 01/05 | L8: coef | M8: ='RECAP DIRCOM'!CB4 -> 8% | O8: coef | P8: ='RECAP DIRCOM'!CE4 -> 20%
B9: Direction | C9: eds | D9: Territoire | E9: ="ETP perf "&DATEMAJ!$C$28 -> ETP perf 01-mai | F9: VN | G9: VN / ETP | H9: % Ecart au 1er | I9: Rang | J9: VB | K9: VB / ETP | L9: % Ecart au 1er | M9: Rang | N9: Moyenne ecart au 1er | O9: % Ecart au 1er | P9: Rang CEGEE
A10: 50 | B10: AUBE HAUTE MARNE | C10: 21 | D10: CHAUMONT | E10: =VLOOKUP($C10,'RECAP SECT'!$G$6:$CU$253,3,FALSE) -> 33.7 | F10: =VLOOKUP($C10,'RECAP SECT'!$G$6:$CU$253,67,FALSE) -> 2,190 | G10: =VLOOKUP($C10,'RECAP SECT'!$G$6:$CU$253,68,FALSE) -> 65.08 | H10: =VLOOKUP($C10,'RECAP SECT'!$G$6:$CU$253,69,FALSE) -> 33% | I10: =VLOOKUP($C10,'RECAP SECT'!$G$6:$CU$253,70,FALSE) -> 9 | J10: =VLOOKUP($C10,'RECAP SECT'!$G$6:$CU$253,71,FALSE) -> 658 | K10: =VLOOKUP($C10,'RECAP SECT'!$G$6:$CU$253,72,FALSE) -> 19.55 | L10: =VLOOKUP($C10,'RECAP SECT'!$G$6:$CU$253,73,FALSE) -> 27% | M10: =VLOOKUP($C10,'RECAP SECT'!$G$6:$CU$253,74,FALSE) -> 10 | N10: =VLOOKUP($C10,'RECAP SECT'!$G$6:$CU$253,75,FALSE) -> 31% | O10: =VLOOKUP($C10,'RECAP SECT'!$G$6:$CU$253,76,FALSE) -> 29% | P10: =VLOOKUP($C10,'RECAP SECT'!$G$6:$CU$253,77,FALSE) -> 9
A11: 50 | B11: AUBE HAUTE MARNE | C11: 14 | D11: TROYES | E11: =VLOOKUP($C11,'RECAP SECT'!$G$6:$CU$253,3,FALSE) -> 54.3 | F11: =VLOOKUP($C11,'RECAP SECT'!$G$6:$CU$253,67,FALSE) -> 3,113 | G11: =VLOOKUP($C11,'RECAP SECT'!$G$6:$CU$253,68,FALSE) -> 57.30 | H11: =VLOOKUP($C11,'RECAP SECT'!$G$6:$CU$253,69,FALSE) -> 41% | I11: =VLOOKUP($C11,'RECAP SECT'!$G$6:$CU$253,70,FALSE) -> 10 | J11: =VLOOKUP($C11,'RECAP SECT'!$G$6:$CU$253,71,FALSE) -> 1,044 | K11: =VLOOKUP($C11,'RECAP SECT'!$G$6:$CU$253,72,FALSE) -> 19.22 | L11: =VLOOKUP($C11,'RECAP SECT'!$G$6:$CU$253,73,FALSE) -> 28% | M11: =VLOOKUP($C11,'RECAP SECT'!$G$6:$CU$253,74,FALSE) -> 11 | N11: =VLOOKUP($C11,'RECAP SECT'!$G$6:$CU$253,75,FALSE) -> 36% | O11: =VLOOKUP($C11,'RECAP SECT'!$G$6:$CU$253,76,FALSE) -> 34% | P11: =VLOOKUP($C11,'RECAP SECT'!$G$6:$CU$253,77,FALSE) -> 11
A12: 262 | B12: BAS-RHIN | C12: 5060 | D12: HAGUENAU | E12: =VLOOKUP($C12,'RECAP SECT'!$G$6:$CU$253,3,FALSE) -> 56.1 | F12: =VLOOKUP($C12,'RECAP SECT'!$G$6:$CU$253,67,FALSE) -> 3,027 | G12: =VLOOKUP($C12,'RECAP SECT'!$G$6:$CU$253,68,FALSE) -> 53.99 | H12: =VLOOKUP($C12,'RECAP SECT'!$G$6:$CU$253,69,FALSE) -> 45% | I12: =VLOOKUP($C12,'RECAP SECT'!$G$6:$CU$253,70,FALSE) -> 13 | J12: =VLOOKUP($C12,'RECAP SECT'!$G$6:$CU$253,71,FALSE) -> 990 | K12: =VLOOKUP($C12,'RECAP SECT'!$G$6:$CU$253,72,FALSE) -> 17.66 | L12: =VLOOKUP($C12,'RECAP SECT'!$G$6:$CU$253,73,FALSE) -> 34% | M12: =VLOOKUP($C12,'RECAP SECT'!$G$6:$CU$253,74,FALSE) -> 15 | N12: =VLOOKUP($C12,'RECAP SECT'!$G$6:$CU$253,75,FALSE) -> 40% | O12: =VLOOKUP($C12,'RECAP SECT'!$G$6:$CU$253,76,FALSE) -> 39% | P12: =VLOOKUP($C12,'RECAP SECT'!$G$6:$CU$253,77,FALSE) -> 15
A13: 262 | B13: BAS-RHIN | C13: 5101 | D13: SELESTAT | E13: =VLOOKUP($C13,'RECAP SECT'!$G$6:$CU$253,3,FALSE) -> 49.0 | F13: =VLOOKUP($C13,'RECAP SECT'!$G$6:$CU$253,67,FALSE) -> 2,694 | G13: =VLOOKUP($C13,'RECAP SECT'!$G$6:$CU$253,68,FALSE) -> 55.01 | H13: =VLOOKUP($C13,'RECAP SECT'!$G$6:$CU$253,69,FALSE) -> 44% | I13: =VLOOKUP($C13,'RECAP SECT'!$G$6:$CU$253,70,FALSE) -> 12 | J13: =VLOOKUP($C13,'RECAP SECT'!$G$6:$CU$253,71,FALSE) -> 933 | K13: =VLOOKUP($C13,'RECAP SECT'!$G$6:$CU$253,72,FALSE) -> 19.05 | L13: =VLOOKUP($C13,'RECAP SECT'!$G$6:$CU$253,73,FALSE) -> 28% | M13: =VLOOKUP($C13,'RECAP SECT'!$G$6:$CU$253,74,FALSE) -> 12 | N13: =VLOOKUP($C13,'RECAP SECT'!$G$6:$CU$253,75,FALSE) -> 38% | O13: =VLOOKUP($C13,'RECAP SECT'!$G$6:$CU$253,76,FALSE) -> 36% | P13: =VLOOKUP($C13,'RECAP SECT'!$G$6:$CU$253,77,FALSE) -> 12
A14: 262 | B14: BAS-RHIN | C14: 5006 | D14: STRASBOURG | E14: =VLOOKUP($C14,'RECAP SECT'!$G$6:$CU$253,3,FALSE) -> 65.0 | F14: =VLOOKUP($C14,'RECAP SECT'!$G$6:$CU$253,67,FALSE) -> 4,730 | G14: =VLOOKUP($C14,'RECAP SECT'!$G$6:$CU$253,68,FALSE) -> 72.77 | H14: =VLOOKUP($C14,'RECAP SECT'!$G$6:$CU$253,69,FALSE) -> 25% | I14: =VLOOKUP($C14,'RECAP SECT'!$G$6:$CU$253,70,FALSE) -> 5 | J14: =VLOOKUP($C14,'RECAP SECT'!$G$6:$CU$253,71,FALSE) -> 1,731 | K14: =VLOOKUP($C14,'RECAP SECT'!$G$6:$CU$253,72,FALSE) -> 26.63 | L14: =VLOOKUP($C14,'RECAP SECT'!$G$6:$CU$253,73,FALSE) -> 0% | M14: =VLOOKUP($C14,'RECAP SECT'!$G$6:$CU$253,74,FALSE) -> 1 | N14: =VLOOKUP($C14,'RECAP SECT'!$G$6:$CU$253,75,FALSE) -> 15% | O14: =VLOOKUP($C14,'RECAP SECT'!$G$6:$CU$253,76,FALSE) -> 14% | P14: =VLOOKUP($C14,'RECAP SECT'!$G$6:$CU$253,77,FALSE) -> 4
A15: 264 | B15: HAUT-RHIN | C15: 5130 | D15: COLMAR | E15: =VLOOKUP($C15,'RECAP SECT'!$G$6:$CU$253,3,FALSE) -> 50.3 | F15: =VLOOKUP($C15,'RECAP SECT'!$G$6:$CU$253,67,FALSE) -> 2,653 | G15: =VLOOKUP($C15,'RECAP SECT'!$G$6:$CU$253,68,FALSE) -> 52.73 | H15: =VLOOKUP($C15,'RECAP SECT'!$G$6:$CU$253,69,FALSE) -> 46% | I15: =VLOOKUP($C15,'RECAP SECT'!$G$6:$CU$253,70,FALSE) -> 15 | J15: =VLOOKUP($C15,'RECAP SECT'!$G$6:$CU$253,71,FALSE) -> 842 | K15: =VLOOKUP($C15,'RECAP SECT'!$G$6:$CU$253,72,FALSE) -> 16.74 | L15: =VLOOKUP($C15,'RECAP SECT'!$G$6:$CU$253,73,FALSE) -> 37% | M15: =VLOOKUP($C15,'RECAP SECT'!$G$6:$CU$253,74,FALSE) -> 17 | N15: =VLOOKUP($C15,'RECAP SECT'!$G$6:$CU$253,75,FALSE) -> 42% | O15: =VLOOKUP($C15,'RECAP SECT'!$G$6:$CU$253,76,FALSE) -> 41% | P15: =VLOOKUP($C15,'RECAP SECT'!$G$6:$CU$253,77,FALSE) -> 16
A16: 264 | B16: HAUT-RHIN | C16: 5169 | D16: MULHOUSE | E16: =VLOOKUP($C16,'RECAP SECT'!$G$6:$CU$253,3,FALSE) -> 45.9 | F16: =VLOOKUP($C16,'RECAP SECT'!$G$6:$CU$253,67,FALSE) -> 967 | G16: =VLOOKUP($C16,'RECAP SECT'!$G$6:$CU$253,68,FALSE) -> 21.09 | H16: =VLOOKUP($C16,'RECAP SECT'!$G$6:$CU$253,69,FALSE) -> 78% | I16: =VLOOKUP($C16,'RECAP SECT'!$G$6:$CU$253,70,FALSE) -> 18 | J16: =VLOOKUP($C16,'RECAP SECT'!$G$6:$CU$253,71,FALSE) -> 806 | K16: =VLOOKUP($C16,'RECAP SECT'!$G$6:$CU$253,72,FALSE) -> 17.58 | L16: =VLOOKUP($C16,'RECAP SECT'!$G$6:$CU$253,73,FALSE) -> 34% | M16: =VLOOKUP($C16,'RECAP SECT'!$G$6:$CU$253,74,FALSE) -> 16 | N16: =VLOOKUP($C16,'RECAP SECT'!$G$6:$CU$253,75,FALSE) -> 61% | O16: =VLOOKUP($C16,'RECAP SECT'!$G$6:$CU$253,76,FALSE) -> 59% | P16: =VLOOKUP($C16,'RECAP SECT'!$G$6:$CU$253,77,FALSE) -> 18
A17: 30 | B17: MARNE-ARDENNES | C17: 6 | D17: CHALONS EN CHAMPAGNE | E17: =VLOOKUP($C17,'RECAP SECT'!$G$6:$CU$253,3,FALSE) -> 38.8 | F17: =VLOOKUP($C17,'RECAP SECT'!$G$6:$CU$253,67,FALSE) -> 2,767 | G17: =VLOOKUP($C17,'RECAP SECT'!$G$6:$CU$253,68,FALSE) -> 71.30 | H17: =VLOOKUP($C17,'RECAP SECT'!$G$6:$CU$253,69,FALSE) -> 27% | I17: =VLOOKUP($C17,'RECAP SECT'!$G$6:$CU$253,70,FALSE) -> 6 | J17: =VLOOKUP($C17,'RECAP SECT'!$G$6:$CU$253,71,FALSE) -> 808 | K17: =VLOOKUP($C17,'RECAP SECT'!$G$6:$CU$253,72,FALSE) -> 20.82 | L17: =VLOOKUP($C17,'RECAP SECT'!$G$6:$CU$253,73,FALSE) -> 22% | M17: =VLOOKUP($C17,'RECAP SECT'!$G$6:$CU$253,74,FALSE) -> 8 | N17: =VLOOKUP($C17,'RECAP SECT'!$G$6:$CU$253,75,FALSE) -> 25% | O17: =VLOOKUP($C17,'RECAP SECT'!$G$6:$CU$253,76,FALSE) -> 23% | P17: =VLOOKUP($C17,'RECAP SECT'!$G$6:$CU$253,77,FALSE) -> 7
A18: 30 | B18: MARNE-ARDENNES | C18: 2 | D18: CHARLEVILLE MEZIERES | E18: =VLOOKUP($C18,'RECAP SECT'!$G$6:$CU$253,3,FALSE) -> 48.8 | F18: =VLOOKUP($C18,'RECAP SECT'!$G$6:$CU$253,67,FALSE) -> 4,280 | G18: =VLOOKUP($C18,'RECAP SECT'!$G$6:$CU$253,68,FALSE) -> 87.70 | H18: =VLOOKUP($C18,'RECAP SECT'!$G$6:$CU$253,69,FALSE) -> 10% | I18: =VLOOKUP($C18,'RECAP SECT'!$G$6:$CU$253,70,FALSE) -> 2 | J18: =VLOOKUP($C18,'RECAP SECT'!$G$6:$CU$253,71,FALSE) -> 1,099 | K18: =VLOOKUP($C18,'RECAP SECT'!$G$6:$CU$253,72,FALSE) -> 22.52 | L18: =VLOOKUP($C18,'RECAP SECT'!$G$6:$CU$253,73,FALSE) -> 15% | M18: =VLOOKUP($C18,'RECAP SECT'!$G$6:$CU$253,74,FALSE) -> 5 | N18: =VLOOKUP($C18,'RECAP SECT'!$G$6:$CU$253,75,FALSE) -> 12% | O18: =VLOOKUP($C18,'RECAP SECT'!$G$6:$CU$253,76,FALSE) -> 11% | P18: =VLOOKUP($C18,'RECAP SECT'!$G$6:$CU$253,77,FALSE) -> 2
A19: 30 | B19: MARNE-ARDENNES | C19: 11 | D19: REIMS | E19: =VLOOKUP($C19,'RECAP SECT'!$G$6:$CU$253,3,FALSE) -> 69.2 | F19: =VLOOKUP($C19,'RECAP SECT'!$G$6:$CU$253,67,FALSE) -> 5,079 | G19: =VLOOKUP($C19,'RECAP SECT'!$G$6:$CU$253,68,FALSE) -> 73.37 | H19: =VLOOKUP($C19,'RECAP SECT'!$G$6:$CU$253,69,FALSE) -> 25% | I19: =VLOOKUP($C19,'RECAP SECT'!$G$6:$CU$253,70,FALSE) -> 4 | J19: =VLOOKUP($C19,'RECAP SECT'!$G$6:$CU$253,71,FALSE) -> 1,697 | K19: =VLOOKUP($C19,'RECAP SECT'!$G$6:$CU$253,72,FALSE) -> 24.52 | L19: =VLOOKUP($C19,'RECAP SECT'!$G$6:$CU$253,73,FALSE) -> 8% | M19: =VLOOKUP($C19,'RECAP SECT'!$G$6:$CU$253,74,FALSE) -> 3 | N19: =VLOOKUP($C19,'RECAP SECT'!$G$6:$CU$253,75,FALSE) -> 18% | O19: =VLOOKUP($C19,'RECAP SECT'!$G$6:$CU$253,76,FALSE) -> 17% | P19: =VLOOKUP($C19,'RECAP SECT'!$G$6:$CU$253,77,FALSE) -> 5
A20: 110 | B20: MEURTHE ET MOSELLE MEUSE | C20: 26 | D20: NANCY | E20: =VLOOKUP($C20,'RECAP SECT'!$G$6:$CU$253,3,FALSE) -> 55.3 | F20: =VLOOKUP($C20,'RECAP SECT'!$G$6:$CU$253,67,FALSE) -> 2,879 | G20: =VLOOKUP($C20,'RECAP SECT'!$G$6:$CU$253,68,FALSE) -> 52.08 | H20: =VLOOKUP($C20,'RECAP SECT'!$G$6:$CU$253,69,FALSE) -> 47% | I20: =VLOOKUP($C20,'RECAP SECT'!$G$6:$CU$253,70,FALSE) -> 16 | J20: =VLOOKUP($C20,'RECAP SECT'!$G$6:$CU$253,71,FALSE) -> 1,188 | K20: =VLOOKUP($C20,'RECAP SECT'!$G$6:$CU$253,72,FALSE) -> 21.49 | L20: =VLOOKUP($C20,'RECAP SECT'!$G$6:$CU$253,73,FALSE) -> 19% | M20: =VLOOKUP($C20,'RECAP SECT'!$G$6:$CU$253,74,FALSE) -> 7 | N20: =VLOOKUP($C20,'RECAP SECT'!$G$6:$CU$253,75,FALSE) -> 36% | O20: =VLOOKUP($C20,'RECAP SECT'!$G$6:$CU$253,76,FALSE) -> 34% | P20: =VLOOKUP($C20,'RECAP SECT'!$G$6:$CU$253,77,FALSE) -> 10
A21: 110 | B21: MEURTHE ET MOSELLE MEUSE | C21: 27 | D21: PONT A MOUSSON | E21: =VLOOKUP($C21,'RECAP SECT'!$G$6:$CU$253,3,FALSE) -> 59.3 | F21: =VLOOKUP($C21,'RECAP SECT'!$G$6:$CU$253,67,FALSE) -> 3,924 | G21: =VLOOKUP($C21,'RECAP SECT'!$G$6:$CU$253,68,FALSE) -> 66.22 | H21: =VLOOKUP($C21,'RECAP SECT'!$G$6:$CU$253,69,FALSE) -> 32% | I21: =VLOOKUP($C21,'RECAP SECT'!$G$6:$CU$253,70,FALSE) -> 7 | J21: =VLOOKUP($C21,'RECAP SECT'!$G$6:$CU$253,71,FALSE) -> 1,412 | K21: =VLOOKUP($C21,'RECAP SECT'!$G$6:$CU$253,72,FALSE) -> 23.83 | L21: =VLOOKUP($C21,'RECAP SECT'!$G$6:$CU$253,73,FALSE) -> 11% | M21: =VLOOKUP($C21,'RECAP SECT'!$G$6:$CU$253,74,FALSE) -> 4 | N21: =VLOOKUP($C21,'RECAP SECT'!$G$6:$CU$253,75,FALSE) -> 23% | O21: =VLOOKUP($C21,'RECAP SECT'!$G$6:$CU$253,76,FALSE) -> 22% | P21: =VLOOKUP($C21,'RECAP SECT'!$G$6:$CU$253,77,FALSE) -> 6
A22: 110 | B22: MEURTHE ET MOSELLE MEUSE | C22: 31 | D22: VERDUN | E22: =VLOOKUP($C22,'RECAP SECT'!$G$6:$CU$253,3,FALSE) -> 47.9 | F22: =VLOOKUP($C22,'RECAP SECT'!$G$6:$CU$253,67,FALSE) -> 2,582 | G22: =VLOOKUP($C22,'RECAP SECT'!$G$6:$CU$253,68,FALSE) -> 53.89 | H22: =VLOOKUP($C22,'RECAP SECT'!$G$6:$CU$253,69,FALSE) -> 45% | I22: =VLOOKUP($C22,'RECAP SECT'!$G$6:$CU$253,70,FALSE) -> 14 | J22: =VLOOKUP($C22,'RECAP SECT'!$G$6:$CU$253,71,FALSE) -> 909 | K22: =VLOOKUP($C22,'RECAP SECT'!$G$6:$CU$253,72,FALSE) -> 18.97 | L22: =VLOOKUP($C22,'RECAP SECT'!$G$6:$CU$253,73,FALSE) -> 29% | M22: =VLOOKUP($C22,'RECAP SECT'!$G$6:$CU$253,74,FALSE) -> 13 | N22: =VLOOKUP($C22,'RECAP SECT'!$G$6:$CU$253,75,FALSE) -> 38% | O22: =VLOOKUP($C22,'RECAP SECT'!$G$6:$CU$253,76,FALSE) -> 37% | P22: =VLOOKUP($C22,'RECAP SECT'!$G$6:$CU$253,77,FALSE) -> 13
A23: 160 | B23: MOSELLE | C23: 45 | D23: METZ | E23: =VLOOKUP($C23,'RECAP SECT'!$G$6:$CU$253,3,FALSE) -> 72.4 | F23: =VLOOKUP($C23,'RECAP SECT'!$G$6:$CU$253,67,FALSE) -> 4,726 | G23: =VLOOKUP($C23,'RECAP SECT'!$G$6:$CU$253,68,FALSE) -> 65.32 | H23: =VLOOKUP($C23,'RECAP SECT'!$G$6:$CU$253,69,FALSE) -> 33% | I23: =VLOOKUP($C23,'RECAP SECT'!$G$6:$CU$253,70,FALSE) -> 8 | J23: =VLOOKUP($C23,'RECAP SECT'!$G$6:$CU$253,71,FALSE) -> 1,462 | K23: =VLOOKUP($C23,'RECAP SECT'!$G$6:$CU$253,72,FALSE) -> 20.21 | L23: =VLOOKUP($C23,'RECAP SECT'!$G$6:$CU$253,73,FALSE) -> 24% | M23: =VLOOKUP($C23,'RECAP SECT'!$G$6:$CU$253,74,FALSE) -> 9 | N23: =VLOOKUP($C23,'RECAP SECT'!$G$6:$CU$253,75,FALSE) -> 29% | O23: =VLOOKUP($C23,'RECAP SECT'!$G$6:$CU$253,76,FALSE) -> 28% | P23: =VLOOKUP($C23,'RECAP SECT'!$G$6:$CU$253,77,FALSE) -> 8
A24: 160 | B24: MOSELLE | C24: 42 | D24: MOSELLE EST | E24: =VLOOKUP($C24,'RECAP SECT'!$G$6:$CU$253,3,FALSE) -> 60.4 | F24: =VLOOKUP($C24,'RECAP SECT'!$G$6:$CU$253,67,FALSE) -> 5,212 | G24: =VLOOKUP($C24,'RECAP SECT'!$G$6:$CU$253,68,FALSE) -> 86.26 | H24: =VLOOKUP($C24,'RECAP SECT'!$G$6:$CU$253,69,FALSE) -> 11% | I24: =VLOOKUP($C24,'RECAP SECT'!$G$6:$CU$253,70,FALSE) -> 3 | J24: =VLOOKUP($C24,'RECAP SECT'!$G$6:$CU$253,71,FALSE) -> 1,358 | K24: =VLOOKUP($C24,'RECAP SECT'!$G$6:$CU$253,72,FALSE) -> 22.48 | L24: =VLOOKUP($C24,'RECAP SECT'!$G$6:$CU$253,73,FALSE) -> 16% | M24: =VLOOKUP($C24,'RECAP SECT'!$G$6:$CU$253,74,FALSE) -> 6 | N24: =VLOOKUP($C24,'RECAP SECT'!$G$6:$CU$253,75,FALSE) -> 13% | O24: =VLOOKUP($C24,'RECAP SECT'!$G$6:$CU$253,76,FALSE) -> 12% | P24: =VLOOKUP($C24,'RECAP SECT'!$G$6:$CU$253,77,FALSE) -> 3
A25: 160 | B25: MOSELLE | C25: 44 | D25: MOSELLE NORD | E25: =VLOOKUP($C25,'RECAP SECT'!$G$6:$CU$253,3,FALSE) -> 57.5 | F25: =VLOOKUP($C25,'RECAP SECT'!$G$6:$CU$253,67,FALSE) -> 5,604 | G25: =VLOOKUP($C25,'RECAP SECT'!$G$6:$CU$253,68,FALSE) -> 97.44 | H25: =VLOOKUP($C25,'RECAP SECT'!$G$6:$CU$253,69,FALSE) -> 0% | I25: =VLOOKUP($C25,'RECAP SECT'!$G$6:$CU$253,70,FALSE) -> 1 | J25: =VLOOKUP($C25,'RECAP SECT'!$G$6:$CU$253,71,FALSE) -> 1,475 | K25: =VLOOKUP($C25,'RECAP SECT'!$G$6:$CU$253,72,FALSE) -> 25.65 | L25: =VLOOKUP($C25,'RECAP SECT'!$G$6:$CU$253,73,FALSE) -> 4% | M25: =VLOOKUP($C25,'RECAP SECT'!$G$6:$CU$253,74,FALSE) -> 2 | N25: =VLOOKUP($C25,'RECAP SECT'!$G$6:$CU$253,75,FALSE) -> 1% | O25: =VLOOKUP($C25,'RECAP SECT'!$G$6:$CU$253,76,FALSE) -> 0% | P25: =VLOOKUP($C25,'RECAP SECT'!$G$6:$CU$253,77,FALSE) -> 1
A26: 80 | B26: VOSGES | C26: 57 | D26: EPINAL | E26: =VLOOKUP($C26,'RECAP SECT'!$G$6:$CU$253,3,FALSE) -> 53.5 | F26: =VLOOKUP($C26,'RECAP SECT'!$G$6:$CU$253,67,FALSE) -> 2,954 | G26: =VLOOKUP($C26,'RECAP SECT'!$G$6:$CU$253,68,FALSE) -> 55.25 | H26: =VLOOKUP($C26,'RECAP SECT'!$G$6:$CU$253,69,FALSE) -> 43% | I26: =VLOOKUP($C26,'RECAP SECT'!$G$6:$CU$253,70,FALSE) -> 11 | J26: =VLOOKUP($C26,'RECAP SECT'!$G$6:$CU$253,71,FALSE) -> 975 | K26: =VLOOKUP($C26,'RECAP SECT'!$G$6:$CU$253,72,FALSE) -> 18.23 | L26: =VLOOKUP($C26,'RECAP SECT'!$G$6:$CU$253,73,FALSE) -> 32% | M26: =VLOOKUP($C26,'RECAP SECT'!$G$6:$CU$253,74,FALSE) -> 14 | N26: =VLOOKUP($C26,'RECAP SECT'!$G$6:$CU$253,75,FALSE) -> 39% | O26: =VLOOKUP($C26,'RECAP SECT'!$G$6:$CU$253,76,FALSE) -> 37% | P26: =VLOOKUP($C26,'RECAP SECT'!$G$6:$CU$253,77,FALSE) -> 14
A27: 80 | B27: VOSGES | C27: 55 | D27: SAINT DIE | E27: =VLOOKUP($C27,'RECAP SECT'!$G$6:$CU$253,3,FALSE) -> 39.6 | F27: =VLOOKUP($C27,'RECAP SECT'!$G$6:$CU$253,67,FALSE) -> 1,161 | G27: =VLOOKUP($C27,'RECAP SECT'!$G$6:$CU$253,68,FALSE) -> 29.30 | H27: =VLOOKUP($C27,'RECAP SECT'!$G$6:$CU$253,69,FALSE) -> 70% | I27: =VLOOKUP($C27,'RECAP SECT'!$G$6:$CU$253,70,FALSE) -> 17 | J27: =VLOOKUP($C27,'RECAP SECT'!$G$6:$CU$253,71,FALSE) -> 611 | K27: =VLOOKUP($C27,'RECAP SECT'!$G$6:$CU$253,72,FALSE) -> 15.42 | L27: =VLOOKUP($C27,'RECAP SECT'!$G$6:$CU$253,73,FALSE) -> 42% | M27: =VLOOKUP($C27,'RECAP SECT'!$G$6:$CU$253,74,FALSE) -> 18 | N27: =VLOOKUP($C27,'RECAP SECT'!$G$6:$CU$253,75,FALSE) -> 59% | O27: =VLOOKUP($C27,'RECAP SECT'!$G$6:$CU$253,76,FALSE) -> 57% | P27: =VLOOKUP($C27,'RECAP SECT'!$G$6:$CU$253,77,FALSE) -> 17
A28: Total CEGEE Directions Régionales | E28: =SUM(E10:E27) -> 957

Sheet SE_SATISFACTION
B1: Accueil | F1: BAROMETRE BDD - TERRITOIRES
F2: SATISFACTION
F3: =ACCUEIL!F7 -> 2022-05-01
F7: NPS à froid (SAE) | I7: NPS à chaud (QHD) | L7: Total Satisfaction Clients
F8: =DATEMAJ!E4 -> au 31/03 | G8: coef | H8: ='RECAP DIRCOM'!M4 -> 10% | I8: =DATEMAJ!C5 -> au 28/02 | J8: coef | K8: ='RECAP DIRCOM'!P4 -> 10% | M8: coef | N8: ='RECAP DIRCOM'!S4 -> 20%
B9: Direction | C9: eds | D9: Territoire | E9: ="ETP perf "&DATEMAJ!$C$28 -> ETP perf 01-mai | G9: % Ecart au 1er | H9: Rang | J9: % Ecart au 1er | K9: Rang | L9: Moyenne ecart au 1er | M9: % Ecart au 1er | N9: Rang CEGEE
A10: 50 | B10: AUBE HAUTE MARNE | C10: 21 | D10: CHAUMONT | E10: =VLOOKUP($C10,'RECAP SECT'!$G$6:$CU$253,3,FALSE) -> 33.7 | F10: =VLOOKUP($C10,'RECAP SECT'!$G$6:$CU$253,5,FALSE) -> 15.25 | G10: =VLOOKUP($C10,'RECAP SECT'!$G$6:$CU$253,6,FALSE) -> 45% | H10: =VLOOKUP($C10,'RECAP SECT'!$G$6:$CU$253,7,FALSE) -> 7 | I10: =VLOOKUP($C10,'RECAP SECT'!$G$6:$CU$253,8,FALSE) -> 64% | J10: =VLOOKUP($C10,'RECAP SECT'!$G$6:$CU$253,9,FALSE) -> 14% | K10: =VLOOKUP($C10,'RECAP SECT'!$G$6:$CU$253,10,FALSE) -> 7 | L10: =VLOOKUP($C10,'RECAP SECT'!$G$6:$CU$253,11,FALSE) -> 29% | M10: =VLOOKUP($C10,'RECAP SECT'!$G$6:$CU$253,12,FALSE) -> 25% | N10: =VLOOKUP($C10,'RECAP SECT'!$G$6:$CU$253,13,FALSE) -> 8
A11: 50 | B11: AUBE HAUTE MARNE | C11: 14 | D11: TROYES | E11: =VLOOKUP($C11,'RECAP SECT'!$G$6:$CU$253,3,FALSE) -> 54.3 | F11: =VLOOKUP($C11,'RECAP SECT'!$G$6:$CU$253,5,FALSE) -> 0 | G11: =VLOOKUP($C11,'RECAP SECT'!$G$6:$CU$253,6,FALSE) -> 100% | H11: =VLOOKUP($C11,'RECAP SECT'!$G$6:$CU$253,7,FALSE) -> 17 | I11: =VLOOKUP($C11,'RECAP SECT'!$G$6:$CU$253,8,FALSE) -> 47% | J11: =VLOOKUP($C11,'RECAP SECT'!$G$6:$CU$253,9,FALSE) -> 37% | K11: =VLOOKUP($C11,'RECAP SECT'!$G$6:$CU$253,10,FALSE) -> 18 | L11: =VLOOKUP($C11,'RECAP SECT'!$G$6:$CU$253,11,FALSE) -> 68% | M11: =VLOOKUP($C11,'RECAP SECT'!$G$6:$CU$253,12,FALSE) -> 64% | N11: =VLOOKUP($C11,'RECAP SECT'!$G$6:$CU$253,13,FALSE) -> 18
A12: 262 | B12: BAS-RHIN | C12: 5060 | D12: HAGUENAU | E12: =VLOOKUP($C12,'RECAP SECT'!$G$6:$CU$253,3,FALSE) -> 56.1 | F12: =VLOOKUP($C12,'RECAP SECT'!$G$6:$CU$253,5,FALSE) -> 13.75 | G12: =VLOOKUP($C12,'RECAP SECT'!$G$6:$CU$253,6,FALSE) -> 50% | H12: =VLOOKUP($C12,'RECAP SECT'!$G$6:$CU$253,7,FALSE) -> 10 | I12: =VLOOKUP($C12,'RECAP SECT'!$G$6:$CU$253,8,FALSE) -> 61% | J12: =VLOOKUP($C12,'RECAP SECT'!$G$6:$CU$253,9,FALSE) -> 18% | K12: =VLOOKUP($C12,'RECAP SECT'!$G$6:$CU$253,10,FALSE) -> 11 | L12: =VLOOKUP($C12,'RECAP SECT'!$G$6:$CU$253,11,FALSE) -> 34% | M12: =VLOOKUP($C12,'RECAP SECT'!$G$6:$CU$253,12,FALSE) -> 30% | N12: =VLOOKUP($C12,'RECAP SECT'!$G$6:$CU$253,13,FALSE) -> 10
A13: 262 | B13: BAS-RHIN | C13: 5101 | D13: SELESTAT | E13: =VLOOKUP($C13,'RECAP SECT'!$G$6:$CU$253,3,FALSE) -> 49.0 | F13: =VLOOKUP($C13,'RECAP SECT'!$G$6:$CU$253,5,FALSE) -> 0 | G13: =VLOOKUP($C13,'RECAP SECT'!$G$6:$CU$253,6,FALSE) -> 100% | H13: =VLOOKUP($C13,'RECAP SECT'!$G$6:$CU$253,7,FALSE) -> 17 | I13: =VLOOKUP($C13,'RECAP SECT'!$G$6:$CU$253,8,FALSE) -> 54% | J13: =VLOOKUP($C13,'RECAP SECT'!$G$6:$CU$253,9,FALSE) -> 27% | K13: =VLOOKUP($C13,'RECAP SECT'!$G$6:$CU$253,10,FALSE) -> 14 | L13: =VLOOKUP($C13,'RECAP SECT'!$G$6:$CU$253,11,FALSE) -> 63% | M13: =VLOOKUP($C13,'RECAP SECT'!$G$6:$CU$253,12,FALSE) -> 59% | N13: =VLOOKUP($C13,'RECAP SECT'!$G$6:$CU$253,13,FALSE) -> 17
A14: 262 | B14: BAS-RHIN | C14: 5006 | D14: STRASBOURG | E14: =VLOOKUP($C14,'RECAP SECT'!$G$6:$CU$253,3,FALSE) -> 65.0 | F14: =VLOOKUP($C14,'RECAP SECT'!$G$6:$CU$253,5,FALSE) -> 12.25 | G14: =VLOOKUP($C14,'RECAP SECT'!$G$6:$CU$253,6,FALSE) -> 56% | H14: =VLOOKUP($C14,'RECAP SECT'!$G$6:$CU$253,7,FALSE) -> 11 | I14: =VLOOKUP($C14,'RECAP SECT'!$G$6:$CU$253,8,FALSE) -> 62% | J14: =VLOOKUP($C14,'RECAP SECT'!$G$6:$CU$253,9,FALSE) -> 17% | K14: =VLOOKUP($C14,'RECAP SECT'!$G$6:$CU$253,10,FALSE) -> 9 | L14: =VLOOKUP($C14,'RECAP SECT'!$G$6:$CU$253,11,FALSE) -> 36% | M14: =VLOOKUP($C14,'RECAP SECT'!$G$6:$CU$253,12,FALSE) -> 32% | N14: =VLOOKUP($C14,'RECAP SECT'!$G$6:$CU$253,13,FALSE) -> 11
A15: 264 | B15: HAUT-RHIN | C15: 5130 | D15: COLMAR | E15: =VLOOKUP($C15,'RECAP SECT'!$G$6:$CU$253,3,FALSE) -> 50.3 | F15: =VLOOKUP($C15,'RECAP SECT'!$G$6:$CU$253,5,FALSE) -> 3.25 | G15: =VLOOKUP($C15,'RECAP SECT'!$G$6:$CU$253,6,FALSE) -> 88% | H15: =VLOOKUP($C15,'RECAP SECT'!$G$6:$CU$253,7,FALSE) -> 14 | I15: =VLOOKUP($C15,'RECAP SECT'!$G$6:$CU$253,8,FALSE) -> 52% | J15: =VLOOKUP($C15,'RECAP SECT'!$G$6:$CU$253,9,FALSE) -> 30% | K15: =VLOOKUP($C15,'RECAP SECT'!$G$6:$CU$253,10,FALSE) -> 15 | L15: =VLOOKUP($C15,'RECAP SECT'!$G$6:$CU$253,11,FALSE) -> 59% | M15: =VLOOKUP($C15,'RECAP SECT'!$G$6:$CU$253,12,FALSE) -> 55% | N15: =VLOOKUP($C15,'RECAP SECT'!$G$6:$CU$253,13,FALSE) -> 14
A16: 264 | B16: HAUT-RHIN | C16: 5169 | D16: MULHOUSE | E16: =VLOOKUP($C16,'RECAP SECT'!$G$6:$CU$253,3,FALSE) -> 45.9 | F16: =VLOOKUP($C16,'RECAP SECT'!$G$6:$CU$253,5,FALSE) -> 3 | G16: =VLOOKUP($C16,'RECAP SECT'!$G$6:$CU$253,6,FALSE) -> 89% | H16: =VLOOKUP($C16,'RECAP SECT'!$G$6:$CU$253,7,FALSE) -> 15 | I16: =VLOOKUP($C16,'RECAP SECT'!$G$6:$CU$253,8,FALSE) -> 47% | J16: =VLOOKUP($C16,'RECAP SECT'!$G$6:$CU$253,9,FALSE) -> 36% | K16: =VLOOKUP($C16,'RECAP SECT'!$G$6:$CU$253,10,FALSE) -> 17 | L16: =VLOOKUP($C16,'RECAP SECT'!$G$6:$CU$253,11,FALSE) -> 63% | M16: =VLOOKUP($C16,'RECAP SECT'!$G$6:$CU$253,12,FALSE) -> 58% | N16: =VLOOKUP($C16,'RECAP SECT'!$G$6:$CU$253,13,FALSE) -> 15
A17: 30 | B17: MARNE-ARDENNES | C17: 6 | D17: CHALONS EN CHAMPAGNE | E17: =VLOOKUP($C17,'RECAP SECT'!$G$6:$CU$253,3,FALSE) -> 38.8 | F17: =VLOOKUP($C17,'RECAP SECT'!$G$6:$CU$253,5,FALSE) -> 23.75 | G17: =VLOOKUP($C17,'RECAP SECT'!$G$6:$CU$253,6,FALSE) -> 14% | H17: =VLOOKUP($C17,'RECAP SECT'!$G$6:$CU$253,7,FALSE) -> 2 | I17: =VLOOKUP($C17,'RECAP SECT'!$G$6:$CU$253,8,FALSE) -> 74% | J17: =VLOOKUP($C17,'RECAP SECT'!$G$6:$CU$253,9,FALSE) -> 0% | K17: =VLOOKUP($C17,'RECAP SECT'!$G$6:$CU$253,10,FALSE) -> 1 | L17: =VLOOKUP($C17,'RECAP SECT'!$G$6:$CU$253,11,FALSE) -> 7% | M17: =VLOOKUP($C17,'RECAP SECT'!$G$6:$CU$253,12,FALSE) -> 3% | N17: =VLOOKUP($C17,'RECAP SECT'!$G$6:$CU$253,13,FALSE) -> 2
A18: 30 | B18: MARNE-ARDENNES | C18: 2 | D18: CHARLEVILLE MEZIERES | E18: =VLOOKUP($C18,'RECAP SECT'!$G$6:$CU$253,3,FALSE) -> 48.8 | F18: =VLOOKUP($C18,'RECAP SECT'!$G$6:$CU$253,5,FALSE) -> 14.5 | G18: =VLOOKUP($C18,'RECAP SECT'!$G$6:$CU$253,6,FALSE) -> 48% | H18: =VLOOKUP($C18,'RECAP SECT'!$G$6:$CU$253,7,FALSE) -> 9 | I18: =VLOOKUP($C18,'RECAP SECT'!$G$6:$CU$253,8,FALSE) -> 67% | J18: =VLOOKUP($C18,'RECAP SECT'!$G$6:$CU$253,9,FALSE) -> 10% | K18: =VLOOKUP($C18,'RECAP SECT'!$G$6:$CU$253,10,FALSE) -> 5 | L18: =VLOOKUP($C18,'RECAP SECT'!$G$6:$CU$253,11,FALSE) -> 29% | M18: =VLOOKUP($C18,'RECAP SECT'!$G$6:$CU$253,12,FALSE) -> 25% | N18: =VLOOKUP($C18,'RECAP SECT'!$G$6:$CU$253,13,FALSE) -> 6
A19: 30 | B19: MARNE-ARDENNES | C19: 11 | D19: REIMS | E19: =VLOOKUP($C19,'RECAP SECT'!$G$6:$CU$253,3,FALSE) -> 69.2 | F19: =VLOOKUP($C19,'RECAP SECT'!$G$6:$CU$253,5,FALSE) -> 15 | G19: =VLOOKUP($C19,'RECAP SECT'!$G$6:$CU$253,6,FALSE) -> 46% | H19: =VLOOKUP($C19,'RECAP SECT'!$G$6:$CU$253,7,FALSE) -> 8 | I19: =VLOOKUP($C19,'RECAP SECT'!$G$6:$CU$253,8,FALSE) -> 65% | J19: =VLOOKUP($C19,'RECAP SECT'!$G$6:$CU$253,9,FALSE) -> 13% | K19: =VLOOKUP($C19,'RECAP SECT'!$G$6:$CU$253,10,FALSE) -> 6 | L19: =VLOOKUP($C19,'RECAP SECT'!$G$6:$CU$253,11,FALSE) -> 29% | M19: =VLOOKUP($C19,'RECAP SECT'!$G$6:$CU$253,12,FALSE) -> 25% | N19: =VLOOKUP($C19,'RECAP SECT'!$G$6:$CU$253,13,FALSE) -> 7
A20: 110 | B20: MEURTHE ET MOSELLE MEUSE | C20: 26 | D20: NANCY | E20: =VLOOKUP($C20,'RECAP SECT'!$G$6:$CU$253,3,FALSE) -> 55.3 | F20: =VLOOKUP($C20,'RECAP SECT'!$G$6:$CU$253,5,FALSE) -> 8.25 | G20: =VLOOKUP($C20,'RECAP SECT'!$G$6:$CU$253,6,FALSE) -> 70% | H20: =VLOOKUP($C20,'RECAP SECT'!$G$6:$CU$253,7,FALSE) -> 13 | I20: =VLOOKUP($C20,'RECAP SECT'!$G$6:$CU$253,8,FALSE) -> 56% | J20: =VLOOKUP($C20,'RECAP SECT'!$G$6:$CU$253,9,FALSE) -> 24% | K20: =VLOOKUP($C20,'RECAP SECT'!$G$6:$CU$253,10,FALSE) -> 13 | L20: =VLOOKUP($C20,'RECAP SECT'!$G$6:$CU$253,11,FALSE) -> 47% | M20: =VLOOKUP($C20,'RECAP SECT'!$G$6:$CU$253,12,FALSE) -> 43% | N20: =VLOOKUP($C20,'RECAP SECT'!$G$6:$CU$253,13,FALSE) -> 13
A21: 110 | B21: MEURTHE ET MOSELLE MEUSE | C21: 27 | D21: PONT A MOUSSON | E21: =VLOOKUP($C21,'RECAP SECT'!$G$6:$CU$253,3,FALSE) -> 59.3 | F21: =VLOOKUP($C21,'RECAP SECT'!$G$6:$CU$253,5,FALSE) -> 2.25 | G21: =VLOOKUP($C21,'RECAP SECT'!$G$6:$CU$253,6,FALSE) -> 92% | H21: =VLOOKUP($C21,'RECAP SECT'!$G$6:$CU$253,7,FALSE) -> 16 | I21: =VLOOKUP($C21,'RECAP SECT'!$G$6:$CU$253,8,FALSE) -> 49% | J21: =VLOOKUP($C21,'RECAP SECT'!$G$6:$CU$253,9,FALSE) -> 34% | K21: =VLOOKUP($C21,'RECAP SECT'!$G$6:$CU$253,10,FALSE) -> 16 | L21: =VLOOKUP($C21,'RECAP SECT'!$G$6:$CU$253,11,FALSE) -> 63% | M21: =VLOOKUP($C21,'RECAP SECT'!$G$6:$CU$253,12,FALSE) -> 59% | N21: =VLOOKUP($C21,'RECAP SECT'!$G$6:$CU$253,13,FALSE) -> 16
A22: 110 | B22: MEURTHE ET MOSELLE MEUSE | C22: 31 | D22: VERDUN | E22: =VLOOKUP($C22,'RECAP SECT'!$G$6:$CU$253,3,FALSE) -> 47.9 | F22: =VLOOKUP($C22,'RECAP SECT'!$G$6:$CU$253,5,FALSE) -> 17 | G22: =VLOOKUP($C22,'RECAP SECT'!$G$6:$CU$253,6,FALSE) -> 39% | H22: =VLOOKUP($C22,'RECAP SECT'!$G$6:$CU$253,7,FALSE) -> 4 | I22: =VLOOKUP($C22,'RECAP SECT'!$G$6:$CU$253,8,FALSE) -> 62% | J22: =VLOOKUP($C22,'RECAP SECT'!$G$6:$CU$253,9,FALSE) -> 17% | K22: =VLOOKUP($C22,'RECAP SECT'!$G$6:$CU$253,10,FALSE) -> 10 | L22: =VLOOKUP($C22,'RECAP SECT'!$G$6:$CU$253,11,FALSE) -> 28% | M22: =VLOOKUP($C22,'RECAP SECT'!$G$6:$CU$253,12,FALSE) -> 23% | N22: =VLOOKUP($C22,'RECAP SECT'!$G$6:$CU$253,13,FALSE) -> 5
A23: 160 | B23: MOSELLE | C23: 45 | D23: METZ | E23: =VLOOKUP($C23,'RECAP SECT'!$G$6:$CU$253,3,FALSE) -> 72.4 | F23: =VLOOKUP($C23,'RECAP SECT'!$G$6:$CU$253,5,FALSE) -> 16.5 | G23: =VLOOKUP($C23,'RECAP SECT'!$G$6:$CU$253,6,FALSE) -> 41% | H23: =VLOOKUP($C23,'RECAP SECT'!$G$6:$CU$253,7,FALSE) -> 5 | I23: =VLOOKUP($C23,'RECAP SECT'!$G$6:$CU$253,8,FALSE) -> 60% | J23: =VLOOKUP($C23,'RECAP SECT'!$G$6:$CU$253,9,FALSE) -> 20% | K23: =VLOOKUP($C23,'RECAP SECT'!$G$6:$CU$253,10,FALSE) -> 12 | L23: =VLOOKUP($C23,'RECAP SECT'!$G$6:$CU$253,11,FALSE) -> 30% | M23: =VLOOKUP($C23,'RECAP SECT'!$G$6:$CU$253,12,FALSE) -> 26% | N23: =VLOOKUP($C23,'RECAP SECT'!$G$6:$CU$253,13,FALSE) -> 9
A24: 160 | B24: MOSELLE | C24: 42 | D24: MOSELLE EST | E24: =VLOOKUP($C24,'RECAP SECT'!$G$6:$CU$253,3,FALSE) -> 60.4 | F24: =VLOOKUP($C24,'RECAP SECT'!$G$6:$CU$253,5,FALSE) -> 16.25 | G24: =VLOOKUP($C24,'RECAP SECT'!$G$6:$CU$253,6,FALSE) -> 41% | H24: =VLOOKUP($C24,'RECAP SECT'!$G$6:$CU$253,7,FALSE) -> 6 | I24: =VLOOKUP($C24,'RECAP SECT'!$G$6:$CU$253,8,FALSE) -> 68% | J24: =VLOOKUP($C24,'RECAP SECT'!$G$6:$CU$253,9,FALSE) -> 9% | K24: =VLOOKUP($C24,'RECAP SECT'!$G$6:$CU$253,10,FALSE) -> 4 | L24: =VLOOKUP($C24,'RECAP SECT'!$G$6:$CU$253,11,FALSE) -> 25% | M24: =VLOOKUP($C24,'RECAP SECT'!$G$6:$CU$253,12,FALSE) -> 21% | N24: =VLOOKUP($C24,'RECAP SECT'!$G$6:$CU$253,13,FALSE) -> 4
A25: 160 | B25: MOSELLE | C25: 44 | D25: MOSELLE NORD | E25: =VLOOKUP($C25,'RECAP SECT'!$G$6:$CU$253,3,FALSE) -> 57.5 | F25: =VLOOKUP($C25,'RECAP SECT'!$G$6:$CU$253,5,FALSE) -> 9.5 | G25: =VLOOKUP($C25,'RECAP SECT'!$G$6:$CU$253,6,FALSE) -> 66% | H25: =VLOOKUP($C25,'RECAP SECT'!$G$6:$CU$253,7,FALSE) -> 12 | I25: =VLOOKUP($C25,'RECAP SECT'!$G$6:$CU$253,8,FALSE) -> 63% | J25: =VLOOKUP($C25,'RECAP SECT'!$G$6:$CU$253,9,FALSE) -> 15% | K25: =VLOOKUP($C25,'RECAP SECT'!$G$6:$CU$253,10,FALSE) -> 8 | L25: =VLOOKUP($C25,'RECAP SECT'!$G$6:$CU$253,11,FALSE) -> 40% | M25: =VLOOKUP($C25,'RECAP SECT'!$G$6:$CU$253,12,FALSE) -> 36% | N25: =VLOOKUP($C25,'RECAP SECT'!$G$6:$CU$253,13,FALSE) -> 12
A26: 80 | B26: VOSGES | C26: 57 | D26: EPINAL | E26: =VLOOKUP($C26,'RECAP SECT'!$G$6:$CU$253,3,FALSE) -> 53.5 | F26: =VLOOKUP($C26,'RECAP SECT'!$G$6:$CU$253,5,FALSE) -> 21 | G26: =VLOOKUP($C26,'RECAP SECT'!$G$6:$CU$253,6,FALSE) -> 24% | H26: =VLOOKUP($C26,'RECAP SECT'!$G$6:$CU$253,7,FALSE) -> 3 | I26: =VLOOKUP($C26,'RECAP SECT'!$G$6:$CU$253,8,FALSE) -> 68% | J26: =VLOOKUP($C26,'RECAP SECT'!$G$6:$CU$253,9,FALSE) -> 8% | K26: =VLOOKUP($C26,'RECAP SECT'!$G$6:$CU$253,10,FALSE) -> 2 | L26: =VLOOKUP($C26,'RECAP SECT'!$G$6:$CU$253,11,FALSE) -> 16% | M26: =VLOOKUP($C26,'RECAP SECT'!$G$6:$CU$253,12,FALSE) -> 12% | N26: =VLOOKUP($C26,'RECAP SECT'!$G$6:$CU$253,13,FALSE) -> 3
A27: 80 | B27: VOSGES | C27: 55 | D27: SAINT DIE | E27: =VLOOKUP($C27,'RECAP SECT'!$G$6:$CU$253,3,FALSE) -> 39.6 | F27: =VLOOKUP($C27,'RECAP SECT'!$G$6:$CU$253,5,FALSE) -> 27.75 | G27: =VLOOKUP($C27,'RECAP SECT'!$G$6:$CU$253,6,FALSE) -> 0% | H27: =VLOOKUP($C27,'RECAP SECT'!$G$6:$CU$253,7,FALSE) -> 1 | I27: =VLOOKUP($C27,'RECAP SECT'!$G$6:$CU$253,8,FALSE) -> 68% | J27: =VLOOKUP($C27,'RECAP SECT'!$G$6:$CU$253,9,FALSE) -> 9% | K27: =VLOOKUP($C27,'RECAP SECT'!$G$6:$CU$253,10,FALSE) -> 3 | L27: =VLOOKUP($C27,'RECAP SECT'!$G$6:$CU$253,11,FALSE) -> 4% | M27: =VLOOKUP($C27,'RECAP SECT'!$G$6:$CU$253,12,FALSE) -> 0% | N27: =VLOOKUP($C27,'RECAP SECT'!$G$6:$CU$253,13,FALSE) -> 1
A28: Total CEGEE Directions Régionales | E28: =SUM(E10:E27) -> 957

Sheet AG_CLASS
B1: Accueil | H1: BAROMETRE BDD - AGENCES
H2: CLASSEMENTS
H3: =ACCUEIL!F7 -> 2022-05-01
H8: CLASSEMENT GENERAL | I8: CRITERE Satisfaction Clients | J8: NPS à froid (SAE) | K8: NPS à chaud (QHD) | L8: CRITERE BANCARISATION | M8: Ventes Nettes produits pondérés | N8: Ventes sur client non détenteur de l’univers | O8: CRITERE EPARGNE | P8: Excédent Epargne hors DAV pondéré | Q8: Ventes sur client non détenteur de l’univers | R8: CRITERE IARD PREVOYANCE | S8: Ventes Nettes produits pondérés | T8: Ventes sur client non détenteur de l’univers | U8: CRITERE CREDITS | V8: Engagements et ventes accessoires pondérés Immo | W8: Engagements et ventes accessoires pondérés Conso | X8: Ventes sur client non détenteur de l’univers
B9: Direction | C9: eds | D9: Territoire | E9: eds | F9: Agence | G9: ="ETP perf "&DATEMAJ!$C$28 -> ETP perf 01-mai | H9: Rang | I9: Rang | J9: Rang | K9: Rang | L9: Rang | M9: Rang | N9: Rang | O9: Rang | P9: Rang | Q9: Rang | R9: Rang | S9: Rang | T9: Rang | U9: Rang | V9: Rang | W9: Rang | X9: Rang
A10: 50 | B10: MOSELLE | C10: 44 | D10: MOSELLE NORD | E10: 557508 | F10: NILVANGE | G10: 1.8 | H10: 1 | I10: 113 | J10: 134 | K10: 50 | L10: 2 | M10: 2 | N10: 2 | O10: 7 | P10: 197 | Q10: 1 | R10: 1 | S10: 1 | T10: 3 | U10: 4 | V10: 6 | W10: 19 | X10: 3
A11: 50 | B11: MEURTHE ET MOSELLE MEUSE | C11: 26 | D11: NANCY | E11: 454171 | F11: BLAMONT | G11: 0.5 | H11: 2 | I11: 241 | J11: 62 | K11: 249 | L11: 1 | M11: 1 | N11: 1 | O11: 16 | P11: 83 | Q11: 4 | R11: 7 | S11: 209 | T11: 1 | U11: 1 | V11: 1 | W11: 2 | X11: 1
A12: 50 | B12: MOSELLE | C12: 42 | D12: MOSELLE EST | E12: 457163 | F12: BEHREN LES FORBACH | G12: 1.9 | H12: 3 | I12: 7 | J12: 17 | K12: 2 | L12: 3 | M12: 6 | N12: 4 | O12: 15 | P12: 89 | Q12: 3 | R12: 69 | S12: 137 | T12: 8 | U12: 3 | V12: 2 | W12: 3 | X12: 4
A13: 50 | B13: MARNE ARDENNES | C13: 2 | D13: CHARLEVILLE MEZIERES | E13: 508820 | F13: VOUZIERS | G13: 2.9 | H13: 4 | I13: 12 | J13: 6 | K13: 83 | L13: 79 | M13: 80 | N13: 91 | O13: 43 | P13: 33 | Q13: 151 | R13: 2 | S13: 2 | T13: 9 | U13: 84 | V13: 114 | W13: 20 | X13: 91
A14: 50 | B14: MEURTHE ET MOSELLE MEUSE | C14: 26 | D14: NANCY | E14: 554601 | F14: SAINT MAX | G14: 3.7 | H14: 5 | I14: 8 | J14: 10 | K14: 29 | L14: 42 | M14: 44 | N14: 71 | O14: 30 | P14: 32 | Q14: 94 | R14: 25 | S14: 23 | T14: 56 | U14: 19 | V14: 16 | W14: 42 | X14: 59
A15: 50 | B15: MARNE ARDENNES | C15: 6 | D15: CHALONS EN CHAMPAGNE | E15: 551330 | F15: MONTMIRAIL | G15: 2.7 | H15: 6 | I15: 28 | J15: 37 | K15: 23 | L15: 15 | M15: 10 | N15: 55 | O15: 54 | P15: 57 | Q15: 65 | R15: 11 | S15: 10 | T15: 17 | U15: 60 | V15: 49 | W15: 167 | X15: 61
A16: 50 | B16: MARNE ARDENNES | C16: 11 | D16: REIMS | E16: 551305 | F16: REIMS HIPPODROME | G16: 5.4 | H16: 7 | I16: 66 | J16: 71 | K16: 52 | L16: 40 | M16: 86 | N16: 9 | O16: 8 | P16: 8 | Q16: 67 | R16: 23 | S16: 27 | T16: 22 | U16: 26 | V16: 37 | W16: 73 | X16: 15
A17: 50 | B17: MOSELLE | C17: 45 | D17: METZ | E17: 457443 | F17: METZ REPUBLIQUE | G17: 3.7 | H17: 8 | I17: 11 | J17: 18 | K17: 6 | L17: 190 | M17: 177 | N17: 187 | O17: 4 | P17: 4 | Q17: 132 | R17: 19 | S17: 14 | T17: 51 | U17: 213 | V17: 207 | W17: 178 | X17: 192
A18: 50 | B18: VOSGES | C18: 57 | D18: EPINAL | E18: 488288 | F18: EPINAL LEOPOLD BOURG | G18: 2.0 | H18: 9 | I18: 39 | J18: 67 | K18: 3 | L18: 31 | M18: 20 | N18: 113 | O18: 19 | P18: 18 | Q18: 95 | R18: 38 | S18: 20 | T18: 181 | U18: 45 | V18: 48 | W18: 61 | X18: 46
A19: 50 | B19: MARNE ARDENNES | C19: 2 | D19: CHARLEVILLE MEZIERES | E19: 408801 | F19: CHARLEVILLE JEAN JAURES | G19: 8.8 | H19: 10 | I19: 35 | J19: 49 | K19: 14 | L19: 45 | M19: 61 | N19: 41 | O19: 65 | P19: 87 | Q19: 32 | R19: 31 | S19: 25 | T19: 75 | U19: 16 | V19: 15 | W19: 188 | X19: 17
A20: 50 | B20: BAS RHIN | C20: 5006 | D20: STRASBOURG | E20: 4038 | F20: OBERHAUSBERGEN | G20: 2.9 | H20: 11 | I20: 44 | J20: 39 | K20: 88 | L20: 32 | M20: 45 | N20: 20 | O20: 3 | P20: 7 | Q20: 14 | R20: 193 | S20: 219 | T20: 30 | U20: 25 | V20: 21 | W20: 53 | X20: 44
A21: 50 | B21: MARNE ARDENNES | C21: 11 | D21: REIMS | E21: 551349 | F21: REIMS SAINT REMI | G21: 2.9 | H21: 12 | I21: 75 | J21: 68 | K21: 92 | L21: 4 | M21: 5 | N21: 7 | O21: 227 | P21: 234 | Q21: 21 | R21: 24 | S21: 38 | T21: 15 | U21: 7 | V21: 7 | W21: 82 | X21: 10
A22: 50 | B22: MOSELLE | C22: 42 | D22: MOSELLE EST | E22: 457165 | F22: BITCHE | G22: 2.4 | H22: 13 | I22: 91 | J22: 116 | K22: 58 | L22: 6 | M22: 4 | N22: 44 | O22: 64 | P22: 121 | Q22: 12 | R22: 14 | S22: 8 | T22: 45 | U22: 93 | V22: 86 | W22: 27 | X22: 173
A23: 50 | B23: MOSELLE | C23: 45 | D23: METZ | E23: 457453 | F23: MONTIGNY LES METZ | G23: 6.9 | H23: 14 | I23: 9 | J23: 15 | K23: 13 | L23: 58 | M23: 55 | N23: 114 | O23: 66 | P23: 97 | Q23: 17 | R23: 93 | S23: 80 | T23: 153 | U23: 72 | V23: 94 | W23: 72 | X23: 58
A24: 50 | B24: MEURTHE ET MOSELLE MEUSE | C24: 27 | D24: PONT A MOUSSON | E24: 554531 | F24: POMPEY | G24: 2.6 | H24: 15 | I24: 218 | J24: 182 | K24: 209 | L24: 11 | M24: 27 | N24: 3 | O24: 34 | P24: 71 | Q24: 11 | R24: 27 | S24: 51 | T24: 7 | U24: 5 | V24: 3 | W24: 9 | X24: 7
A25: 50 | B25: MOSELLE | C25: 45 | D25: METZ | E25: 457574 | F25: ROMBAS | G25: 3.3 | H25: 16 | I25: 18 | J25: 20 | K25: 34 | L25: 60 | M25: 62 | N25: 95 | O25: 80 | P25: 101 | Q25: 28 | R25: 33 | S25: 22 | T25: 117 | U25: 151 | V25: 170 | W25: 85 | X25: 149
A26: 50 | B26: MARNE ARDENNES | C26: 11 | D26: REIMS | E26: 551365 | F26: DORMANS | G26: 2.6 | H26: 17 | I26: 68 | J26: 52 | K26: 112 | L26: 9 | M26: 9 | N26: 30 | O26: 128 | P26: 160 | Q26: 20 | R26: 48 | S26: 47 | T26: 54 | U26: 22 | V26: 23 | W26: 160 | X26: 13
A27: 50 | B27: BAS RHIN | C27: 5006 | D27: STRASBOURG | E27: 4010 | F27: STRASBOURG MEINAU | G27: 2.7 | H27: 18 | I27: 17 | J27: 5 | K27: 138 | L27: 157 | M27: 188 | N27: 72 | O27: 69 | P27: 63 | Q27: 108 | R27: 9 | S27: 12 | T27: 13 | U27: 180 | V27: 219 | W27: 12 | X27: 198
A28: 262 | B28: BAS RHIN | C28: 5101 | D28: SELESTAT | E28: 4113 | F28: BARR | G28: 2.9 | H28: 19 | I28: 3 | J28: 7 | K28: 5 | L28: 18 | M28: 12 | N28: 68 | O28: 219 | P28: 230 | Q28: 22 | R28: 119 | S28: 99 | T28: 191 | U28: 50 | V28: 25 | W28: 245 | X28: 40
A29: 262 | B29: MOSELLE | C29: 45 | D29: METZ | E29: 557447 | F29: METZ SAINT MAXIMIN | G29: 1.9 | H29: 20 | I29: 128 | J29: 120 | K29: 136 | L29: 27 | M29: 47 | N29: 11 | O29: 47 | P29: 124 | Q29: 5 | R29: 4 | S29: 4 | T29: 10 | U29: 56 | V29: 56 | W29: 48 | X29: 84
A30: 262 | B30: MOSELLE | C30: 44 | D30: MOSELLE NORD | E30: 457348 | F30: HAGONDANGE | G30: 7.8 | H30: 21 | I30: 36 | J30: 28 | K30: 99 | L30: 44 | M30: 49 | N30: 60 | O30: 106 | P30: 117 | Q30: 73 | R30: 39 | S30: 36 | T30: 73 | U30: 43 | V30: 41 | W30: 87 | X30: 53
A31: 262 | B31: MARNE ARDENNES | C31: 2 | D31: CHARLEVILLE MEZIERES | E31: 508839 | F31: GIVET | G31: 3.2 | H31: 22 | I31: 51 | J31: 52 | K31: 62 | L31: 51 | M31: 75 | N31: 35 | O31: 173 | P31: 194 | Q31: 44 | R31: 16 | S31: 15 | T31: 27 | U31: 27 | V31: 22 | W31: 108 | X31: 33
A32: 262 | B32: MARNE ARDENNES | C32: 11 | D32: REIMS | E32: 451301 | F32: REIMS HOTEL DE VILLE | G32: 7.4 | H32: 23 | I32: 98 | J32: 104 | K32: 91 | L32: 70 | M32: 67 | N32: 109 | O32: 52 | P32: 70 | Q32: 37 | R32: 12 | S32: 5 | T32: 36 | U32: 44 | V32: 35 | W32: 109 | X32: 69
A33: 262 | B33: BAS RHIN | C33: 5060 | D33: HAGUENAU | E33: 4031 | F33: TRUCHTERSHEIM | G33: 2.3 | H33: 24 | I33: 1 | J33: 1 | K33: 40 | L33: 81 | M33: 40 | N33: 232 | O33: 22 | P33: 11 | Q33: 236 | R33: 235 | S33: 227 | T33: 243 | U33: 206 | V33: 172 | W33: 230 | X33: 223
A34: 262 | B34: MEURTHE ET MOSELLE MEUSE | C34: 26 | D34: NANCY | E34: 554476 | F34: NANCY ARTEM | G34: 2.8 | H34: 25 | I34: 57 | J34: 61 | K34: 55 | L34: 25 | M34: 36 | N34: 25 | O34: 198 | P34: 201 | Q34: 160 | R34: 82 | S34: 76 | T34: 134 | U34: 6 | V34: 9 | W34: 134 | X34: 8
A35: 262 | B35: MEURTHE ET MOSELLE MEUSE | C35: 31 | D35: VERDUN | E35: 455676 | F35: VAUCOULEURS | G35: 0.3 | H35: 26 | I35: 142 | J35: 182 | K35: 80 | L35: 249 | M35: 249 | N35: 22 | O35: 108 | P35: 236 | Q35: 2 | R35: 3 | S35: 24 | T35: 2 | U35: 2 | V35: 13 | W35: 1 | X35: 2
A36: 262 | B36: MARNE ARDENNES | C36: 6 | D36: CHALONS EN CHAMPAGNE | E36: 451115 | F36: MOURMELON LE GRAND | G36: 2.7 | H36: 27 | I36: 76 | J36: 116 | K36: 15 | L36: 46 | M36: 58 | N36: 46 | O36: 28 | P36: 49 | Q36: 18 | R36: 46 | S36: 52 | T36: 39 | U36: 81 | V36: 112 | W36: 16 | X36: 99
A37: 262 | B37: BAS RHIN | C37: 5006 | D37: STRASBOURG | E37: 4048 | F37: STRASBOURG KOENIGSHOFFEN | G37: 2.2 | H37: 28 | I37: 155 | J37: 182 | K37: 121 | L37: 17 | M37: 18 | N37: 21 | O37: 33 | P37: 73 | Q37: 10 | R37: 8 | S37: 32 | T37: 4 | U37: 77 | V37: 127 | W37: 65 | X37: 30
A38: 262 | B38: BAS RHIN | C38: 5006 | D38: STRASBOURG | E38: 4037 | F38: MUNDOLSHEIM | G38: 3.7 | H38: 29 | I38: 49 | J38: 44 | K38: 75 | L38: 54 | M38: 85 | N38: 28 | O38: 145 | P38: 171 | Q38: 39 | R38: 17 | S38: 17 | T38: 23 | U38: 58 | V38: 85 | W38: 162 | X38: 21
A39: 262 | B39: MARNE ARDENNES | C39: 6 | D39: CHALONS EN CHAMPAGNE | E39: 451120 | F39: SARRY | G39: 2.3 | H39: 30 | I39: 20 | J39: 25 | K39: 16 | L39: 41 | M39: 35 | N39: 116 | O39: 137 | P39: 154 | Q39: 62 | R39: 114 | S39: 95 | T39: 177 | U39: 59 | V39: 50 | W39: 124 | X39: 74
A40: 262 | B40: MOSELLE | C40: 44 | D40: MOSELLE NORD | E40: 457350 | F40: HAYANGE | G40: 6.9 | H40: 31 | I40: 93 | J40: 66 | K40: 156 | L40: 20 | M40: 14 | N40: 57 | O40: 91 | P40: 110 | Q40: 24 | R40: 37 | S40: 37 | T40: 50 | U40: 52 | V40: 44 | W40: 154 | X40: 50
A41: 262 | B41: MEURTHE ET MOSELLE MEUSE | C41: 31 | D41: VERDUN | E41: 455678 | F41: VERDUN CENTRALE | G41: 8.6 | H41: 32 | I41: 21 | J41: 11 | K41: 85 | L41: 80 | M41: 88 | N41: 63 | O41: 178 | P41: 176 | Q41: 125 | R41: 139 | S41: 146 | T41: 123 | U41: 13 | V41: 12 | W41: 71 | X41: 24
A42: 262 | B42: MOSELLE | C42: 44 | D42: MOSELLE NORD | E42: 557113 | F42: AUDUN LE TICHE | G42: 2.2 | H42: 33 | I42: 112 | J42: 182 | K42: 9 | L42: 49 | M42: 99 | N42: 15 | O42: 95 | P42: 152 | Q42: 6 | R42: 30 | S42: 40 | T42: 21 | U42: 14 | V42: 14 | W42: 79 | X42: 31
A43: 262 | B43: MOSELLE | C43: 45 | D43: METZ | E43: 557439 | F43: METZ POMPIDOU | G43: 2.7 | H43: 34 | I43: 40 | J43: 35 | K43: 102 | L43: 91 | M43: 125 | N43: 37 | O43: 17 | P43: 16 | Q43: 97 | R43: 96 | S43: 98 | T43: 93 | U43: 137 | V43: 169 | W43: 55 | X43: 125
A44: 262 | B44: VOSGES | C44: 57 | D44: EPINAL | E44: 588336 | F44: GOLBEY | G44: 2.8 | H44: 35 | I44: 25 | J44: 18 | K44: 81 | L44: 108 | M44: 109 | N44: 134 | O44: 25 | P44: 23 | Q44: 87 | R44: 108 | S44: 109 | T44: 121 | U44: 170 | V44: 206 | W44: 131 | X44: 82
A45: 262 | B45: MEURTHE ET MOSELLE MEUSE | C45: 31 | D45: VERDUN | E45: 555679 | F45: VERDUN MAZEL | G45: 3.5 | H45: 36 | I45: 13 | J45: 12 | K45: 19 | L45: 85 | M45: 72 | N45: 127 | O45: 123 | P45: 116 | Q45: 157 | R45: 133 | S45: 120 | T45: 176 | U45: 85 | V45: 61 | W45: 187 | X45: 116
A46: 262 | B46: MOSELLE | C46: 42 | D46: MOSELLE EST | E46: 557668 | F46: VALMONT | G46: 2.5 | H46: 37 | I46: 42 | J46: 32 | K46: 118 | L46: 121 | M46: 126 | N46: 119 | O46: 11 | P46: 9 | Q46: 159 | R46: 112 | S46: 105 | T46: 150 | U46: 135 | V46: 141 | W46: 90 | X46: 137
A47: 262 | B47: MARNE ARDENNES | C47: 11 | D47: REIMS | E47: 551340 | F47: BETHENY | G47: 2.8 | H47: 38 | I47: 52 | J47: 47 | K47: 72 | L47: 38 | M47: 50 | N47: 39 | O47: 85 | P47: 111 | Q47: 19 | R47: 180 | S47: 176 | T47: 159 | U47: 17 | V47: 10 | W47: 184 | X47: 71
A48: 262 | B48: MOSELLE | C48: 45 | D48: METZ | E48: 557434 | F48: MARLY | G48: 3.1 | H48: 39 | I48: 22 | J48: 21 | K48: 37 | L48: 123 | M48: 110 | N48: 180 | O48: 26 | P48: 19 | Q48: 174 | R48: 141 | S48: 127 | T48: 193 | U48: 138 | V48: 142 | W48: 183 | X48: 93
A49: 262 | B49: MEURTHE ET MOSELLE MEUSE | C49: 26 | D49: NANCY | E49: 554356 | F49: JARVILLE LA MALGRANGE | G49: 4.2 | H49: 40 | I49: 143 | J49: 128 | K49: 139 | L49: 7 | M49: 7 | N49: 29 | O49: 142 | P49: 155 | Q49: 69 | R49: 28 | S49: 31 | T49: 38 | U49: 29 | V49: 34 | W49: 104 | X49: 22
A50: 262 | B50: MEURTHE ET MOSELLE MEUSE | C50: 31 | D50: VERDUN | E50: 554413 | F50: LONGWY BAS | G50: 3.7 | H50: 41 | I50: 24 | J50: 23 | K50: 35 | L50: 66 | M50: 63 | N50: 104 | O50: 107 | P50: 84 | Q50: 192 | R50: 116 | S50: 91 | T50: 192 | U50: 88 | V50: 75 | W50: 54 | X50: 161
A51: 262 | B51: MARNE ARDENNES | C51: 11 | D51: REIMS | E51: 451350 | F51: REIMS CENTRE VILLE | G51: 6.7 | H51: 42 | I51: 150 | J51: 155 | K51: 128 | L51: 13 | M51: 16 | N51: 18 | O51: 189 | P51: 206 | Q51: 52 | R51: 29 | S51: 28 | T51: 44 | U51: 9 | V51: 11 | W51: 8 | X51: 9
A52: 262 | B52: VOSGES | C52: 55 | D52: SAINT DIE | E52: 488246 | F52: CORNIMONT LA BRESSE | G52: 2.4 | H52: 43 | I52: 2 | J52: 2 | K52: 51 | L52: 95 | M52: 107 | N52: 80 | O52: 168 | P52: 145 | Q52: 218 | R52: 87 | S52: 75 | T52: 152 | U52: 230 | V52: 249 | W52: 68 | X52: 151
A53: 262 | B53: MARNE ARDENNES | C53: 11 | D53: REIMS | E53: 551367 | F53: AY CHAMPAGNE | G53: 2.7 | H53: 44 | I53: 34 | J53: 33 | K53: 82 | L53: 139 | M53: 150 | N53: 117 | O53: 83 | P53: 51 | Q53: 226 | R53: 84 | S53: 78 | T53: 128 | U53: 47 | V53: 26 | W53: 212 | X53: 64
A54: 262 | B54: BAS RHIN | C54: 5060 | D54: HAGUENAU | E54: 4079 | F54: SOULTZ SOUS FORETS | G54: 1.8 | H54: 45 | I54: 38 | J54: 84 | K54: 1 | L54: 39 | M54: 32 | N54: 103 | O54: 38 | P54: 36 | Q54: 99 | R54: 95 | S54: 102 | T54: 84 | U54: 232 | V54: 233 | W54: 96 | X54: 237
A55: 262 | B55: VOSGES | C55: 57 | D55: EPINAL | E55: 488561 | F55: REMIREMONT | G55: 7.0 | H55: 46 | I55: 4 | J55: 4 | K55: 57 | L55: 131 | M55: 103 | N55: 215 | O55: 154 | P55: 143 | Q55: 171 | R55: 104 | S55: 69 | T55: 237 | U55: 161 | V55: 147 | W55: 213 | X55: 126
A56: 262 | B56: MOSELLE | C56: 42 | D56: MOSELLE EST | E56: 457583 | F56: SAINT AVOLD | G56: 7.1 | H56: 47 | I56: 69 | J56: 68 | K56: 69 | L56: 23 | M56: 19 | N56: 88 | O56: 94 | P56: 90 | Q56: 64 | R56: 66 | S56: 73 | T56: 70 | U56: 125 | V56: 133 | W56: 113 | X56: 108
A57: 262 | B57: MOSELLE | C57: 42 | D57: MOSELLE EST | E57: 457308 | F57: FORBACH CENTRALE | G57: 9.2 | H57: 48 | I57: 92 | J57: 93 | K57: 106 | L57: 19 | M57: 17 | N57: 47 | O57: 101 | P57: 105 | Q57: 68 | R57: 45 | S57: 42 | T57: 65 | U57: 98 | V57: 118 | W57: 32 | X57: 109
A58: 262 | B58: MOSELLE | C58: 42 | D58: MOSELLE EST | E58: 557210 | F58: CHATEAU SALINS | G58: 1.1 | H58: 49 | I58: 133 | J58: 182 | K58: 61 | L58: 111 | M58: 151 | N58: 38 | O58: 21 | P58: 15 | Q58: 137 | R58: 32 | S58: 35 | T58: 40 | U58: 48 | V58: 78 | W58: 6 | X58: 89
A59: 262 | B59: BAS RHIN | C59: 5006 | D59: STRASBOURG | E59: 4043 | F59: STRASBOURG HALLES | G59: 7.2 | H59: 50 | I59: 141 | J59: 182 | K59: 79 | L59: 33 | M59: 41 | N59: 27 | O59: 71 | P59: 93 | Q59: 26 | R59: 10 | S59: 13 | T59: 11 | U59: 136 | V59: 123 | W59: 218 | X59: 103
A60: 262 | B60: MOSELLE | C60: 42 | D60: MOSELLE EST | E60: 557250 | F60: CREUTZWALD | G60: 2.4 | H60: 51 | I60: 26 | J60: 21 | K60: 48 | L60: 188 | M60: 189 | N60: 145 | O60: 116 | P60: 150 | Q60: 27 | R60: 64 | S60: 55 | T60: 127 | U60: 87 | V60: 111 | W60: 10 | X60: 159
A61: 262 | B61: MARNE ARDENNES | C61: 2 | D61: CHARLEVILLE MEZIERES | E61: 408862 | F61: REVIN | G61: 3.3 | H61: 52 | I61: 23 | J61: 29 | K61: 18 | L61: 141 | M61: 143 | N61: 142 | O61: 185 | P61: 189 | Q61: 109 | R61: 56 | S61: 58 | T61: 67 | U61: 75 | V61: 90 | W61: 117 | X61: 55
A62: 262 | B62: MEURTHE ET MOSELLE MEUSE | C62: 27 | D62: PONT A MOUSSON | E62: 554516 | F62: PAGNY SUR MOSELLE | G62: 2.8 | H62: 53 | I62: 61 | J62: 29 | K62: 169 | L62: 146 | M62: 135 | N62: 190 | O62: 42 | P62: 29 | Q62: 198 | R62: 74 | S62: 92 | T62: 48 | U62: 71 | V62: 40 | W62: 153 | X62: 166
A63: 262 | B63: MOSELLE | C63: 44 | D63: MOSELLE NORD | E63: 557303 | F63: FAMECK | G63: 2.4 | H63: 54 | I63: 46 | J63: 56 | K63: 39 | L63: 133 | M63: 204 | N63: 8 | O63: 70 | P63: 88 | Q63: 35 | R63: 171 | S63: 182 | T63: 118 | U63: 24 | V63: 45 | W63: 41 | X63: 14
A64: 262 | B64: AUBE HAUTE MARNE | C64: 14 | D64: TROYES | E64: 510570 | F64: NOGENT SUR SEINE | G64: 4.7 | H64: 55 | I64: 6 | J64: 3 | K64: 107 | L64: 90 | M64: 100 | N64: 84 | O64: 226 | P64: 229 | Q64: 88 | R64: 110 | S64: 87 | T64: 184 | U64: 74 | V64: 47 | W64: 177 | X64: 130
A65: 262 | B65: VOSGES | C65: 55 | D65: SAINT DIE | E65: 588666 | F65: VAGNEY | G65: 3.2 | H65: 56 | I65: 15 | J65: 14 | K65: 45 | L65: 110 | M65: 78 | N65: 222 | O65: 57 | P65: 38 | Q65: 167 | R65: 204 | S65: 183 | T65: 238 | U65: 174 | V65: 198 | W65: 92 | X65: 138
A66: 262 | B66: MEURTHE ET MOSELLE MEUSE | C66: 27 | D66: PONT A MOUSSON | E66: 554506 | F66: CHALIGNY NEUVES MAISONS | G66: 3.5 | H66: 57 | I66: 180 | J66: 140 | K66: 199 | L66: 12 | M66: 13 | N66: 10 | O66: 210 | P66: 218 | Q66: 63 | R66: 5 | S66: 3 | T66: 20 | U66: 28 | V66: 43 | W66: 23 | X66: 23
A67: 262 | B67: AUBE HAUTE MARNE | C67: 21 | D67: CHAUMONT | E67: 510590 | F67: CHAUMONT REPUBLIQUE | G67: 2.8 | H67: 58 | I67: 81 | J67: 77 | K67: 96 | L67: 173 | M67: 186 | N67: 118 | O67: 72 | P67: 79 | Q67: 58 | R67: 22 | S67: 16 | T67: 69 | U67: 73 | V67: 135 | W67: 26 | X67: 29
A68: 262 | B68: MOSELLE | C68: 45 | D68: METZ | E68: 457446 | F68: METZ SAINT LOUIS | G68: 5.4 | H68: 59 | I68: 110 | J68: 114 | K68: 90 | L68: 68 | M68: 84 | N68: 53 | O68: 62 | P68: 81 | Q68: 36 | R68: 61 | S68: 57 | T68: 99 | U68: 49 | V68: 46 | W68: 125 | X68: 43
A69: 262 | B69: MARNE ARDENNES | C69: 6 | D69: CHALONS EN CHAMPAGNE | E69: 551103 | F69: FAGNIERES LECLERC | G69: 2.9 | H69: 60 | I69: 58 | J69: 78 | K69: 27 | L69: 199 | M69: 193 | N69: 172 | O69: 150 | P69: 177 | Q69: 41 | R69: 13 | S69: 7 | T69: 37 | U69: 69 | V69: 79 | W69: 36 | X69: 98
A70: 262 | B70: MOSELLE | C70: 45 | D70: METZ | E70: 557441 | F70: METZ PLAPPEVILLE | G70: 2.1 | H70: 61 | I70: 166 | J70: 140 | K70: 184 | L70: 98 | M70: 118 | N70: 67 | O70: 1 | P70: 1 | Q70: 60 | R70: 127 | S70: 130 | T70: 107 | U70: 149 | V70: 196 | W70: 31 | X70: 119
A71: 262 | B71: BAS RHIN | C71: 5101 | D71: SELESTAT | E71: 4104 | F71: ERSTEIN | G71: 4.3 | H71: 62 | I71: 211 | J71: 182 | K71: 197 | L71: 5 | M71: 3 | N71: 56 | O71: 121 | P71: 133 | Q71: 70 | R71: 21 | S71: 9 | T71: 149 | U71: 66 | V71: 58 | W71: 150 | X71: 77
A72: 262 | B72: MOSELLE | C72: 44 | D72: MOSELLE NORD | E72: 457632 | F72: THIONVILLE CENTRALE | G72: 11.0 | H72: 63 | I72: 125 | J72: 155 | K72: 77 | L72: 24 | M72: 25 | N72: 61 | O72: 151 | P72: 169 | Q72: 46 | R72: 20 | S72: 19 | T72: 46 | U72: 57 | V72: 63 | W72: 120 | X72: 42
A73: 262 | B73: MARNE ARDENNES | C73: 11 | D73: REIMS | E73: 451361 | F73: PIERRY LECLERC | G73: 1.9 | H73: 64 | I73: 115 | J73: 116 | K73: 113 | L73: 28 | M73: 26 | N73: 62 | O73: 55 | P73: 54 | Q73: 89 | R73: 140 | S73: 125 | T73: 200 | U73: 41 | V73: 24 | W73: 185 | X73: 62
A74: 262 | B74: MEURTHE ET MOSELLE MEUSE | C74: 26 | D74: NANCY | E74: 454481 | F74: NANCY PLACE DOMBASLE | G74: 7.5 | H74: 65 | I74: 214 | J74: 175 | K74: 206 | L74: 48 | M74: 98 | N74: 16 | O74: 13 | P74: 27 | Q74: 8 | R74: 155 | S74: 186 | T74: 55 | U74: 8 | V74: 5 | W74: 156 | X74: 11
A75: 264 | B75: MOSELLE | C75: 42 | D75: MOSELLE EST | E75: 557523 | F75: PHALSBOURG | G75: 2.1 | H75: 66 | I75: 67 | J75: 52 | K75: 105 | L75: 215 | M75: 221 | N75: 110 | O75: 35 | P75: 34 | Q75: 72 | R75: 40 | S75: 21 | T75: 175 | U75: 124 | V75: 105 | W75: 52 | X75: 209
A76: 264 | B76: MOSELLE | C76: 44 | D76: MOSELLE NORD | E76: 557660 | F76: UCKANGE | G76: 1.7 | H76: 67 | I76: 237 | J76: 182 | K76: 233 | L76: 16 | M76: 24 | N76: 13 | O76: 160 | P76: 213 | Q76: 9 | R76: 6 | S76: 11 | T76: 5 | U76: 15 | V76: 59 | W76: 46 | X76: 5
A77: 264 | B77: MARNE ARDENNES | C77: 11 | D77: REIMS | E77: 451370 | F77: EPERNAY | G77: 8.5 | H77: 68 | I77: 59 | J77: 68 | K77: 41 | L77: 82 | M77: 76 | N77: 108 | O77: 115 | P77: 134 | Q77: 59 | R77: 120 | S77: 128 | T77: 105 | U77: 64 | V77: 73 | W77: 81 | X77: 51
A78: 264 | B78: BAS RHIN | C78: 5060 | D78: HAGUENAU | E78: 4092 | F78: HOCHFELDEN | G78: 2.0 | H78: 69 | I78: 87 | J78: 93 | K78: 74 | L78: 78 | M78: 73 | N78: 102 | O78: 67 | P78: 43 | Q78: 209 | R78: 62 | S78: 59 | T78: 90 | U78: 156 | V78: 158 | W78: 172 | X78: 135
A79: 264 | B79: VOSGES | C79: 55 | D79: SAINT DIE | E79: 488326 | F79: GERARDMER | G79: 3.8 | H79: 70 | I79: 72 | J79: 49 | K79: 123 | L79: 129 | M79: 119 | N79: 164 | O79: 49 | P79: 39 | Q79: 118 | R79: 118 | S79: 111 | T79: 142 | U79: 91 | V79: 97 | W79: 99 | X79: 83
A80: 264 | B80: MARNE ARDENNES | C80: 6 | D80: CHALONS EN CHAMPAGNE | E80: 551354 | F80: VERTUS | G80: 2.0 | H80: 71 | I80: 16 | J80: 25 | K80: 4 | L80: 155 | M80: 123 | N80: 238 | O80: 59 | P80: 46 | Q80: 147 | R80: 211 | S80: 218 | T80: 162 | U80: 164 | V80: 148 | W80: 133 | X80: 190
A81: 264 | B81: BAS RHIN | C81: 5006 | D81: STRASBOURG | E81: 4047 | F81: STRASBOURG CRONENBOURG | G81: 4.5 | H81: 72 | I81: 80 | J81: 87 | K81: 76 | L81: 53 | M81: 51 | N81: 106 | O81: 119 | P81: 146 | Q81: 43 | R81: 89 | S81: 85 | T81: 87 | U81: 94 | V81: 65 | W81: 202 | X81: 112
A82: 264 | B82: MARNE ARDENNES | C82: 11 | D82: REIMS | E82: 551306 | F82: REIMS SAINT MARCEAUX | G82: 4.6 | H82: 73 | I82: 121 | J82: 182 | K82: 26 | L82: 8 | M82: 8 | N82: 26 | O82: 236 | P82: 241 | Q82: 29 | R82: 49 | S82: 54 | T82: 47 | U82: 18 | V82: 18 | W82: 161 | X82: 18
A83: 264 | B83: MOSELLE | C83: 45 | D83: METZ | E83: 557105 | F83: ARS SUR MOSELLE | G83: 3.7 | H83: 74 | I83: 64 | J83: 36 | K83: 158 | L83: 71 | M83: 74 | N83: 79 | O83: 163 | P83: 178 | Q83: 71 | R83: 115 | S83: 133 | T83: 77 | U83: 42 | V83: 52 | W83: 44 | X83: 38
A84: 264 | B84: VOSGES | C84: 57 | D84: EPINAL | E84: 488706 | F84: VITTEL | G84: 2.8 | H84: 75 | I84: 41 | J84: 45 | K84: 43 | L84: 153 | M84: 140 | N84: 184 | O84: 103 | P84: 75 | Q84: 214 | R84: 97 | S84: 107 | T84: 78 | U84: 140 | V84: 211 | W84: 101 | X84: 36
A85: 264 | B85: MOSELLE | C85: 44 | D85: MOSELLE NORD | E85: 557347 | F85: GUENANGE | G85: 4.6 | H85: 76 | I85: 173 | J85: 176 | K85: 164 | L85: 22 | M85: 15 | N85: 93 | O85: 76 | P85: 72 | Q85: 83 | R85: 63 | S85: 72 | T85: 61 | U85: 51 | V85: 62 | W85: 129 | X85: 27
A86: 264 | B86: MOSELLE | C86: 42 | D86: MOSELLE EST | E86: 557305 | F86: FAULQUEMONT | G86: 4.4 | H86: 77 | I86: 158 | J86: 104 | K86: 212 | L86: 29 | M86: 33 | N86: 34 | O86: 149 | P86: 163 | Q86: 47 | R86: 58 | S86: 74 | T86: 42 | U86: 21 | V86: 30 | W86: 132 | X86: 12
A87: 264 | B87: MEURTHE ET MOSELLE MEUSE | C87: 31 | D87: VERDUN | E87: 454414 | F87: LONGWY HAUT | G87: 3.3 | H87: 78 | I87: 94 | J87: 84 | K87: 126 | L87: 75 | M87: 83 | N87: 65 | O87: 122 | P87: 113 | Q87: 145 | R87: 50 | S87: 50 | T87: 52 | U87: 121 | V87: 144 | W87: 138 | X87: 70
A88: 264 | B88: HAUT RHIN | C88: 5130 | D88: COLMAR | E88: 4132 | F88: COLMAR MARAICHERS | G88: 3.7 | H88: 79 | I88: 65 | J88: 57 | K88: 93 | L88: 92 | M88: 91 | N88: 107 | O88: 75 | P88: 74 | Q88: 75 | R88: 92 | S88: 77 | T88: 167 | U88: 214 | V88: 205 | W88: 175 | X88: 212
A89: 264 | B89: AUBE HAUTE MARNE | C89: 21 | D89: CHAUMONT | E89: 451154 | F89: JOINVILLE | G89: 1.8 | H89: 80 | I89: 29 | J89: 33 | K89: 53 | L89: 62 | M89: 68 | N89: 69 | O89: 240 | P89: 239 | Q89: 221 | R89: 26 | S89: 29 | T89: 29 | U89: 129 | V89: 203 | W89: 130 | X89: 28
A90: 264 | B90: VOSGES | C90: 55 | D90: SAINT DIE | E90: 588551 | F90: RAMBERVILLERS | G90: 2.6 | H90: 81 | I90: 33 | J90: 29 | K90: 78 | L90: 213 | M90: 222 | N90: 92 | O90: 39 | P90: 24 | Q90: 200 | R90: 216 | S90: 213 | T90: 225 | U90: 53 | V90: 70 | W90: 83 | X90: 32
A91: 264 | B91: MARNE ARDENNES | C91: 6 | D91: CHALONS EN CHAMPAGNE | E91: 551128 | F91: SAINTE MENEHOULD | G91: 3.4 | H91: 82 | I91: 45 | J91: 38 | K91: 94 | L91: 64 | M91: 29 | N91: 239 | O91: 191 | P91: 172 | Q91: 205 | R91: 65 | S91: 49 | T91: 140 | U91: 173 | V91: 146 | W91: 118 | X91: 220
A92: 264 | B92: MARNE ARDENNES | C92: 2 | D92: CHARLEVILLE MEZIERES | E92: 408840 | F92: RETHEL | G92: 4.2 | H92: 83 | I92: 146 | J92: 128 | K92: 157 | L92: 34 | M92: 23 | N92: 123 | O92: 141 | P92: 140 | Q92: 126 | R92: 57 | S92: 46 | T92: 112 | U92: 37 | V92: 32 | W92: 56 | X92: 76
A93: 264 | B93: MARNE ARDENNES | C93: 11 | D93: REIMS | E93: 551314 | F93: FISMES | G93: 2.6 | H93: 84 | I93: 86 | J93: 125 | K93: 12 | L93: 30 | M93: 39 | N93: 24 | O93: 155 | P93: 175 | Q93: 54 | R93: 205 | S93: 207 | T93: 114 | U93: 30 | V93: 19 | W93: 176 | X93: 41
A94: 264 | B94: BAS RHIN | C94: 5060 | D94: HAGUENAU | E94: 4071 | F94: WISSEMBOURG | G94: 6.5 | H94: 85 | I94: 31 | J94: 41 | K94: 25 | L94: 132 | M94: 128 | N94: 130 | O94: 109 | P94: 104 | Q94: 107 | R94: 109 | S94: 124 | T94: 92 | U94: 234 | V94: 228 | W94: 171 | X94: 215
A95: 264 | B95: MARNE ARDENNES | C95: 2 | D95: CHARLEVILLE MEZIERES | E95: 408822 | F95: CHARLEVILLE MEZIERES | G95: 5.2 | H95: 86 | I95: 203 | J95: 182 | K95: 190 | L95: 181 | M95: 213 | N95: 33 | O95: 10 | P95: 22 | Q95: 7 | R95: 53 | S95: 67 | T95: 26 | U95: 38 | V95: 42 | W95: 221 | X95: 20
A96: 264 | B96: MEURTHE ET MOSELLE MEUSE | C96: 26 | D96: NANCY | E96: 554636 | F96: TOMBLAINE | G96: 2.8 | H96: 87 | I96: 62 | J96: 78 | K96: 33 | L96: 69 | M96: 69 | N96: 87 | O96: 93 | P96: 91 | Q96: 61 | R96: 137 | S96: 144 | T96: 126 | U96: 198 | V96: 221 | W96: 111 | X96: 152
A97: 30 | B97: MARNE ARDENNES | C97: 2 | D97: CHARLEVILLE MEZIERES | E97: 508802 | F97: CHARLEVILLE NEVERS | G97: 2.8 | H97: 88 | I97: 43 | J97: 57 | K97: 21 | L97: 184 | M97: 168 | N97: 189 | O97: 140 | P97: 127 | Q97: 184 | R97: 68 | S97: 48 | T97: 156 | U97: 148 | V97: 122 | W97: 157 | X97: 181
A98: 30 | B98: BAS RHIN | C98: 5101 | D98: SELESTAT | E98: 4126 | F98: MUTZIG | G98: 2.7 | H98: 89 | I98: 153 | J98: 182 | K98: 108 | L98: 35 | M98: 22 | N98: 136 | O98: 12 | P98: 12 | Q98: 81 | R98: 150 | S98: 135 | T98: 179 | U98: 172 | V98: 160 | W98: 242 | X98: 104
A99: 30 | B99: BAS RHIN | C99: 5006 | D99: STRASBOURG | E99: 4006 | F99: STRASBOURG NEUDORF | G99: 7.9 | H99: 90 | I99: 10 | J99: 16 | K99: 11 | L99: 171 | M99: 171 | N99: 153 | O99: 207 | P99: 203 | Q99: 182 | R99: 103 | S99: 101 | T99: 115 | U99: 219 | V99: 212 | W99: 198 | X99: 180
A100: 30 | B100: MARNE ARDENNES | C100: 6 | D100: CHALONS EN CHAMPAGNE | E100: 551110 | F100: CHALONS ROOSEVELT | G100: 4.0 | H100: 91 | I100: 19 | J100: 12 | K100: 71 | L100: 130 | M100: 139 | N100: 98 | O100: 242 | P100: 243 | Q100: 102 | R100: 35 | S100: 26 | T100: 89 | U100: 128 | V100: 155 | W100: 143 | X100: 73
A101: 30 | B101: VOSGES | C101: 55 | D101: SAINT DIE | E101: 588186 | F101: BRUYERES | G101: 3.6 | H101: 92 | I101: 37 | J101: 23 | K101: 114 | L101: 106 | M101: 104 | N101: 144 | O101: 148 | P101: 156 | Q101: 91 | R101: 197 | S101: 204 | T101: 100 | U101: 80 | V101: 107 | W101: 94 | X101: 47
A102: 30 | B102: MOSELLE | C102: 42 | D102: MOSELLE EST | E102: 457617 | F102: SARREGUEMINES | G102: 7.1 | H102: 93 | I102: 130 | J102: 119 | K102: 146 | L102: 84 | M102: 87 | N102: 85 | O102: 99 | P102: 107 | Q102: 57 | R102: 81 | S102: 81 | T102: 104 | U102: 55 | V102: 54 | W102: 107 | X102: 63
A103: 30 | B103: AUBE HAUTE MARNE | C103: 21 | D103: CHAUMONT | E103: 410541 | F103: LANGRES | G103: 8.2 | H103: 94 | I103: 63 | J103: 65 | K103: 65 | L103: 74 | M103: 53 | N103: 178 | O103: 144 | P103: 136 | Q103: 166 | R103: 101 | S103: 86 | T103: 146 | U103: 175 | V103: 210 | W103: 67 | X103: 114
A104: 30 | B104: HAUT RHIN | C104: 5130 | D104: COLMAR | E104: 4157 | F104: NEUF BRISACH | G104: 3.3 | H104: 95 | I104: 116 | J104: 82 | K104: 171 | L104: 172 | M104: 179 | N104: 129 | O104: 45 | P104: 42 | Q104: 93 | R104: 43 | S104: 33 | T104: 109 | U104: 165 | V104: 189 | W104: 97 | X104: 132
A105: 30 | B105: VOSGES | C105: 57 | D105: EPINAL | E105: 588201 | F105: CHANTRAINE | G105: 3.5 | H105: 96 | I105: 85 | J105: 89 | K105: 84 | L105: 59 | M105: 56 | N105: 111 | O105: 50 | P105: 50 | Q105: 85 | R105: 158 | S105: 140 | T105: 202 | U105: 212 | V105: 218 | W105: 173 | X105: 154
A106: 30 | B106: MARNE ARDENNES | C106: 2 | D106: CHARLEVILLE MEZIERES | E106: 508833 | F106: VILLERS SEMEUSE CORA | G106: 3.4 | H106: 97 | I106: 181 | J106: 182 | K106: 167 | L106: 154 | M106: 173 | N106: 82 | O106: 44 | P106: 61 | Q106: 38 | R106: 41 | S106: 39 | T106: 60 | U106: 33 | V106: 27 | W106: 51 | X106: 56
A107: 30 | B107: VOSGES | C107: 57 | D107: EPINAL | E107: 588716 | F107: XERTIGNY | G107: 2.6 | H107: 98 | I107: 32 | J107: 47 | K107: 10 | L107: 206 | M107: 187 | N107: 240 | O107: 111 | P107: 92 | Q107: 169 | R107: 79 | S107: 53 | T107: 206 | U107: 227 | V107: 208 | W107: 128 | X107: 246
A108: 30 | B108: MEURTHE ET MOSELLE MEUSE | C108: 27 | D108: PONT A MOUSSON | E108: 554376 | F108: LAXOU BOUFFLERS | G108: 3.0 | H108: 99 | I108: 236 | J108: 182 | K108: 231 | L108: 10 | M108: 21 | N108: 5 | O108: 187 | P108: 198 | Q108: 105 | R108: 60 | S108: 129 | T108: 6 | U108: 12 | V108: 20 | W108: 38 | X108: 6
A109: 30 | B109: MOSELLE | C109: 42 | D109: MOSELLE EST | E109: 457543 | F109: PUTTELANGE AUX LACS | G109: 2.5 | H109: 100 | I109: 99 | J109: 96 | K109: 119 | L109: 102 | M109: 112 | N109: 105 | O109: 184 | P109: 209 | Q109: 31 | R109: 34 | S109: 34 | T109: 49 | U109: 100 | V109: 88 | W109: 197 | X109: 75
A110: 30 | B110: MOSELLE | C110: 44 | D110: MOSELLE NORD | E110: 457306 | F110: FLORANGE | G110: 5.0 | H110: 101 | I110: 225 | J110: 182 | K110: 221 | L110: 14 | M110: 11 | N110: 45 | O110: 124 | P110: 153 | Q110: 42 | R110: 129 | S110: 139 | T110: 85 | U110: 10 | V110: 8 | W110: 66 | X110: 25
A111: 30 | B111: HAUT RHIN | C111: 5130 | D111: COLMAR | E111: 4143 | F111: MUNSTER | G111: 4.5 | H111: 102 | I111: 119 | J111: 158 | K111: 49 | L111: 52 | M111: 30 | N111: 221 | O111: 46 | P111: 25 | Q111: 229 | R111: 136 | S111: 113 | T111: 212 | U111: 146 | V111: 136 | W111: 91 | X111: 174
A112: 30 | B112: MOSELLE | C112: 45 | D112: METZ | E112: 557612 | F112: SAINTE MARIE AUX CHENES | G112: 3.6 | H112: 103 | I112: 27 | J112: 42 | K112: 8 | L112: 230 | M112: 218 | N112: 242 | O112: 40 | P112: 20 | Q112: 244 | R112: 184 | S112: 157 | T112: 234 | U112: 196 | V112: 181 | W112: 236 | X112: 160
A113: 30 | B113: BAS RHIN | C113: 5006 | D113: STRASBOURG | E113: 4027 | F113: SCHILTIGHEIM CENTRE | G113: 3.2 | H113: 104 | I113: 168 | J113: 180 | K113: 155 | L113: 26 | M113: 28 | N113: 52 | O113: 58 | P113: 65 | Q113: 66 | R113: 91 | S113: 123 | T113: 35 | U113: 120 | V113: 119 | W113: 93 | X113: 144
A114: 30 | B114: MARNE ARDENNES | C114: 6 | D114: CHALONS EN CHAMPAGNE | E114: 451381 | F114: SEZANNE | G114: 5.4 | H114: 105 | I114: 89 | J114: 108 | K114: 59 | L114: 117 | M114: 113 | N114: 155 | O114: 23 | P114: 17 | Q114: 155 | R114: 208 | S114: 200 | T114: 218 | U114: 133 | V114: 109 | W114: 190 | X114: 142
A115: 30 | B115: AUBE HAUTE MARNE | C115: 14 | D115: TROYES | E115: 510513 | F115: TROYES 1ER MAI | G115: 2.3 | H115: 106 | I115: 217 | J115: 170 | K115: 214 | L115: 87 | M115: 149 | N115: 14 | O115: 61 | P115: 95 | Q115: 13 | R115: 18 | S115: 18 | T115: 24 | U115: 96 | V115: 89 | W115: 95 | X115: 121
A116: 30 | B116: MEURTHE ET MOSELLE MEUSE | C116: 31 | D116: VERDUN | E116: 455151 | F116: BAR LE DUC | G116: 9.9 | H116: 107 | I116: 71 | J116: 76 | K116: 64 | L116: 107 | M116: 94 | N116: 170 | O116: 146 | P116: 135 | Q116: 172 | R116: 80 | S116: 65 | T116: 165 | U116: 178 | V116: 200 | W116: 77 | X116: 155
A117: 30 | B117: MOSELLE | C117: 44 | D117: MOSELLE NORD | E117: 557352 | F117: HETTANGE GRANDE | G117: 2.9 | H117: 108 | I117: 126 | J117: 139 | K117: 100 | L117: 67 | M117: 95 | N117: 32 | O117: 170 | P117: 179 | Q117: 77 | R117: 122 | S117: 142 | T117: 72 | U117: 23 | V117: 53 | W117: 7 | X117: 19
A118: 30 | B118: MOSELLE | C118: 42 | D118: MOSELLE EST | E118: 557503 | F118: NEUNKIRCH | G118: 3.5 | H118: 109 | I118: 5 | J118: 9 | K118: 7 | L118: 210 | M118: 196 | N118: 225 | O118: 171 | P118: 148 | Q118: 203 | R118: 214 | S118: 199 | T118: 244 | U118: 188 | V118: 192 | W118: 135 | X118: 184
A119: 30 | B119: BAS RHIN | C119: 5006 | D119: STRASBOURG | E119: 4020 | F119: STRASBOURG ROBERTSAU | G119: 5.2 | H119: 110 | I119: 163 | J119: 182 | K119: 135 | L119: 169 | M119: 155 | N119: 209 | O119: 2 | P119: 2 | Q119: 141 | R119: 178 | S119: 161 | T119: 205 | U119: 209 | V119: 215 | W119: 75 | X119: 219
A120: 30 | B120: MARNE ARDENNES | C120: 6 | D120: CHALONS EN CHAMPAGNE | E120: 451101 | F120: CHALONS VIVIERS | G120: 9.7 | H120: 111 | I120: 48 | J120: 62 | K120: 28 | L120: 134 | M120: 121 | N120: 175 | O120: 213 | P120: 214 | Q120: 100 | R120: 98 | S120: 93 | T120: 106 | U120: 92 | V120: 83 | W120: 136 | X120: 96
A121: 30 | B121: BAS RHIN | C121: 5060 | D121: HAGUENAU | E121: 4057 | F121: BISCHWILLER | G121: 7.1 | H121: 112 | I121: 79 | J121: 98 | K121: 47 | L121: 55 | M121: 37 | N121: 199 | O121: 127 | P121: 103 | Q121: 199 | R121: 100 | S121: 94 | T121: 124 | U121: 228 | V121: 235 | W121: 74 | X121: 235
A122: 30 | B122: MOSELLE | C122: 45 | D122: METZ | E122: 557444 | F122: SAINT JULIEN LES METZ | G122: 3.7 | H122: 113 | I122: 240 | J122: 182 | K122: 236 | L122: 37 | M122: 43 | N122: 51 | O122: 24 | P122: 35 | Q122: 34 | R122: 73 | S122: 121 | T122: 19 | U122: 61 | V122: 55 | W122: 34 | X122: 117
A123: 30 | B123: BAS RHIN | C123: 5101 | D123: SELESTAT | E123: 4007 | F123: ILLKIRCH CENTRE | G123: 6.6 | H123: 114 | I123: 192 | J123: 182 | K123: 179 | L123: 97 | M123: 81 | N123: 161 | O123: 84 | P123: 67 | Q123: 135 | R123: 15 | S123: 6 | T123: 62 | U123: 157 | V123: 166 | W123: 100 | X123: 182
A124: 30 | B124: VOSGES | C124: 57 | D124: EPINAL | E124: 588396 | F124: LE VAL D AJOL | G124: 2.6 | H124: 115 | I124: 30 | J124: 39 | K124: 22 | L124: 179 | M124: 154 | N124: 223 | O124: 182 | P124: 166 | Q124: 170 | R124: 125 | S124: 89 | T124: 210 | U124: 193 | V124: 157 | W124: 235 | X124: 208
A125: 30 | B125: MEURTHE ET MOSELLE MEUSE | C125: 31 | D125: VERDUN | E125: 554700 | F125: VILLERUPT | G125: 2.8 | H125: 116 | I125: 47 | J125: 57 | K125: 44 | L125: 86 | M125: 82 | N125: 112 | O125: 216 | P125: 217 | Q125: 86 | R125: 113 | S125: 112 | T125: 125 | U125: 152 | V125: 134 | W125: 105 | X125: 200
A126: 30 | B126: BAS RHIN | C126: 5006 | D126: STRASBOURG | E126: 4054 | F126: STRASBOURG MONTAGNE VERTE | G126: 2.6 | H126: 117 | I126: 159 | J126: 182 | K126: 129 | L126: 43 | M126: 71 | N126: 22 | O126: 81 | P126: 86 | Q126: 56 | R126: 52 | S126: 62 | T126: 31 | U126: 218 | V126: 229 | W126: 169 | X126: 158
A127: 30 | B127: VOSGES | C127: 57 | D127: EPINAL | E127: 488281 | F127: ELOYES | G127: 3.1 | H127: 118 | I127: 111 | J127: 104 | K127: 116 | L127: 166 | M127: 152 | N127: 202 | O127: 27 | P127: 28 | Q127: 80 | R127: 145 | S127: 117 | T127: 224 | U127: 162 | V127: 159 | W127: 49 | X127: 221
A128: 30 | B128: MEURTHE ET MOSELLE MEUSE | C128: 26 | D128: NANCY | E128: 554486 | F128: NANCY POINT CENTRAL | G128: 2.7 | H128: 119 | I128: 194 | J128: 127 | K128: 219 | L128: 151 | M128: 181 | N128: 59 | O128: 6 | P128: 10 | Q128: 25 | R128: 102 | S128: 110 | T128: 97 | U128: 134 | V128: 156 | W128: 45 | X128: 140
A129: 30 | B129: MEURTHE ET MOSELLE MEUSE | C129: 27 | D129: PONT A MOUSSON | E129: 554257 | F129: DIEULOUARD | G129: 2.7 | H129: 120 | I129: 100 | J129: 100 | K129: 109 | L129: 140 | M129: 122 | N129: 210 | O129: 14 | P129: 5 | Q129: 233 | R129: 165 | S129: 138 | T129: 228 | U129: 245 | V129: 243 | W129: 210 | X129: 243
A130: 30 | B130: MOSELLE | C130: 44 | D130: MOSELLE NORD | E130: 457158 | F130: YUTZ | G130: 4.3 | H130: 121 | I130: 169 | J130: 182 | K130: 154 | L130: 72 | M130: 46 | N130: 188 | O130: 120 | P130: 96 | Q130: 175 | R130: 47 | S130: 43 | T130: 74 | U130: 99 | V130: 103 | W130: 30 | X130: 146
A131: 30 | B131: MEURTHE ET MOSELLE MEUSE | C131: 27 | D131: PONT A MOUSSON | E131: 554686 | F131: VEZELISE | G131: 1.9 | H131: 122 | I131: 97 | J131: 150 | K131: 17 | L131: 61 | M131: 79 | N131: 42 | O131: 63 | P131: 58 | Q131: 114 | R131: 207 | S131: 208 | T131: 171 | U131: 163 | V131: 151 | W131: 112 | X131: 202
A132: 30 | B132: MOSELLE | C132: 44 | D132: MOSELLE NORD | E132: 457192 | F132: CATTENOM | G132: 1.6 | H132: 123 | I132: 131 | J132: 182 | K132: 60 | L132: 63 | M132: 52 | N132: 138 | O132: 98 | P132: 109 | Q132: 53 | R132: 134 | S132: 126 | T132: 185 | U132: 113 | V132: 106 | W132: 141 | X132: 107
A133: 30 | B133: MARNE ARDENNES | C133: 11 | D133: REIMS | E133: 451336 | F133: TINQUEUX | G133: 4.4 | H133: 124 | I133: 107 | J133: 87 | K133: 143 | L133: 104 | M133: 130 | N133: 64 | O133: 174 | P133: 192 | Q133: 50 | R133: 160 | S133: 187 | T133: 64 | U133: 34 | V133: 36 | W133: 110 | X133: 37
A134: 30 | B134: MEURTHE ET MOSELLE MEUSE | C134: 27 | D134: PONT A MOUSSON | E134: 554416 | F134: LUDRES | G134: 3.7 | H134: 125 | I134: 74 | J134: 78 | K134: 68 | L134: 116 | M134: 101 | N134: 169 | O134: 208 | P134: 200 | Q134: 187 | R134: 131 | S134: 97 | T134: 204 | U134: 79 | V134: 64 | W134: 181 | X134: 94
A135: 30 | B135: MOSELLE | C135: 45 | D135: METZ | E135: 557432 | F135: MAIZIERES LES METZ | G135: 2.8 | H135: 126 | I135: 185 | J135: 182 | K135: 172 | L135: 120 | M135: 153 | N135: 54 | O135: 97 | P135: 82 | Q135: 131 | R135: 174 | S135: 166 | T135: 188 | U135: 11 | V135: 4 | W135: 147 | X135: 39
A136: 110 | B136: MARNE ARDENNES | C136: 11 | D136: REIMS | E136: 551369 | F136: DAMERY | G136: 1.9 | H136: 127 | I136: 170 | J136: 144 | K136: 185 | L136: 21 | M136: 34 | N136: 17 | O136: 143 | P136: 123 | Q136: 215 | R136: 191 | S136: 205 | T136: 63 | U136: 32 | V136: 31 | W136: 152 | X136: 26
A137: 110 | B137: VOSGES | C137: 55 | D137: SAINT DIE | E137: 588316 | F137: FRAIZE | G137: 3.6 | H137: 128 | I137: 138 | J137: 182 | K137: 73 | L137: 195 | M137: 180 | N137: 191 | O137: 117 | P137: 108 | Q137: 124 | R137: 59 | S137: 41 | T137: 163 | U137: 86 | V137: 95 | W137: 58 | X137: 101
A138: 110 | B138: MOSELLE | C138: 45 | D138: METZ | E138: 557436 | F138: METZ CATHEDRALE | G138: 3.4 | H138: 129 | I138: 234 | J138: 182 | K138: 228 | L138: 73 | M138: 70 | N138: 100 | O138: 20 | P138: 14 | Q138: 136 | R138: 77 | S138: 79 | T138: 108 | U138: 154 | V138: 154 | W138: 205 | X138: 110
A139: 110 | B139: MEURTHE ET MOSELLE MEUSE | C139: 27 | D139: PONT A MOUSSON | E139: 454651 | F139: TOUL | G139: 9.7 | H139: 130 | I139: 196 | J139: 123 | K139: 225 | L139: 101 | M139: 116 | N139: 78 | O139: 139 | P139: 149 | Q139: 82 | R139: 70 | S139: 84 | T139: 43 | U139: 39 | V139: 33 | W139: 116 | X139: 57
A140: 110 | B140: BAS RHIN | C140: 5006 | D140: STRASBOURG | E140: 4019 | F140: STRASBOURG ANVERS | G140: 4.7 | H140: 131 | I140: 200 | J140: 162 | K140: 200 | L140: 36 | M140: 38 | N140: 42 | O140: 102 | P140: 125 | Q140: 51 | R140: 106 | S140: 119 | T140: 82 | U140: 114 | V140: 101 | W140: 174 | X140: 106
A141: 110 | B141: VOSGES | C141: 57 | D141: EPINAL | E141: 588631 | F141: THAON LES VOSGES | G141: 4.0 | H141: 132 | I141: 134 | J141: 134 | K141: 122 | L141: 113 | M141: 114 | N141: 139 | O141: 215 | P141: 212 | Q141: 123 | R141: 51 | S141: 63 | T141: 25 | U141: 76 | V141: 99 | W141: 24 | X141: 88
A142: 110 | B142: MEURTHE ET MOSELLE MEUSE | C142: 27 | D142: PONT A MOUSSON | E142: 554196 | F142: CHAMPIGNEULLES | G142: 2.4 | H142: 133 | I142: 202 | J142: 182 | K142: 187 | L142: 160 | M142: 144 | N142: 205 | O142: 96 | P142: 80 | Q142: 140 | R142: 54 | S142: 45 | T142: 96 | U142: 62 | V142: 29 | W142: 229 | X142: 102
A143: 110 | B143: MOSELLE | C143: 42 | D143: MOSELLE EST | E143: 457435 | F143: MERLEBACH | G143: 2.5 | H143: 134 | I143: 152 | J143: 176 | K143: 110 | L143: 149 | M143: 201 | N143: 19 | O143: 172 | P143: 205 | Q143: 23 | R143: 67 | S143: 106 | T143: 18 | U143: 54 | V143: 69 | W143: 14 | X143: 95
A144: 110 | B144: BAS RHIN | C144: 5060 | D144: HAGUENAU | E144: 4085 | F144: INGWILLER | G144: 3.4 | H144: 135 | I144: 90 | J144: 62 | K144: 147 | L144: 145 | M144: 137 | N144: 162 | O144: 132 | P144: 122 | Q144: 176 | R144: 128 | S144: 116 | T144: 140 | U144: 201 | V144: 242 | W144: 37 | X144: 150
A145: 110 | B145: MOSELLE | C145: 42 | D145: MOSELLE EST | E145: 457614 | F145: SARREBOURG | G145: 8.7 | H145: 136 | I145: 124 | J145: 134 | K145: 97 | L145: 122 | M145: 108 | N145: 181 | O145: 130 | P145: 141 | Q145: 92 | R145: 75 | S145: 60 | T145: 173 | U145: 190 | V145: 185 | W145: 146 | X145: 204
A146: 110 | B146: BAS RHIN | C146: 5101 | D146: SELESTAT | E146: 4121 | F146: SCHIRMECK | G146: 2.8 | H146: 137 | I146: 118 | J146: 182 | K146: 20 | L146: 65 | M146: 59 | N146: 121 | O146: 220 | P146: 220 | Q146: 117 | R146: 161 | S146: 134 | T146: 226 | U146: 40 | V146: 28 | W146: 50 | X146: 92
A147: 110 | B147: MEURTHE ET MOSELLE MEUSE | C147: 31 | D147: VERDUN | E147: 455566 | F147: REVIGNY SUR ORNAIN | G147: 2.7 | H147: 138 | I147: 120 | J147: 89 | K147: 170 | L147: 109 | M147: 96 | N147: 168 | O147: 125 | P147: 120 | Q147: 154 | R147: 164 | S147: 143 | T147: 216 | U147: 118 | V147: 115 | W147: 21 | X147: 207
A148: 110 | B148: MEURTHE ET MOSELLE MEUSE | C148: 26 | D148: NANCY | E148: 554266 | F148: DOMBASLE SUR MEURTHE | G148: 3.2 | H148: 139 | I148: 187 | J148: 182 | K148: 173 | L148: 237 | M148: 233 | N148: 220 | O148: 9 | P148: 6 | Q148: 128 | R148: 105 | S148: 114 | T148: 81 | U148: 102 | V148: 125 | W148: 15 | X148: 133
A149: 110 | B149: MEURTHE ET MOSELLE MEUSE | C149: 27 | D149: PONT A MOUSSON | E149: 554381 | F149: LAXOU ARISTIDE BRIAND | G149: 2.3 | H149: 140 | I149: 206 | J149: 182 | K149: 194 | L149: 47 | M149: 60 | N149: 50 | O149: 209 | P149: 224 | Q149: 30 | R149: 90 | S149: 122 | T149: 33 | U149: 20 | V149: 17 | W149: 103 | X149: 45
A150: 110 | B150: MOSELLE | C150: 45 | D150: METZ | E150: 557440 | F150: METZ MOZART | G150: 2.7 | H150: 141 | I150: 156 | J150: 182 | K150: 124 | L150: 105 | M150: 92 | N150: 171 | O150: 110 | P150: 102 | Q150: 119 | R150: 78 | S150: 64 | T150: 160 | U150: 171 | V150: 165 | W150: 194 | X150: 133
A151: 110 | B151: AUBE HAUTE MARNE | C151: 21 | D151: CHAUMONT | E151: 451156 | F151: SAINT DIZIER CENTRE | G151: 8.5 | H151: 142 | I151: 136 | J151: 123 | K151: 149 | L151: 128 | M151: 148 | N151: 72 | O151: 162 | P151: 157 | Q151: 138 | R151: 85 | S151: 83 | T151: 86 | U151: 127 | V151: 168 | W151: 70 | X151: 90
A152: 110 | B152: AUBE HAUTE MARNE | C152: 21 | D152: CHAUMONT | E152: 410566 | F152: CHAUMONT HOTEL DE VILLE | G152: 10.4 | H152: 143 | I152: 105 | J152: 103 | K152: 111 | L152: 167 | M152: 164 | N152: 160 | O152: 88 | P152: 66 | Q152: 156 | R152: 183 | S152: 168 | T152: 199 | U152: 197 | V152: 222 | W152: 80 | X152: 157
A153: 110 | B153: MOSELLE | C153: 42 | D153: MOSELLE EST | E153: 457258 | F153: DIEUZE | G153: 3.1 | H153: 144 | I153: 60 | J153: 71 | K153: 38 | L153: 144 | M153: 132 | N153: 198 | O153: 164 | P153: 138 | Q153: 234 | R153: 188 | S153: 180 | T153: 180 | U153: 231 | V153: 220 | W153: 199 | X153: 194
A154: 110 | B154: MEURTHE ET MOSELLE MEUSE | C154: 26 | D154: NANCY | E154: 454426 | F154: LUNEVILLE CARNOT | G154: 7.6 | H154: 145 | I154: 219 | J154: 176 | K154: 213 | L154: 96 | M154: 111 | N154: 81 | O154: 32 | P154: 30 | Q154: 113 | R154: 194 | S154: 197 | T154: 116 | U154: 63 | V154: 76 | W154: 60 | X154: 49
A155: 110 | B155: VOSGES | C155: 57 | D155: EPINAL | E155: 488286 | F155: EPINAL ARISTIDE BRIAND | G155: 8.0 | H155: 146 | I155: 182 | J155: 182 | K155: 168 | L155: 88 | M155: 93 | N155: 83 | O155: 37 | P155: 47 | Q155: 48 | R155: 144 | S155: 160 | T155: 110 | U155: 200 | V155: 209 | W155: 220 | X155: 110
A156: 110 | B156: MARNE ARDENNES | C156: 2 | D156: CHARLEVILLE MEZIERES | E156: 408806 | F156: SEDAN | G156: 7.7 | H156: 147 | I156: 84 | J156: 97 | K156: 66 | L156: 148 | M156: 147 | N156: 149 | O156: 165 | P156: 164 | Q156: 98 | R156: 209 | S156: 195 | T156: 240 | U156: 95 | V156: 87 | W156: 180 | X156: 80
A157: 110 | B157: AUBE HAUTE MARNE | C157: 14 | D157: TROYES | E157: 410550 | F157: BAR SUR AUBE | G157: 4.7 | H157: 148 | I157: 77 | J157: 43 | K157: 153 | L157: 186 | M157: 190 | N157: 141 | O157: 186 | P157: 158 | Q157: 223 | R157: 166 | S157: 172 | T157: 130 | U157: 139 | V157: 138 | W157: 57 | X157: 178
A158: 110 | B158: MEURTHE ET MOSELLE MEUSE | C158: 26 | D158: NANCY | E158: 554116 | F158: BACCARAT | G158: 2.7 | H158: 149 | I158: 55 | J158: 71 | K158: 30 | L158: 76 | M158: 57 | N158: 167 | O158: 223 | P158: 210 | Q158: 221 | R158: 202 | S158: 203 | T158: 145 | U158: 208 | V158: 191 | W158: 179 | X158: 227
A159: 110 | B159: BAS RHIN | C159: 5006 | D159: STRASBOURG | E159: 4039 | F159: REICHSTETT | G159: 1.6 | H159: 150 | I159: 160 | J159: 182 | K159: 130 | L159: 201 | M159: 192 | N159: 204 | O159: 90 | P159: 76 | Q159: 110 | R159: 76 | S159: 68 | T159: 137 | U159: 150 | V159: 188 | W159: 182 | X159: 60
A160: 110 | B160: HAUT RHIN | C160: 5130 | D160: COLMAR | E160: 4144 | F160: RIBEAUVILLE | G160: 3.9 | H160: 151 | I160: 148 | J160: 180 | K160: 101 | L160: 93 | M160: 64 | N160: 208 | O160: 138 | P160: 118 | Q160: 204 | R160: 83 | S160: 71 | T160: 154 | U160: 240 | V160: 225 | W160: 211 | X160: 217
A161: 110 | B161: MEURTHE ET MOSELLE MEUSE | C161: 31 | D161: VERDUN | E161: 555406 | F161: LIGNY EN BARROIS | G161: 2.5 | H161: 152 | I161: 88 | J161: 104 | K161: 54 | L161: 119 | M161: 120 | N161: 131 | O161: 78 | P161: 55 | Q161: 173 | R161: 243 | S161: 241 | T161: 221 | U161: 203 | V161: 195 | W161: 170 | X161: 210
A162: 110 | B162: MEURTHE ET MOSELLE MEUSE | C162: 31 | D162: VERDUN | E162: 554412 | F162: LONGUYON | G162: 2.9 | H162: 153 | I162: 96 | J162: 71 | K162: 142 | L162: 118 | M162: 127 | N162: 97 | O162: 195 | P162: 188 | Q162: 181 | R162: 175 | S162: 163 | T162: 198 | U162: 155 | V162: 140 | W162: 163 | X162: 171
A163: 110 | B163: HAUT RHIN | C163: 5169 | D163: MULHOUSE | E163: 4178 | F163: SAINT LOUIS | G163: 6.4 | H163: 154 | I163: 175 | J163: 158 | K163: 182 | L163: 180 | M163: 172 | N163: 156 | O163: 56 | P163: 41 | Q163: 150 | R163: 99 | S163: 96 | T163: 119 | U163: 183 | V163: 129 | W163: 206 | X163: 226
A164: 110 | B164: BAS RHIN | C164: 5060 | D164: HAGUENAU | E164: 4060 | F164: HAGUENAU HOUBLON | G164: 8.3 | H164: 155 | I164: 176 | J164: 162 | K164: 178 | L164: 178 | M164: 161 | N164: 201 | O164: 87 | P164: 56 | Q164: 190 | R164: 126 | S164: 108 | T164: 170 | U164: 110 | V164: 72 | W164: 148 | X164: 201
A165: 110 | B165: BAS RHIN | C165: 5101 | D165: SELESTAT | E165: 4107 | F165: VILLE | G165: 1.9 | H165: 156 | I165: 224 | J165: 182 | K165: 220 | L165: 56 | M165: 31 | N165: 217 | O165: 18 | P165: 13 | Q165: 158 | R165: 172 | S165: 158 | T165: 209 | U165: 235 | V165: 244 | W165: 121 | X165: 205
A166: 110 | B166: BAS RHIN | C166: 5060 | D166: HAGUENAU | E166: 4041 | F166: HOERDT | G166: 1.6 | H166: 157 | I166: 114 | J166: 150 | K166: 42 | L166: 183 | M166: 146 | N166: 236 | O166: 60 | P166: 48 | Q166: 148 | R166: 212 | S166: 196 | T166: 242 | U166: 195 | V166: 137 | W166: 165 | X166: 247
A167: 110 | B167: MEURTHE ET MOSELLE MEUSE | C167: 27 | D167: PONT A MOUSSON | E167: 454535 | F167: PONT A MOUSSON CENTRALE | G167: 5.4 | H167: 158 | I167: 226 | J167: 166 | K167: 232 | L167: 83 | M167: 117 | N167: 31 | O167: 105 | P167: 78 | Q167: 206 | R167: 132 | S167: 151 | T167: 80 | U167: 67 | V167: 81 | W167: 139 | X167: 34
A168: 110 | B168: BAS RHIN | C168: 5060 | D168: HAGUENAU | E168: 4030 | F168: BRUMATH | G168: 4.9 | H168: 159 | I168: 213 | J168: 182 | K168: 201 | L168: 115 | M168: 77 | N168: 231 | O168: 5 | P168: 3 | Q168: 211 | R168: 219 | S168: 214 | T168: 232 | U168: 221 | V168: 190 | W168: 226 | X168: 229
A169: 110 | B169: HAUT RHIN | C169: 5130 | D169: COLMAR | E169: 4130 | F169: COLMAR REPUBLIQUE | G169: 6.3 | H169: 160 | I169: 186 | J169: 113 | K169: 234 | L169: 143 | M169: 129 | N169: 200 | O169: 152 | P169: 131 | Q169: 210 | R169: 44 | S169: 30 | T169: 132 | U169: 166 | V169: 171 | W169: 127 | X169: 162
A170: 110 | B170: MOSELLE | C170: 45 | D170: METZ | E170: 557712 | F170: WOIPPY | G170: 4.0 | H170: 161 | I170: 172 | J170: 122 | K170: 211 | L170: 100 | M170: 115 | N170: 76 | O170: 136 | P170: 162 | Q170: 33 | R170: 86 | S170: 82 | T170: 94 | U170: 192 | V170: 217 | W170: 122 | X170: 131
A171: 110 | B171: VOSGES | C171: 55 | D171: SAINT DIE | E171: 488586 | F171: SAINT DIE | G171: 11.1 | H171: 162 | I171: 53 | J171: 52 | K171: 67 | L171: 198 | M171: 174 | N171: 213 | O171: 157 | P171: 139 | Q171: 216 | R171: 226 | S171: 221 | T171: 227 | U171: 191 | V171: 178 | W171: 196 | X171: 187
A172: 110 | B172: VOSGES | C172: 57 | D172: EPINAL | E172: 488451 | F172: MIRECOURT | G172: 3.9 | H172: 163 | I172: 56 | J172: 46 | K172: 89 | L172: 197 | M172: 195 | N172: 151 | O172: 183 | P172: 181 | Q172: 122 | R172: 225 | S172: 232 | T172: 174 | U172: 153 | V172: 117 | W172: 231 | X172: 172
A173: 110 | B173: MOSELLE | C173: 45 | D173: METZ | E173: 557433 | F173: MARANGE SILVANGE | G173: 2.8 | H173: 164 | I173: 201 | J173: 182 | K173: 186 | L173: 168 | M173: 160 | N173: 194 | O173: 86 | P173: 64 | Q173: 162 | R173: 121 | S173: 103 | T173: 187 | U173: 117 | V173: 164 | W173: 13 | X173: 139
A174: 110 | B174: MEURTHE ET MOSELLE MEUSE | C174: 27 | D174: PONT A MOUSSON | E174: 554496 | F174: NANCY TROIS MAISONS | G174: 2.1 | H174: 165 | I174: 230 | J174: 182 | K174: 226 | L174: 158 | M174: 178 | N174: 99 | O174: 133 | P174: 132 | Q174: 128 | R174: 36 | S174: 44 | T174: 28 | U174: 108 | V174: 128 | W174: 47 | X174: 104
A175: 110 | B175: AUBE HAUTE MARNE | C175: 14 | D175: TROYES | E175: 510523 | F175: LA CHAPELLE ST LUC | G175: 4.2 | H175: 166 | I175: 227 | J175: 182 | K175: 222 | L175: 187 | M175: 200 | N175: 75 | O175: 100 | P175: 114 | Q175: 55 | R175: 42 | S175: 70 | T175: 16 | U175: 132 | V175: 174 | W175: 78 | X175: 85
A176: 110 | B176: MEURTHE ET MOSELLE MEUSE | C176: 27 | D176: PONT A MOUSSON | E176: 454696 | F176: VILLERS GENERAL LECLERC | G176: 4.7 | H176: 167 | I176: 164 | J176: 182 | K176: 145 | L176: 189 | M176: 184 | N176: 159 | O176: 36 | P176: 21 | Q176: 188 | R176: 169 | S176: 148 | T176: 217 | U176: 204 | V176: 180 | W176: 214 | X176: 203
A177: 110 | B177: HAUT RHIN | C177: 5169 | D177: MULHOUSE | E177: 4180 | F177: RIEDISHEIM | G177: 3.3 | H177: 168 | I177: 123 | J177: 114 | K177: 137 | L177: 136 | M177: 105 | N177: 228 | O177: 205 | P177: 195 | Q177: 197 | R177: 124 | S177: 90 | T177: 207 | U177: 159 | V177: 98 | W177: 225 | X177: 225
A178: 110 | B178: MEURTHE ET MOSELLE MEUSE | C178: 27 | D178: PONT A MOUSSON | E178: 554357 | F178: JOEUF | G178: 3.2 | H178: 169 | I178: 109 | J178: 100 | K178: 117 | L178: 161 | M178: 182 | N178: 90 | O178: 176 | P178: 159 | Q178: 133 | R178: 201 | S178: 206 | T178: 102 | U178: 142 | V178: 162 | W178: 25 | X178: 186
A179: 110 | B179: MEURTHE ET MOSELLE MEUSE | C179: 26 | D179: NANCY | E179: 554296 | F179: ESSEY LES NANCY | G179: 3.5 | H179: 170 | I179: 78 | J179: 108 | K179: 24 | L179: 209 | M179: 208 | N179: 154 | O179: 156 | P179: 144 | Q179: 179 | R179: 187 | S179: 170 | T179: 201 | U179: 224 | V179: 248 | W179: 145 | X179: 100
A180: 110 | B180: MOSELLE | C180: 45 | D180: METZ | E180: 557445 | F180: METZ SAINT LIVIER | G180: 2.7 | H180: 171 | I180: 14 | J180: 8 | K180: 70 | L180: 240 | M180: 230 | N180: 246 | O180: 188 | P180: 165 | Q180: 217 | R180: 241 | S180: 235 | T180: 247 | U180: 238 | V180: 202 | W180: 227 | X180: 244
A181: 110 | B181: VOSGES | C181: 57 | D181: EPINAL | E181: 588206 | F181: CHARMES | G181: 2.6 | H181: 172 | I181: 144 | J181: 182 | K181: 86 | L181: 204 | M181: 206 | N181: 143 | O181: 77 | P181: 60 | Q181: 142 | R181: 179 | S181: 190 | T181: 91 | U181: 185 | V181: 224 | W181: 76 | X181: 113
A182: 160 | B182: MOSELLE | C182: 45 | D182: METZ | E182: 557559 | F182: REMILLY | G182: 3.3 | H182: 173 | I182: 149 | J182: 111 | K182: 189 | L182: 176 | M182: 163 | N182: 186 | O182: 134 | P182: 128 | Q182: 152 | R182: 189 | S182: 184 | T182: 169 | U182: 101 | V182: 152 | W182: 22 | X182: 72
A183: 160 | B183: MARNE ARDENNES | C183: 11 | D183: REIMS | E183: 551310 | F183: REIMS CHATILLONS | G183: 4.1 | H183: 174 | I183: 162 | J183: 182 | K183: 134 | L183: 164 | M183: 157 | N183: 178 | O183: 114 | P183: 98 | Q183: 153 | R183: 154 | S183: 164 | T183: 113 | U183: 145 | V183: 149 | W183: 203 | X183: 81
A184: 160 | B184: AUBE HAUTE MARNE | C184: 14 | D184: TROYES | E184: 410571 | F184: ROMILLY SUR SEINE | G184: 4.9 | H184: 175 | I184: 103 | J184: 83 | K184: 144 | L184: 174 | M184: 185 | N184: 120 | O184: 231 | P184: 235 | Q184: 76 | R184: 111 | S184: 118 | T184: 103 | U184: 105 | V184: 126 | W184: 35 | X184: 120
A185: 160 | B185: MEURTHE ET MOSELLE MEUSE | C185: 31 | D185: VERDUN | E185: 455298 | F185: ETAIN | G185: 0.9 | H185: 176 | I185: 139 | J185: 120 | K185: 162 | L185: 185 | M185: 210 | N185: 40 | O185: 204 | P185: 227 | Q185: 15 | R185: 130 | S185: 167 | T185: 34 | U185: 82 | V185: 93 | W185: 89 | X185: 77
A186: 160 | B186: VOSGES | C186: 55 | D186: SAINT DIE | E186: 588461 | F186: MOYENMOUTIER | G186: 4.9 | H186: 177 | I186: 127 | J186: 91 | K186: 183 | L186: 94 | M186: 48 | N186: 244 | O186: 175 | P186: 142 | Q186: 235 | R186: 190 | S186: 173 | T186: 213 | U186: 210 | V186: 214 | W186: 142 | X186: 183
A187: 160 | B187: MOSELLE | C187: 44 | D187: MOSELLE NORD | E187: 557307 | F187: FONTOY | G187: 1.8 | H187: 178 | I187: 135 | J187: 150 | K187: 103 | L187: 162 | M187: 158 | N187: 163 | O187: 135 | P187: 94 | Q187: 237 | R187: 239 | S187: 231 | T187: 245 | U187: 46 | V187: 39 | W187: 17 | X187: 141
A188: 160 | B188: MARNE ARDENNES | C188: 11 | D188: REIMS | E188: 551341 | F188: REIMS JEAN JAURES | G188: 2.6 | H188: 179 | I188: 184 | J188: 134 | K188: 203 | L188: 182 | M188: 197 | N188: 74 | O188: 51 | P188: 52 | Q188: 78 | R188: 230 | S188: 237 | T188: 129 | U188: 65 | V188: 60 | W188: 209 | X188: 35
A189: 160 | B189: VOSGES | C189: 57 | D189: EPINAL | E189: 588501 | F189: NEUFCHATEAU | G189: 5.7 | H189: 180 | I189: 117 | J189: 100 | K189: 148 | L189: 214 | M189: 212 | N189: 183 | O189: 131 | P189: 112 | Q189: 192 | R189: 153 | S189: 147 | T189: 158 | U189: 207 | V189: 187 | W189: 239 | X189: 179
A190: 160 | B190: BAS RHIN | C190: 5060 | D190: HAGUENAU | E190: 4082 | F190: BOUXWILLER | G190: 2.5 | H190: 181 | I190: 95 | J190: 125 | K190: 36 | L190: 156 | M190: 159 | N190: 147 | O190: 245 | P190: 245 | Q190: 192 | R190: 55 | S190: 56 | T190: 66 | U190: 70 | V190: 80 | W190: 59 | X190: 79
A191: 160 | B191: AUBE HAUTE MARNE | C191: 14 | D191: TROYES | E191: 510520 | F191: SAINT ANDRE LES VERGERS | G191: 3.7 | H191: 182 | I191: 242 | J191: 182 | K191: 237 | L191: 138 | M191: 141 | N191: 135 | O191: 92 | P191: 69 | Q191: 143 | R191: 107 | S191: 115 | T191: 95 | U191: 116 | V191: 113 | W191: 43 | X191: 175
A192: 160 | B192: MARNE ARDENNES | C192: 2 | D192: CHARLEVILLE MEZIERES | E192: 508819 | F192: MOUZON | G192: 1.8 | H192: 183 | I192: 82 | J192: 71 | K192: 104 | L192: 242 | M192: 247 | N192: 49 | O192: 113 | P192: 115 | Q192: 106 | R192: 228 | S192: 242 | T192: 59 | U192: 115 | V192: 182 | W192: 228 | X192: 16
A193: 160 | B193: MEURTHE ET MOSELLE MEUSE | C193: 26 | D193: NANCY | E193: 554166 | F193: BLAINVILLE | G193: 2.5 | H193: 184 | I193: 191 | J193: 168 | K193: 188 | L193: 163 | M193: 170 | N193: 125 | O193: 192 | P193: 182 | Q193: 177 | R193: 71 | S193: 61 | T193: 151 | U193: 119 | V193: 161 | W193: 88 | X193: 66
A194: 160 | B194: MEURTHE ET MOSELLE MEUSE | C194: 31 | D194: VERDUN | E194: 555624 | F194: STENAY | G194: 2.7 | H194: 185 | I194: 210 | J194: 182 | K194: 196 | L194: 57 | M194: 65 | N194: 66 | O194: 228 | P194: 228 | Q194: 121 | R194: 186 | S194: 194 | T194: 98 | U194: 31 | V194: 57 | W194: 4 | X194: 68
A195: 160 | B195: BAS RHIN | C195: 5101 | D195: SELESTAT | E195: 4101 | F195: SELESTAT CENTRE | G195: 7.2 | H195: 186 | I195: 197 | J195: 168 | K195: 193 | L195: 77 | M195: 54 | N195: 192 | O195: 194 | P195: 186 | Q195: 180 | R195: 138 | S195: 162 | T195: 88 | U195: 143 | V195: 143 | W195: 62 | X195: 168
A196: 160 | B196: BAS RHIN | C196: 5006 | D196: STRASBOURG | E196: 4029 | F196: SCHILTIGHEIM KLEBER | G196: 1.5 | H196: 187 | I196: 157 | J196: 182 | K196: 127 | L196: 234 | M196: 236 | N196: 146 | O196: 82 | P196: 68 | Q196: 130 | R196: 159 | S196: 215 | T196: 14 | U196: 168 | V196: 130 | W196: 216 | X196: 164
A197: 160 | B197: BAS RHIN | C197: 5101 | D197: SELESTAT | E197: 4127 | F197: ROSHEIM | G197: 1.6 | H197: 188 | I197: 167 | J197: 182 | K197: 152 | L197: 194 | M197: 162 | N197: 229 | O197: 74 | P197: 45 | Q197: 219 | R197: 203 | S197: 191 | T197: 203 | U197: 187 | V197: 145 | W197: 219 | X197: 206
A198: 160 | B198: BAS RHIN | C198: 5060 | D198: HAGUENAU | E198: 4087 | F198: SAVERNE | G198: 5.9 | H198: 189 | I198: 228 | J198: 140 | K198: 243 | L198: 99 | M198: 66 | N198: 218 | O198: 180 | P198: 168 | Q198: 164 | R198: 72 | S198: 66 | T198: 133 | U198: 167 | V198: 132 | W198: 119 | X198: 224
A199: 160 | B199: VOSGES | C199: 55 | D199: SAINT DIE | E199: 588386 | F199: LE THILLOT | G199: 2.1 | H199: 190 | I199: 106 | J199: 128 | K199: 46 | L199: 125 | M199: 90 | N199: 226 | O199: 179 | P199: 183 | Q199: 112 | R199: 231 | S199: 230 | T199: 222 | U199: 215 | V199: 239 | W199: 126 | X199: 148
A200: 160 | B200: MARNE ARDENNES | C200: 2 | D200: CHARLEVILLE MEZIERES | E200: 508860 | F200: ROCROI | G200: 2.7 | H200: 191 | I200: 215 | J200: 182 | K200: 204 | L200: 89 | M200: 89 | N200: 96 | O200: 197 | P200: 185 | Q200: 213 | R200: 148 | S200: 141 | T200: 155 | U200: 97 | V200: 67 | W200: 140 | X200: 169
A201: 160 | B201: BAS RHIN | C201: 5006 | D201: STRASBOURG | E201: 4026 | F201: STRASBOURG DANUBE | G201: 3.2 | H201: 192 | I201: 220 | J201: 146 | K201: 230 | L201: 205 | M201: 211 | N201: 124 | O201: 41 | P201: 37 | Q201: 103 | R201: 143 | S201: 185 | T201: 41 | U201: 205 | V201: 216 | W201: 86 | X201: 196
A202: 160 | B202: MEURTHE ET MOSELLE MEUSE | C202: 27 | D202: PONT A MOUSSON | E202: 454355 | F202: JARNY | G202: 4.0 | H202: 193 | I202: 151 | J202: 132 | K202: 159 | L202: 159 | M202: 165 | N202: 140 | O202: 196 | P202: 187 | Q202: 189 | R202: 142 | S202: 145 | T202: 136 | U202: 177 | V202: 184 | W202: 186 | X202: 127
A203: 160 | B203: MARNE ARDENNES | C203: 11 | D203: REIMS | E203: 551309 | F203: REIMS EUROPE | G203: 2.9 | H203: 194 | I203: 108 | J203: 93 | K203: 131 | L203: 222 | M203: 232 | N203: 101 | O203: 222 | P203: 223 | Q203: 96 | R203: 167 | S203: 192 | T203: 53 | U203: 123 | V203: 74 | W203: 240 | X203: 156
A204: 160 | B204: BAS RHIN | C204: 5101 | D204: SELESTAT | E204: 4109 | F204: MARCKOLSHEIM | G204: 2.7 | H204: 195 | I204: 129 | J204: 171 | K204: 56 | L204: 150 | M204: 138 | N204: 173 | O204: 217 | P204: 216 | Q204: 111 | R204: 196 | S204: 193 | T204: 131 | U204: 144 | V204: 116 | W204: 137 | X204: 195
... 55 more rows

Sheet AG_FICHE
A1: Accueil
A2: BAROMETRE GRAND PUBLIC
A4: UNITE: | B4: Agence | E4: ETP perf : | F4: =VLOOKUP(A5,'RECAP AG'!$G$6:$CY$256,3,FALSE) -> 4.92
A5: =VLOOKUP(B5,LISTES!$C$6:$D$263,2,FALSE) -> 4189 | B5: ALTKIRCH
C6: Coefficient du critère | E6: Résultats | I6: Ecart au 1ier | K6: =IF(OR(A5=4017,A5=4022),"Rang estimé","Rang") -> Rang
E7: du 1ier | G7: de l'Agence | I7: Du mois
A9: RANG GRAND PUBLIC | K9: =VLOOKUP($A$5,'RECAP AG'!$G$6:$CY$256,104,FALSE) -> 
A11: SATISFACTION CLIENTS | C11: 20% | K11: =VLOOKUP($A$5,'RECAP AG'!$G$6:$CY$256,13,FALSE) -> 248
B12: NPS à froid (SAE) | C12: 10% | E12: =+'RECAP AG'!K4 -> 62 | G12: =VLOOKUP($A$5,'RECAP AG'!$G$6:$CY$256,5,FALSE) -> 0.0 | I12: =VLOOKUP($A$5,'RECAP AG'!$G$6:$CY$256,6,FALSE) -> 100% | K12: =VLOOKUP($A$5,'RECAP AG'!$G$6:$CY$256,7,FALSE) -> 182
B13: NPS à chaud (QHD) | C13: 10% | E13: =+'RECAP AG'!M4 -> 10% | G13: =VLOOKUP($A$5,'RECAP AG'!$G$6:$CY$256,8,FALSE) -> 15% | I13: =VLOOKUP($A$5,'RECAP AG'!$G$6:$CY$256,9,FALSE) -> 83% | K13: =VLOOKUP($A$5,'RECAP AG'!$G$6:$CY$256,10,FALSE) -> 247
A15: BANCARISATION | C15: 20% | K15: =VLOOKUP($A$5,'RECAP AG'!$G$6:$CY$256,36,FALSE) -> 225
B16: Ventes Nettes produits pondérés | C16: 10% | E16: ='RECAP AG'!X4 -> 56.1 | G16: =VLOOKUP($A$5,'RECAP AG'!$G$6:$CY$256,19,FALSE) -> -10.8 | I16: =VLOOKUP($A$5,'RECAP AG'!$G$6:$CY$256,20,FALSE) -> 100% | K16: =VLOOKUP($A$5,'RECAP AG'!$G$6:$CY$256,21,FALSE) -> 245
B17: Ventes sur client non détenteur de l’univers | C17: 4% | E17: ='RECAP AG'!AB4 -> 144.4 | G17: =VLOOKUP($A$5,'RECAP AG'!$G$6:$CY$256,23,FALSE) -> 15.2 | I17: =VLOOKUP($A$5,'RECAP AG'!$G$6:$CY$256,24,FALSE) -> 89% | K17: =VLOOKUP($A$5,'RECAP AG'!$G$6:$CY$256,25,FALSE) -> 233
A19: EPARGNE | C19: 20% | K19: =VLOOKUP($A$5,'RECAP AG'!$G$6:$CY$256,51,FALSE) -> 232
B20: Excédent Epargne hors DAV pondéré | C20: 14% | E20: ='RECAP AG'!AM4 -> 1242.7 | G20: =VLOOKUP($A$5,'RECAP AG'!$G$6:$CY$256,42,FALSE) -> 0.6 | I20: =VLOOKUP($A$5,'RECAP AG'!$G$6:$CY$256,43,FALSE) -> 23200% | K20: =VLOOKUP($A$5,'RECAP AG'!$G$6:$CY$256,44,FALSE) -> 0
B21: Ventes sur client non détenteur de l’univers | C21: 6% | E21: ='RECAP AG'!AQ4 -> 135.0 | G21: =VLOOKUP($A$5,'RECAP AG'!$G$6:$CY$256,46,FALSE) -> 0.0 | I21: =VLOOKUP($A$5,'RECAP AG'!$G$6:$CY$256,47,FALSE) -> 0% | K21: =VLOOKUP($A$5,'RECAP AG'!$G$6:$CY$256,48,FALSE) -> 46.98467064
A23: IARD PREVOYANCE | C23: 20% | K23: =VLOOKUP($A$5,'RECAP AG'!$G$6:$CY$256,85,FALSE) -> 0
B24: Ventes Nettes produits pondérés | C24: 14% | E24: ='RECAP AG'!BU4 -> 323.7 | G24: =VLOOKUP($A$5,'RECAP AG'!$G$6:$CY$256,76,FALSE) -> 0.9 | I24: =VLOOKUP($A$5,'RECAP AG'!$G$6:$CY$256,77,FALSE) -> 24500% | K24: =VLOOKUP($A$5,'RECAP AG'!$G$6:$CY$256,78,FALSE) -> 0
B25: Ventes sur client non détenteur de l’univers | C25: 6% | E25: ='RECAP AG'!BY4 -> 101.9 | G25: =VLOOKUP($A$5,'RECAP AG'!$G$6:$CY$256,80,FALSE) -> 0.0 | I25: =VLOOKUP($A$5,'RECAP AG'!$G$6:$CY$256,81,FALSE) -> 0% | K25: =VLOOKUP($A$5,'RECAP AG'!$G$6:$CY$256,82,FALSE) -> 0
A27: CREDITS | C27: 20% | K27: =VLOOKUP($A$5,'RECAP AG'!$G$6:$CY$256,70,FALSE) -> 244
B28: Engagements et ventes accessoires pondérés Immo | C28: 8% | E28: ='RECAP AG'!BB4 -> 160.4 | G28: =VLOOKUP($A$5,'RECAP AG'!$G$6:$CY$256,57,FALSE) -> 5.3 | I28: =VLOOKUP($A$5,'RECAP AG'!$G$6:$CY$256,58,FALSE) -> 93% | K28: =VLOOKUP($A$5,'RECAP AG'!$G$6:$CY$256,59,FALSE) -> 240
B29: Engagements et ventes accessoires pondérés Conso | C29: 6% | E29: ='RECAP AG'!BF4 -> 229.1 | G29: =VLOOKUP($A$5,'RECAP AG'!$G$6:$CY$256,61,FALSE) -> 0.9 | I29: =VLOOKUP($A$5,'RECAP AG'!$G$6:$CY$256,62,FALSE) -> 24700% | K29: =VLOOKUP($A$5,'RECAP AG'!$G$6:$CY$256,63,FALSE) -> 0
B30: Ventes sur client non détenteur de l’univers | C30: 6% | E30: ='RECAP AG'!BJ4 -> 75.9 | G30: =VLOOKUP($A$5,'RECAP AG'!$G$6:$CY$256,65,FALSE) -> 0.0 | I30: =VLOOKUP($A$5,'RECAP AG'!$G$6:$CY$256,66,FALSE) -> 0% | K30: =VLOOKUP($A$5,'RECAP AG'!$G$6:$CY$256,67,FALSE) -> -219

Sheet AG_TOTAL
B1: Accueil | H1: BAROMETRE BDD - AGENCES
H2: TOTAL GENERAL
H3: =ACCUEIL!F7 -> 2022-05-01
H7: TOTAL GENERAL | K7: Total Satisfaction Clients | N7: Total Bancarisation | Q7: Total Epargne | T7: Total IARD Prévoyance | W7: Total Crédits
I8: coef | J8: =M8+P8+S8+V8+Y8 -> 100% | L8: coef | M8: =AG_SATISFACTION!P8 -> 20% | O8: coef | P8: =AG_BANCA!R8 -> 20% | R8: coef | S8: =AG_EPARGNE!R8 -> 20% | U8: coef | V8: =AG_IARD!R8 -> 20% | X8: coef | Y8: =AG_CREDIT!V8 -> 20%
B9: Direction | C9: eds | D9: Territoire | E9: eds | F9: Agence | G9: ="ETP perf "&DATEMAJ!$C$28 -> ETP perf 01-mai | H9: Moyenne ecart au 1er | I9: % Ecart au 1er | J9: Rang CEGEE | K9: Moyenne ecart au 1er | L9: % Ecart au 1er | M9: Rang CEGEE | N9: Moyenne ecart au 1er | O9: % Ecart au 1er | P9: Rang CEGEE | Q9: Moyenne ecart au 1er | R9: % Ecart au 1er | S9: Rang CEGEE | T9: Moyenne ecart au 1er | U9: % Ecart au 1er | V9: Rang CEGEE | W9: Moyenne ecart au 1er | X9: % Ecart au 1er | Y9: Rang CEGEE
A10: 50 | B10: MOSELLE | C10: 44 | D10: MOSELLE NORD | E10: 557508 | F10: NILVANGE | G10: 1.8 | H10: 26% | I10: 0% | J10: 1 | K10: 54% | L10: 46% | M10: 113 | N10: 22% | O10: 22% | P10: 2 | Q10: 47% | R10: 17% | S10: 7 | T10: 9% | U10: 0% | V10: 1 | W10: 52% | X10: 44% | Y10: 4
A11: 50 | B11: MEURTHE ET MOSELLE MEUSE | C11: 26 | D11: NANCY | E11: 454171 | F11: BLAMONT | G11: 0.5 | H11: 29% | I11: 3% | J11: 2 | K11: 82% | L11: 74% | M11: 241 | N11: 0% | O11: 0% | P11: 1 | Q11: 53% | R11: 23% | S11: 16 | T11: 58% | U11: 49% | V11: 7 | W11: 8% | X11: 0% | Y11: 1
A12: 50 | B12: MOSELLE | C12: 42 | D12: MOSELLE EST | E12: 457163 | F12: BEHREN LES FORBACH | G12: 1.9 | H12: 37% | I12: 11% | J12: 3 | K12: 18% | L12: 10% | M12: 7 | N12: 45% | O12: 45% | P12: 3 | Q12: 53% | R12: 23% | S12: 15 | T12: 75% | U12: 65% | V12: 69 | W12: 47% | X12: 39% | Y12: 3
A13: 50 | B13: MARNE ARDENNES | C13: 2 | D13: CHARLEVILLE MEZIERES | E13: 508820 | F13: VOUZIERS | G13: 2.9 | H13: 43% | I13: 18% | J13: 4 | K13: 20% | L13: 12% | M13: 12 | N13: 71% | O13: 71% | P13: 79 | Q13: 61% | R13: 31% | S13: 43 | T13: 40% | U13: 30% | V13: 2 | W13: 80% | X13: 73% | Y13: 84
A14: 50 | B14: MEURTHE ET MOSELLE MEUSE | C14: 26 | D14: NANCY | E14: 554601 | F14: SAINT MAX | G14: 3.7 | H14: 45% | I14: 19% | J14: 5 | K14: 20% | L14: 11% | M14: 8 | N14: 67% | O14: 67% | P14: 42 | Q14: 59% | R14: 28% | S14: 30 | T14: 66% | U14: 57% | V14: 25 | W14: 70% | X14: 62% | Y14: 19
A15: 50 | B15: MARNE ARDENNES | C15: 6 | D15: CHALONS EN CHAMPAGNE | E15: 551330 | F15: MONTMIRAIL | G15: 2.7 | H15: 47% | I15: 21% | J15: 6 | K15: 32% | L15: 23% | M15: 28 | N15: 59% | O15: 59% | P15: 15 | Q15: 62% | R15: 32% | S15: 54 | T15: 60% | U15: 50% | V15: 11 | W15: 78% | X15: 70% | Y15: 60
A16: 50 | B16: MARNE ARDENNES | C16: 11 | D16: REIMS | E16: 551305 | F16: REIMS HIPPODROME | G16: 5.4 | H16: 48% | I16: 22% | J16: 7 | K16: 43% | L16: 35% | M16: 66 | N16: 66% | O16: 66% | P16: 40 | Q16: 48% | R16: 18% | S16: 8 | T16: 66% | U16: 56% | V16: 23 | W16: 72% | X16: 64% | Y16: 26
A17: 50 | B17: MOSELLE | C17: 45 | D17: METZ | E17: 457443 | F17: METZ REPUBLIQUE | G17: 3.7 | H17: 49% | I17: 23% | J17: 8 | K17: 20% | L17: 12% | M17: 11 | N17: 81% | O17: 81% | P17: 190 | Q17: 44% | R17: 14% | S17: 4 | T17: 64% | U17: 55% | V17: 19 | W17: 90% | X17: 82% | Y17: 213
A18: 50 | B18: VOSGES | C18: 57 | D18: EPINAL | E18: 488288 | F18: EPINAL LEOPOLD BOURG | G18: 2.0 | H18: 49% | I18: 23% | J18: 9 | K18: 36% | L18: 28% | M18: 39 | N18: 64% | O18: 64% | P18: 31 | Q18: 55% | R18: 25% | S18: 19 | T18: 69% | U18: 60% | V18: 38 | W18: 76% | X18: 68% | Y18: 45
A19: 50 | B19: MARNE ARDENNES | C19: 2 | D19: CHARLEVILLE MEZIERES | E19: 408801 | F19: CHARLEVILLE JEAN JAURES | G19: 8.8 | H19: 49% | I19: 24% | J19: 10 | K19: 34% | L19: 26% | M19: 35 | N19: 67% | O19: 67% | P19: 45 | Q19: 64% | R19: 34% | S19: 65 | T19: 68% | U19: 58% | V19: 31 | W19: 69% | X19: 61% | Y19: 16
A20: 50 | B20: BAS RHIN | C20: 5006 | D20: STRASBOURG | E20: 4038 | F20: OBERHAUSBERGEN | G20: 2.9 | H20: 50% | I20: 24% | J20: 11 | K20: 38% | L20: 30% | M20: 44 | N20: 64% | O20: 64% | P20: 32 | Q20: 44% | R20: 13% | S20: 3 | T20: 88% | U20: 78% | V20: 193 | W20: 72% | X20: 64% | Y20: 25
A21: 50 | B21: MARNE ARDENNES | C21: 11 | D21: REIMS | E21: 551349 | F21: REIMS SAINT REMI | G21: 2.9 | H21: 50% | I21: 24% | J21: 12 | K21: 46% | L21: 38% | M21: 75 | N21: 47% | O21: 47% | P21: 4 | Q21: 87% | R21: 57% | S21: 227 | T21: 66% | U21: 57% | V21: 24 | W21: 60% | X21: 53% | Y21: 7
A22: 50 | B22: MOSELLE | C22: 42 | D22: MOSELLE EST | E22: 457165 | F22: BITCHE | G22: 2.4 | H22: 50% | I22: 24% | J22: 13 | K22: 51% | L22: 43% | M22: 91 | N22: 49% | O22: 49% | P22: 6 | Q22: 64% | R22: 34% | S22: 64 | T22: 62% | U22: 52% | V22: 14 | W22: 81% | X22: 73% | Y22: 93
A23: 50 | B23: MOSELLE | C23: 45 | D23: METZ | E23: 457453 | F23: MONTIGNY LES METZ | G23: 6.9 | H23: 51% | I23: 25% | J23: 14 | K23: 20% | L23: 12% | M23: 9 | N23: 69% | O23: 69% | P23: 58 | Q23: 64% | R23: 34% | S23: 66 | T23: 78% | U23: 68% | V23: 93 | W23: 80% | X23: 72% | Y23: 72
A24: 50 | B24: MEURTHE ET MOSELLE MEUSE | C24: 27 | D24: PONT A MOUSSON | E24: 554531 | F24: POMPEY | G24: 2.6 | H24: 51% | I24: 25% | J24: 15 | K24: 76% | L24: 68% | M24: 218 | N24: 56% | O24: 56% | P24: 11 | Q24: 59% | R24: 29% | S24: 34 | T24: 67% | U24: 57% | V24: 27 | W24: 53% | X24: 45% | Y24: 5
A25: 50 | B25: MOSELLE | C25: 45 | D25: METZ | E25: 457574 | F25: ROMBAS | G25: 3.3 | H25: 52% | I25: 26% | J25: 16 | K25: 25% | L25: 17% | M25: 18 | N25: 69% | O25: 69% | P25: 60 | Q25: 65% | R25: 35% | S25: 80 | T25: 68% | U25: 59% | V25: 33 | W25: 85% | X25: 78% | Y25: 151
A26: 50 | B26: MARNE ARDENNES | C26: 11 | D26: REIMS | E26: 551365 | F26: DORMANS | G26: 2.6 | H26: 52% | I26: 26% | J26: 17 | K26: 44% | L26: 36% | M26: 68 | N26: 55% | O26: 55% | P26: 9 | Q26: 72% | R26: 42% | S26: 128 | T26: 71% | U26: 62% | V26: 48 | W26: 71% | X26: 63% | Y26: 22
A27: 50 | B27: BAS RHIN | C27: 5006 | D27: STRASBOURG | E27: 4010 | F27: STRASBOURG MEINAU | G27: 2.7 | H27: 52% | I27: 26% | J27: 18 | K27: 25% | L27: 17% | M27: 17 | N27: 78% | O27: 78% | P27: 157 | Q27: 64% | R27: 34% | S27: 69 | T27: 59% | U27: 50% | V27: 9 | W27: 87% | X27: 80% | Y27: 180
A28: 262 | B28: BAS RHIN | C28: 5101 | D28: SELESTAT | E28: 4113 | F28: BARR | G28: 2.9 | H28: 52% | I28: 26% | J28: 19 | K28: 14% | L28: 5% | M28: 3 | N28: 60% | O28: 60% | P28: 18 | Q28: 84% | R28: 54% | S28: 219 | T28: 81% | U28: 71% | V28: 119 | W28: 76% | X28: 69% | Y28: 50
A29: 262 | B29: MOSELLE | C29: 45 | D29: METZ | E29: 557447 | F29: METZ SAINT MAXIMIN | G29: 1.9 | H29: 52% | I29: 26% | J29: 20 | K29: 59% | L29: 51% | M29: 128 | N29: 63% | O29: 63% | P29: 27 | Q29: 61% | R29: 31% | S29: 47 | T29: 55% | U29: 45% | V29: 4 | W29: 77% | X29: 70% | Y29: 56
A30: 262 | B30: MOSELLE | C30: 44 | D30: MOSELLE NORD | E30: 457348 | F30: HAGONDANGE | G30: 7.8 | H30: 52% | I30: 26% | J30: 21 | K30: 35% | L30: 27% | M30: 36 | N30: 67% | O30: 67% | P30: 44 | Q30: 69% | R30: 39% | S30: 106 | T30: 69% | U30: 60% | V30: 39 | W30: 76% | X30: 68% | Y30: 43
A31: 262 | B31: MARNE ARDENNES | C31: 2 | D31: CHARLEVILLE MEZIERES | E31: 508839 | F31: GIVET | G31: 3.2 | H31: 53% | I31: 27% | J31: 22 | K31: 40% | L31: 32% | M31: 51 | N31: 68% | O31: 68% | P31: 51 | Q31: 76% | R31: 46% | S31: 173 | T31: 63% | U31: 54% | V31: 16 | W31: 72% | X31: 64% | Y31: 27
A32: 262 | B32: MARNE ARDENNES | C32: 11 | D32: REIMS | E32: 451301 | F32: REIMS HOTEL DE VILLE | G32: 7.4 | H32: 53% | I32: 27% | J32: 23 | K32: 52% | L32: 44% | M32: 98 | N32: 70% | O32: 70% | P32: 70 | Q32: 62% | R32: 32% | S32: 52 | T32: 60% | U32: 51% | V32: 12 | W32: 76% | X32: 68% | Y32: 44
A33: 262 | B33: BAS RHIN | C33: 5060 | D33: HAGUENAU | E33: 4031 | F33: TRUCHTERSHEIM | G33: 2.3 | H33: 53% | I33: 27% | J33: 24 | K33: 8% | L33: 0% | M33: 1 | N33: 71% | O33: 71% | P33: 81 | Q33: 56% | R33: 25% | S33: 22 | T33: 97% | U33: 88% | V33: 235 | W33: 89% | X33: 82% | Y33: 206
A34: 262 | B34: MEURTHE ET MOSELLE MEUSE | C34: 26 | D34: NANCY | E34: 554476 | F34: NANCY ARTEM | G34: 2.8 | H34: 53% | I34: 27% | J34: 25 | K34: 41% | L34: 33% | M34: 57 | N34: 63% | O34: 63% | P34: 25 | Q34: 81% | R34: 51% | S34: 198 | T34: 77% | U34: 67% | V34: 82 | W34: 60% | X34: 52% | Y34: 6
A35: 262 | B35: MEURTHE ET MOSELLE MEUSE | C35: 31 | D35: VERDUN | E35: 455676 | F35: VAUCOULEURS | G35: 0.3 | H35: 53% | I35: 28% | J35: 26 | K35: 62% | L35: 53% | M35: 142 | N35: 118% | O35: 118% | P35: 249 | Q35: 70% | R35: 39% | S35: 108 | T35: 44% | U35: 35% | V35: 3 | W35: 29% | X35: 21% | Y35: 2
A36: 262 | B36: MARNE ARDENNES | C36: 6 | D36: CHALONS EN CHAMPAGNE | E36: 451115 | F36: MOURMELON LE GRAND | G36: 2.7 | H36: 53% | I36: 28% | J36: 27 | K36: 46% | L36: 38% | M36: 76 | N36: 67% | O36: 67% | P36: 46 | Q36: 58% | R36: 28% | S36: 28 | T36: 71% | U36: 62% | V36: 46 | W36: 80% | X36: 73% | Y36: 81
A37: 262 | B37: BAS RHIN | C37: 5006 | D37: STRASBOURG | E37: 4048 | F37: STRASBOURG KOENIGSHOFFEN | G37: 2.2 | H37: 53% | I37: 28% | J37: 28 | K37: 65% | L37: 57% | M37: 155 | N37: 59% | O37: 59% | P37: 17 | Q37: 59% | R37: 29% | S37: 33 | T37: 59% | U37: 50% | V37: 8 | W37: 80% | X37: 72% | Y37: 77
A38: 262 | B38: BAS RHIN | C38: 5006 | D38: STRASBOURG | E38: 4037 | F38: MUNDOLSHEIM | G38: 3.7 | H38: 54% | I38: 28% | J38: 29 | K38: 40% | L38: 31% | M38: 49 | N38: 68% | O38: 68% | P38: 54 | Q38: 74% | R38: 44% | S38: 145 | T38: 63% | U38: 54% | V38: 17 | W38: 78% | X38: 70% | Y38: 58
A39: 262 | B39: MARNE ARDENNES | C39: 6 | D39: CHALONS EN CHAMPAGNE | E39: 451120 | F39: SARRY | G39: 2.3 | H39: 54% | I39: 28% | J39: 30 | K39: 26% | L39: 18% | M39: 20 | N39: 67% | O39: 67% | P39: 41 | Q39: 73% | R39: 43% | S39: 137 | T39: 80% | U39: 71% | V39: 114 | W39: 78% | X39: 70% | Y39: 59
A40: 262 | B40: MOSELLE | C40: 44 | D40: MOSELLE NORD | E40: 457350 | F40: HAYANGE | G40: 6.9 | H40: 54% | I40: 28% | J40: 31 | K40: 51% | L40: 43% | M40: 93 | N40: 61% | O40: 61% | P40: 20 | Q40: 66% | R40: 36% | S40: 91 | T40: 69% | U40: 60% | V40: 37 | W40: 77% | X40: 69% | Y40: 52
A41: 262 | B41: MEURTHE ET MOSELLE MEUSE | C41: 31 | D41: VERDUN | E41: 455678 | F41: VERDUN CENTRALE | G41: 8.6 | H41: 54% | I41: 28% | J41: 32 | K41: 26% | L41: 18% | M41: 21 | N41: 71% | O41: 71% | P41: 80 | Q41: 78% | R41: 48% | S41: 178 | T41: 83% | U41: 73% | V41: 139 | W41: 67% | X41: 59% | Y41: 13
A42: 262 | B42: MOSELLE | C42: 44 | D42: MOSELLE NORD | E42: 557113 | F42: AUDUN LE TICHE | G42: 2.2 | H42: 54% | I42: 28% | J42: 33 | K42: 54% | L42: 46% | M42: 112 | N42: 68% | O42: 68% | P42: 49 | Q42: 67% | R42: 37% | S42: 95 | T42: 68% | U42: 58% | V42: 30 | W42: 68% | X42: 61% | Y42: 14
A43: 262 | B43: MOSELLE | C43: 45 | D43: METZ | E43: 557439 | F43: METZ POMPIDOU | G43: 2.7 | H43: 54% | I43: 28% | J43: 34 | K43: 37% | L43: 28% | M43: 40 | N43: 72% | O43: 72% | P43: 91 | Q43: 54% | R43: 24% | S43: 17 | T43: 78% | U43: 69% | V43: 96 | W43: 85% | X43: 77% | Y43: 137
A44: 262 | B44: VOSGES | C44: 57 | D44: EPINAL | E44: 588336 | F44: GOLBEY | G44: 2.8 | H44: 54% | I44: 28% | J44: 35 | K44: 28% | L44: 20% | M44: 25 | N44: 74% | O44: 74% | P44: 108 | Q44: 57% | R44: 27% | S44: 25 | T44: 80% | U44: 70% | V44: 108 | W44: 86% | X44: 79% | Y44: 170
A45: 262 | B45: MEURTHE ET MOSELLE MEUSE | C45: 31 | D45: VERDUN | E45: 555679 | F45: VERDUN MAZEL | G45: 3.5 | H45: 54% | I45: 28% | J45: 36 | K45: 21% | L45: 13% | M45: 13 | N45: 71% | O45: 71% | P45: 85 | Q45: 72% | R45: 42% | S45: 123 | T45: 82% | U45: 73% | V45: 133 | W45: 81% | X45: 73% | Y45: 85
A46: 262 | B46: MOSELLE | C46: 42 | D46: MOSELLE EST | E46: 557668 | F46: VALMONT | G46: 2.5 | H46: 54% | I46: 29% | J46: 37 | K46: 37% | L46: 29% | M46: 42 | N46: 75% | O46: 75% | P46: 121 | Q46: 51% | R46: 21% | S46: 11 | T46: 80% | U46: 71% | V46: 112 | W46: 84% | X46: 77% | Y46: 135
A47: 262 | B47: MARNE ARDENNES | C47: 11 | D47: REIMS | E47: 551340 | F47: BETHENY | G47: 2.8 | H47: 54% | I47: 29% | J47: 38 | K47: 40% | L47: 32% | M47: 52 | N47: 66% | O47: 66% | P47: 38 | Q47: 66% | R47: 36% | S47: 85 | T47: 86% | U47: 77% | V47: 180 | W47: 69% | X47: 62% | Y47: 17
A48: 262 | B48: MOSELLE | C48: 45 | D48: METZ | E48: 557434 | F48: MARLY | G48: 3.1 | H48: 55% | I48: 29% | J48: 39 | K48: 28% | L48: 20% | M48: 22 | N48: 75% | O48: 75% | P48: 123 | Q48: 57% | R48: 27% | S48: 26 | T48: 83% | U48: 74% | V48: 141 | W48: 85% | X48: 77% | Y48: 138
A49: 262 | B49: MEURTHE ET MOSELLE MEUSE | C49: 26 | D49: NANCY | E49: 554356 | F49: JARVILLE LA MALGRANGE | G49: 4.2 | H49: 55% | I49: 29% | J49: 40 | K49: 62% | L49: 53% | M49: 143 | N49: 53% | O49: 53% | P49: 7 | Q49: 73% | R49: 43% | S49: 142 | T49: 67% | U49: 58% | V49: 28 | W49: 72% | X49: 65% | Y49: 29
A50: 262 | B50: MEURTHE ET MOSELLE MEUSE | C50: 31 | D50: VERDUN | E50: 554413 | F50: LONGWY BAS | G50: 3.7 | H50: 55% | I50: 29% | J50: 41 | K50: 28% | L50: 20% | M50: 24 | N50: 70% | O50: 70% | P50: 66 | Q50: 69% | R50: 39% | S50: 107 | T50: 80% | U50: 71% | V50: 116 | W50: 81% | X50: 73% | Y50: 88
A51: 262 | B51: MARNE ARDENNES | C51: 11 | D51: REIMS | E51: 451350 | F51: REIMS CENTRE VILLE | G51: 6.7 | H51: 55% | I51: 29% | J51: 42 | K51: 63% | L51: 55% | M51: 150 | N51: 58% | O51: 58% | P51: 13 | Q51: 79% | R51: 49% | S51: 189 | T51: 67% | U51: 58% | V51: 29 | W51: 61% | X51: 53% | Y51: 9
A52: 262 | B52: VOSGES | C52: 55 | D52: SAINT DIE | E52: 488246 | F52: CORNIMONT LA BRESSE | G52: 2.4 | H52: 55% | I52: 29% | J52: 43 | K52: 13% | L52: 4% | M52: 2 | N52: 72% | O52: 72% | P52: 95 | Q52: 76% | R52: 46% | S52: 168 | T52: 77% | U52: 68% | V52: 87 | W52: 91% | X52: 83% | Y52: 230
A53: 262 | B53: MARNE ARDENNES | C53: 11 | D53: REIMS | E53: 551367 | F53: AY CHAMPAGNE | G53: 2.7 | H53: 55% | I53: 29% | J53: 44 | K53: 34% | L53: 26% | M53: 34 | N53: 77% | O53: 77% | P53: 139 | Q53: 66% | R53: 36% | S53: 83 | T53: 77% | U53: 67% | V53: 84 | W53: 76% | X53: 69% | Y53: 47
A54: 262 | B54: BAS RHIN | C54: 5060 | D54: HAGUENAU | E54: 4079 | F54: SOULTZ SOUS FORETS | G54: 1.8 | H54: 55% | I54: 29% | J54: 45 | K54: 35% | L54: 27% | M54: 38 | N54: 66% | O54: 66% | P54: 39 | Q54: 60% | R54: 30% | S54: 38 | T54: 78% | U54: 69% | V54: 95 | W54: 91% | X54: 83% | Y54: 232
A55: 262 | B55: VOSGES | C55: 57 | D55: EPINAL | E55: 488561 | F55: REMIREMONT | G55: 7.0 | H55: 55% | I55: 29% | J55: 46 | K55: 16% | L55: 7% | M55: 4 | N55: 76% | O55: 76% | P55: 131 | Q55: 75% | R55: 45% | S55: 154 | T55: 79% | U55: 70% | V55: 104 | W55: 86% | X55: 79% | Y55: 161
A56: 262 | B56: MOSELLE | C56: 42 | D56: MOSELLE EST | E56: 457583 | F56: SAINT AVOLD | G56: 7.1 | H56: 55% | I56: 29% | J56: 47 | K56: 44% | L56: 36% | M56: 69 | N56: 63% | O56: 63% | P56: 23 | Q56: 67% | R56: 37% | S56: 94 | T56: 74% | U56: 65% | V56: 66 | W56: 84% | X56: 76% | Y56: 125
A57: 262 | B57: MOSELLE | C57: 42 | D57: MOSELLE EST | E57: 457308 | F57: FORBACH CENTRALE | G57: 9.2 | H57: 55% | I57: 29% | J57: 48 | K57: 51% | L57: 43% | M57: 92 | N57: 60% | O57: 60% | P57: 19 | Q57: 69% | R57: 39% | S57: 101 | T57: 71% | U57: 61% | V57: 45 | W57: 81% | X57: 74% | Y57: 98
A58: 262 | B58: MOSELLE | C58: 42 | D58: MOSELLE EST | E58: 557210 | F58: CHATEAU SALINS | G58: 1.1 | H58: 56% | I58: 30% | J58: 49 | K58: 60% | L58: 52% | M58: 133 | N58: 74% | O58: 74% | P58: 111 | Q58: 55% | R58: 25% | S58: 21 | T58: 68% | U58: 59% | V58: 32 | W58: 76% | X58: 69% | Y58: 48
A59: 262 | B59: BAS RHIN | C59: 5006 | D59: STRASBOURG | E59: 4043 | F59: STRASBOURG HALLES | G59: 7.2 | H59: 56% | I59: 30% | J59: 50 | K59: 62% | L59: 53% | M59: 141 | N59: 64% | O59: 64% | P59: 33 | Q59: 65% | R59: 35% | S59: 71 | T59: 60% | U59: 50% | V59: 10 | W59: 85% | X59: 77% | Y59: 136
A60: 262 | B60: MOSELLE | C60: 42 | D60: MOSELLE EST | E60: 557250 | F60: CREUTZWALD | G60: 2.4 | H60: 56% | I60: 30% | J60: 51 | K60: 29% | L60: 20% | M60: 26 | N60: 81% | O60: 81% | P60: 188 | Q60: 70% | R60: 40% | S60: 116 | T60: 74% | U60: 65% | V60: 64 | W60: 81% | X60: 73% | Y60: 87
A61: 262 | B61: MARNE ARDENNES | C61: 2 | D61: CHARLEVILLE MEZIERES | E61: 408862 | F61: REVIN | G61: 3.3 | H61: 56% | I61: 30% | J61: 52 | K61: 28% | L61: 20% | M61: 23 | N61: 77% | O61: 77% | P61: 141 | Q61: 78% | R61: 48% | S61: 185 | T61: 73% | U61: 63% | V61: 56 | W61: 80% | X61: 72% | Y61: 75
A62: 262 | B62: MEURTHE ET MOSELLE MEUSE | C62: 27 | D62: PONT A MOUSSON | E62: 554516 | F62: PAGNY SUR MOSELLE | G62: 2.8 | H62: 56% | I62: 30% | J62: 53 | K62: 42% | L62: 34% | M62: 61 | N62: 77% | O62: 77% | P62: 146 | Q62: 61% | R62: 31% | S62: 42 | T62: 76% | U62: 67% | V62: 74 | W62: 79% | X62: 72% | Y62: 71
A63: 262 | B63: MOSELLE | C63: 44 | D63: MOSELLE NORD | E63: 557303 | F63: FAMECK | G63: 2.4 | H63: 56% | I63: 30% | J63: 54 | K63: 39% | L63: 30% | M63: 46 | N63: 76% | O63: 76% | P63: 133 | Q63: 64% | R63: 34% | S63: 70 | T63: 86% | U63: 76% | V63: 171 | W63: 72% | X63: 64% | Y63: 24
A64: 262 | B64: AUBE HAUTE MARNE | C64: 14 | D64: TROYES | E64: 510570 | F64: NOGENT SUR SEINE | G64: 4.7 | H64: 56% | I64: 30% | J64: 55 | K64: 18% | L64: 10% | M64: 6 | N64: 72% | O64: 72% | P64: 90 | Q64: 86% | R64: 56% | S64: 226 | T64: 80% | U64: 71% | V64: 110 | W64: 80% | X64: 72% | Y64: 74
A65: 262 | B65: VOSGES | C65: 55 | D65: SAINT DIE | E65: 588666 | F65: VAGNEY | G65: 3.2 | H65: 56% | I65: 30% | J65: 56 | K65: 24% | L65: 15% | M65: 15 | N65: 74% | O65: 74% | P65: 110 | Q65: 63% | R65: 33% | S65: 57 | T65: 90% | U65: 80% | V65: 204 | W65: 87% | X65: 79% | Y65: 174
A66: 262 | B66: MEURTHE ET MOSELLE MEUSE | C66: 27 | D66: PONT A MOUSSON | E66: 554506 | F66: CHALIGNY NEUVES MAISONS | G66: 3.5 | H66: 56% | I66: 30% | J66: 57 | K66: 70% | L66: 62% | M66: 180 | N66: 56% | O66: 56% | P66: 12 | Q66: 82% | R66: 52% | S66: 210 | T66: 55% | U66: 46% | V66: 5 | W66: 72% | X66: 65% | Y66: 28
A67: 262 | B67: AUBE HAUTE MARNE | C67: 21 | D67: CHAUMONT | E67: 510590 | F67: CHAUMONT REPUBLIQUE | G67: 2.8 | H67: 56% | I67: 30% | J67: 58 | K67: 47% | L67: 39% | M67: 81 | N67: 79% | O67: 79% | P67: 173 | Q67: 65% | R67: 35% | S67: 72 | T67: 66% | U67: 56% | V67: 22 | W67: 80% | X67: 72% | Y67: 73
A68: 262 | B68: MOSELLE | C68: 45 | D68: METZ | E68: 457446 | F68: METZ SAINT LOUIS | G68: 5.4 | H68: 56% | I68: 30% | J68: 59 | K68: 53% | L68: 45% | M68: 110 | N68: 70% | O68: 70% | P68: 68 | Q68: 64% | R68: 34% | S68: 62 | T68: 74% | U68: 64% | V68: 61 | W68: 76% | X68: 69% | Y68: 49
A69: 262 | B69: MARNE ARDENNES | C69: 6 | D69: CHALONS EN CHAMPAGNE | E69: 551103 | F69: FAGNIERES LECLERC | G69: 2.9 | H69: 56% | I69: 30% | J69: 60 | K69: 42% | L69: 33% | M69: 58 | N69: 82% | O69: 82% | P69: 199 | Q69: 74% | R69: 44% | S69: 150 | T69: 61% | U69: 52% | V69: 13 | W69: 79% | X69: 71% | Y69: 69
A70: 262 | B70: MOSELLE | C70: 45 | D70: METZ | E70: 557441 | F70: METZ PLAPPEVILLE | G70: 2.1 | H70: 56% | I70: 31% | J70: 61 | K70: 68% | L70: 60% | M70: 166 | N70: 73% | O70: 73% | P70: 98 | Q70: 30% | R70: 0% | S70: 1 | T70: 81% | U70: 72% | V70: 127 | W70: 85% | X70: 78% | Y70: 149
A71: 262 | B71: BAS RHIN | C71: 5101 | D71: SELESTAT | E71: 4104 | F71: ERSTEIN | G71: 4.3 | H71: 57% | I71: 31% | J71: 62 | K71: 75% | L71: 66% | M71: 211 | N71: 49% | O71: 49% | P71: 5 | Q71: 71% | R71: 41% | S71: 121 | T71: 65% | U71: 56% | V71: 21 | W71: 79% | X71: 71% | Y71: 66
A72: 262 | B72: MOSELLE | C72: 44 | D72: MOSELLE NORD | E72: 457632 | F72: THIONVILLE CENTRALE | G72: 11.0 | H72: 57% | I72: 31% | J72: 63 | K72: 59% | L72: 50% | M72: 125 | N72: 63% | O72: 63% | P72: 24 | Q72: 74% | R72: 44% | S72: 151 | T72: 65% | U72: 56% | V72: 20 | W72: 77% | X72: 70% | Y72: 57
A73: 262 | B73: MARNE ARDENNES | C73: 11 | D73: REIMS | E73: 451361 | F73: PIERRY LECLERC | G73: 1.9 | H73: 57% | I73: 31% | J73: 64 | K73: 56% | L73: 47% | M73: 115 | N73: 63% | O73: 63% | P73: 28 | Q73: 63% | R73: 33% | S73: 55 | T73: 83% | U73: 74% | V73: 140 | W73: 75% | X73: 68% | Y73: 41
A74: 262 | B74: MEURTHE ET MOSELLE MEUSE | C74: 26 | D74: NANCY | E74: 454481 | F74: NANCY PLACE DOMBASLE | G74: 7.5 | H74: 57% | I74: 31% | J74: 65 | K74: 75% | L74: 67% | M74: 214 | N74: 68% | O74: 68% | P74: 48 | Q74: 51% | R74: 21% | S74: 13 | T74: 84% | U74: 75% | V74: 155 | W74: 61% | X74: 53% | Y74: 8
A75: 264 | B75: MOSELLE | C75: 42 | D75: MOSELLE EST | E75: 557523 | F75: PHALSBOURG | G75: 2.1 | H75: 57% | I75: 31% | J75: 66 | K75: 44% | L75: 35% | M75: 67 | N75: 85% | O75: 85% | P75: 215 | Q75: 59% | R75: 29% | S75: 35 | T75: 70% | U75: 60% | V75: 40 | W75: 84% | X75: 76% | Y75: 124
A76: 264 | B76: MOSELLE | C76: 44 | D76: MOSELLE NORD | E76: 557660 | F76: UCKANGE | G76: 1.7 | H76: 57% | I76: 31% | J76: 67 | K76: 80% | L76: 72% | M76: 237 | N76: 59% | O76: 59% | P76: 16 | Q76: 76% | R76: 46% | S76: 160 | T76: 56% | U76: 47% | V76: 6 | W76: 68% | X76: 61% | Y76: 15
A77: 264 | B77: MARNE ARDENNES | C77: 11 | D77: REIMS | E77: 451370 | F77: EPERNAY | G77: 8.5 | H77: 57% | I77: 31% | J77: 68 | K77: 42% | L77: 33% | M77: 59 | N77: 71% | O77: 71% | P77: 82 | Q77: 70% | R77: 40% | S77: 115 | T77: 81% | U77: 71% | V77: 120 | W77: 78% | X77: 70% | Y77: 64
A78: 264 | B78: BAS RHIN | C78: 5060 | D78: HAGUENAU | E78: 4092 | F78: HOCHFELDEN | G78: 2.0 | H78: 58% | I78: 32% | J78: 69 | K78: 48% | L78: 40% | M78: 87 | N78: 71% | O78: 71% | P78: 78 | Q78: 64% | R78: 34% | S78: 67 | T78: 74% | U78: 64% | V78: 62 | W78: 86% | X78: 78% | Y78: 156
A79: 264 | B79: VOSGES | C79: 55 | D79: SAINT DIE | E79: 488326 | F79: GERARDMER | G79: 3.8 | H79: 58% | I79: 32% | J79: 70 | K79: 45% | L79: 36% | M79: 72 | N79: 76% | O79: 76% | P79: 129 | Q79: 61% | R79: 31% | S79: 49 | T79: 81% | U79: 71% | V79: 118 | W79: 81% | X79: 73% | Y79: 91
A80: 264 | B80: MARNE ARDENNES | C80: 6 | D80: CHALONS EN CHAMPAGNE | E80: 551354 | F80: VERTUS | G80: 2.0 | H80: 58% | I80: 32% | J80: 71 | K80: 24% | L80: 16% | M80: 16 | N80: 78% | O80: 78% | P80: 155 | Q80: 63% | R80: 33% | S80: 59 | T80: 92% | U80: 83% | V80: 211 | W80: 86% | X80: 79% | Y80: 164
A81: 264 | B81: BAS RHIN | C81: 5006 | D81: STRASBOURG | E81: 4047 | F81: STRASBOURG CRONENBOURG | G81: 4.5 | H81: 58% | I81: 32% | J81: 72 | K81: 47% | L81: 39% | M81: 80 | N81: 68% | O81: 68% | P81: 53 | Q81: 71% | R81: 41% | S81: 119 | T81: 77% | U81: 68% | V81: 89 | W81: 81% | X81: 73% | Y81: 94
A82: 264 | B82: MARNE ARDENNES | C82: 11 | D82: REIMS | E82: 551306 | F82: REIMS SAINT MARCEAUX | G82: 4.6 | H82: 58% | I82: 32% | J82: 73 | K82: 57% | L82: 49% | M82: 121 | N82: 55% | O82: 55% | P82: 8 | Q82: 92% | R82: 62% | S82: 236 | T82: 71% | U82: 62% | V82: 49 | W82: 70% | X82: 62% | Y82: 18
A83: 264 | B83: MOSELLE | C83: 45 | D83: METZ | E83: 557105 | F83: ARS SUR MOSELLE | G83: 3.7 | H83: 58% | I83: 32% | J83: 74 | K83: 43% | L83: 35% | M83: 64 | N83: 70% | O83: 70% | P83: 71 | Q83: 76% | R83: 46% | S83: 163 | T83: 80% | U83: 71% | V83: 115 | W83: 75% | X83: 68% | Y83: 42
A84: 264 | B84: VOSGES | C84: 57 | D84: EPINAL | E84: 488706 | F84: VITTEL | G84: 2.8 | H84: 58% | I84: 32% | J84: 75 | K84: 37% | L84: 29% | M84: 41 | N84: 78% | O84: 78% | P84: 153 | Q84: 69% | R84: 39% | S84: 103 | T84: 78% | U84: 69% | V84: 97 | W84: 85% | X84: 77% | Y84: 140
A85: 264 | B85: MOSELLE | C85: 44 | D85: MOSELLE NORD | E85: 557347 | F85: GUENANGE | G85: 4.6 | H85: 58% | I85: 32% | J85: 76 | K85: 70% | L85: 61% | M85: 173 | N85: 62% | O85: 62% | P85: 22 | Q85: 65% | R85: 35% | S85: 76 | T85: 74% | U85: 65% | V85: 63 | W85: 77% | X85: 69% | Y85: 51
A86: 264 | B86: MOSELLE | C86: 42 | D86: MOSELLE EST | E86: 557305 | F86: FAULQUEMONT | G86: 4.4 | H86: 58% | I86: 33% | J86: 77 | K86: 66% | L86: 58% | M86: 158 | N86: 63% | O86: 63% | P86: 29 | Q86: 74% | R86: 44% | S86: 149 | T86: 73% | U86: 64% | V86: 58 | W86: 71% | X86: 63% | Y86: 21
A87: 264 | B87: MEURTHE ET MOSELLE MEUSE | C87: 31 | D87: VERDUN | E87: 454414 | F87: LONGWY HAUT | G87: 3.3 | H87: 59% | I87: 33% | J87: 78 | K87: 51% | L87: 43% | M87: 94 | N87: 70% | O87: 70% | P87: 75 | Q87: 71% | R87: 41% | S87: 122 | T87: 71% | U87: 62% | V87: 50 | W87: 83% | X87: 76% | Y87: 121
A88: 264 | B88: HAUT RHIN | C88: 5130 | D88: COLMAR | E88: 4132 | F88: COLMAR MARAICHERS | G88: 3.7 | H88: 59% | I88: 33% | J88: 79 | K88: 43% | L88: 35% | M88: 65 | N88: 72% | O88: 72% | P88: 92 | Q88: 65% | R88: 35% | S88: 75 | T88: 78% | U88: 68% | V88: 92 | W88: 90% | X88: 82% | Y88: 214
A89: 264 | B89: AUBE HAUTE MARNE | C89: 21 | D89: CHAUMONT | E89: 451154 | F89: JOINVILLE | G89: 1.8 | H89: 59% | I89: 33% | J89: 80 | K89: 32% | L89: 24% | M89: 29 | N89: 69% | O89: 69% | P89: 62 | Q89: 97% | R89: 66% | S89: 240 | T89: 66% | U89: 57% | V89: 26 | W89: 84% | X89: 76% | Y89: 129
A90: 264 | B90: VOSGES | C90: 55 | D90: SAINT DIE | E90: 588551 | F90: RAMBERVILLERS | G90: 2.6 | H90: 59% | I90: 33% | J90: 81 | K90: 33% | L90: 25% | M90: 33 | N90: 84% | O90: 84% | P90: 213 | Q90: 60% | R90: 30% | S90: 39 | T90: 93% | U90: 84% | V90: 216 | W90: 77% | X90: 69% | Y90: 53
A91: 264 | B91: MARNE ARDENNES | C91: 6 | D91: CHALONS EN CHAMPAGNE | E91: 551128 | F91: SAINTE MENEHOULD | G91: 3.4 | H91: 59% | I91: 33% | J91: 82 | K91: 38% | L91: 30% | M91: 45 | N91: 69% | O91: 69% | P91: 64 | Q91: 80% | R91: 50% | S91: 191 | T91: 74% | U91: 65% | V91: 65 | W91: 87% | X91: 79% | Y91: 173
A92: 264 | B92: MARNE ARDENNES | C92: 2 | D92: CHARLEVILLE MEZIERES | E92: 408840 | F92: RETHEL | G92: 4.2 | H92: 59% | I92: 33% | J92: 83 | K92: 63% | L92: 55% | M92: 146 | N92: 65% | O92: 65% | P92: 34 | Q92: 73% | R92: 43% | S92: 141 | T92: 73% | U92: 64% | V92: 57 | W92: 75% | X92: 67% | Y92: 37
A93: 264 | B93: MARNE ARDENNES | C93: 11 | D93: REIMS | E93: 551314 | F93: FISMES | G93: 2.6 | H93: 59% | I93: 33% | J93: 84 | K93: 48% | L93: 40% | M93: 86 | N93: 64% | O93: 64% | P93: 30 | Q93: 75% | R93: 45% | S93: 155 | T93: 90% | U93: 80% | V93: 205 | W93: 73% | X93: 65% | Y93: 30
A94: 264 | B94: BAS RHIN | C94: 5060 | D94: HAGUENAU | E94: 4071 | F94: WISSEMBOURG | G94: 6.5 | H94: 59% | I94: 33% | J94: 85 | K94: 33% | L94: 25% | M94: 31 | N94: 76% | O94: 76% | P94: 132 | Q94: 70% | R94: 39% | S94: 109 | T94: 80% | U94: 71% | V94: 109 | W94: 91% | X94: 84% | Y94: 234
A95: 264 | B95: MARNE ARDENNES | C95: 2 | D95: CHARLEVILLE MEZIERES | E95: 408822 | F95: CHARLEVILLE MEZIERES | G95: 5.2 | H95: 59% | I95: 33% | J95: 86 | K95: 73% | L95: 65% | M95: 203 | N95: 80% | O95: 80% | P95: 181 | Q95: 50% | R95: 20% | S95: 10 | T95: 72% | U95: 62% | V95: 53 | W95: 75% | X95: 67% | Y95: 38
A96: 264 | B96: MEURTHE ET MOSELLE MEUSE | C96: 26 | D96: NANCY | E96: 554636 | F96: TOMBLAINE | G96: 2.8 | H96: 59% | I96: 33% | J96: 87 | K96: 42% | L96: 34% | M96: 62 | N96: 70% | O96: 70% | P96: 69 | Q96: 66% | R96: 36% | S96: 93 | T96: 83% | U96: 73% | V96: 137 | W96: 89% | X96: 81% | Y96: 198
A97: 30 | B97: MARNE ARDENNES | C97: 2 | D97: CHARLEVILLE MEZIERES | E97: 508802 | F97: CHARLEVILLE NEVERS | G97: 2.8 | H97: 59% | I97: 33% | J97: 88 | K97: 37% | L97: 29% | M97: 43 | N97: 80% | O97: 80% | P97: 184 | Q97: 73% | R97: 43% | S97: 140 | T97: 75% | U97: 65% | V97: 68 | W97: 85% | X97: 77% | Y97: 148
A98: 30 | B98: BAS RHIN | C98: 5101 | D98: SELESTAT | E98: 4126 | F98: MUTZIG | G98: 2.7 | H98: 59% | I98: 33% | J98: 89 | K98: 64% | L98: 56% | M98: 153 | N98: 65% | O98: 65% | P98: 35 | Q98: 51% | R98: 21% | S98: 12 | T98: 84% | U98: 74% | V98: 150 | W98: 87% | X98: 79% | Y98: 172
A99: 30 | B99: BAS RHIN | C99: 5006 | D99: STRASBOURG | E99: 4006 | F99: STRASBOURG NEUDORF | G99: 7.9 | H99: 59% | I99: 33% | J99: 90 | K99: 20% | L99: 12% | M99: 10 | N99: 79% | O99: 79% | P99: 171 | Q99: 82% | R99: 52% | S99: 207 | T99: 79% | U99: 70% | V99: 103 | W99: 90% | X99: 82% | Y99: 219
A100: 30 | B100: MARNE ARDENNES | C100: 6 | D100: CHALONS EN CHAMPAGNE | E100: 551110 | F100: CHALONS ROOSEVELT | G100: 4.0 | H100: 59% | I100: 33% | J100: 91 | K100: 26% | L100: 18% | M100: 19 | N100: 76% | O100: 76% | P100: 130 | Q100: 98% | R100: 68% | S100: 242 | T100: 68% | U100: 59% | V100: 35 | W100: 84% | X100: 76% | Y100: 128
A101: 30 | B101: VOSGES | C101: 55 | D101: SAINT DIE | E101: 588186 | F101: BRUYERES | G101: 3.6 | H101: 59% | I101: 33% | J101: 92 | K101: 35% | L101: 27% | M101: 37 | N101: 74% | O101: 74% | P101: 106 | Q101: 74% | R101: 44% | S101: 148 | T101: 88% | U101: 79% | V101: 197 | W101: 80% | X101: 72% | Y101: 80
A102: 30 | B102: MOSELLE | C102: 42 | D102: MOSELLE EST | E102: 457617 | F102: SARREGUEMINES | G102: 7.1 | H102: 59% | I102: 34% | J102: 93 | K102: 59% | L102: 51% | M102: 130 | N102: 71% | O102: 71% | P102: 84 | Q102: 68% | R102: 38% | S102: 99 | T102: 77% | U102: 67% | V102: 81 | W102: 77% | X102: 70% | Y102: 55
A103: 30 | B103: AUBE HAUTE MARNE | C103: 21 | D103: CHAUMONT | E103: 410541 | F103: LANGRES | G103: 8.2 | H103: 59% | I103: 34% | J103: 94 | K103: 43% | L103: 35% | M103: 63 | N103: 70% | O103: 70% | P103: 74 | Q103: 74% | R103: 44% | S103: 144 | T103: 79% | U103: 70% | V103: 101 | W103: 87% | X103: 79% | Y103: 175
A104: 30 | B104: HAUT RHIN | C104: 5130 | D104: COLMAR | E104: 4157 | F104: NEUF BRISACH | G104: 3.3 | H104: 60% | I104: 34% | J104: 95 | K104: 56% | L104: 47% | M104: 116 | N104: 79% | O104: 79% | P104: 172 | Q104: 61% | R104: 31% | S104: 45 | T104: 70% | U104: 61% | V104: 43 | W104: 86% | X104: 79% | Y104: 165
A105: 30 | B105: VOSGES | C105: 57 | D105: EPINAL | E105: 588201 | F105: CHANTRAINE | G105: 3.5 | H105: 60% | I105: 34% | J105: 96 | K105: 48% | L105: 40% | M105: 85 | N105: 69% | O105: 69% | P105: 59 | Q105: 62% | R105: 32% | S105: 50 | T105: 85% | U105: 75% | V105: 158 | W105: 90% | X105: 82% | Y105: 212
A106: 30 | B106: MARNE ARDENNES | C106: 2 | D106: CHARLEVILLE MEZIERES | E106: 508833 | F106: VILLERS SEMEUSE CORA | G106: 3.4 | H106: 60% | I106: 34% | J106: 97 | K106: 70% | L106: 62% | M106: 181 | N106: 78% | O106: 78% | P106: 154 | Q106: 61% | R106: 31% | S106: 44 | T106: 70% | U106: 61% | V106: 41 | W106: 74% | X106: 66% | Y106: 33
A107: 30 | B107: VOSGES | C107: 57 | D107: EPINAL | E107: 588716 | F107: XERTIGNY | G107: 2.6 | H107: 60% | I107: 34% | J107: 98 | K107: 33% | L107: 25% | M107: 32 | N107: 83% | O107: 83% | P107: 206 | Q107: 70% | R107: 40% | S107: 111 | T107: 76% | U107: 67% | V107: 79 | W107: 91% | X107: 83% | Y107: 227
A108: 30 | B108: MEURTHE ET MOSELLE MEUSE | C108: 27 | D108: PONT A MOUSSON | E108: 554376 | F108: LAXOU BOUFFLERS | G108: 3.0 | H108: 60% | I108: 34% | J108: 99 | K108: 80% | L108: 72% | M108: 236 | N108: 56% | O108: 56% | P108: 10 | Q108: 79% | R108: 49% | S108: 187 | T108: 74% | U108: 64% | V108: 60 | W108: 65% | X108: 57% | Y108: 12
A109: 30 | B109: MOSELLE | C109: 42 | D109: MOSELLE EST | E109: 457543 | F109: PUTTELANGE AUX LACS | G109: 2.5 | H109: 60% | I109: 34% | J109: 100 | K109: 52% | L109: 44% | M109: 99 | N109: 73% | O109: 73% | P109: 102 | Q109: 78% | R109: 48% | S109: 184 | T109: 68% | U109: 59% | V109: 34 | W109: 82% | X109: 74% | Y109: 100
A110: 30 | B110: MOSELLE | C110: 44 | D110: MOSELLE NORD | E110: 457306 | F110: FLORANGE | G110: 5.0 | H110: 60% | I110: 34% | J110: 101 | K110: 79% | L110: 70% | M110: 225 | N110: 59% | O110: 59% | P110: 14 | Q110: 72% | R110: 42% | S110: 124 | T110: 81% | U110: 72% | V110: 129 | W110: 63% | X110: 56% | Y110: 10
A111: 30 | B111: HAUT RHIN | C111: 5130 | D111: COLMAR | E111: 4143 | F111: MUNSTER | G111: 4.5 | H111: 60% | I111: 34% | J111: 102 | K111: 57% | L111: 48% | M111: 119 | N111: 68% | O111: 68% | P111: 52 | Q111: 61% | R111: 31% | S111: 46 | T111: 83% | U111: 73% | V111: 136 | W111: 85% | X111: 77% | Y111: 146
A112: 30 | B112: MOSELLE | C112: 45 | D112: METZ | E112: 557612 | F112: SAINTE MARIE AUX CHENES | G112: 3.6 | H112: 60% | I112: 34% | J112: 103 | K112: 31% | L112: 23% | M112: 27 | N112: 88% | O112: 88% | P112: 230 | Q112: 61% | R112: 30% | S112: 40 | T112: 87% | U112: 78% | V112: 184 | W112: 89% | X112: 81% | Y112: 196
A113: 30 | B113: BAS RHIN | C113: 5006 | D113: STRASBOURG | E113: 4027 | F113: SCHILTIGHEIM CENTRE | G113: 3.2 | H113: 60% | I113: 34% | J113: 104 | K113: 68% | L113: 60% | M113: 168 | N113: 63% | O113: 63% | P113: 26 | Q113: 63% | R113: 33% | S113: 58 | T113: 77% | U113: 68% | V113: 91 | W113: 83% | X113: 76% | Y113: 120
A114: 30 | B114: MARNE ARDENNES | C114: 6 | D114: CHALONS EN CHAMPAGNE | E114: 451381 | F114: SEZANNE | G114: 5.4 | H114: 60% | I114: 34% | J114: 105 | K114: 50% | L114: 41% | M114: 89 | N114: 75% | O114: 75% | P114: 117 | Q114: 56% | R114: 26% | S114: 23 | T114: 91% | U114: 82% | V114: 208 | W114: 84% | X114: 77% | Y114: 133
A115: 30 | B115: AUBE HAUTE MARNE | C115: 14 | D115: TROYES | E115: 510513 | F115: TROYES 1ER MAI | G115: 2.3 | H115: 60% | I115: 34% | J115: 106 | K115: 76% | L115: 68% | M115: 217 | N115: 72% | O115: 72% | P115: 87 | Q115: 63% | R115: 33% | S115: 61 | T115: 64% | U115: 54% | V115: 18 | W115: 81% | X115: 74% | Y115: 96
A116: 30 | B116: MEURTHE ET MOSELLE MEUSE | C116: 31 | D116: VERDUN | E116: 455151 | F116: BAR LE DUC | G116: 9.9 | H116: 60% | I116: 34% | J116: 107 | K116: 45% | L116: 36% | M116: 71 | N116: 74% | O116: 74% | P116: 107 | Q116: 74% | R116: 44% | S116: 146 | T116: 77% | U116: 67% | V116: 80 | W116: 87% | X116: 80% | Y116: 178
A117: 30 | B117: MOSELLE | C117: 44 | D117: MOSELLE NORD | E117: 557352 | F117: HETTANGE GRANDE | G117: 2.9 | H117: 60% | I117: 34% | J117: 108 | K117: 59% | L117: 50% | M117: 126 | N117: 70% | O117: 70% | P117: 67 | Q117: 76% | R117: 46% | S117: 170 | T117: 81% | U117: 71% | V117: 122 | W117: 71% | X117: 63% | Y117: 23
A118: 30 | B118: MOSELLE | C118: 42 | D118: MOSELLE EST | E118: 557503 | F118: NEUNKIRCH | G118: 3.5 | H118: 60% | I118: 34% | J118: 109 | K118: 16% | L118: 8% | M118: 5 | N118: 84% | O118: 84% | P118: 210 | Q118: 76% | R118: 46% | S118: 171 | T118: 93% | U118: 84% | V118: 214 | W118: 88% | X118: 80% | Y118: 188
A119: 30 | B119: BAS RHIN | C119: 5006 | D119: STRASBOURG | E119: 4020 | F119: STRASBOURG ROBERTSAU | G119: 5.2 | H119: 60% | I119: 34% | J119: 110 | K119: 67% | L119: 59% | M119: 163 | N119: 79% | O119: 79% | P119: 169 | Q119: 35% | R119: 5% | S119: 2 | T119: 86% | U119: 77% | V119: 178 | W119: 89% | X119: 82% | Y119: 209
A120: 30 | B120: MARNE ARDENNES | C120: 6 | D120: CHALONS EN CHAMPAGNE | E120: 451101 | F120: CHALONS VIVIERS | G120: 9.7 | H120: 60% | I120: 34% | J120: 111 | K120: 39% | L120: 31% | M120: 48 | N120: 76% | O120: 76% | P120: 134 | Q120: 83% | R120: 53% | S120: 213 | T120: 78% | U120: 69% | V120: 98 | W120: 81% | X120: 73% | Y120: 92
A121: 30 | B121: BAS RHIN | C121: 5060 | D121: HAGUENAU | E121: 4057 | F121: BISCHWILLER | G121: 7.1 | H121: 60% | I121: 34% | J121: 112 | K121: 47% | L121: 38% | M121: 79 | N121: 69% | O121: 69% | P121: 55 | Q121: 72% | R121: 42% | S121: 127 | T121: 79% | U121: 70% | V121: 100 | W121: 91% | X121: 83% | Y121: 228
A122: 30 | B122: MOSELLE | C122: 45 | D122: METZ | E122: 557444 | F122: SAINT JULIEN LES METZ | G122: 3.7 | H122: 61% | I122: 35% | J122: 113 | K122: 82% | L122: 74% | M122: 240 | N122: 66% | O122: 66% | P122: 37 | Q122: 57% | R122: 27% | S122: 24 | T122: 76% | U122: 66% | V122: 73 | W122: 78% | X122: 70% | Y122: 61
A123: 30 | B123: BAS RHIN | C123: 5101 | D123: SELESTAT | E123: 4007 | F123: ILLKIRCH CENTRE | G123: 6.6 | H123: 61% | I123: 35% | J123: 114 | K123: 72% | L123: 64% | M123: 192 | N123: 73% | O123: 73% | P123: 97 | Q123: 66% | R123: 36% | S123: 84 | T123: 62% | U123: 53% | V123: 15 | W123: 86% | X123: 78% | Y123: 157
A124: 30 | B124: VOSGES | C124: 57 | D124: EPINAL | E124: 588396 | F124: LE VAL D AJOL | G124: 2.6 | H124: 61% | I124: 35% | J124: 115 | K124: 32% | L124: 24% | M124: 30 | N124: 80% | O124: 80% | P124: 179 | Q124: 78% | R124: 48% | S124: 182 | T124: 81% | U124: 72% | V124: 125 | W124: 88% | X124: 81% | Y124: 193
A125: 30 | B125: MEURTHE ET MOSELLE MEUSE | C125: 31 | D125: VERDUN | E125: 554700 | F125: VILLERUPT | G125: 2.8 | H125: 61% | I125: 35% | J125: 116 | K125: 39% | L125: 31% | M125: 47 | N125: 71% | O125: 71% | P125: 86 | Q125: 83% | R125: 53% | S125: 216 | T125: 80% | U125: 71% | V125: 113 | W125: 86% | X125: 78% | Y125: 152
A126: 30 | B126: BAS RHIN | C126: 5006 | D126: STRASBOURG | E126: 4054 | F126: STRASBOURG MONTAGNE VERTE | G126: 2.6 | H126: 61% | I126: 35% | J126: 117 | K126: 66% | L126: 58% | M126: 159 | N126: 67% | O126: 67% | P126: 43 | Q126: 66% | R126: 36% | S126: 81 | T126: 72% | U126: 62% | V126: 52 | W126: 90% | X126: 82% | Y126: 218
A127: 30 | B127: VOSGES | C127: 57 | D127: EPINAL | E127: 488281 | F127: ELOYES | G127: 3.1 | H127: 61% | I127: 35% | J127: 118 | K127: 54% | L127: 46% | M127: 111 | N127: 79% | O127: 79% | P127: 166 | Q127: 58% | R127: 28% | S127: 27 | T127: 83% | U127: 74% | V127: 145 | W127: 86% | X127: 79% | Y127: 162
A128: 30 | B128: MEURTHE ET MOSELLE MEUSE | C128: 26 | D128: NANCY | E128: 554486 | F128: NANCY POINT CENTRAL | G128: 2.7 | H128: 61% | I128: 35% | J128: 119 | K128: 72% | L128: 64% | M128: 194 | N128: 78% | O128: 78% | P128: 151 | Q128: 47% | R128: 17% | S128: 6 | T128: 79% | U128: 70% | V128: 102 | W128: 84% | X128: 77% | Y128: 134
A129: 30 | B129: MEURTHE ET MOSELLE MEUSE | C129: 27 | D129: PONT A MOUSSON | E129: 554257 | F129: DIEULOUARD | G129: 2.7 | H129: 61% | I129: 35% | J129: 120 | K129: 53% | L129: 45% | M129: 100 | N129: 77% | O129: 77% | P129: 140 | Q129: 52% | R129: 22% | S129: 14 | T129: 85% | U129: 76% | V129: 165 | W129: 94% | X129: 86% | Y129: 245
A130: 30 | B130: MOSELLE | C130: 44 | D130: MOSELLE NORD | E130: 457158 | F130: YUTZ | G130: 4.3 | H130: 61% | I130: 35% | J130: 121 | K130: 69% | L130: 60% | M130: 169 | N130: 70% | O130: 70% | P130: 72 | Q130: 71% | R130: 41% | S130: 120 | T130: 71% | U130: 62% | V130: 47 | W130: 82% | X130: 74% | Y130: 99
A131: 30 | B131: MEURTHE ET MOSELLE MEUSE | C131: 27 | D131: PONT A MOUSSON | E131: 554686 | F131: VEZELISE | G131: 1.9 | H131: 61% | I131: 35% | J131: 122 | K131: 52% | L131: 44% | M131: 97 | N131: 69% | O131: 69% | P131: 61 | Q131: 64% | R131: 34% | S131: 63 | T131: 91% | U131: 82% | V131: 207 | W131: 86% | X131: 79% | Y131: 163
A132: 30 | B132: MOSELLE | C132: 44 | D132: MOSELLE NORD | E132: 457192 | F132: CATTENOM | G132: 1.6 | H132: 61% | I132: 36% | J132: 123 | K132: 60% | L132: 52% | M132: 131 | N132: 69% | O132: 69% | P132: 63 | Q132: 68% | R132: 38% | S132: 98 | T132: 83% | U132: 73% | V132: 134 | W132: 83% | X132: 75% | Y132: 113
A133: 30 | B133: MARNE ARDENNES | C133: 11 | D133: REIMS | E133: 451336 | F133: TINQUEUX | G133: 4.4 | H133: 62% | I133: 36% | J133: 124 | K133: 53% | L133: 45% | M133: 107 | N133: 74% | O133: 74% | P133: 104 | Q133: 77% | R133: 47% | S133: 174 | T133: 85% | U133: 75% | V133: 160 | W133: 75% | X133: 67% | Y133: 34
A134: 30 | B134: MEURTHE ET MOSELLE MEUSE | C134: 27 | D134: PONT A MOUSSON | E134: 554416 | F134: LUDRES | G134: 3.7 | H134: 62% | I134: 36% | J134: 125 | K134: 46% | L134: 37% | M134: 74 | N134: 74% | O134: 74% | P134: 116 | Q134: 82% | R134: 52% | S134: 208 | T134: 81% | U134: 72% | V134: 131 | W134: 80% | X134: 72% | Y134: 79
A135: 30 | B135: MOSELLE | C135: 45 | D135: METZ | E135: 557432 | F135: MAIZIERES LES METZ | G135: 2.8 | H135: 62% | I135: 36% | J135: 126 | K135: 71% | L135: 63% | M135: 185 | N135: 75% | O135: 75% | P135: 120 | Q135: 68% | R135: 38% | S135: 97 | T135: 86% | U135: 77% | V135: 174 | W135: 65% | X135: 57% | Y135: 11
A136: 110 | B136: MARNE ARDENNES | C136: 11 | D136: REIMS | E136: 551369 | F136: DAMERY | G136: 1.9 | H136: 62% | I136: 36% | J136: 127 | K136: 69% | L136: 61% | M136: 170 | N136: 62% | O136: 62% | P136: 21 | Q136: 74% | R136: 44% | S136: 143 | T136: 88% | U136: 78% | V136: 191 | W136: 74% | X136: 66% | Y136: 32
A137: 110 | B137: VOSGES | C137: 55 | D137: SAINT DIE | E137: 588316 | F137: FRAIZE | G137: 3.6 | H137: 62% | I137: 36% | J137: 128 | K137: 61% | L137: 53% | M137: 138 | N137: 81% | O137: 81% | P137: 195 | Q137: 71% | R137: 40% | S137: 117 | T137: 73% | U137: 64% | V137: 59 | W137: 81% | X137: 73% | Y137: 86
A138: 110 | B138: MOSELLE | C138: 45 | D138: METZ | E138: 557436 | F138: METZ CATHEDRALE | G138: 3.4 | H138: 62% | I138: 37% | J138: 129 | K138: 80% | L138: 72% | M138: 234 | N138: 70% | O138: 70% | P138: 73 | Q138: 55% | R138: 25% | S138: 20 | T138: 76% | U138: 67% | V138: 77 | W138: 86% | X138: 78% | Y138: 154
A139: 110 | B139: MEURTHE ET MOSELLE MEUSE | C139: 27 | D139: PONT A MOUSSON | E139: 454651 | F139: TOUL | G139: 9.7 | H139: 63% | I139: 37% | J139: 130 | K139: 72% | L139: 64% | M139: 196 | N139: 73% | O139: 73% | P139: 101 | Q139: 73% | R139: 43% | S139: 139 | T139: 75% | U139: 66% | V139: 70 | W139: 75% | X139: 67% | Y139: 39
A140: 110 | B140: BAS RHIN | C140: 5006 | D140: STRASBOURG | E140: 4019 | F140: STRASBOURG ANVERS | G140: 4.7 | H140: 63% | I140: 37% | J140: 131 | K140: 73% | L140: 65% | M140: 200 | N140: 65% | O140: 65% | P140: 36 | Q140: 69% | R140: 39% | S140: 102 | T140: 79% | U140: 70% | V140: 106 | W140: 83% | X140: 75% | Y140: 114
A141: 110 | B141: VOSGES | C141: 57 | D141: EPINAL | E141: 588631 | F141: THAON LES VOSGES | G141: 4.0 | H141: 63% | I141: 37% | J141: 132 | K141: 61% | L141: 52% | M141: 134 | N141: 74% | O141: 74% | P141: 113 | Q141: 83% | R141: 53% | S141: 215 | T141: 71% | U141: 62% | V141: 51 | W141: 80% | X141: 72% | Y141: 76
A142: 110 | B142: MEURTHE ET MOSELLE MEUSE | C142: 27 | D142: PONT A MOUSSON | E142: 554196 | F142: CHAMPIGNEULLES | G142: 2.4 | H142: 63% | I142: 37% | J142: 133 | K142: 73% | L142: 65% | M142: 202 | N142: 79% | O142: 79% | P142: 160 | Q142: 68% | R142: 37% | S142: 96 | T142: 72% | U142: 63% | V142: 54 | W142: 78% | X142: 70% | Y142: 62
A143: 110 | B143: MOSELLE | C143: 42 | D143: MOSELLE EST | E143: 457435 | F143: MERLEBACH | G143: 2.5 | H143: 63% | I143: 37% | J143: 134 | K143: 64% | L143: 56% | M143: 152 | N143: 77% | O143: 77% | P143: 149 | Q143: 76% | R143: 46% | S143: 172 | T143: 75% | U143: 65% | V143: 67 | W143: 77% | X143: 70% | Y143: 54
A144: 110 | B144: BAS RHIN | C144: 5060 | D144: HAGUENAU | E144: 4085 | F144: INGWILLER | G144: 3.4 | H144: 63% | I144: 37% | J144: 135 | K144: 50% | L144: 42% | M144: 90 | N144: 77% | O144: 77% | P144: 145 | Q144: 72% | R144: 42% | S144: 132 | T144: 81% | U144: 72% | V144: 128 | W144: 89% | X144: 81% | Y144: 201
A145: 110 | B145: MOSELLE | C145: 42 | D145: MOSELLE EST | E145: 457614 | F145: SARREBOURG | G145: 8.7 | H145: 63% | I145: 37% | J145: 136 | K145: 58% | L145: 50% | M145: 124 | N145: 75% | O145: 75% | P145: 122 | Q145: 72% | R145: 42% | S145: 130 | T145: 76% | U145: 67% | V145: 75 | W145: 88% | X145: 81% | Y145: 190
A146: 110 | B146: BAS RHIN | C146: 5101 | D146: SELESTAT | E146: 4121 | F146: SCHIRMECK | G146: 2.8 | H146: 63% | I146: 37% | J146: 137 | K146: 57% | L146: 48% | M146: 118 | N146: 69% | O146: 69% | P146: 65 | Q146: 85% | R146: 54% | S146: 220 | T146: 85% | U146: 75% | V146: 161 | W146: 75% | X146: 68% | Y146: 40
A147: 110 | B147: MEURTHE ET MOSELLE MEUSE | C147: 31 | D147: VERDUN | E147: 455566 | F147: REVIGNY SUR ORNAIN | G147: 2.7 | H147: 63% | I147: 37% | J147: 138 | K147: 57% | L147: 48% | M147: 120 | N147: 74% | O147: 74% | P147: 109 | Q147: 72% | R147: 42% | S147: 125 | T147: 85% | U147: 76% | V147: 164 | W147: 83% | X147: 75% | Y147: 118
A148: 110 | B148: MEURTHE ET MOSELLE MEUSE | C148: 26 | D148: NANCY | E148: 554266 | F148: DOMBASLE SUR MEURTHE | G148: 3.2 | H148: 63% | I148: 37% | J148: 139 | K148: 71% | L148: 63% | M148: 187 | N148: 89% | O148: 89% | P148: 237 | Q148: 49% | R148: 19% | S148: 9 | T148: 79% | U148: 70% | V148: 105 | W148: 82% | X148: 74% | Y148: 102
A149: 110 | B149: MEURTHE ET MOSELLE MEUSE | C149: 27 | D149: PONT A MOUSSON | E149: 554381 | F149: LAXOU ARISTIDE BRIAND | G149: 2.3 | H149: 63% | I149: 37% | J149: 140 | K149: 74% | L149: 66% | M149: 206 | N149: 67% | O149: 67% | P149: 47 | Q149: 82% | R149: 52% | S149: 209 | T149: 77% | U149: 68% | V149: 90 | W149: 70% | X149: 63% | Y149: 20
A150: 110 | B150: MOSELLE | C150: 45 | D150: METZ | E150: 557440 | F150: METZ MOZART | G150: 2.7 | H150: 63% | I150: 37% | J150: 141 | K150: 66% | L150: 58% | M150: 156 | N150: 74% | O150: 74% | P150: 105 | Q150: 70% | R150: 40% | S150: 110 | T150: 76% | U150: 67% | V150: 78 | W150: 86% | X150: 79% | Y150: 171
A151: 110 | B151: AUBE HAUTE MARNE | C151: 21 | D151: CHAUMONT | E151: 451156 | F151: SAINT DIZIER CENTRE | G151: 8.5 | H151: 64% | I151: 38% | J151: 142 | K151: 61% | L151: 53% | M151: 136 | N151: 75% | O151: 75% | P151: 128 | Q151: 76% | R151: 46% | S151: 162 | T151: 77% | U151: 68% | V151: 85 | W151: 84% | X151: 76% | Y151: 127
A152: 110 | B152: AUBE HAUTE MARNE | C152: 21 | D152: CHAUMONT | E152: 410566 | F152: CHAUMONT HOTEL DE VILLE | G152: 10.4 | H152: 64% | I152: 38% | J152: 143 | K152: 53% | L152: 45% | M152: 105 | N152: 79% | O152: 79% | P152: 167 | Q152: 66% | R152: 36% | S152: 88 | T152: 87% | U152: 77% | V152: 183 | W152: 89% | X152: 81% | Y152: 197
A153: 110 | B153: MOSELLE | C153: 42 | D153: MOSELLE EST | E153: 457258 | F153: DIEUZE | G153: 3.1 | H153: 64% | I153: 38% | J153: 144 | K153: 42% | L153: 34% | M153: 60 | N153: 77% | O153: 77% | P153: 144 | Q153: 76% | R153: 46% | S153: 164 | T153: 87% | U153: 78% | V153: 188 | W153: 91% | X153: 83% | Y153: 231
A154: 110 | B154: MEURTHE ET MOSELLE MEUSE | C154: 26 | D154: NANCY | E154: 454426 | F154: LUNEVILLE CARNOT | G154: 7.6 | H154: 64% | I154: 38% | J154: 145 | K154: 76% | L154: 68% | M154: 219 | N154: 73% | O154: 73% | P154: 96 | Q154: 59% | R154: 29% | S154: 32 | T154: 88% | U154: 79% | V154: 194 | W154: 78% | X154: 70% | Y154: 63
A155: 110 | B155: VOSGES | C155: 57 | D155: EPINAL | E155: 488286 | F155: EPINAL ARISTIDE BRIAND | G155: 8.0 | H155: 64% | I155: 38% | J155: 146 | K155: 70% | L155: 62% | M155: 182 | N155: 72% | O155: 72% | P155: 88 | Q155: 60% | R155: 30% | S155: 37 | T155: 83% | U155: 74% | V155: 144 | W155: 89% | X155: 81% | Y155: 200
A156: 110 | B156: MARNE ARDENNES | C156: 2 | D156: CHARLEVILLE MEZIERES | E156: 408806 | F156: SEDAN | G156: 7.7 | H156: 64% | I156: 38% | J156: 147 | K156: 48% | L156: 40% | M156: 84 | N156: 77% | O156: 77% | P156: 148 | Q156: 76% | R156: 46% | S156: 165 | T156: 92% | U156: 82% | V156: 209 | W156: 81% | X156: 74% | Y156: 95
A157: 110 | B157: AUBE HAUTE MARNE | C157: 14 | D157: TROYES | E157: 410550 | F157: BAR SUR AUBE | G157: 4.7 | H157: 64% | I157: 38% | J157: 148 | K157: 46% | L157: 38% | M157: 77 | N157: 80% | O157: 80% | P157: 186 | Q157: 78% | R157: 48% | S157: 186 | T157: 85% | U157: 76% | V157: 166 | W157: 85% | X157: 77% | Y157: 139
A158: 110 | B158: MEURTHE ET MOSELLE MEUSE | C158: 26 | D158: NANCY | E158: 554116 | F158: BACCARAT | G158: 2.7 | H158: 64% | I158: 38% | J158: 149 | K158: 41% | L158: 33% | M158: 55 | N158: 71% | O158: 71% | P158: 76 | Q158: 85% | R158: 55% | S158: 223 | T158: 89% | U158: 80% | V158: 202 | W158: 89% | X158: 82% | Y158: 208
A159: 110 | B159: BAS RHIN | C159: 5006 | D159: STRASBOURG | E159: 4039 | F159: REICHSTETT | G159: 1.6 | H159: 64% | I159: 38% | J159: 150 | K159: 66% | L159: 58% | M159: 160 | N159: 82% | O159: 82% | P159: 201 | Q159: 66% | R159: 36% | S159: 90 | T159: 76% | U159: 67% | V159: 76 | W159: 85% | X159: 78% | Y159: 150
A160: 110 | B160: HAUT RHIN | C160: 5130 | D160: COLMAR | E160: 4144 | F160: RIBEAUVILLE | G160: 3.9 | H160: 64% | I160: 39% | J160: 151 | K160: 63% | L160: 55% | M160: 148 | N160: 72% | O160: 72% | P160: 93 | Q160: 73% | R160: 43% | S160: 138 | T160: 77% | U160: 67% | V160: 83 | W160: 92% | X160: 84% | Y160: 240
A161: 110 | B161: MEURTHE ET MOSELLE MEUSE | C161: 31 | D161: VERDUN | E161: 555406 | F161: LIGNY EN BARROIS | G161: 2.5 | H161: 65% | I161: 39% | J161: 152 | K161: 49% | L161: 41% | M161: 88 | N161: 75% | O161: 75% | P161: 119 | Q161: 65% | R161: 35% | S161: 78 | T161: 100% | U161: 91% | V161: 243 | W161: 89% | X161: 81% | Y161: 203
A162: 110 | B162: MEURTHE ET MOSELLE MEUSE | C162: 31 | D162: VERDUN | E162: 554412 | F162: LONGUYON | G162: 2.9 | H162: 65% | I162: 39% | J162: 153 | K162: 51% | L162: 43% | M162: 96 | N162: 75% | O162: 75% | P162: 118 | Q162: 80% | R162: 50% | S162: 195 | T162: 86% | U162: 77% | V162: 175 | W162: 86% | X162: 78% | Y162: 155
A163: 110 | B163: HAUT RHIN | C163: 5169 | D163: MULHOUSE | E163: 4178 | F163: SAINT LOUIS | G163: 6.4 | H163: 65% | I163: 39% | J163: 154 | K163: 70% | L163: 61% | M163: 175 | N163: 80% | O163: 80% | P163: 180 | Q163: 63% | R163: 33% | S163: 56 | T163: 79% | U163: 70% | V163: 99 | W163: 88% | X163: 80% | Y163: 183
A164: 110 | B164: BAS RHIN | C164: 5060 | D164: HAGUENAU | E164: 4060 | F164: HAGUENAU HOUBLON | G164: 8.3 | H164: 65% | I164: 39% | J164: 155 | K164: 70% | L164: 62% | M164: 176 | N164: 80% | O164: 80% | P164: 178 | Q164: 66% | R164: 36% | S164: 87 | T164: 81% | U164: 72% | V164: 126 | W164: 83% | X164: 75% | Y164: 110
A165: 110 | B165: BAS RHIN | C165: 5101 | D165: SELESTAT | E165: 4107 | F165: VILLE | G165: 1.9 | H165: 65% | I165: 39% | J165: 156 | K165: 79% | L165: 70% | M165: 224 | N165: 69% | O165: 69% | P165: 56 | Q165: 54% | R165: 24% | S165: 18 | T165: 86% | U165: 77% | V165: 172 | W165: 92% | X165: 84% | Y165: 235
A166: 110 | B166: BAS RHIN | C166: 5060 | D166: HAGUENAU | E166: 4041 | F166: HOERDT | G166: 1.6 | H166: 65% | I166: 39% | J166: 157 | K166: 55% | L166: 47% | M166: 114 | N166: 80% | O166: 80% | P166: 183 | Q166: 63% | R166: 33% | S166: 60 | T166: 92% | U166: 83% | V166: 212 | W166: 89% | X166: 81% | Y166: 195
A167: 110 | B167: MEURTHE ET MOSELLE MEUSE | C167: 27 | D167: PONT A MOUSSON | E167: 454535 | F167: PONT A MOUSSON CENTRALE | G167: 5.4 | H167: 65% | I167: 39% | J167: 158 | K167: 79% | L167: 71% | M167: 226 | N167: 71% | O167: 71% | P167: 83 | Q167: 69% | R167: 39% | S167: 105 | T167: 82% | U167: 73% | V167: 132 | W167: 79% | X167: 71% | Y167: 67
A168: 110 | B168: BAS RHIN | C168: 5060 | D168: HAGUENAU | E168: 4030 | F168: BRUMATH | G168: 4.9 | H168: 65% | I168: 39% | J168: 159 | K168: 75% | L168: 67% | M168: 213 | N168: 74% | O168: 74% | P168: 115 | Q168: 46% | R168: 16% | S168: 5 | T168: 94% | U168: 84% | V168: 219 | W168: 90% | X168: 83% | Y168: 221
A169: 110 | B169: HAUT RHIN | C169: 5130 | D169: COLMAR | E169: 4130 | F169: COLMAR REPUBLIQUE | G169: 6.3 | H169: 65% | I169: 39% | J169: 160 | K169: 71% | L169: 63% | M169: 186 | N169: 77% | O169: 77% | P169: 143 | Q169: 75% | R169: 44% | S169: 152 | T169: 71% | U169: 61% | V169: 44 | W169: 86% | X169: 79% | Y169: 166
A170: 110 | B170: MOSELLE | C170: 45 | D170: METZ | E170: 557712 | F170: WOIPPY | G170: 4.0 | H170: 65% | I170: 39% | J170: 161 | K170: 69% | L170: 61% | M170: 172 | N170: 73% | O170: 73% | P170: 100 | Q170: 73% | R170: 43% | S170: 136 | T170: 77% | U170: 68% | V170: 86 | W170: 88% | X170: 81% | Y170: 192
A171: 110 | B171: VOSGES | C171: 55 | D171: SAINT DIE | E171: 488586 | F171: SAINT DIE | G171: 11.1 | H171: 65% | I171: 39% | J171: 162 | K171: 41% | L171: 32% | M171: 53 | N171: 81% | O171: 81% | P171: 198 | Q171: 75% | R171: 45% | S171: 157 | T171: 95% | U171: 86% | V171: 226 | W171: 88% | X171: 81% | Y171: 191
A172: 110 | B172: VOSGES | C172: 57 | D172: EPINAL | E172: 488451 | F172: MIRECOURT | G172: 3.9 | H172: 65% | I172: 39% | J172: 163 | K172: 41% | L172: 33% | M172: 56 | N172: 81% | O172: 81% | P172: 197 | Q172: 78% | R172: 48% | S172: 183 | T172: 95% | U172: 86% | V172: 225 | W172: 86% | X172: 78% | Y172: 153
A173: 110 | B173: MOSELLE | C173: 45 | D173: METZ | E173: 557433 | F173: MARANGE SILVANGE | G173: 2.8 | H173: 65% | I173: 39% | J173: 164 | K173: 73% | L173: 65% | M173: 201 | N173: 79% | O173: 79% | P173: 168 | Q173: 66% | R173: 36% | S173: 86 | T173: 81% | U173: 71% | V173: 121 | W173: 83% | X173: 75% | Y173: 117
A174: 110 | B174: MEURTHE ET MOSELLE MEUSE | C174: 27 | D174: PONT A MOUSSON | E174: 554496 | F174: NANCY TROIS MAISONS | G174: 2.1 | H174: 65% | I174: 39% | J174: 165 | K174: 79% | L174: 71% | M174: 230 | N174: 78% | O174: 78% | P174: 158 | Q174: 73% | R174: 42% | S174: 133 | T174: 69% | U174: 60% | V174: 36 | W174: 83% | X174: 75% | Y174: 108
A175: 110 | B175: AUBE HAUTE MARNE | C175: 14 | D175: TROYES | E175: 510523 | F175: LA CHAPELLE ST LUC | G175: 4.2 | H175: 65% | I175: 39% | J175: 166 | K175: 79% | L175: 71% | M175: 227 | N175: 81% | O175: 81% | P175: 187 | Q175: 68% | R175: 38% | S175: 100 | T175: 70% | U175: 61% | V175: 42 | W175: 84% | X175: 76% | Y175: 132
A176: 110 | B176: MEURTHE ET MOSELLE MEUSE | C176: 27 | D176: PONT A MOUSSON | E176: 454696 | F176: VILLERS GENERAL LECLERC | G176: 4.7 | H176: 65% | I176: 40% | J176: 167 | K176: 68% | L176: 59% | M176: 164 | N176: 81% | O176: 81% | P176: 189 | Q176: 60% | R176: 29% | S176: 36 | T176: 86% | U176: 76% | V176: 169 | W176: 89% | X176: 81% | Y176: 204
A177: 110 | B177: HAUT RHIN | C177: 5169 | D177: MULHOUSE | E177: 4180 | F177: RIEDISHEIM | G177: 3.3 | H177: 65% | I177: 40% | J177: 168 | K177: 58% | L177: 49% | M177: 123 | N177: 76% | O177: 76% | P177: 136 | Q177: 82% | R177: 52% | S177: 205 | T177: 81% | U177: 72% | V177: 124 | W177: 86% | X177: 78% | Y177: 159
A178: 110 | B178: MEURTHE ET MOSELLE MEUSE | C178: 27 | D178: PONT A MOUSSON | E178: 554357 | F178: JOEUF | G178: 3.2 | H178: 66% | I178: 40% | J178: 169 | K178: 53% | L178: 45% | M178: 109 | N178: 79% | O178: 79% | P178: 161 | Q178: 77% | R178: 47% | S178: 176 | T178: 89% | U178: 80% | V178: 201 | W178: 85% | X178: 77% | Y178: 142
A179: 110 | B179: MEURTHE ET MOSELLE MEUSE | C179: 26 | D179: NANCY | E179: 554296 | F179: ESSEY LES NANCY | G179: 3.5 | H179: 66% | I179: 40% | J179: 170 | K179: 46% | L179: 38% | M179: 78 | N179: 83% | O179: 83% | P179: 209 | Q179: 75% | R179: 45% | S179: 156 | T179: 87% | U179: 78% | V179: 187 | W179: 91% | X179: 83% | Y179: 224
A180: 110 | B180: MOSELLE | C180: 45 | D180: METZ | E180: 557445 | F180: METZ SAINT LIVIER | G180: 2.7 | H180: 66% | I180: 40% | J180: 171 | K180: 23% | L180: 14% | M180: 14 | N180: 91% | O180: 91% | P180: 240 | Q180: 79% | R180: 49% | S180: 188 | T180: 100% | U180: 90% | V180: 241 | W180: 92% | X180: 84% | Y180: 238
A181: 110 | B181: VOSGES | C181: 57 | D181: EPINAL | E181: 588206 | F181: CHARMES | G181: 2.6 | H181: 66% | I181: 40% | J181: 172 | K181: 62% | L181: 54% | M181: 144 | N181: 83% | O181: 83% | P181: 204 | Q181: 65% | R181: 35% | S181: 77 | T181: 86% | U181: 77% | V181: 179 | W181: 88% | X181: 80% | Y181: 185
A182: 160 | B182: MOSELLE | C182: 45 | D182: METZ | E182: 557559 | F182: REMILLY | G182: 3.3 | H182: 66% | I182: 40% | J182: 173 | K182: 63% | L182: 55% | M182: 149 | N182: 80% | O182: 80% | P182: 176 | Q182: 73% | R182: 43% | S182: 134 | T182: 87% | U182: 78% | V182: 189 | W182: 82% | X182: 74% | Y182: 101
A183: 160 | B183: MARNE ARDENNES | C183: 11 | D183: REIMS | E183: 551310 | F183: REIMS CHATILLONS | G183: 4.1 | H183: 66% | I183: 40% | J183: 174 | K183: 67% | L183: 58% | M183: 162 | N183: 79% | O183: 79% | P183: 164 | Q183: 70% | R183: 40% | S183: 114 | T183: 84% | U183: 75% | V183: 154 | W183: 85% | X183: 77% | Y183: 145
A184: 160 | B184: AUBE HAUTE MARNE | C184: 14 | D184: TROYES | E184: 410571 | F184: ROMILLY SUR SEINE | G184: 4.9 | H184: 66% | I184: 40% | J184: 175 | K184: 53% | L184: 45% | M184: 103 | N184: 79% | O184: 79% | P184: 174 | Q184: 90% | R184: 60% | S184: 231 | T184: 80% | U184: 71% | V184: 111 | W184: 82% | X184: 75% | Y184: 105
A185: 160 | B185: MEURTHE ET MOSELLE MEUSE | C185: 31 | D185: VERDUN | E185: 455298 | F185: ETAIN | G185: 0.9 | H185: 66% | I185: 40% | J185: 176 | K185: 61% | L185: 53% | M185: 139 | N185: 80% | O185: 80% | P185: 185 | Q185: 82% | R185: 52% | S185: 204 | T185: 81% | U185: 72% | V185: 130 | W185: 80% | X185: 73% | Y185: 82
A186: 160 | B186: VOSGES | C186: 55 | D186: SAINT DIE | E186: 588461 | F186: MOYENMOUTIER | G186: 4.9 | H186: 66% | I186: 40% | J186: 177 | K186: 59% | L186: 50% | M186: 127 | N186: 72% | O186: 72% | P186: 94 | Q186: 77% | R186: 47% | S186: 175 | T186: 88% | U186: 78% | V186: 190 | W186: 90% | X186: 82% | Y186: 210
A187: 160 | B187: MOSELLE | C187: 44 | D187: MOSELLE NORD | E187: 557307 | F187: FONTOY | G187: 1.8 | H187: 66% | I187: 40% | J187: 178 | K187: 61% | L187: 52% | M187: 135 | N187: 79% | O187: 79% | P187: 162 | Q187: 73% | R187: 43% | S187: 135 | T187: 98% | U187: 89% | V187: 239 | W187: 76% | X187: 68% | Y187: 46
A188: 160 | B188: MARNE ARDENNES | C188: 11 | D188: REIMS | E188: 551341 | F188: REIMS JEAN JAURES | G188: 2.6 | H188: 66% | I188: 40% | J188: 179 | K188: 70% | L188: 62% | M188: 184 | N188: 80% | O188: 80% | P188: 182 | Q188: 62% | R188: 32% | S188: 51 | T188: 96% | U188: 86% | V188: 230 | W188: 78% | X188: 71% | Y188: 65
A189: 160 | B189: VOSGES | C189: 57 | D189: EPINAL | E189: 588501 | F189: NEUFCHATEAU | G189: 5.7 | H189: 66% | I189: 40% | J189: 180 | K189: 57% | L189: 48% | M189: 117 | N189: 84% | O189: 84% | P189: 214 | Q189: 72% | R189: 42% | S189: 131 | T189: 84% | U189: 74% | V189: 153 | W189: 89% | X189: 82% | Y189: 207
A190: 160 | B190: BAS RHIN | C190: 5060 | D190: HAGUENAU | E190: 4082 | F190: BOUXWILLER | G190: 2.5 | H190: 66% | I190: 41% | J190: 181 | K190: 51% | L190: 43% | M190: 95 | N190: 78% | O190: 78% | P190: 156 | Q190: 106% | R190: 76% | S190: 245 | T190: 73% | U190: 63% | V190: 55 | W190: 79% | X190: 72% | Y190: 70
A191: 160 | B191: AUBE HAUTE MARNE | C191: 14 | D191: TROYES | E191: 510520 | F191: SAINT ANDRE LES VERGERS | G191: 3.7 | H191: 67% | I191: 41% | J191: 182 | K191: 83% | L191: 74% | M191: 242 | N191: 77% | O191: 77% | P191: 138 | Q191: 66% | R191: 36% | S191: 92 | T191: 80% | U191: 70% | V191: 107 | W191: 83% | X191: 75% | Y191: 116
A192: 160 | B192: MARNE ARDENNES | C192: 2 | D192: CHARLEVILLE MEZIERES | E192: 508819 | F192: MOUZON | G192: 1.8 | H192: 67% | I192: 41% | J192: 183 | K192: 48% | L192: 39% | M192: 82 | N192: 92% | O192: 92% | P192: 242 | Q192: 70% | R192: 40% | S192: 113 | T192: 96% | U192: 86% | V192: 228 | W192: 83% | X192: 75% | Y192: 115
A193: 160 | B193: MEURTHE ET MOSELLE MEUSE | C193: 26 | D193: NANCY | E193: 554166 | F193: BLAINVILLE | G193: 2.5 | H193: 67% | I193: 41% | J193: 184 | K193: 72% | L193: 64% | M193: 191 | N193: 79% | O193: 79% | P193: 163 | Q193: 80% | R193: 50% | S193: 192 | T193: 76% | U193: 66% | V193: 71 | W193: 83% | X193: 75% | Y193: 119
A194: 160 | B194: MEURTHE ET MOSELLE MEUSE | C194: 31 | D194: VERDUN | E194: 555624 | F194: STENAY | G194: 2.7 | H194: 67% | I194: 41% | J194: 185 | K194: 74% | L194: 66% | M194: 210 | N194: 69% | O194: 69% | P194: 57 | Q194: 87% | R194: 57% | S194: 228 | T194: 87% | U194: 78% | V194: 186 | W194: 73% | X194: 65% | Y194: 31
A195: 160 | B195: BAS RHIN | C195: 5101 | D195: SELESTAT | E195: 4101 | F195: SELESTAT CENTRE | G195: 7.2 | H195: 67% | I195: 41% | J195: 186 | K195: 72% | L195: 64% | M195: 197 | N195: 71% | O195: 71% | P195: 77 | Q195: 80% | R195: 50% | S195: 194 | T195: 83% | U195: 73% | V195: 138 | W195: 85% | X195: 77% | Y195: 143
A196: 160 | B196: BAS RHIN | C196: 5006 | D196: STRASBOURG | E196: 4029 | F196: SCHILTIGHEIM KLEBER | G196: 1.5 | H196: 67% | I196: 41% | J196: 187 | K196: 66% | L196: 58% | M196: 157 | N196: 88% | O196: 88% | P196: 234 | Q196: 66% | R196: 36% | S196: 82 | T196: 85% | U196: 75% | V196: 159 | W196: 86% | X196: 79% | Y196: 168
A197: 160 | B197: BAS RHIN | C197: 5101 | D197: SELESTAT | E197: 4127 | F197: ROSHEIM | G197: 1.6 | H197: 67% | I197: 41% | J197: 188 | K197: 68% | L197: 60% | M197: 167 | N197: 81% | O197: 81% | P197: 194 | Q197: 65% | R197: 35% | S197: 74 | T197: 90% | U197: 80% | V197: 203 | W197: 88% | X197: 80% | Y197: 187
A198: 160 | B198: BAS RHIN | C198: 5060 | D198: HAGUENAU | E198: 4087 | F198: SAVERNE | G198: 5.9 | H198: 67% | I198: 41% | J198: 189 | K198: 79% | L198: 71% | M198: 228 | N198: 73% | O198: 73% | P198: 99 | Q198: 78% | R198: 48% | S198: 180 | T198: 76% | U198: 66% | V198: 72 | W198: 86% | X198: 79% | Y198: 167
A199: 160 | B199: VOSGES | C199: 55 | D199: SAINT DIE | E199: 588386 | F199: LE THILLOT | G199: 2.1 | H199: 67% | I199: 42% | J199: 190 | K199: 53% | L199: 45% | M199: 106 | N199: 75% | O199: 75% | P199: 125 | Q199: 78% | R199: 48% | S199: 179 | T199: 96% | U199: 87% | V199: 231 | W199: 90% | X199: 82% | Y199: 215
A200: 160 | B200: MARNE ARDENNES | C200: 2 | D200: CHARLEVILLE MEZIERES | E200: 508860 | F200: ROCROI | G200: 2.7 | H200: 67% | I200: 42% | J200: 191 | K200: 75% | L200: 67% | M200: 215 | N200: 72% | O200: 72% | P200: 89 | Q200: 81% | R200: 51% | S200: 197 | T200: 83% | U200: 74% | V200: 148 | W200: 81% | X200: 74% | Y200: 97
A201: 160 | B201: BAS RHIN | C201: 5006 | D201: STRASBOURG | E201: 4026 | F201: STRASBOURG DANUBE | G201: 3.2 | H201: 68% | I201: 42% | J201: 192 | K201: 77% | L201: 69% | M201: 220 | N201: 83% | O201: 83% | P201: 205 | Q201: 61% | R201: 31% | S201: 41 | T201: 83% | U201: 74% | V201: 143 | W201: 89% | X201: 81% | Y201: 205
A202: 160 | B202: MEURTHE ET MOSELLE MEUSE | C202: 27 | D202: PONT A MOUSSON | E202: 454355 | F202: JARNY | G202: 4.0 | H202: 68% | I202: 42% | J202: 193 | K202: 64% | L202: 56% | M202: 151 | N202: 79% | O202: 79% | P202: 159 | Q202: 80% | R202: 50% | S202: 196 | T202: 83% | U202: 74% | V202: 142 | W202: 87% | X202: 80% | Y202: 177
A203: 160 | B203: MARNE ARDENNES | C203: 11 | D203: REIMS | E203: 551309 | F203: REIMS EUROPE | G203: 2.9 | H203: 68% | I203: 42% | J203: 194 | K203: 53% | L203: 45% | M203: 108 | N203: 86% | O203: 86% | P203: 222 | Q203: 85% | R203: 55% | S203: 222 | T203: 85% | U203: 76% | V203: 167 | W203: 84% | X203: 76% | Y203: 123
... 56 more rows

Sheet AG_BANCA
B1: Accueil | H1: BAROMETRE BDD - AGENCES
H2: BANCARISATION
H3: =ACCUEIL!F7 -> 2022-05-01
H7: Ventes Nettes produits pondérés | L7: Ventes sur client non détenteur de l’univers | P7: Total Bancarisation
H8: =DATEMAJ!C8 -> au 01/05 | J8: coef | K8: ='RECAP DIRCOM'!AA4 -> 12% | L8: =DATEMAJ!C9 -> au 01/05 | N8: coef | O8: ='RECAP DIRCOM'!AE4 -> 8% | Q8: coef | R8: ='RECAP DIRCOM'!$AH$4 -> 20%
B9: Direction | C9: eds | D9: Territoire | E9: eds | F9: Agence | G9: ="ETP perf "&DATEMAJ!$C$28 -> ETP perf 01-mai | H9: VN | I9: VN / ETP | J9: % Ecart au 1er | K9: Rang | L9: VB | M9: VB / ETP | N9: % Ecart au 1er | O9: Rang | P9: Moyenne ecart au 1er | Q9: % Ecart au 1er | R9: Rang CEGEE
A10: 50 | B10: AUBE HAUTE MARNE | C10: 21 | D10: CHAUMONT | E10: 410541 | F10: LANGRES | G10: =VLOOKUP($E10,'RECAP AG'!$G$6:$CU$255,3,FALSE) -> 8.2 | H10: =VLOOKUP($E10,'RECAP AG'!$G$6:$CU$255,18,FALSE) -> 128.9 | I10: =VLOOKUP($E10,'RECAP AG'!$G$6:$CU$255,19,FALSE) -> 15.72 | J10: =VLOOKUP($E10,'RECAP AG'!$G$6:$CU$255,20,FALSE) -> 61% | K10: =VLOOKUP($E10,'RECAP AG'!$G$6:$CU$255,21,FALSE) -> 53 | L10: =VLOOKUP($E10,'RECAP AG'!$G$6:$CU$255,22,FALSE) -> 180 | M10: =VLOOKUP($E10,'RECAP AG'!$G$6:$CU$255,23,FALSE) -> 21.95 | N10: =VLOOKUP($E10,'RECAP AG'!$G$6:$CU$255,24,FALSE) -> 85% | O10: =VLOOKUP($E10,'RECAP AG'!$G$6:$CU$255,25,FALSE) -> 178 | P10: =VLOOKUP($E10,'RECAP AG'!$G$6:$CU$255,26,FALSE) -> 70% | Q10: =VLOOKUP($E10,'RECAP AG'!$G$6:$CU$255,27,FALSE) -> 70% | R10: =VLOOKUP($E10,'RECAP AG'!$G$6:$CU$255,28,FALSE) -> 74
A11: 50 | B11: AUBE HAUTE MARNE | C11: 21 | D11: CHAUMONT | E11: 410566 | F11: CHAUMONT HOTEL DE VILLE | G11: =VLOOKUP($E11,'RECAP AG'!$G$6:$CU$255,3,FALSE) -> 10.4 | H11: =VLOOKUP($E11,'RECAP AG'!$G$6:$CU$255,18,FALSE) -> 58.3 | I11: =VLOOKUP($E11,'RECAP AG'!$G$6:$CU$255,19,FALSE) -> 5.63 | J11: =VLOOKUP($E11,'RECAP AG'!$G$6:$CU$255,20,FALSE) -> 76% | K11: =VLOOKUP($E11,'RECAP AG'!$G$6:$CU$255,21,FALSE) -> 164 | L11: =VLOOKUP($E11,'RECAP AG'!$G$6:$CU$255,22,FALSE) -> 241 | M11: =VLOOKUP($E11,'RECAP AG'!$G$6:$CU$255,23,FALSE) -> 23.26 | N11: =VLOOKUP($E11,'RECAP AG'!$G$6:$CU$255,24,FALSE) -> 84% | O11: =VLOOKUP($E11,'RECAP AG'!$G$6:$CU$255,25,FALSE) -> 160 | P11: =VLOOKUP($E11,'RECAP AG'!$G$6:$CU$255,26,FALSE) -> 79% | Q11: =VLOOKUP($E11,'RECAP AG'!$G$6:$CU$255,27,FALSE) -> 79% | R11: =VLOOKUP($E11,'RECAP AG'!$G$6:$CU$255,28,FALSE) -> 167
A12: 50 | B12: AUBE HAUTE MARNE | C12: 21 | D12: CHAUMONT | E12: 510590 | F12: CHAUMONT REPUBLIQUE | G12: =VLOOKUP($E12,'RECAP AG'!$G$6:$CU$255,3,FALSE) -> 2.8 | H12: =VLOOKUP($E12,'RECAP AG'!$G$6:$CU$255,18,FALSE) -> 11.0 | I12: =VLOOKUP($E12,'RECAP AG'!$G$6:$CU$255,19,FALSE) -> 3.87 | J12: =VLOOKUP($E12,'RECAP AG'!$G$6:$CU$255,20,FALSE) -> 78% | K12: =VLOOKUP($E12,'RECAP AG'!$G$6:$CU$255,21,FALSE) -> 186 | L12: =VLOOKUP($E12,'RECAP AG'!$G$6:$CU$255,22,FALSE) -> 78 | M12: =VLOOKUP($E12,'RECAP AG'!$G$6:$CU$255,23,FALSE) -> 27.46 | N12: =VLOOKUP($E12,'RECAP AG'!$G$6:$CU$255,24,FALSE) -> 81% | O12: =VLOOKUP($E12,'RECAP AG'!$G$6:$CU$255,25,FALSE) -> 118 | P12: =VLOOKUP($E12,'RECAP AG'!$G$6:$CU$255,26,FALSE) -> 79% | Q12: =VLOOKUP($E12,'RECAP AG'!$G$6:$CU$255,27,FALSE) -> 79% | R12: =VLOOKUP($E12,'RECAP AG'!$G$6:$CU$255,28,FALSE) -> 173
A13: 50 | B13: AUBE HAUTE MARNE | C13: 21 | D13: CHAUMONT | E13: 451154 | F13: JOINVILLE | G13: =VLOOKUP($E13,'RECAP AG'!$G$6:$CU$255,3,FALSE) -> 1.8 | H13: =VLOOKUP($E13,'RECAP AG'!$G$6:$CU$255,18,FALSE) -> 25.1 | I13: =VLOOKUP($E13,'RECAP AG'!$G$6:$CU$255,19,FALSE) -> 13.79 | J13: =VLOOKUP($E13,'RECAP AG'!$G$6:$CU$255,20,FALSE) -> 64% | K13: =VLOOKUP($E13,'RECAP AG'!$G$6:$CU$255,21,FALSE) -> 68 | L13: =VLOOKUP($E13,'RECAP AG'!$G$6:$CU$255,22,FALSE) -> 59 | M13: =VLOOKUP($E13,'RECAP AG'!$G$6:$CU$255,23,FALSE) -> 32.42 | N13: =VLOOKUP($E13,'RECAP AG'!$G$6:$CU$255,24,FALSE) -> 78% | O13: =VLOOKUP($E13,'RECAP AG'!$G$6:$CU$255,25,FALSE) -> 69 | P13: =VLOOKUP($E13,'RECAP AG'!$G$6:$CU$255,26,FALSE) -> 69% | Q13: =VLOOKUP($E13,'RECAP AG'!$G$6:$CU$255,27,FALSE) -> 69% | R13: =VLOOKUP($E13,'RECAP AG'!$G$6:$CU$255,28,FALSE) -> 62
A14: 50 | B14: AUBE HAUTE MARNE | C14: 21 | D14: CHAUMONT | E14: 451156 | F14: SAINT DIZIER CENTRE | G14: =VLOOKUP($E14,'RECAP AG'!$G$6:$CU$255,3,FALSE) -> 8.5 | H14: =VLOOKUP($E14,'RECAP AG'!$G$6:$CU$255,18,FALSE) -> 58.6 | I14: =VLOOKUP($E14,'RECAP AG'!$G$6:$CU$255,19,FALSE) -> 6.91 | J14: =VLOOKUP($E14,'RECAP AG'!$G$6:$CU$255,20,FALSE) -> 74% | K14: =VLOOKUP($E14,'RECAP AG'!$G$6:$CU$255,21,FALSE) -> 148 | L14: =VLOOKUP($E14,'RECAP AG'!$G$6:$CU$255,22,FALSE) -> 272 | M14: =VLOOKUP($E14,'RECAP AG'!$G$6:$CU$255,23,FALSE) -> 32.08 | N14: =VLOOKUP($E14,'RECAP AG'!$G$6:$CU$255,24,FALSE) -> 78% | O14: =VLOOKUP($E14,'RECAP AG'!$G$6:$CU$255,25,FALSE) -> 72 | P14: =VLOOKUP($E14,'RECAP AG'!$G$6:$CU$255,26,FALSE) -> 75% | Q14: =VLOOKUP($E14,'RECAP AG'!$G$6:$CU$255,27,FALSE) -> 75% | R14: =VLOOKUP($E14,'RECAP AG'!$G$6:$CU$255,28,FALSE) -> 128
A15: 50 | B15: AUBE HAUTE MARNE | C15: 21 | D15: CHAUMONT | E15: 451151 | F15: WASSY | G15: =VLOOKUP($E15,'RECAP AG'!$G$6:$CU$255,3,FALSE) -> 2.0 | H15: =VLOOKUP($E15,'RECAP AG'!$G$6:$CU$255,18,FALSE) -> 21.2 | I15: =VLOOKUP($E15,'RECAP AG'!$G$6:$CU$255,19,FALSE) -> 10.87 | J15: =VLOOKUP($E15,'RECAP AG'!$G$6:$CU$255,20,FALSE) -> 68% | K15: =VLOOKUP($E15,'RECAP AG'!$G$6:$CU$255,21,FALSE) -> 102 | L15: =VLOOKUP($E15,'RECAP AG'!$G$6:$CU$255,22,FALSE) -> 50 | M15: =VLOOKUP($E15,'RECAP AG'!$G$6:$CU$255,23,FALSE) -> 25.64 | N15: =VLOOKUP($E15,'RECAP AG'!$G$6:$CU$255,24,FALSE) -> 82% | O15: =VLOOKUP($E15,'RECAP AG'!$G$6:$CU$255,25,FALSE) -> 137 | P15: =VLOOKUP($E15,'RECAP AG'!$G$6:$CU$255,26,FALSE) -> 74% | Q15: =VLOOKUP($E15,'RECAP AG'!$G$6:$CU$255,27,FALSE) -> 74% | R15: =VLOOKUP($E15,'RECAP AG'!$G$6:$CU$255,28,FALSE) -> 103
A16: 50 | B16: AUBE HAUTE MARNE | C16: 14 | D16: TROYES | E16: 510523 | F16: LA CHAPELLE ST LUC | G16: =VLOOKUP($E16,'RECAP AG'!$G$6:$CU$255,3,FALSE) -> 4.2 | H16: =VLOOKUP($E16,'RECAP AG'!$G$6:$CU$255,18,FALSE) -> 5.7 | I16: =VLOOKUP($E16,'RECAP AG'!$G$6:$CU$255,19,FALSE) -> 1.36 | J16: =VLOOKUP($E16,'RECAP AG'!$G$6:$CU$255,20,FALSE) -> 82% | K16: =VLOOKUP($E16,'RECAP AG'!$G$6:$CU$255,21,FALSE) -> 200 | L16: =VLOOKUP($E16,'RECAP AG'!$G$6:$CU$255,22,FALSE) -> 133 | M16: =VLOOKUP($E16,'RECAP AG'!$G$6:$CU$255,23,FALSE) -> 31.74 | N16: =VLOOKUP($E16,'RECAP AG'!$G$6:$CU$255,24,FALSE) -> 78% | O16: =VLOOKUP($E16,'RECAP AG'!$G$6:$CU$255,25,FALSE) -> 75 | P16: =VLOOKUP($E16,'RECAP AG'!$G$6:$CU$255,26,FALSE) -> 81% | Q16: =VLOOKUP($E16,'RECAP AG'!$G$6:$CU$255,27,FALSE) -> 81% | R16: =VLOOKUP($E16,'RECAP AG'!$G$6:$CU$255,28,FALSE) -> 187
A17: 50 | B17: AUBE HAUTE MARNE | C17: 14 | D17: TROYES | E17: 510530 | F17: ARCIS SUR AUBE | G17: =VLOOKUP($E17,'RECAP AG'!$G$6:$CU$255,3,FALSE) -> 3.5 | H17: =VLOOKUP($E17,'RECAP AG'!$G$6:$CU$255,18,FALSE) -> 31.4 | I17: =VLOOKUP($E17,'RECAP AG'!$G$6:$CU$255,19,FALSE) -> 9.08 | J17: =VLOOKUP($E17,'RECAP AG'!$G$6:$CU$255,20,FALSE) -> 71% | K17: =VLOOKUP($E17,'RECAP AG'!$G$6:$CU$255,21,FALSE) -> 124 | L17: =VLOOKUP($E17,'RECAP AG'!$G$6:$CU$255,22,FALSE) -> 77 | M17: =VLOOKUP($E17,'RECAP AG'!$G$6:$CU$255,23,FALSE) -> 22.25 | N17: =VLOOKUP($E17,'RECAP AG'!$G$6:$CU$255,24,FALSE) -> 85% | O17: =VLOOKUP($E17,'RECAP AG'!$G$6:$CU$255,25,FALSE) -> 174 | P17: =VLOOKUP($E17,'RECAP AG'!$G$6:$CU$255,26,FALSE) -> 76% | Q17: =VLOOKUP($E17,'RECAP AG'!$G$6:$CU$255,27,FALSE) -> 76% | R17: =VLOOKUP($E17,'RECAP AG'!$G$6:$CU$255,28,FALSE) -> 135
A18: 50 | B18: AUBE HAUTE MARNE | C18: 14 | D18: TROYES | E18: 410550 | F18: BAR SUR AUBE | G18: =VLOOKUP($E18,'RECAP AG'!$G$6:$CU$255,3,FALSE) -> 4.7 | H18: =VLOOKUP($E18,'RECAP AG'!$G$6:$CU$255,18,FALSE) -> 15.9 | I18: =VLOOKUP($E18,'RECAP AG'!$G$6:$CU$255,19,FALSE) -> 3.38 | J18: =VLOOKUP($E18,'RECAP AG'!$G$6:$CU$255,20,FALSE) -> 79% | K18: =VLOOKUP($E18,'RECAP AG'!$G$6:$CU$255,21,FALSE) -> 190 | L18: =VLOOKUP($E18,'RECAP AG'!$G$6:$CU$255,22,FALSE) -> 119 | M18: =VLOOKUP($E18,'RECAP AG'!$G$6:$CU$255,23,FALSE) -> 25.32 | N18: =VLOOKUP($E18,'RECAP AG'!$G$6:$CU$255,24,FALSE) -> 82% | O18: =VLOOKUP($E18,'RECAP AG'!$G$6:$CU$255,25,FALSE) -> 141 | P18: =VLOOKUP($E18,'RECAP AG'!$G$6:$CU$255,26,FALSE) -> 80% | Q18: =VLOOKUP($E18,'RECAP AG'!$G$6:$CU$255,27,FALSE) -> 80% | R18: =VLOOKUP($E18,'RECAP AG'!$G$6:$CU$255,28,FALSE) -> 186
A19: 50 | B19: AUBE HAUTE MARNE | C19: 14 | D19: TROYES | E19: 510556 | F19: BAR SUR SEINE | G19: =VLOOKUP($E19,'RECAP AG'!$G$6:$CU$255,3,FALSE) -> 2.7 | H19: =VLOOKUP($E19,'RECAP AG'!$G$6:$CU$255,18,FALSE) -> -3.8 | I19: =VLOOKUP($E19,'RECAP AG'!$G$6:$CU$255,19,FALSE) -> -1.40 | J19: =VLOOKUP($E19,'RECAP AG'!$G$6:$CU$255,20,FALSE) -> 86% | K19: =VLOOKUP($E19,'RECAP AG'!$G$6:$CU$255,21,FALSE) -> 220 | L19: =VLOOKUP($E19,'RECAP AG'!$G$6:$CU$255,22,FALSE) -> 50 | M19: =VLOOKUP($E19,'RECAP AG'!$G$6:$CU$255,23,FALSE) -> 18.45 | N19: =VLOOKUP($E19,'RECAP AG'!$G$6:$CU$255,24,FALSE) -> 87% | O19: =VLOOKUP($E19,'RECAP AG'!$G$6:$CU$255,25,FALSE) -> 216 | P19: =VLOOKUP($E19,'RECAP AG'!$G$6:$CU$255,26,FALSE) -> 87% | Q19: =VLOOKUP($E19,'RECAP AG'!$G$6:$CU$255,27,FALSE) -> 87% | R19: =VLOOKUP($E19,'RECAP AG'!$G$6:$CU$255,28,FALSE) -> 227
A20: 50 | B20: AUBE HAUTE MARNE | C20: 14 | D20: TROYES | E20: 510570 | F20: NOGENT SUR SEINE | G20: =VLOOKUP($E20,'RECAP AG'!$G$6:$CU$255,3,FALSE) -> 4.7 | H20: =VLOOKUP($E20,'RECAP AG'!$G$6:$CU$255,18,FALSE) -> 52.2 | I20: =VLOOKUP($E20,'RECAP AG'!$G$6:$CU$255,19,FALSE) -> 11.08 | J20: =VLOOKUP($E20,'RECAP AG'!$G$6:$CU$255,20,FALSE) -> 68% | K20: =VLOOKUP($E20,'RECAP AG'!$G$6:$CU$255,21,FALSE) -> 100 | L20: =VLOOKUP($E20,'RECAP AG'!$G$6:$CU$255,22,FALSE) -> 144 | M20: =VLOOKUP($E20,'RECAP AG'!$G$6:$CU$255,23,FALSE) -> 30.57 | N20: =VLOOKUP($E20,'RECAP AG'!$G$6:$CU$255,24,FALSE) -> 79% | O20: =VLOOKUP($E20,'RECAP AG'!$G$6:$CU$255,25,FALSE) -> 84 | P20: =VLOOKUP($E20,'RECAP AG'!$G$6:$CU$255,26,FALSE) -> 72% | Q20: =VLOOKUP($E20,'RECAP AG'!$G$6:$CU$255,27,FALSE) -> 72% | R20: =VLOOKUP($E20,'RECAP AG'!$G$6:$CU$255,28,FALSE) -> 90
A21: 50 | B21: AUBE HAUTE MARNE | C21: 14 | D21: TROYES | E21: 410571 | F21: ROMILLY SUR SEINE | G21: =VLOOKUP($E21,'RECAP AG'!$G$6:$CU$255,3,FALSE) -> 4.9 | H21: =VLOOKUP($E21,'RECAP AG'!$G$6:$CU$255,18,FALSE) -> 18.9 | I21: =VLOOKUP($E21,'RECAP AG'!$G$6:$CU$255,19,FALSE) -> 3.88 | J21: =VLOOKUP($E21,'RECAP AG'!$G$6:$CU$255,20,FALSE) -> 78% | K21: =VLOOKUP($E21,'RECAP AG'!$G$6:$CU$255,21,FALSE) -> 185 | L21: =VLOOKUP($E21,'RECAP AG'!$G$6:$CU$255,22,FALSE) -> 133 | M21: =VLOOKUP($E21,'RECAP AG'!$G$6:$CU$255,23,FALSE) -> 27.31 | N21: =VLOOKUP($E21,'RECAP AG'!$G$6:$CU$255,24,FALSE) -> 81% | O21: =VLOOKUP($E21,'RECAP AG'!$G$6:$CU$255,25,FALSE) -> 120 | P21: =VLOOKUP($E21,'RECAP AG'!$G$6:$CU$255,26,FALSE) -> 79% | Q21: =VLOOKUP($E21,'RECAP AG'!$G$6:$CU$255,27,FALSE) -> 79% | R21: =VLOOKUP($E21,'RECAP AG'!$G$6:$CU$255,28,FALSE) -> 174
A22: 50 | B22: AUBE HAUTE MARNE | C22: 14 | D22: TROYES | E22: 510520 | F22: SAINT ANDRE LES VERGERS | G22: =VLOOKUP($E22,'RECAP AG'!$G$6:$CU$255,3,FALSE) -> 3.7 | H22: =VLOOKUP($E22,'RECAP AG'!$G$6:$CU$255,18,FALSE) -> 27.8 | I22: =VLOOKUP($E22,'RECAP AG'!$G$6:$CU$255,19,FALSE) -> 7.51 | J22: =VLOOKUP($E22,'RECAP AG'!$G$6:$CU$255,20,FALSE) -> 73% | K22: =VLOOKUP($E22,'RECAP AG'!$G$6:$CU$255,21,FALSE) -> 141 | L22: =VLOOKUP($E22,'RECAP AG'!$G$6:$CU$255,22,FALSE) -> 95 | M22: =VLOOKUP($E22,'RECAP AG'!$G$6:$CU$255,23,FALSE) -> 25.68 | N22: =VLOOKUP($E22,'RECAP AG'!$G$6:$CU$255,24,FALSE) -> 82% | O22: =VLOOKUP($E22,'RECAP AG'!$G$6:$CU$255,25,FALSE) -> 135 | P22: =VLOOKUP($E22,'RECAP AG'!$G$6:$CU$255,26,FALSE) -> 77% | Q22: =VLOOKUP($E22,'RECAP AG'!$G$6:$CU$255,27,FALSE) -> 77% | R22: =VLOOKUP($E22,'RECAP AG'!$G$6:$CU$255,28,FALSE) -> 138
A23: 50 | B23: AUBE HAUTE MARNE | C23: 14 | D23: TROYES | E23: 410524 | F23: SAINT JULIEN LES VILLAS | G23: =VLOOKUP($E23,'RECAP AG'!$G$6:$CU$255,3,FALSE) -> 5.2 | H23: =VLOOKUP($E23,'RECAP AG'!$G$6:$CU$255,18,FALSE) -> 28.2 | I23: =VLOOKUP($E23,'RECAP AG'!$G$6:$CU$255,19,FALSE) -> 5.41 | J23: =VLOOKUP($E23,'RECAP AG'!$G$6:$CU$255,20,FALSE) -> 76% | K23: =VLOOKUP($E23,'RECAP AG'!$G$6:$CU$255,21,FALSE) -> 166 | L23: =VLOOKUP($E23,'RECAP AG'!$G$6:$CU$255,22,FALSE) -> 128 | M23: =VLOOKUP($E23,'RECAP AG'!$G$6:$CU$255,23,FALSE) -> 24.57 | N23: =VLOOKUP($E23,'RECAP AG'!$G$6:$CU$255,24,FALSE) -> 83% | O23: =VLOOKUP($E23,'RECAP AG'!$G$6:$CU$255,25,FALSE) -> 150 | P23: =VLOOKUP($E23,'RECAP AG'!$G$6:$CU$255,26,FALSE) -> 79% | Q23: =VLOOKUP($E23,'RECAP AG'!$G$6:$CU$255,27,FALSE) -> 79% | R23: =VLOOKUP($E23,'RECAP AG'!$G$6:$CU$255,28,FALSE) -> 165
A24: 50 | B24: AUBE HAUTE MARNE | C24: 14 | D24: TROYES | E24: 410521 | F24: SAINTE SAVINE | G24: =VLOOKUP($E24,'RECAP AG'!$G$6:$CU$255,3,FALSE) -> 4.4 | H24: =VLOOKUP($E24,'RECAP AG'!$G$6:$CU$255,18,FALSE) -> -14.5 | I24: =VLOOKUP($E24,'RECAP AG'!$G$6:$CU$255,19,FALSE) -> -3.30 | J24: =VLOOKUP($E24,'RECAP AG'!$G$6:$CU$255,20,FALSE) -> 89% | K24: =VLOOKUP($E24,'RECAP AG'!$G$6:$CU$255,21,FALSE) -> 228 | L24: =VLOOKUP($E24,'RECAP AG'!$G$6:$CU$255,22,FALSE) -> 94 | M24: =VLOOKUP($E24,'RECAP AG'!$G$6:$CU$255,23,FALSE) -> 21.36 | N24: =VLOOKUP($E24,'RECAP AG'!$G$6:$CU$255,24,FALSE) -> 85% | O24: =VLOOKUP($E24,'RECAP AG'!$G$6:$CU$255,25,FALSE) -> 185 | P24: =VLOOKUP($E24,'RECAP AG'!$G$6:$CU$255,26,FALSE) -> 88% | Q24: =VLOOKUP($E24,'RECAP AG'!$G$6:$CU$255,27,FALSE) -> 88% | R24: =VLOOKUP($E24,'RECAP AG'!$G$6:$CU$255,28,FALSE) -> 229
A25: 50 | B25: AUBE HAUTE MARNE | C25: 14 | D25: TROYES | E25: 510513 | F25: TROYES 1ER MAI | G25: =VLOOKUP($E25,'RECAP AG'!$G$6:$CU$255,3,FALSE) -> 2.3 | H25: =VLOOKUP($E25,'RECAP AG'!$G$6:$CU$255,18,FALSE) -> 15.5 | I25: =VLOOKUP($E25,'RECAP AG'!$G$6:$CU$255,19,FALSE) -> 6.89 | J25: =VLOOKUP($E25,'RECAP AG'!$G$6:$CU$255,20,FALSE) -> 74% | K25: =VLOOKUP($E25,'RECAP AG'!$G$6:$CU$255,21,FALSE) -> 149 | L25: =VLOOKUP($E25,'RECAP AG'!$G$6:$CU$255,22,FALSE) -> 103 | M25: =VLOOKUP($E25,'RECAP AG'!$G$6:$CU$255,23,FALSE) -> 45.78 | N25: =VLOOKUP($E25,'RECAP AG'!$G$6:$CU$255,24,FALSE) -> 68% | O25: =VLOOKUP($E25,'RECAP AG'!$G$6:$CU$255,25,FALSE) -> 14 | P25: =VLOOKUP($E25,'RECAP AG'!$G$6:$CU$255,26,FALSE) -> 72% | Q25: =VLOOKUP($E25,'RECAP AG'!$G$6:$CU$255,27,FALSE) -> 72% | R25: =VLOOKUP($E25,'RECAP AG'!$G$6:$CU$255,28,FALSE) -> 87
A26: 50 | B26: AUBE HAUTE MARNE | C26: 14 | D26: TROYES | E26: 410510 | F26: TROYES GAMBETTA | G26: =VLOOKUP($E26,'RECAP AG'!$G$6:$CU$255,3,FALSE) -> 8.8 | H26: =VLOOKUP($E26,'RECAP AG'!$G$6:$CU$255,18,FALSE) -> 39.2 | I26: =VLOOKUP($E26,'RECAP AG'!$G$6:$CU$255,19,FALSE) -> 4.46 | J26: =VLOOKUP($E26,'RECAP AG'!$G$6:$CU$255,20,FALSE) -> 78% | K26: =VLOOKUP($E26,'RECAP AG'!$G$6:$CU$255,21,FALSE) -> 176 | L26: =VLOOKUP($E26,'RECAP AG'!$G$6:$CU$255,22,FALSE) -> 182 | M26: =VLOOKUP($E26,'RECAP AG'!$G$6:$CU$255,23,FALSE) -> 20.71 | N26: =VLOOKUP($E26,'RECAP AG'!$G$6:$CU$255,24,FALSE) -> 86% | O26: =VLOOKUP($E26,'RECAP AG'!$G$6:$CU$255,25,FALSE) -> 196 | P26: =VLOOKUP($E26,'RECAP AG'!$G$6:$CU$255,26,FALSE) -> 81% | Q26: =VLOOKUP($E26,'RECAP AG'!$G$6:$CU$255,27,FALSE) -> 81% | R26: =VLOOKUP($E26,'RECAP AG'!$G$6:$CU$255,28,FALSE) -> 193
A27: 50 | B27: AUBE HAUTE MARNE | C27: 14 | D27: TROYES | E27: 410512 | F27: TROYES ZOLA | G27: =VLOOKUP($E27,'RECAP AG'!$G$6:$CU$255,3,FALSE) -> 5.3 | H27: =VLOOKUP($E27,'RECAP AG'!$G$6:$CU$255,18,FALSE) -> -12.5 | I27: =VLOOKUP($E27,'RECAP AG'!$G$6:$CU$255,19,FALSE) -> -2.34 | J27: =VLOOKUP($E27,'RECAP AG'!$G$6:$CU$255,20,FALSE) -> 88% | K27: =VLOOKUP($E27,'RECAP AG'!$G$6:$CU$255,21,FALSE) -> 224 | L27: =VLOOKUP($E27,'RECAP AG'!$G$6:$CU$255,22,FALSE) -> 127 | M27: =VLOOKUP($E27,'RECAP AG'!$G$6:$CU$255,23,FALSE) -> 23.78 | N27: =VLOOKUP($E27,'RECAP AG'!$G$6:$CU$255,24,FALSE) -> 84% | O27: =VLOOKUP($E27,'RECAP AG'!$G$6:$CU$255,25,FALSE) -> 157 | P27: =VLOOKUP($E27,'RECAP AG'!$G$6:$CU$255,26,FALSE) -> 86% | Q27: =VLOOKUP($E27,'RECAP AG'!$G$6:$CU$255,27,FALSE) -> 86% | R27: =VLOOKUP($E27,'RECAP AG'!$G$6:$CU$255,28,FALSE) -> 221
A28: 262 | B28: BAS RHIN | C28: 5060 | D28: HAGUENAU | E28: 4057 | F28: BISCHWILLER | G28: =VLOOKUP($E28,'RECAP AG'!$G$6:$CU$255,3,FALSE) -> 7.1 | H28: =VLOOKUP($E28,'RECAP AG'!$G$6:$CU$255,18,FALSE) -> 127.0 | I28: =VLOOKUP($E28,'RECAP AG'!$G$6:$CU$255,19,FALSE) -> 17.99 | J28: =VLOOKUP($E28,'RECAP AG'!$G$6:$CU$255,20,FALSE) -> 57% | K28: =VLOOKUP($E28,'RECAP AG'!$G$6:$CU$255,21,FALSE) -> 37 | L28: =VLOOKUP($E28,'RECAP AG'!$G$6:$CU$255,22,FALSE) -> 145 | M28: =VLOOKUP($E28,'RECAP AG'!$G$6:$CU$255,23,FALSE) -> 20.54 | N28: =VLOOKUP($E28,'RECAP AG'!$G$6:$CU$255,24,FALSE) -> 86% | O28: =VLOOKUP($E28,'RECAP AG'!$G$6:$CU$255,25,FALSE) -> 199 | P28: =VLOOKUP($E28,'RECAP AG'!$G$6:$CU$255,26,FALSE) -> 69% | Q28: =VLOOKUP($E28,'RECAP AG'!$G$6:$CU$255,27,FALSE) -> 69% | R28: =VLOOKUP($E28,'RECAP AG'!$G$6:$CU$255,28,FALSE) -> 55
A29: 262 | B29: BAS RHIN | C29: 5060 | D29: HAGUENAU | E29: 4082 | F29: BOUXWILLER | G29: =VLOOKUP($E29,'RECAP AG'!$G$6:$CU$255,3,FALSE) -> 2.5 | H29: =VLOOKUP($E29,'RECAP AG'!$G$6:$CU$255,18,FALSE) -> 15.3 | I29: =VLOOKUP($E29,'RECAP AG'!$G$6:$CU$255,19,FALSE) -> 6.12 | J29: =VLOOKUP($E29,'RECAP AG'!$G$6:$CU$255,20,FALSE) -> 75% | K29: =VLOOKUP($E29,'RECAP AG'!$G$6:$CU$255,21,FALSE) -> 159 | L29: =VLOOKUP($E29,'RECAP AG'!$G$6:$CU$255,22,FALSE) -> 62 | M29: =VLOOKUP($E29,'RECAP AG'!$G$6:$CU$255,23,FALSE) -> 24.80 | N29: =VLOOKUP($E29,'RECAP AG'!$G$6:$CU$255,24,FALSE) -> 83% | O29: =VLOOKUP($E29,'RECAP AG'!$G$6:$CU$255,25,FALSE) -> 147 | P29: =VLOOKUP($E29,'RECAP AG'!$G$6:$CU$255,26,FALSE) -> 78% | Q29: =VLOOKUP($E29,'RECAP AG'!$G$6:$CU$255,27,FALSE) -> 78% | R29: =VLOOKUP($E29,'RECAP AG'!$G$6:$CU$255,28,FALSE) -> 156
A30: 262 | B30: BAS RHIN | C30: 5060 | D30: HAGUENAU | E30: 4030 | F30: BRUMATH | G30: =VLOOKUP($E30,'RECAP AG'!$G$6:$CU$255,3,FALSE) -> 4.9 | H30: =VLOOKUP($E30,'RECAP AG'!$G$6:$CU$255,18,FALSE) -> 63.2 | I30: =VLOOKUP($E30,'RECAP AG'!$G$6:$CU$255,19,FALSE) -> 12.95 | J30: =VLOOKUP($E30,'RECAP AG'!$G$6:$CU$255,20,FALSE) -> 65% | K30: =VLOOKUP($E30,'RECAP AG'!$G$6:$CU$255,21,FALSE) -> 77 | L30: =VLOOKUP($E30,'RECAP AG'!$G$6:$CU$255,22,FALSE) -> 78 | M30: =VLOOKUP($E30,'RECAP AG'!$G$6:$CU$255,23,FALSE) -> 15.98 | N30: =VLOOKUP($E30,'RECAP AG'!$G$6:$CU$255,24,FALSE) -> 89% | O30: =VLOOKUP($E30,'RECAP AG'!$G$6:$CU$255,25,FALSE) -> 231 | P30: =VLOOKUP($E30,'RECAP AG'!$G$6:$CU$255,26,FALSE) -> 74% | Q30: =VLOOKUP($E30,'RECAP AG'!$G$6:$CU$255,27,FALSE) -> 74% | R30: =VLOOKUP($E30,'RECAP AG'!$G$6:$CU$255,28,FALSE) -> 115
A31: 262 | B31: BAS RHIN | C31: 5060 | D31: HAGUENAU | E31: 4060 | F31: HAGUENAU HOUBLON | G31: =VLOOKUP($E31,'RECAP AG'!$G$6:$CU$255,3,FALSE) -> 8.3 | H31: =VLOOKUP($E31,'RECAP AG'!$G$6:$CU$255,18,FALSE) -> 49.8 | I31: =VLOOKUP($E31,'RECAP AG'!$G$6:$CU$255,19,FALSE) -> 5.99 | J31: =VLOOKUP($E31,'RECAP AG'!$G$6:$CU$255,20,FALSE) -> 75% | K31: =VLOOKUP($E31,'RECAP AG'!$G$6:$CU$255,21,FALSE) -> 161 | L31: =VLOOKUP($E31,'RECAP AG'!$G$6:$CU$255,22,FALSE) -> 166 | M31: =VLOOKUP($E31,'RECAP AG'!$G$6:$CU$255,23,FALSE) -> 19.98 | N31: =VLOOKUP($E31,'RECAP AG'!$G$6:$CU$255,24,FALSE) -> 86% | O31: =VLOOKUP($E31,'RECAP AG'!$G$6:$CU$255,25,FALSE) -> 201 | P31: =VLOOKUP($E31,'RECAP AG'!$G$6:$CU$255,26,FALSE) -> 80% | Q31: =VLOOKUP($E31,'RECAP AG'!$G$6:$CU$255,27,FALSE) -> 80% | R31: =VLOOKUP($E31,'RECAP AG'!$G$6:$CU$255,28,FALSE) -> 178
A32: 262 | B32: BAS RHIN | C32: 5060 | D32: HAGUENAU | E32: 4092 | F32: HOCHFELDEN | G32: =VLOOKUP($E32,'RECAP AG'!$G$6:$CU$255,3,FALSE) -> 2.0 | H32: =VLOOKUP($E32,'RECAP AG'!$G$6:$CU$255,18,FALSE) -> 26.4 | I32: =VLOOKUP($E32,'RECAP AG'!$G$6:$CU$255,19,FALSE) -> 13.13 | J32: =VLOOKUP($E32,'RECAP AG'!$G$6:$CU$255,20,FALSE) -> 64% | K32: =VLOOKUP($E32,'RECAP AG'!$G$6:$CU$255,21,FALSE) -> 73 | L32: =VLOOKUP($E32,'RECAP AG'!$G$6:$CU$255,22,FALSE) -> 58 | M32: =VLOOKUP($E32,'RECAP AG'!$G$6:$CU$255,23,FALSE) -> 28.86 | N32: =VLOOKUP($E32,'RECAP AG'!$G$6:$CU$255,24,FALSE) -> 80% | O32: =VLOOKUP($E32,'RECAP AG'!$G$6:$CU$255,25,FALSE) -> 102 | P32: =VLOOKUP($E32,'RECAP AG'!$G$6:$CU$255,26,FALSE) -> 71% | Q32: =VLOOKUP($E32,'RECAP AG'!$G$6:$CU$255,27,FALSE) -> 71% | R32: =VLOOKUP($E32,'RECAP AG'!$G$6:$CU$255,28,FALSE) -> 78
A33: 262 | B33: BAS RHIN | C33: 5060 | D33: HAGUENAU | E33: 4041 | F33: HOERDT | G33: =VLOOKUP($E33,'RECAP AG'!$G$6:$CU$255,3,FALSE) -> 1.6 | H33: =VLOOKUP($E33,'RECAP AG'!$G$6:$CU$255,18,FALSE) -> 11.3 | I33: =VLOOKUP($E33,'RECAP AG'!$G$6:$CU$255,19,FALSE) -> 7.02 | J33: =VLOOKUP($E33,'RECAP AG'!$G$6:$CU$255,20,FALSE) -> 74% | K33: =VLOOKUP($E33,'RECAP AG'!$G$6:$CU$255,21,FALSE) -> 146 | L33: =VLOOKUP($E33,'RECAP AG'!$G$6:$CU$255,22,FALSE) -> 24 | M33: =VLOOKUP($E33,'RECAP AG'!$G$6:$CU$255,23,FALSE) -> 14.91 | N33: =VLOOKUP($E33,'RECAP AG'!$G$6:$CU$255,24,FALSE) -> 90% | O33: =VLOOKUP($E33,'RECAP AG'!$G$6:$CU$255,25,FALSE) -> 236 | P33: =VLOOKUP($E33,'RECAP AG'!$G$6:$CU$255,26,FALSE) -> 80% | Q33: =VLOOKUP($E33,'RECAP AG'!$G$6:$CU$255,27,FALSE) -> 80% | R33: =VLOOKUP($E33,'RECAP AG'!$G$6:$CU$255,28,FALSE) -> 183
A34: 262 | B34: BAS RHIN | C34: 5060 | D34: HAGUENAU | E34: 4085 | F34: INGWILLER | G34: =VLOOKUP($E34,'RECAP AG'!$G$6:$CU$255,3,FALSE) -> 3.4 | H34: =VLOOKUP($E34,'RECAP AG'!$G$6:$CU$255,18,FALSE) -> 25.7 | I34: =VLOOKUP($E34,'RECAP AG'!$G$6:$CU$255,19,FALSE) -> 7.60 | J34: =VLOOKUP($E34,'RECAP AG'!$G$6:$CU$255,20,FALSE) -> 73% | K34: =VLOOKUP($E34,'RECAP AG'!$G$6:$CU$255,21,FALSE) -> 137 | L34: =VLOOKUP($E34,'RECAP AG'!$G$6:$CU$255,22,FALSE) -> 78 | M34: =VLOOKUP($E34,'RECAP AG'!$G$6:$CU$255,23,FALSE) -> 23.08 | N34: =VLOOKUP($E34,'RECAP AG'!$G$6:$CU$255,24,FALSE) -> 84% | O34: =VLOOKUP($E34,'RECAP AG'!$G$6:$CU$255,25,FALSE) -> 162 | P34: =VLOOKUP($E34,'RECAP AG'!$G$6:$CU$255,26,FALSE) -> 77% | Q34: =VLOOKUP($E34,'RECAP AG'!$G$6:$CU$255,27,FALSE) -> 77% | R34: =VLOOKUP($E34,'RECAP AG'!$G$6:$CU$255,28,FALSE) -> 145
A35: 262 | B35: BAS RHIN | C35: 5060 | D35: HAGUENAU | E35: 4066 | F35: NIEDERBRONN LES BAINS | G35: =VLOOKUP($E35,'RECAP AG'!$G$6:$CU$255,3,FALSE) -> 5.6 | H35: =VLOOKUP($E35,'RECAP AG'!$G$6:$CU$255,18,FALSE) -> -37.3 | I35: =VLOOKUP($E35,'RECAP AG'!$G$6:$CU$255,19,FALSE) -> -6.71 | J35: =VLOOKUP($E35,'RECAP AG'!$G$6:$CU$255,20,FALSE) -> 94% | K35: =VLOOKUP($E35,'RECAP AG'!$G$6:$CU$255,21,FALSE) -> 238 | L35: =VLOOKUP($E35,'RECAP AG'!$G$6:$CU$255,22,FALSE) -> 101 | M35: =VLOOKUP($E35,'RECAP AG'!$G$6:$CU$255,23,FALSE) -> 18.17 | N35: =VLOOKUP($E35,'RECAP AG'!$G$6:$CU$255,24,FALSE) -> 87% | O35: =VLOOKUP($E35,'RECAP AG'!$G$6:$CU$255,25,FALSE) -> 219 | P35: =VLOOKUP($E35,'RECAP AG'!$G$6:$CU$255,26,FALSE) -> 92% | Q35: =VLOOKUP($E35,'RECAP AG'!$G$6:$CU$255,27,FALSE) -> 92% | R35: =VLOOKUP($E35,'RECAP AG'!$G$6:$CU$255,28,FALSE) -> 241
A36: 262 | B36: BAS RHIN | C36: 5060 | D36: HAGUENAU | E36: 4067 | F36: PFAFFENHOFFEN | G36: =VLOOKUP($E36,'RECAP AG'!$G$6:$CU$255,3,FALSE) -> 1.9 | H36: =VLOOKUP($E36,'RECAP AG'!$G$6:$CU$255,18,FALSE) -> 15.3 | I36: =VLOOKUP($E36,'RECAP AG'!$G$6:$CU$255,19,FALSE) -> 8.23 | J36: =VLOOKUP($E36,'RECAP AG'!$G$6:$CU$255,20,FALSE) -> 72% | K36: =VLOOKUP($E36,'RECAP AG'!$G$6:$CU$255,21,FALSE) -> 134 | L36: =VLOOKUP($E36,'RECAP AG'!$G$6:$CU$255,22,FALSE) -> 36 | M36: =VLOOKUP($E36,'RECAP AG'!$G$6:$CU$255,23,FALSE) -> 19.35 | N36: =VLOOKUP($E36,'RECAP AG'!$G$6:$CU$255,24,FALSE) -> 87% | O36: =VLOOKUP($E36,'RECAP AG'!$G$6:$CU$255,25,FALSE) -> 207 | P36: =VLOOKUP($E36,'RECAP AG'!$G$6:$CU$255,26,FALSE) -> 78% | Q36: =VLOOKUP($E36,'RECAP AG'!$G$6:$CU$255,27,FALSE) -> 78% | R36: =VLOOKUP($E36,'RECAP AG'!$G$6:$CU$255,28,FALSE) -> 152
A37: 262 | B37: BAS RHIN | C37: 5060 | D37: HAGUENAU | E37: 4095 | F37: SARRE UNION | G37: =VLOOKUP($E37,'RECAP AG'!$G$6:$CU$255,3,FALSE) -> 2.3 | H37: =VLOOKUP($E37,'RECAP AG'!$G$6:$CU$255,18,FALSE) -> 37.4 | I37: =VLOOKUP($E37,'RECAP AG'!$G$6:$CU$255,19,FALSE) -> 16.62 | J37: =VLOOKUP($E37,'RECAP AG'!$G$6:$CU$255,20,FALSE) -> 59% | K37: =VLOOKUP($E37,'RECAP AG'!$G$6:$CU$255,21,FALSE) -> 42 | L37: =VLOOKUP($E37,'RECAP AG'!$G$6:$CU$255,22,FALSE) -> 60 | M37: =VLOOKUP($E37,'RECAP AG'!$G$6:$CU$255,23,FALSE) -> 26.67 | N37: =VLOOKUP($E37,'RECAP AG'!$G$6:$CU$255,24,FALSE) -> 82% | O37: =VLOOKUP($E37,'RECAP AG'!$G$6:$CU$255,25,FALSE) -> 126 | P37: =VLOOKUP($E37,'RECAP AG'!$G$6:$CU$255,26,FALSE) -> 68% | Q37: =VLOOKUP($E37,'RECAP AG'!$G$6:$CU$255,27,FALSE) -> 68% | R37: =VLOOKUP($E37,'RECAP AG'!$G$6:$CU$255,28,FALSE) -> 50
A38: 262 | B38: BAS RHIN | C38: 5060 | D38: HAGUENAU | E38: 4087 | F38: SAVERNE | G38: =VLOOKUP($E38,'RECAP AG'!$G$6:$CU$255,3,FALSE) -> 5.9 | H38: =VLOOKUP($E38,'RECAP AG'!$G$6:$CU$255,18,FALSE) -> 83.4 | I38: =VLOOKUP($E38,'RECAP AG'!$G$6:$CU$255,19,FALSE) -> 14.04 | J38: =VLOOKUP($E38,'RECAP AG'!$G$6:$CU$255,20,FALSE) -> 63% | K38: =VLOOKUP($E38,'RECAP AG'!$G$6:$CU$255,21,FALSE) -> 66 | L38: =VLOOKUP($E38,'RECAP AG'!$G$6:$CU$255,22,FALSE) -> 108 | M38: =VLOOKUP($E38,'RECAP AG'!$G$6:$CU$255,23,FALSE) -> 18.18 | N38: =VLOOKUP($E38,'RECAP AG'!$G$6:$CU$255,24,FALSE) -> 87% | O38: =VLOOKUP($E38,'RECAP AG'!$G$6:$CU$255,25,FALSE) -> 218 | P38: =VLOOKUP($E38,'RECAP AG'!$G$6:$CU$255,26,FALSE) -> 73% | Q38: =VLOOKUP($E38,'RECAP AG'!$G$6:$CU$255,27,FALSE) -> 73% | R38: =VLOOKUP($E38,'RECAP AG'!$G$6:$CU$255,28,FALSE) -> 99
A39: 262 | B39: BAS RHIN | C39: 5060 | D39: HAGUENAU | E39: 4079 | F39: SOULTZ SOUS FORETS | G39: =VLOOKUP($E39,'RECAP AG'!$G$6:$CU$255,3,FALSE) -> 1.8 | H39: =VLOOKUP($E39,'RECAP AG'!$G$6:$CU$255,18,FALSE) -> 33.7 | I39: =VLOOKUP($E39,'RECAP AG'!$G$6:$CU$255,19,FALSE) -> 18.32 | J39: =VLOOKUP($E39,'RECAP AG'!$G$6:$CU$255,20,FALSE) -> 57% | K39: =VLOOKUP($E39,'RECAP AG'!$G$6:$CU$255,21,FALSE) -> 32 | L39: =VLOOKUP($E39,'RECAP AG'!$G$6:$CU$255,22,FALSE) -> 53 | M39: =VLOOKUP($E39,'RECAP AG'!$G$6:$CU$255,23,FALSE) -> 28.80 | N39: =VLOOKUP($E39,'RECAP AG'!$G$6:$CU$255,24,FALSE) -> 80% | O39: =VLOOKUP($E39,'RECAP AG'!$G$6:$CU$255,25,FALSE) -> 103 | P39: =VLOOKUP($E39,'RECAP AG'!$G$6:$CU$255,26,FALSE) -> 66% | Q39: =VLOOKUP($E39,'RECAP AG'!$G$6:$CU$255,27,FALSE) -> 66% | R39: =VLOOKUP($E39,'RECAP AG'!$G$6:$CU$255,28,FALSE) -> 39
A40: 262 | B40: BAS RHIN | C40: 5060 | D40: HAGUENAU | E40: 4031 | F40: TRUCHTERSHEIM | G40: =VLOOKUP($E40,'RECAP AG'!$G$6:$CU$255,3,FALSE) -> 2.3 | H40: =VLOOKUP($E40,'RECAP AG'!$G$6:$CU$255,18,FALSE) -> 39.8 | I40: =VLOOKUP($E40,'RECAP AG'!$G$6:$CU$255,19,FALSE) -> 17.01 | J40: =VLOOKUP($E40,'RECAP AG'!$G$6:$CU$255,20,FALSE) -> 59% | K40: =VLOOKUP($E40,'RECAP AG'!$G$6:$CU$255,21,FALSE) -> 40 | L40: =VLOOKUP($E40,'RECAP AG'!$G$6:$CU$255,22,FALSE) -> 36 | M40: =VLOOKUP($E40,'RECAP AG'!$G$6:$CU$255,23,FALSE) -> 15.38 | N40: =VLOOKUP($E40,'RECAP AG'!$G$6:$CU$255,24,FALSE) -> 89% | O40: =VLOOKUP($E40,'RECAP AG'!$G$6:$CU$255,25,FALSE) -> 232 | P40: =VLOOKUP($E40,'RECAP AG'!$G$6:$CU$255,26,FALSE) -> 71% | Q40: =VLOOKUP($E40,'RECAP AG'!$G$6:$CU$255,27,FALSE) -> 71% | R40: =VLOOKUP($E40,'RECAP AG'!$G$6:$CU$255,28,FALSE) -> 81
A41: 262 | B41: BAS RHIN | C41: 5060 | D41: HAGUENAU | E41: 4071 | F41: WISSEMBOURG | G41: =VLOOKUP($E41,'RECAP AG'!$G$6:$CU$255,3,FALSE) -> 6.5 | H41: =VLOOKUP($E41,'RECAP AG'!$G$6:$CU$255,18,FALSE) -> 55.7 | I41: =VLOOKUP($E41,'RECAP AG'!$G$6:$CU$255,19,FALSE) -> 8.53 | J41: =VLOOKUP($E41,'RECAP AG'!$G$6:$CU$255,20,FALSE) -> 71% | K41: =VLOOKUP($E41,'RECAP AG'!$G$6:$CU$255,21,FALSE) -> 128 | L41: =VLOOKUP($E41,'RECAP AG'!$G$6:$CU$255,22,FALSE) -> 170 | M41: =VLOOKUP($E41,'RECAP AG'!$G$6:$CU$255,23,FALSE) -> 26.03 | N41: =VLOOKUP($E41,'RECAP AG'!$G$6:$CU$255,24,FALSE) -> 82% | O41: =VLOOKUP($E41,'RECAP AG'!$G$6:$CU$255,25,FALSE) -> 130 | P41: =VLOOKUP($E41,'RECAP AG'!$G$6:$CU$255,26,FALSE) -> 76% | Q41: =VLOOKUP($E41,'RECAP AG'!$G$6:$CU$255,27,FALSE) -> 76% | R41: =VLOOKUP($E41,'RECAP AG'!$G$6:$CU$255,28,FALSE) -> 132
A42: 262 | B42: BAS RHIN | C42: 5101 | D42: SELESTAT | E42: 4113 | F42: BARR | G42: =VLOOKUP($E42,'RECAP AG'!$G$6:$CU$255,3,FALSE) -> 2.9 | H42: =VLOOKUP($E42,'RECAP AG'!$G$6:$CU$255,18,FALSE) -> 68.0 | I42: =VLOOKUP($E42,'RECAP AG'!$G$6:$CU$255,19,FALSE) -> 23.78 | J42: =VLOOKUP($E42,'RECAP AG'!$G$6:$CU$255,20,FALSE) -> 49% | K42: =VLOOKUP($E42,'RECAP AG'!$G$6:$CU$255,21,FALSE) -> 12 | L42: =VLOOKUP($E42,'RECAP AG'!$G$6:$CU$255,22,FALSE) -> 93 | M42: =VLOOKUP($E42,'RECAP AG'!$G$6:$CU$255,23,FALSE) -> 32.52 | N42: =VLOOKUP($E42,'RECAP AG'!$G$6:$CU$255,24,FALSE) -> 77% | O42: =VLOOKUP($E42,'RECAP AG'!$G$6:$CU$255,25,FALSE) -> 68 | P42: =VLOOKUP($E42,'RECAP AG'!$G$6:$CU$255,26,FALSE) -> 60% | Q42: =VLOOKUP($E42,'RECAP AG'!$G$6:$CU$255,27,FALSE) -> 60% | R42: =VLOOKUP($E42,'RECAP AG'!$G$6:$CU$255,28,FALSE) -> 18
A43: 262 | B43: BAS RHIN | C43: 5101 | D43: SELESTAT | E43: 4111 | F43: BENFELD | G43: =VLOOKUP($E43,'RECAP AG'!$G$6:$CU$255,3,FALSE) -> 2.9 | H43: =VLOOKUP($E43,'RECAP AG'!$G$6:$CU$255,18,FALSE) -> 14.4 | I43: =VLOOKUP($E43,'RECAP AG'!$G$6:$CU$255,19,FALSE) -> 5.05 | J43: =VLOOKUP($E43,'RECAP AG'!$G$6:$CU$255,20,FALSE) -> 77% | K43: =VLOOKUP($E43,'RECAP AG'!$G$6:$CU$255,21,FALSE) -> 169 | L43: =VLOOKUP($E43,'RECAP AG'!$G$6:$CU$255,22,FALSE) -> 50 | M43: =VLOOKUP($E43,'RECAP AG'!$G$6:$CU$255,23,FALSE) -> 17.54 | N43: =VLOOKUP($E43,'RECAP AG'!$G$6:$CU$255,24,FALSE) -> 88% | O43: =VLOOKUP($E43,'RECAP AG'!$G$6:$CU$255,25,FALSE) -> 224 | P43: =VLOOKUP($E43,'RECAP AG'!$G$6:$CU$255,26,FALSE) -> 81% | Q43: =VLOOKUP($E43,'RECAP AG'!$G$6:$CU$255,27,FALSE) -> 81% | R43: =VLOOKUP($E43,'RECAP AG'!$G$6:$CU$255,28,FALSE) -> 196
A44: 262 | B44: BAS RHIN | C44: 5101 | D44: SELESTAT | E44: 4104 | F44: ERSTEIN | G44: =VLOOKUP($E44,'RECAP AG'!$G$6:$CU$255,3,FALSE) -> 4.3 | H44: =VLOOKUP($E44,'RECAP AG'!$G$6:$CU$255,18,FALSE) -> 156.0 | I44: =VLOOKUP($E44,'RECAP AG'!$G$6:$CU$255,19,FALSE) -> 35.94 | J44: =VLOOKUP($E44,'RECAP AG'!$G$6:$CU$255,20,FALSE) -> 30% | K44: =VLOOKUP($E44,'RECAP AG'!$G$6:$CU$255,21,FALSE) -> 3 | L44: =VLOOKUP($E44,'RECAP AG'!$G$6:$CU$255,22,FALSE) -> 149 | M44: =VLOOKUP($E44,'RECAP AG'!$G$6:$CU$255,23,FALSE) -> 34.33 | N44: =VLOOKUP($E44,'RECAP AG'!$G$6:$CU$255,24,FALSE) -> 76% | O44: =VLOOKUP($E44,'RECAP AG'!$G$6:$CU$255,25,FALSE) -> 56 | P44: =VLOOKUP($E44,'RECAP AG'!$G$6:$CU$255,26,FALSE) -> 49% | Q44: =VLOOKUP($E44,'RECAP AG'!$G$6:$CU$255,27,FALSE) -> 49% | R44: =VLOOKUP($E44,'RECAP AG'!$G$6:$CU$255,28,FALSE) -> 5
A45: 262 | B45: BAS RHIN | C45: 5101 | D45: SELESTAT | E45: 4008 | F45: FEGERSHEIM | G45: =VLOOKUP($E45,'RECAP AG'!$G$6:$CU$255,3,FALSE) -> 1.9 | H45: =VLOOKUP($E45,'RECAP AG'!$G$6:$CU$255,18,FALSE) -> 21.7 | I45: =VLOOKUP($E45,'RECAP AG'!$G$6:$CU$255,19,FALSE) -> 11.30 | J45: =VLOOKUP($E45,'RECAP AG'!$G$6:$CU$255,20,FALSE) -> 67% | K45: =VLOOKUP($E45,'RECAP AG'!$G$6:$CU$255,21,FALSE) -> 97 | L45: =VLOOKUP($E45,'RECAP AG'!$G$6:$CU$255,22,FALSE) -> 26 | M45: =VLOOKUP($E45,'RECAP AG'!$G$6:$CU$255,23,FALSE) -> 13.54 | N45: =VLOOKUP($E45,'RECAP AG'!$G$6:$CU$255,24,FALSE) -> 91% | O45: =VLOOKUP($E45,'RECAP AG'!$G$6:$CU$255,25,FALSE) -> 241 | P45: =VLOOKUP($E45,'RECAP AG'!$G$6:$CU$255,26,FALSE) -> 77% | Q45: =VLOOKUP($E45,'RECAP AG'!$G$6:$CU$255,27,FALSE) -> 77% | R45: =VLOOKUP($E45,'RECAP AG'!$G$6:$CU$255,28,FALSE) -> 137
A46: 262 | B46: BAS RHIN | C46: 5101 | D46: SELESTAT | E46: 4007 | F46: ILLKIRCH CENTRE | G46: =VLOOKUP($E46,'RECAP AG'!$G$6:$CU$255,3,FALSE) -> 6.6 | H46: =VLOOKUP($E46,'RECAP AG'!$G$6:$CU$255,18,FALSE) -> 83.2 | I46: =VLOOKUP($E46,'RECAP AG'!$G$6:$CU$255,19,FALSE) -> 12.63 | J46: =VLOOKUP($E46,'RECAP AG'!$G$6:$CU$255,20,FALSE) -> 65% | K46: =VLOOKUP($E46,'RECAP AG'!$G$6:$CU$255,21,FALSE) -> 81 | L46: =VLOOKUP($E46,'RECAP AG'!$G$6:$CU$255,22,FALSE) -> 153 | M46: =VLOOKUP($E46,'RECAP AG'!$G$6:$CU$255,23,FALSE) -> 23.22 | N46: =VLOOKUP($E46,'RECAP AG'!$G$6:$CU$255,24,FALSE) -> 84% | O46: =VLOOKUP($E46,'RECAP AG'!$G$6:$CU$255,25,FALSE) -> 161 | P46: =VLOOKUP($E46,'RECAP AG'!$G$6:$CU$255,26,FALSE) -> 73% | Q46: =VLOOKUP($E46,'RECAP AG'!$G$6:$CU$255,27,FALSE) -> 73% | R46: =VLOOKUP($E46,'RECAP AG'!$G$6:$CU$255,28,FALSE) -> 97
A47: 262 | B47: BAS RHIN | C47: 5101 | D47: SELESTAT | E47: 4015 | F47: LINGOLSHEIM | G47: =VLOOKUP($E47,'RECAP AG'!$G$6:$CU$255,3,FALSE) -> 1.7 | H47: =VLOOKUP($E47,'RECAP AG'!$G$6:$CU$255,18,FALSE) -> -12.2 | I47: =VLOOKUP($E47,'RECAP AG'!$G$6:$CU$255,19,FALSE) -> -7.35 | J47: =VLOOKUP($E47,'RECAP AG'!$G$6:$CU$255,20,FALSE) -> 95% | K47: =VLOOKUP($E47,'RECAP AG'!$G$6:$CU$255,21,FALSE) -> 240 | L47: =VLOOKUP($E47,'RECAP AG'!$G$6:$CU$255,22,FALSE) -> 63 | M47: =VLOOKUP($E47,'RECAP AG'!$G$6:$CU$255,23,FALSE) -> 37.95 | N47: =VLOOKUP($E47,'RECAP AG'!$G$6:$CU$255,24,FALSE) -> 74% | O47: =VLOOKUP($E47,'RECAP AG'!$G$6:$CU$255,25,FALSE) -> 36 | P47: =VLOOKUP($E47,'RECAP AG'!$G$6:$CU$255,26,FALSE) -> 87% | Q47: =VLOOKUP($E47,'RECAP AG'!$G$6:$CU$255,27,FALSE) -> 87% | R47: =VLOOKUP($E47,'RECAP AG'!$G$6:$CU$255,28,FALSE) -> 225
A48: 262 | B48: BAS RHIN | C48: 5101 | D48: SELESTAT | E48: 4109 | F48: MARCKOLSHEIM | G48: =VLOOKUP($E48,'RECAP AG'!$G$6:$CU$255,3,FALSE) -> 2.7 | H48: =VLOOKUP($E48,'RECAP AG'!$G$6:$CU$255,18,FALSE) -> 20.6 | I48: =VLOOKUP($E48,'RECAP AG'!$G$6:$CU$255,19,FALSE) -> 7.57 | J48: =VLOOKUP($E48,'RECAP AG'!$G$6:$CU$255,20,FALSE) -> 73% | K48: =VLOOKUP($E48,'RECAP AG'!$G$6:$CU$255,21,FALSE) -> 138 | L48: =VLOOKUP($E48,'RECAP AG'!$G$6:$CU$255,22,FALSE) -> 61 | M48: =VLOOKUP($E48,'RECAP AG'!$G$6:$CU$255,23,FALSE) -> 22.43 | N48: =VLOOKUP($E48,'RECAP AG'!$G$6:$CU$255,24,FALSE) -> 84% | O48: =VLOOKUP($E48,'RECAP AG'!$G$6:$CU$255,25,FALSE) -> 173 | P48: =VLOOKUP($E48,'RECAP AG'!$G$6:$CU$255,26,FALSE) -> 77% | Q48: =VLOOKUP($E48,'RECAP AG'!$G$6:$CU$255,27,FALSE) -> 77% | R48: =VLOOKUP($E48,'RECAP AG'!$G$6:$CU$255,28,FALSE) -> 150
A49: 262 | B49: BAS RHIN | C49: 5101 | D49: SELESTAT | E49: 4120 | F49: WASSELONNE | G49: =VLOOKUP($E49,'RECAP AG'!$G$6:$CU$255,3,FALSE) -> 3.0 | H49: =VLOOKUP($E49,'RECAP AG'!$G$6:$CU$255,18,FALSE) -> -14.1 | I49: =VLOOKUP($E49,'RECAP AG'!$G$6:$CU$255,19,FALSE) -> -4.78 | J49: =VLOOKUP($E49,'RECAP AG'!$G$6:$CU$255,20,FALSE) -> 91% | K49: =VLOOKUP($E49,'RECAP AG'!$G$6:$CU$255,21,FALSE) -> 234 | L49: =VLOOKUP($E49,'RECAP AG'!$G$6:$CU$255,22,FALSE) -> 64 | M49: =VLOOKUP($E49,'RECAP AG'!$G$6:$CU$255,23,FALSE) -> 21.69 | N49: =VLOOKUP($E49,'RECAP AG'!$G$6:$CU$255,24,FALSE) -> 85% | O49: =VLOOKUP($E49,'RECAP AG'!$G$6:$CU$255,25,FALSE) -> 182 | P49: =VLOOKUP($E49,'RECAP AG'!$G$6:$CU$255,26,FALSE) -> 89% | Q49: =VLOOKUP($E49,'RECAP AG'!$G$6:$CU$255,27,FALSE) -> 89% | R49: =VLOOKUP($E49,'RECAP AG'!$G$6:$CU$255,28,FALSE) -> 236
